Workbook

Sheet Cover page
B1: 2021-10-03 2022 RORI Scenario Testing.xlsm | J1: =IFERROR(MID(GetBook(),FIND("v",GetBook()),FIND("xls",GetBook())-FIND("v",GetBook())-1),"") -> 
B2: Energy Networks Australia
H5: Private and Confidential
H7: Contact:
H8: James Key
H9: +61 03 9613 1531
H10: james.key@frontier-economics.com.au
H14: Contact:
H15: Garth Crawford
H16: +61 4 3909 9007
H17: gcrawford@energynetworks.com.au

Sheet Summary
B1: ='Cover page'!B1 -> 2021-10-03 2022 RORI Scenario Testing.xlsm
B2: ='Cover page'!B2 -> Energy Networks Australia
B4: About this workbook
B6: This workbook is designed to …
B8: Tab colour meanings
D10: Control and reporting sheets
D11: Calculation sheets
D12: Primary input sheets
D13: Secondary input sheets (feed in to primary input sheets). These sheets are ad-hoc, free form calculations
D14: Variance sheets
B16: Cell colour meanings
D18: Fixed cell - should not be changed by user
D19: Input cell - value can be changed by the user
D20: Formulas change at this point - value should not be changed by user
D21: Cell targeted by solver - value should not be changed by user
D22: Assertion/check passes
D23: Assertion/check fails
B25: How to use this workbook
B27: [Describe structure]
B29: Assumptions
B31: [Discuss]
B33: General workbook features
B35: Checks and assertions
B36: The green (or possibly red) bars underneath line items in the calculation sheets are tests and/or assertions about the resulting values in that line item.
B37: If any assumptions about the results are invalidated or logical errors are detected (e.g. a test not reconciling), the bar under the line item will turn red
B38: at the point in which the error is detected.
F39: (error in this column)
D40: TRUE | E40: TRUE | F40: FALSE | G40: TRUE | H40: TRUE
B42: Sparklines
B43: Sparklines are an Excel feature (2010+) that provide an indication of how a series of values is changing. All the calculation sheets and some input sheets
B44: make use of spark lines to provide a quick overview of each series. An example sparkline is shown below.
D46: 2 | E46: 3.5 | F46: 3 | G46: 2 | H46: 1

Sheet BuildingBlock
B1: =Summary!B1 -> 2021-10-03 2022 RORI Scenario Testing.xlsm
B2: BuildingBlock
B4: Scenario | C4: 1
D6: =Control!C11 -> 2022 | E6: =D6+1 -> 2023 | F6: =E6+1 -> 2024 | G6: 2025 | H6: 2026
B7: Discount rates
B8: Inflation index | C8: 1 | D8: =C8*(1+Control!$C$17) -> 1.025 | E8: =D8*(1+Control!$C$17) -> 1.050625 | F8: =E8*(1+Control!$C$17) -> 1.076890625 | G8: =F8*(1+Control!$C$17) -> 1.103812891 | H8: =G8*(1+Control!$C$17) -> 1.131408213
B9: Nominal Vanilla WACC | D9: =VLOOKUP(D6,Control!$B$70:$F$75,MATCH("Scenario "&$C$4,Control!$B$70:$F$70,0),FALSE) -> 0.05000220895 | E9: =VLOOKUP(E6,Control!$B$70:$F$75,MATCH("Scenario "&$C$4,Control!$B$70:$F$70,0),FALSE) -> 0.04782486739 | F9: =VLOOKUP(F6,Control!$B$70:$F$75,MATCH("Scenario "&$C$4,Control!$B$70:$F$70,0),FALSE) -> 0.04572615739 | G9: =VLOOKUP(G6,Control!$B$70:$F$75,MATCH("Scenario "&$C$4,Control!$B$70:$F$70,0),FALSE) -> 0.04410398982 | H9: =VLOOKUP(H6,Control!$B$70:$F$75,MATCH("Scenario "&$C$4,Control!$B$70:$F$70,0),FALSE) -> 0.04285741158
B10: Cumulative inverse discount rate | C10: 1 | D10: =C10/(1+D9) -> 0.9523789488 | E10: =D10/(1+E9) -> 0.9089104281 | F10: 0.8691667715 | G10: 0.8324523036 | H10: 0.7982417293
B12: Asset roll forward
B13: Nominal RAB (start period) | D13: =IF(Control!$C$19="Representative",'DNSP PTRM Data'!K18,Control!C23) -> 6140.79418 | E13: =D17 -> 6284.244478 | F13: =E17 -> 6431.045807 | G13: 6581.276446 | H13: 6735.016507
B14: Nominal depreciation | D14: =IF(Control!$C$19="Representative",'DNSP PTRM Data'!M18,Control!C24) -> 279.1499563 | E14: =IF(Control!$C$19="Representative",($D14/$D13)*E13,Control!D24) -> 285.6709605 | F14: =IF(Control!$C$19="Representative",($D14/$D13)*F13,Control!E24) -> 292.3442968 | G14: =IF(Control!$C$19="Representative",($D14/$D13)*G13,Control!F24) -> 299.1735236 | H14: =IF(Control!$C$19="Representative",($D14/$D13)*H13,Control!G24) -> 306.1622827
B15: Nominal net capex | D15: =IF(Control!$C$19="Representative",'DNSP PTRM Data'!L18,Control!C25) -> 269.0804 | E15: =IF(Control!$C$19="Representative",($D15/$D13)*E13,Control!D25) -> 275.3661771 | F15: =IF(Control!$C$19="Representative",($D15/$D13)*F13,Control!E25) -> 281.7987914 | G15: =IF(Control!$C$19="Representative",($D15/$D13)*G13,Control!F25) -> 288.3816729 | H15: =IF(Control!$C$19="Representative",($D15/$D13)*H13,Control!G25) -> 295.118332
B16: Indexation | D16: =D13*Control!$C17 -> 153.5198545 | E16: =E13*Control!$C17 -> 157.106112 | F16: =F13*Control!$C17 -> 160.7761452 | G16: =G13*Control!$C17 -> 164.5319112 | H16: =H13*Control!$C17 -> 168.3754127
B17: Nominal RAB (end period) | D17: =D13-D14+D15+D16 -> 6284.244478 | E17: =E13-E14+E15+E16 -> 6431.045807 | F17: 6581.276446 | G17: 6735.016507 | H17: 6892.347969
B19: Revenue building blocks
B20: Return on Equity | D20: =D13*(1-Control!$C$14)*(INDEX(Control!$C$66:$F$66,MATCH("Scenario "&$C$4,Control!$C$63:$F$63,0))) -> 136.323989 | E20: =E13*(1-Control!$C$14)*(INDEX(Control!$C$66:$F$66,MATCH("Scenario "&$C$4,Control!$C$63:$F$63,0))) -> 139.5085473 | F20: =F13*(1-Control!$C$14)*(INDEX(Control!$C$66:$F$66,MATCH("Scenario "&$C$4,Control!$C$63:$F$63,0))) -> 142.7674975 | G20: =G13*(1-Control!$C$14)*(INDEX(Control!$C$66:$F$66,MATCH("Scenario "&$C$4,Control!$C$63:$F$63,0))) -> 146.1025775 | H20: =H13*(1-Control!$C$14)*(INDEX(Control!$C$66:$F$66,MATCH("Scenario "&$C$4,Control!$C$63:$F$63,0))) -> 149.5155658
B21: Return on Debt | D21: =D13*(Control!$C$14)*VLOOKUP(D6,Control!$B$52:$F$57,MATCH("Scenario "&$C$4,Control!$B$52:$F$52,0),FALSE) -> 170.7292847 | E21: =E13*(Control!$C$14)*VLOOKUP(E6,Control!$B$52:$F$57,MATCH("Scenario "&$C$4,Control!$B$52:$F$52,0),FALSE) -> 161.0346116 | F21: =F13*(Control!$C$14)*VLOOKUP(F6,Control!$B$52:$F$57,MATCH("Scenario "&$C$4,Control!$B$52:$F$52,0),FALSE) -> 151.2995152 | G21: =G13*(Control!$C$14)*VLOOKUP(G6,Control!$B$52:$F$57,MATCH("Scenario "&$C$4,Control!$B$52:$F$52,0),FALSE) -> 144.1579719 | H21: =H13*(Control!$C$14)*VLOOKUP(H6,Control!$B$52:$F$57,MATCH("Scenario "&$C$4,Control!$B$52:$F$52,0),FALSE) -> 139.1298087
B22: Depreciation | D22: =D14 -> 279.1499563 | E22: =E14 -> 285.6709605 | F22: 292.3442968 | G22: 299.1735236 | H22: 306.1622827
B23: Inflation | D23: =D16 -> 153.5198545 | E23: =E16 -> 157.106112 | F23: 160.7761452 | G23: 164.5319112 | H23: 168.3754127
B24: Opex | D24: =IF(Control!$C$19="Representative",'DNSP PTRM Data'!N18,Control!C26) -> 247.4842947 | E24: =IF(Control!$C$19="Representative",($D24/$D13)*E13,Control!D26) -> 253.2655821 | F24: =IF(Control!$C$19="Representative",($D24/$D13)*F13,Control!E26) -> 259.1819216 | G24: =IF(Control!$C$19="Representative",($D24/$D13)*G13,Control!F26) -> 265.2364681 | H24: =IF(Control!$C$19="Representative",($D24/$D13)*H13,Control!G26) -> 271.4324501
B25: Tax allowance (less imputation credits) | D25: =D39*(1-0.585) -> 0 | E25: =E39*(1-0.585) -> 0 | F25: 0 | G25: 0 | H25: 0
B26: Revenue | D26: =D20+D21+D22+D24+D25-D23 -> 680.1676702 | E26: =E20+E21+E22+E24+E25-E23 -> 682.3735895 | F26: 684.8170859 | G26: 690.13863 | H26: 697.8646946
B28: Tax expenses
B29: Opex | D29: =D24 -> 247.4842947 | E29: =E24 -> 253.2655821 | F29: 259.1819216 | G29: 265.2364681 | H29: 271.4324501
B30: Tax depreciation (assume same as RFM) | D30: =D22 -> 279.1499563 | E30: =E22 -> 285.6709605 | F30: 292.3442968 | G30: 299.1735236 | H30: 306.1622827
B31: Interest | D31: =D21 -> 170.7292847 | E31: =E21 -> 161.0346116 | F31: 151.2995152 | G31: 144.1579719 | H31: 139.1298087
B32: Total tax expenses | D32: =D29+D30+D31 -> 697.3635357 | E32: =E29+E30+E31 -> 699.9711542 | F32: 702.8257336 | G32: 708.5679636 | H32: 716.7245415
B34: Tax calculation
B35: Taxable income | D35: =C37+D36 -> -17.19586551 | E35: =D37+E36 -> -34.7934302 | F35: -52.80207787 | G35: -71.23141149 | H35: -90.09125838
B36: Pre-tax income | D36: =D26-D32 -> -17.19586551 | E36: =E26-E32 -> -17.5975647 | F36: -18.00864766 | G36: -18.42933362 | H36: -18.85984689
B37: Tax loss carried forward | C37: 0 | D37: =IF(D35<0,D35,0) -> -17.19586551 | E37: =IF(E35<0,E35,0) -> -34.7934302 | F37: -52.80207787 | G37: -71.23141149 | H37: -90.09125838
B38: Tax payable | D38: =IF(D35>0,D35*0.3,0) -> 0 | E38: =IF(E35>0,E35*0.3,0) -> 0 | F38: 0 | G38: 0 | H38: 0
B39: Indicative tax expense | D39: =MAX(0,(D20+D21+D22-D23+D24-D32+C37)*0.3/(1-(1-0.585)*0.3)) -> 0 | E39: =MAX(0,(E20+E21+E22-E23+E24-E32+D37)*0.3/(1-(1-0.585)*0.3)) -> 0 | F39: 0 | G39: 0 | H39: 0
B41: Revenue smoothing (constant real revenue) | J41: NPV
B42: Unsmoothed Revenue | D42: =D26 -> 680.1676702 | E42: =E26 -> 682.3735895 | F42: 684.8170859 | G42: 690.13863 | H42: 697.8646946 | J42: =SUMPRODUCT(D42:H42,D10:H10) -> 2994.786311
B43: Step One | D43: =D42 -> 680.1676702 | E43: =D43*(1+Control!$C17) -> 697.171862 | F43: =E43*(1+Control!$C17) -> 714.6011585 | G43: =F43*(1+Control!$C17) -> 732.4661875 | H43: =G43*(1+Control!$C17) -> 750.7778422 | J43: =SUMPRODUCT(D43:H43,D10:H10) -> 3111.597096
B44: Smoothed Revenues | D44: =D43*$J42/$J43 -> 654.6338632 | E44: =D44*(1+Control!$C17) -> 670.9997097 | F44: =E44*(1+Control!$C17) -> 687.7747025 | G44: =F44*(1+Control!$C17) -> 704.96907 | H44: =G44*(1+Control!$C17) -> 722.5932968 | J44: =SUMPRODUCT(D44:H44,D10:H10) -> 2994.786311
B46: Return on Capital | D46: =D20+D21 -> 307.0532737 | E46: =E20+E21 -> 300.5431588 | F46: 294.0670127 | G46: 290.2605494 | H46: 288.6453744
B47: Regulatory Depreciation | D47: =D22-D23 -> 125.6301018 | E47: =E22-E23 -> 128.5648486 | F47: 131.5681516 | G47: 134.6416125 | H47: 137.78687

Sheet DNSP PTRM Data
B1: =Summary!B1 -> 2021-10-03 2022 RORI Scenario Testing.xlsm
B2: [Sheet title]
B4: DNSP | C4: Year | D4: Real basis | E4: Real RAB (Start) | F4: Real Net Capex | G4: Real SL Depreciation | H4: Real Opex | I4: Real RAB (End) | K4: ="Nominal RAB (Start FY"&Control!C11&")" -> Nominal RAB (Start FY2022) | L4: Net Capex | M4: SL Depreciation | N4: Opex
B5: Ausgrid | C5: 2024 | D5: 2019 | E5: 13926.03445 | F5: 422.2865942 | G5: 481.5187686 | H5: 431.7705109 | I5: =E5+F5-G5 -> 13866.80228 | K5: =I5*VLOOKUP(Control!C$11,$B$20:$C$34,2,FALSE)/VLOOKUP(D5,$B$20:$C$34,2,FALSE) -> 14578.54965 | L5: =F5*K5/E5 -> 442.0731617 | M5: =G5*K5/E5 -> 504.0807058 | N5: =H5*K5/E5 -> 452.0014547
B6: AusNet | C6: 2026 | D6: 2021 | E6: 4806.322693 | F6: 232.265211 | G6: 248.886091 | H6: 256.6559841 | I6: 4789.701813 | K6: =I6*VLOOKUP(Control!C$11,$B$20:$C$34,2,FALSE)/VLOOKUP(D6,$B$20:$C$34,2,FALSE) -> 4973.921114 | L6: =F6*K6/E6 -> 240.364393 | M6: =G6*K6/E6 -> 257.5648499 | N6: =H6*K6/E6 -> 265.6056823
B7: Citipower | C7: 2026 | D7: 2021 | E7: 2002.383353 | F7: 101.9107362 | G7: 127.0580043 | H7: 96.52016007 | I7: 1977.236085 | K7: =I7*VLOOKUP(Control!C$11,$B$20:$C$34,2,FALSE)/VLOOKUP(D7,$B$20:$C$34,2,FALSE) -> 2053.283627 | L7: 104.5012912 | M7: 130.287799 | N7: 98.97368754
B8: Endeavour | C8: 2024 | D8: 2019 | E8: 6831.357911 | F8: 349.916165 | G8: 282.0727776 | H8: 297.5318748 | I8: 6899.201298 | K8: =I8*VLOOKUP(Control!C$11,$B$20:$C$34,2,FALSE)/VLOOKUP(D8,$B$20:$C$34,2,FALSE) -> 7253.319595 | L8: 371.5299081 | M8: 299.4959468 | N8: 315.9099268
B9: Energex | C9: 2025 | D9: 2020 | E9: 12735.84566 | F9: 388.8163309 | G9: 475.8766363 | H9: 357.3792825 | I9: 12648.78535 | K9: =I9*VLOOKUP(Control!C$11,$B$20:$C$34,2,FALSE)/VLOOKUP(D9,$B$20:$C$34,2,FALSE) -> 13089.50958 | L9: 399.6134395 | M9: 489.0913377 | N9: 367.3034103
B10: Ergon | C10: 2025 | D10: 2020 | E10: 11547.58345 | F10: 456.0232864 | G10: 482.3103274 | H10: 357.1683853 | I10: 11521.29641 | K10: =I10*VLOOKUP(Control!C$11,$B$20:$C$34,2,FALSE)/VLOOKUP(D10,$B$20:$C$34,2,FALSE) -> 11922.73531 | L10: 470.8383327 | M10: 497.9793734 | N10: 368.7718852
B11: Essential | C11: 2024 | D11: 2019 | E11: 8550.057096 | F11: 386.2498446 | G11: 354.0118546 | H11: 303.1257646 | I11: 8582.295086 | K11: =I11*VLOOKUP(Control!C$11,$B$20:$C$34,2,FALSE)/VLOOKUP(D11,$B$20:$C$34,2,FALSE) -> 9022.802267 | L11: 407.6061638 | M11: 373.5856882 | N11: 319.8860319
B12: Evoenergy | C12: 2024 | D12: 2019 | E12: 800.1104088 | F12: 53.71411919 | G12: 62.15722401 | H12: 52.08866238 | I12: 791.667304 | K12: =I12*VLOOKUP(Control!C$11,$B$20:$C$34,2,FALSE)/VLOOKUP(D12,$B$20:$C$34,2,FALSE) -> 832.301555 | L12: 55.87521976 | M12: 64.65801923 | N12: 54.18436534
B13: Jemena | C13: 2026 | D13: 2021 | E13: 1722.960794 | F13: 95.35228983 | G13: 95.43682238 | H13: 107.0610436 | I13: 1722.876261 | K13: =I13*VLOOKUP(Control!C$11,$B$20:$C$34,2,FALSE)/VLOOKUP(D13,$B$20:$C$34,2,FALSE) -> 1789.140733 | L13: =F13*K13/E13 -> 99.01482745 | M13: 99.10260694 | N13: 111.1733214
B14: Powercor | C14: 2026 | D14: 2021 | E14: 5022.792174 | F14: 274.6284111 | G14: 263.676008 | H14: 295.4380304 | I14: =E14+F14-G14 -> 5033.744577 | K14: =I14*VLOOKUP(Control!C$11,$B$20:$C$34,2,FALSE)/VLOOKUP(D14,$B$20:$C$34,2,FALSE) -> 5227.350138 | L14: 285.812913 | M14: 274.4144629 | N14: 307.4700238
B15: SAPN | C15: 2025 | D15: 2020 | E15: 4358.06127 | F15: 306.0298717 | G15: 325.4739939 | H15: 299.3253325 | I15: 4338.617147 | K15: =I15*VLOOKUP(Control!C$11,$B$20:$C$34,2,FALSE)/VLOOKUP(D15,$B$20:$C$34,2,FALSE) -> 4489.788477 | L15: 315.279962 | M15: 335.3118042 | N15: 308.3727707
B16: TasNetworks | C16: 2024 | D16: 2019 | E16: 1878.602502 | F16: 133.4626076 | G16: 114.1993415 | H16: 87.73373426 | I16: 1897.865768 | K16: =I16*VLOOKUP(Control!C$11,$B$20:$C$34,2,FALSE)/VLOOKUP(D16,$B$20:$C$34,2,FALSE) -> 1995.278347 | L16: 141.7516749 | M16: 121.2920099 | N16: 93.1826824
B17: United | C17: 2026 | D17: 2021 | E17: 2523.708754 | F17: 158.8348435 | G17: 176.5827595 | H17: 149.7932436 | I17: =E17+F17-G17 -> 2505.960838 | K17: =I17*VLOOKUP(Control!C$11,$B$20:$C$34,2,FALSE)/VLOOKUP(D17,$B$20:$C$34,2,FALSE) -> 2602.343947 | L17: 163.7839124 | M17: 182.0848284 | N17: 154.4605891
B18: Average | K18: =AVERAGE(K5:K17) -> 6140.79418 | L18: =AVERAGE(L5:L17) -> 269.0804 | M18: 279.1499563 | N18: 247.4842947
B20: Year | C20: Index
B21: 2019 | C21: 1
B22: =B21+1 -> 2020 | C22: =C21*VLOOKUP(DATE(B22-1,6,1),'ABS Inflation'!A:J,10,FALSE)/VLOOKUP(DATE(B22-2,6,1),'ABS Inflation'!A:J,10,FALSE) -> 1.015929204
B23: =B22+1 -> 2021 | C23: =C22*VLOOKUP(DATE(B23-1,6,1),'ABS Inflation'!A:J,10,FALSE)/VLOOKUP(DATE(B23-2,6,1),'ABS Inflation'!A:J,10,FALSE) -> 1.012389381
B24: 2022 | C24: =C23*VLOOKUP(DATE(B24-1,6,1),'ABS Inflation'!A:J,10,FALSE)/VLOOKUP(DATE(B24-2,6,1),'ABS Inflation'!A:J,10,FALSE) -> 1.051327434
B25: 2023 | C25: =C24*(1.015) -> 1.067097345
B26: 2024 | C26: =C25*(1.02) -> 1.088439292
B27: 2025 | C27: =C26*(1+Control!C$17) -> 1.115650274
B28: 2026 | C28: =C27*(1+Control!C$17) -> 1.143541531
B29: 2027 | C29: =C28*(1+Control!C$17) -> 1.172130069
B30: =B29+1 -> 2028 | C30: =C29*(1+Control!C$17) -> 1.201433321
B31: 2029 | C31: =C30*(1+Control!C$17) -> 1.231469154
B32: 2030 | C32: =C31*(1+Control!C$17) -> 1.262255883
B33: 2031 | C33: =C32*(1+Control!C$17) -> 1.29381228
B34: =B33+1 -> 2032 | C34: =C33*(1+Control!C$17) -> 1.326157587

Sheet Control
B1: ='Cover page'!B1 -> 2021-10-03 2022 RORI Scenario Testing.xlsm
B2: Control
B4: Total Market return | C4: 0.1132 | E4: Scenario | F4: Description
B5: Long-run risk-free rate (RFR) | C5: 0.05 | E5: 1 | F5: Low government bond yields persist
B6: Long-run market risk premium (MRP) | C6: 0.061 | E6: 2 | F6: Nominal government bond yields converge to a negative level
B7: Scenario 2 Negative RFR scenario | C7: -0.005 | E7: 3 | F7: Government bond yields converge to a long-run level
B8: Scenario 2 Convergence month | C8: 2026-08-31 | E8: 4 | F8: User customisable
B9: Scenario 3 Long-run RFR scenario | C9: Higher yield assumption
B11: Regulatory period start | C11: 2022
B12: Sample month | C12: June
B14: Gearing | C14: 0.6
B15: MRP approach | C15: Calibrated DGM
B16: Equity beta | C16: 0.6
B17: Inflation forecast | C17: 0.025
B19: Asset roll-forward | C19: Representative
B21: Customised asset profile
C22: =C11 -> 2022 | D22: =C22+1 -> 2023 | E22: =D22+1 -> 2024 | F22: 2025 | G22: =F22+1 -> 2026
B23: Opening RAB ($m Nominal) | C23: 6000
B24: Depreciation ($m Nominal) | C24: 300 | D24: 300 | E24: 300 | F24: 300 | G24: 300
B25: Net capex ($m Nominal) | C25: 280 | D25: 280 | E25: 280 | F25: 280 | G25: 280
B26: Opex ($m Nominal) | C26: 250 | D26: 250 | E26: 250 | F26: 250 | G26: 250
B28: Enter forecast current regulatory period final year allowances for charts
B29: Smoothed revenue
B30: Return on capital
B32: Return on Debt
B34: Prevailing COD
B35: Month | C35: Scenario 1 | D35: Scenario 2 | E35: Scenario 3 | F35: Scenario 4
B36: =EOMONTH(DATE(C$11-10-(MONTH(1&C$12)>6),MONTH(1&C$12),1),0) -> 2012-06-30 | C36: =IF(B36<=MAX('RBA Interpolation'!A:A),AVERAGEIFS('RBA Interpolation'!N:N,'RBA Interpolation'!C:C,YEAR(B36),'RBA Interpolation'!D:D,MONTH(B36)),VLOOKUP(B36,Scenarios!B:K,2,FALSE)+VLOOKUP(B36,Scenarios!B:K,7,FALSE)) -> 0.06554879851 | D36: =IF(B36<=MAX('RBA Interpolation'!A:A),AVERAGEIFS('RBA Interpolation'!N:N,'RBA Interpolation'!C:C,YEAR(B36),'RBA Interpolation'!D:D,MONTH(B36)),VLOOKUP(B36,Scenarios!B:K,3,FALSE)+VLOOKUP(B36,Scenarios!B:K,8,FALSE)) -> 0.06554879851 | E36: =IF(B36<=MAX('RBA Interpolation'!A:A),AVERAGEIFS('RBA Interpolation'!N:N,'RBA Interpolation'!C:C,YEAR(B36),'RBA Interpolation'!D:D,MONTH(B36)),VLOOKUP(B36,Scenarios!B:K,4,FALSE)+VLOOKUP(B36,Scenarios!B:K,9,FALSE)) -> 0.06554879851 | F36: =IF(B36<=MAX('RBA Interpolation'!A:A),AVERAGEIFS('RBA Interpolation'!N:N,'RBA Interpolation'!C:C,YEAR(B36),'RBA Interpolation'!D:D,MONTH(B36)),VLOOKUP(B36,Scenarios!B:K,5,FALSE)+VLOOKUP(B36,Scenarios!B:K,10,FALSE)) -> 0.06554879851
B37: =EOMONTH(B36,12) -> 2013-06-30 | C37: =IF(B37<=MAX('RBA Interpolation'!A:A),AVERAGEIFS('RBA Interpolation'!N:N,'RBA Interpolation'!C:C,YEAR(B37),'RBA Interpolation'!D:D,MONTH(B37)),VLOOKUP(B37,Scenarios!B:K,2,FALSE)+VLOOKUP(B37,Scenarios!B:K,7,FALSE)) -> 0.06423827267 | D37: =IF(B37<=MAX('RBA Interpolation'!A:A),AVERAGEIFS('RBA Interpolation'!N:N,'RBA Interpolation'!C:C,YEAR(B37),'RBA Interpolation'!D:D,MONTH(B37)),VLOOKUP(B37,Scenarios!B:K,3,FALSE)+VLOOKUP(B37,Scenarios!B:K,8,FALSE)) -> 0.06423827267 | E37: =IF(B37<=MAX('RBA Interpolation'!A:A),AVERAGEIFS('RBA Interpolation'!N:N,'RBA Interpolation'!C:C,YEAR(B37),'RBA Interpolation'!D:D,MONTH(B37)),VLOOKUP(B37,Scenarios!B:K,4,FALSE)+VLOOKUP(B37,Scenarios!B:K,9,FALSE)) -> 0.06423827267 | F37: =IF(B37<=MAX('RBA Interpolation'!A:A),AVERAGEIFS('RBA Interpolation'!N:N,'RBA Interpolation'!C:C,YEAR(B37),'RBA Interpolation'!D:D,MONTH(B37)),VLOOKUP(B37,Scenarios!B:K,5,FALSE)+VLOOKUP(B37,Scenarios!B:K,10,FALSE)) -> 0.06423827267
B38: =EOMONTH(B37,12) -> 2014-06-30 | C38: =IF(B38<=MAX('RBA Interpolation'!A:A),AVERAGEIFS('RBA Interpolation'!N:N,'RBA Interpolation'!C:C,YEAR(B38),'RBA Interpolation'!D:D,MONTH(B38)),VLOOKUP(B38,Scenarios!B:K,2,FALSE)+VLOOKUP(B38,Scenarios!B:K,7,FALSE)) -> 0.05629589874 | D38: =IF(B38<=MAX('RBA Interpolation'!A:A),AVERAGEIFS('RBA Interpolation'!N:N,'RBA Interpolation'!C:C,YEAR(B38),'RBA Interpolation'!D:D,MONTH(B38)),VLOOKUP(B38,Scenarios!B:K,3,FALSE)+VLOOKUP(B38,Scenarios!B:K,8,FALSE)) -> 0.05629589874 | E38: =IF(B38<=MAX('RBA Interpolation'!A:A),AVERAGEIFS('RBA Interpolation'!N:N,'RBA Interpolation'!C:C,YEAR(B38),'RBA Interpolation'!D:D,MONTH(B38)),VLOOKUP(B38,Scenarios!B:K,4,FALSE)+VLOOKUP(B38,Scenarios!B:K,9,FALSE)) -> 0.05629589874 | F38: =IF(B38<=MAX('RBA Interpolation'!A:A),AVERAGEIFS('RBA Interpolation'!N:N,'RBA Interpolation'!C:C,YEAR(B38),'RBA Interpolation'!D:D,MONTH(B38)),VLOOKUP(B38,Scenarios!B:K,5,FALSE)+VLOOKUP(B38,Scenarios!B:K,10,FALSE)) -> 0.05629589874
B39: 2015-06-30 | C39: =IF(B39<=MAX('RBA Interpolation'!A:A),AVERAGEIFS('RBA Interpolation'!N:N,'RBA Interpolation'!C:C,YEAR(B39),'RBA Interpolation'!D:D,MONTH(B39)),VLOOKUP(B39,Scenarios!B:K,2,FALSE)+VLOOKUP(B39,Scenarios!B:K,7,FALSE)) -> 0.05003607661 | D39: =IF(B39<=MAX('RBA Interpolation'!A:A),AVERAGEIFS('RBA Interpolation'!N:N,'RBA Interpolation'!C:C,YEAR(B39),'RBA Interpolation'!D:D,MONTH(B39)),VLOOKUP(B39,Scenarios!B:K,3,FALSE)+VLOOKUP(B39,Scenarios!B:K,8,FALSE)) -> 0.05003607661 | E39: =IF(B39<=MAX('RBA Interpolation'!A:A),AVERAGEIFS('RBA Interpolation'!N:N,'RBA Interpolation'!C:C,YEAR(B39),'RBA Interpolation'!D:D,MONTH(B39)),VLOOKUP(B39,Scenarios!B:K,4,FALSE)+VLOOKUP(B39,Scenarios!B:K,9,FALSE)) -> 0.05003607661 | F39: =IF(B39<=MAX('RBA Interpolation'!A:A),AVERAGEIFS('RBA Interpolation'!N:N,'RBA Interpolation'!C:C,YEAR(B39),'RBA Interpolation'!D:D,MONTH(B39)),VLOOKUP(B39,Scenarios!B:K,5,FALSE)+VLOOKUP(B39,Scenarios!B:K,10,FALSE)) -> 0.05003607661
B40: 2016-06-30 | C40: =IF(B40<=MAX('RBA Interpolation'!A:A),AVERAGEIFS('RBA Interpolation'!N:N,'RBA Interpolation'!C:C,YEAR(B40),'RBA Interpolation'!D:D,MONTH(B40)),VLOOKUP(B40,Scenarios!B:K,2,FALSE)+VLOOKUP(B40,Scenarios!B:K,7,FALSE)) -> 0.04529682322 | D40: =IF(B40<=MAX('RBA Interpolation'!A:A),AVERAGEIFS('RBA Interpolation'!N:N,'RBA Interpolation'!C:C,YEAR(B40),'RBA Interpolation'!D:D,MONTH(B40)),VLOOKUP(B40,Scenarios!B:K,3,FALSE)+VLOOKUP(B40,Scenarios!B:K,8,FALSE)) -> 0.04529682322 | E40: =IF(B40<=MAX('RBA Interpolation'!A:A),AVERAGEIFS('RBA Interpolation'!N:N,'RBA Interpolation'!C:C,YEAR(B40),'RBA Interpolation'!D:D,MONTH(B40)),VLOOKUP(B40,Scenarios!B:K,4,FALSE)+VLOOKUP(B40,Scenarios!B:K,9,FALSE)) -> 0.04529682322 | F40: =IF(B40<=MAX('RBA Interpolation'!A:A),AVERAGEIFS('RBA Interpolation'!N:N,'RBA Interpolation'!C:C,YEAR(B40),'RBA Interpolation'!D:D,MONTH(B40)),VLOOKUP(B40,Scenarios!B:K,5,FALSE)+VLOOKUP(B40,Scenarios!B:K,10,FALSE)) -> 0.04529682322
B41: 2017-06-30 | C41: =IF(B41<=MAX('RBA Interpolation'!A:A),AVERAGEIFS('RBA Interpolation'!N:N,'RBA Interpolation'!C:C,YEAR(B41),'RBA Interpolation'!D:D,MONTH(B41)),VLOOKUP(B41,Scenarios!B:K,2,FALSE)+VLOOKUP(B41,Scenarios!B:K,7,FALSE)) -> 0.04215985458 | D41: =IF(B41<=MAX('RBA Interpolation'!A:A),AVERAGEIFS('RBA Interpolation'!N:N,'RBA Interpolation'!C:C,YEAR(B41),'RBA Interpolation'!D:D,MONTH(B41)),VLOOKUP(B41,Scenarios!B:K,3,FALSE)+VLOOKUP(B41,Scenarios!B:K,8,FALSE)) -> 0.04215985458 | E41: =IF(B41<=MAX('RBA Interpolation'!A:A),AVERAGEIFS('RBA Interpolation'!N:N,'RBA Interpolation'!C:C,YEAR(B41),'RBA Interpolation'!D:D,MONTH(B41)),VLOOKUP(B41,Scenarios!B:K,4,FALSE)+VLOOKUP(B41,Scenarios!B:K,9,FALSE)) -> 0.04215985458 | F41: =IF(B41<=MAX('RBA Interpolation'!A:A),AVERAGEIFS('RBA Interpolation'!N:N,'RBA Interpolation'!C:C,YEAR(B41),'RBA Interpolation'!D:D,MONTH(B41)),VLOOKUP(B41,Scenarios!B:K,5,FALSE)+VLOOKUP(B41,Scenarios!B:K,10,FALSE)) -> 0.04215985458
B42: 2018-06-30 | C42: =IF(B42<=MAX('RBA Interpolation'!A:A),AVERAGEIFS('RBA Interpolation'!N:N,'RBA Interpolation'!C:C,YEAR(B42),'RBA Interpolation'!D:D,MONTH(B42)),VLOOKUP(B42,Scenarios!B:K,2,FALSE)+VLOOKUP(B42,Scenarios!B:K,7,FALSE)) -> 0.0449206283 | D42: =IF(B42<=MAX('RBA Interpolation'!A:A),AVERAGEIFS('RBA Interpolation'!N:N,'RBA Interpolation'!C:C,YEAR(B42),'RBA Interpolation'!D:D,MONTH(B42)),VLOOKUP(B42,Scenarios!B:K,3,FALSE)+VLOOKUP(B42,Scenarios!B:K,8,FALSE)) -> 0.0449206283 | E42: =IF(B42<=MAX('RBA Interpolation'!A:A),AVERAGEIFS('RBA Interpolation'!N:N,'RBA Interpolation'!C:C,YEAR(B42),'RBA Interpolation'!D:D,MONTH(B42)),VLOOKUP(B42,Scenarios!B:K,4,FALSE)+VLOOKUP(B42,Scenarios!B:K,9,FALSE)) -> 0.0449206283 | F42: =IF(B42<=MAX('RBA Interpolation'!A:A),AVERAGEIFS('RBA Interpolation'!N:N,'RBA Interpolation'!C:C,YEAR(B42),'RBA Interpolation'!D:D,MONTH(B42)),VLOOKUP(B42,Scenarios!B:K,5,FALSE)+VLOOKUP(B42,Scenarios!B:K,10,FALSE)) -> 0.0449206283
B43: 2019-06-30 | C43: =IF(B43<=MAX('RBA Interpolation'!A:A),AVERAGEIFS('RBA Interpolation'!N:N,'RBA Interpolation'!C:C,YEAR(B43),'RBA Interpolation'!D:D,MONTH(B43)),VLOOKUP(B43,Scenarios!B:K,2,FALSE)+VLOOKUP(B43,Scenarios!B:K,7,FALSE)) -> 0.03456681185 | D43: =IF(B43<=MAX('RBA Interpolation'!A:A),AVERAGEIFS('RBA Interpolation'!N:N,'RBA Interpolation'!C:C,YEAR(B43),'RBA Interpolation'!D:D,MONTH(B43)),VLOOKUP(B43,Scenarios!B:K,3,FALSE)+VLOOKUP(B43,Scenarios!B:K,8,FALSE)) -> 0.03456681185 | E43: =IF(B43<=MAX('RBA Interpolation'!A:A),AVERAGEIFS('RBA Interpolation'!N:N,'RBA Interpolation'!C:C,YEAR(B43),'RBA Interpolation'!D:D,MONTH(B43)),VLOOKUP(B43,Scenarios!B:K,4,FALSE)+VLOOKUP(B43,Scenarios!B:K,9,FALSE)) -> 0.03456681185 | F43: =IF(B43<=MAX('RBA Interpolation'!A:A),AVERAGEIFS('RBA Interpolation'!N:N,'RBA Interpolation'!C:C,YEAR(B43),'RBA Interpolation'!D:D,MONTH(B43)),VLOOKUP(B43,Scenarios!B:K,5,FALSE)+VLOOKUP(B43,Scenarios!B:K,10,FALSE)) -> 0.03456681185
B44: 2020-06-30 | C44: =IF(B44<=MAX('RBA Interpolation'!A:A),AVERAGEIFS('RBA Interpolation'!N:N,'RBA Interpolation'!C:C,YEAR(B44),'RBA Interpolation'!D:D,MONTH(B44)),VLOOKUP(B44,Scenarios!B:K,2,FALSE)+VLOOKUP(B44,Scenarios!B:K,7,FALSE)) -> 0.03138118011 | D44: =IF(B44<=MAX('RBA Interpolation'!A:A),AVERAGEIFS('RBA Interpolation'!N:N,'RBA Interpolation'!C:C,YEAR(B44),'RBA Interpolation'!D:D,MONTH(B44)),VLOOKUP(B44,Scenarios!B:K,3,FALSE)+VLOOKUP(B44,Scenarios!B:K,8,FALSE)) -> 0.03138118011 | E44: =IF(B44<=MAX('RBA Interpolation'!A:A),AVERAGEIFS('RBA Interpolation'!N:N,'RBA Interpolation'!C:C,YEAR(B44),'RBA Interpolation'!D:D,MONTH(B44)),VLOOKUP(B44,Scenarios!B:K,4,FALSE)+VLOOKUP(B44,Scenarios!B:K,9,FALSE)) -> 0.03138118011 | F44: =IF(B44<=MAX('RBA Interpolation'!A:A),AVERAGEIFS('RBA Interpolation'!N:N,'RBA Interpolation'!C:C,YEAR(B44),'RBA Interpolation'!D:D,MONTH(B44)),VLOOKUP(B44,Scenarios!B:K,5,FALSE)+VLOOKUP(B44,Scenarios!B:K,10,FALSE)) -> 0.03138118011
B45: 2021-06-30 | C45: =IF(B45<=MAX('RBA Interpolation'!A:A),AVERAGEIFS('RBA Interpolation'!N:N,'RBA Interpolation'!C:C,YEAR(B45),'RBA Interpolation'!D:D,MONTH(B45)),VLOOKUP(B45,Scenarios!B:K,2,FALSE)+VLOOKUP(B45,Scenarios!B:K,7,FALSE)) -> 0.02893026049 | D45: =IF(B45<=MAX('RBA Interpolation'!A:A),AVERAGEIFS('RBA Interpolation'!N:N,'RBA Interpolation'!C:C,YEAR(B45),'RBA Interpolation'!D:D,MONTH(B45)),VLOOKUP(B45,Scenarios!B:K,3,FALSE)+VLOOKUP(B45,Scenarios!B:K,8,FALSE)) -> 0.02893026049 | E45: =IF(B45<=MAX('RBA Interpolation'!A:A),AVERAGEIFS('RBA Interpolation'!N:N,'RBA Interpolation'!C:C,YEAR(B45),'RBA Interpolation'!D:D,MONTH(B45)),VLOOKUP(B45,Scenarios!B:K,4,FALSE)+VLOOKUP(B45,Scenarios!B:K,9,FALSE)) -> 0.02893026049 | F45: =IF(B45<=MAX('RBA Interpolation'!A:A),AVERAGEIFS('RBA Interpolation'!N:N,'RBA Interpolation'!C:C,YEAR(B45),'RBA Interpolation'!D:D,MONTH(B45)),VLOOKUP(B45,Scenarios!B:K,5,FALSE)+VLOOKUP(B45,Scenarios!B:K,10,FALSE)) -> 0.02893026049
B46: 2022-06-30 | C46: =IF(B46<=MAX('RBA Interpolation'!A:A),AVERAGEIFS('RBA Interpolation'!N:N,'RBA Interpolation'!C:C,YEAR(B46),'RBA Interpolation'!D:D,MONTH(B46)),VLOOKUP(B46,Scenarios!B:K,2,FALSE)+VLOOKUP(B46,Scenarios!B:K,7,FALSE)) -> 0.02925977262 | D46: =IF(B46<=MAX('RBA Interpolation'!A:A),AVERAGEIFS('RBA Interpolation'!N:N,'RBA Interpolation'!C:C,YEAR(B46),'RBA Interpolation'!D:D,MONTH(B46)),VLOOKUP(B46,Scenarios!B:K,3,FALSE)+VLOOKUP(B46,Scenarios!B:K,8,FALSE)) -> 0.02586132097 | E46: =IF(B46<=MAX('RBA Interpolation'!A:A),AVERAGEIFS('RBA Interpolation'!N:N,'RBA Interpolation'!C:C,YEAR(B46),'RBA Interpolation'!D:D,MONTH(B46)),VLOOKUP(B46,Scenarios!B:K,4,FALSE)+VLOOKUP(B46,Scenarios!B:K,9,FALSE)) -> 0.04381967035 | F46: =IF(B46<=MAX('RBA Interpolation'!A:A),AVERAGEIFS('RBA Interpolation'!N:N,'RBA Interpolation'!C:C,YEAR(B46),'RBA Interpolation'!D:D,MONTH(B46)),VLOOKUP(B46,Scenarios!B:K,5,FALSE)+VLOOKUP(B46,Scenarios!B:K,10,FALSE)) -> 0.04007496239
B47: 2023-06-30 | C47: =IF(B47<=MAX('RBA Interpolation'!A:A),AVERAGEIFS('RBA Interpolation'!N:N,'RBA Interpolation'!C:C,YEAR(B47),'RBA Interpolation'!D:D,MONTH(B47)),VLOOKUP(B47,Scenarios!B:K,2,FALSE)+VLOOKUP(B47,Scenarios!B:K,7,FALSE)) -> 0.02925977262 | D47: =IF(B47<=MAX('RBA Interpolation'!A:A),AVERAGEIFS('RBA Interpolation'!N:N,'RBA Interpolation'!C:C,YEAR(B47),'RBA Interpolation'!D:D,MONTH(B47)),VLOOKUP(B47,Scenarios!B:K,3,FALSE)+VLOOKUP(B47,Scenarios!B:K,8,FALSE)) -> 0.02178317899 | E47: =IF(B47<=MAX('RBA Interpolation'!A:A),AVERAGEIFS('RBA Interpolation'!N:N,'RBA Interpolation'!C:C,YEAR(B47),'RBA Interpolation'!D:D,MONTH(B47)),VLOOKUP(B47,Scenarios!B:K,4,FALSE)+VLOOKUP(B47,Scenarios!B:K,9,FALSE)) -> 0.05006085028 | F47: =IF(B47<=MAX('RBA Interpolation'!A:A),AVERAGEIFS('RBA Interpolation'!N:N,'RBA Interpolation'!C:C,YEAR(B47),'RBA Interpolation'!D:D,MONTH(B47)),VLOOKUP(B47,Scenarios!B:K,5,FALSE)+VLOOKUP(B47,Scenarios!B:K,10,FALSE)) -> 0.04007496239
B48: 2024-06-30 | C48: =IF(B48<=MAX('RBA Interpolation'!A:A),AVERAGEIFS('RBA Interpolation'!N:N,'RBA Interpolation'!C:C,YEAR(B48),'RBA Interpolation'!D:D,MONTH(B48)),VLOOKUP(B48,Scenarios!B:K,2,FALSE)+VLOOKUP(B48,Scenarios!B:K,7,FALSE)) -> 0.02925977262 | D48: =IF(B48<=MAX('RBA Interpolation'!A:A),AVERAGEIFS('RBA Interpolation'!N:N,'RBA Interpolation'!C:C,YEAR(B48),'RBA Interpolation'!D:D,MONTH(B48)),VLOOKUP(B48,Scenarios!B:K,3,FALSE)+VLOOKUP(B48,Scenarios!B:K,8,FALSE)) -> 0.01770503701 | E48: =IF(B48<=MAX('RBA Interpolation'!A:A),AVERAGEIFS('RBA Interpolation'!N:N,'RBA Interpolation'!C:C,YEAR(B48),'RBA Interpolation'!D:D,MONTH(B48)),VLOOKUP(B48,Scenarios!B:K,4,FALSE)+VLOOKUP(B48,Scenarios!B:K,9,FALSE)) -> 0.0575502662 | F48: =IF(B48<=MAX('RBA Interpolation'!A:A),AVERAGEIFS('RBA Interpolation'!N:N,'RBA Interpolation'!C:C,YEAR(B48),'RBA Interpolation'!D:D,MONTH(B48)),VLOOKUP(B48,Scenarios!B:K,5,FALSE)+VLOOKUP(B48,Scenarios!B:K,10,FALSE)) -> 0.04007496239
B49: 2025-06-30 | C49: =IF(B49<=MAX('RBA Interpolation'!A:A),AVERAGEIFS('RBA Interpolation'!N:N,'RBA Interpolation'!C:C,YEAR(B49),'RBA Interpolation'!D:D,MONTH(B49)),VLOOKUP(B49,Scenarios!B:K,2,FALSE)+VLOOKUP(B49,Scenarios!B:K,7,FALSE)) -> 0.02925977262 | D49: =IF(B49<=MAX('RBA Interpolation'!A:A),AVERAGEIFS('RBA Interpolation'!N:N,'RBA Interpolation'!C:C,YEAR(B49),'RBA Interpolation'!D:D,MONTH(B49)),VLOOKUP(B49,Scenarios!B:K,3,FALSE)+VLOOKUP(B49,Scenarios!B:K,8,FALSE)) -> 0.01362689503 | E49: =IF(B49<=MAX('RBA Interpolation'!A:A),AVERAGEIFS('RBA Interpolation'!N:N,'RBA Interpolation'!C:C,YEAR(B49),'RBA Interpolation'!D:D,MONTH(B49)),VLOOKUP(B49,Scenarios!B:K,4,FALSE)+VLOOKUP(B49,Scenarios!B:K,9,FALSE)) -> 0.06503968212 | F49: =IF(B49<=MAX('RBA Interpolation'!A:A),AVERAGEIFS('RBA Interpolation'!N:N,'RBA Interpolation'!C:C,YEAR(B49),'RBA Interpolation'!D:D,MONTH(B49)),VLOOKUP(B49,Scenarios!B:K,5,FALSE)+VLOOKUP(B49,Scenarios!B:K,10,FALSE)) -> 0.04007496239
B51: Trailing average COD
B52: Year | C52: Scenario 1 | D52: Scenario 2 | E52: Scenario 3 | F52: Scenario 4
B53: =C11 -> 2022 | C53: =AVERAGE(C36:C45) -> 0.04633746051 | D53: =AVERAGE(D36:D45) -> 0.04633746051 | E53: 0.04633746051 | F53: 0.04633746051
B54: =B53+1 -> 2023 | C54: 0.04270855792 | D54: 0.04236871275 | E54: 0.04416454769 | F54: 0.0437900769
B55: =B54+1 -> 2024 | C55: 0.03921070791 | D55: 0.03812320339 | E55: 0.04274680545 | F55: 0.04137374587
B56: 2025 | C56: 0.0365070953 | D56: 0.03426411721 | E56: 0.0428722422 | F56: 0.03975165223
B57: 2026 | C57: 0.0344294649 | D57: 0.03062319906 | E57: 0.04437260275 | F57: 0.03875554081
B59: Return on Equity
B61: Sample month | C61: =EOMONTH(DATE(C11-1-(MONTH(1&C$12)>6),MONTH(1&C$12),1),0) -> 2021-06-30
C63: Scenario 1 | D63: Scenario 2 | E63: Scenario 3 | F63: Scenario 4
B64: Annualised RFR for COE | C64: =IF($C15="Long-term MRP paired with long-term RFR",$C5,(1+VLOOKUP($C61,Scenarios!$B:$F,2,FALSE)/2)^2-1) -> 0.01492883488 | D64: =IF($C15="Long-term MRP paired with long-term RFR",$C5,(1+VLOOKUP($C61,Scenarios!$B:$F,3,FALSE)/2)^2-1) -> 0.01492883488 | E64: =IF($C15="Long-term MRP paired with long-term RFR",$C5,(1+VLOOKUP($C61,Scenarios!$B:$F,4,FALSE)/2)^2-1) -> 0.01492883488 | F64: =IF($C15="Long-term MRP paired with long-term RFR",$C5,(1+VLOOKUP($C61,Scenarios!$B:$F,5,FALSE)/2)^2-1) -> 0.01492883488 | H64: Revenue
B65: MRP | C65: =IF(LEFT($C15,4)="Long",$C6,IF($C15="Calibrated DGM",VLOOKUP($C61,Scenarios!$B:$P,12,FALSE),($C4-C64))) -> 0.06761749453 | D65: =IF(LEFT($C15,4)="Long",$C6,IF($C15="Calibrated DGM",VLOOKUP($C61,Scenarios!$B:$P,13,FALSE),($C4-D64))) -> 0.06761749453 | E65: =IF(LEFT($C15,4)="Long",$C6,IF($C15="Calibrated DGM",VLOOKUP($C61,Scenarios!$B:$P,14,FALSE),($C4-E64))) -> 0.06761749453 | F65: =IF(LEFT($C15,4)="Long",$C6,IF($C15="Calibrated DGM",VLOOKUP($C61,Scenarios!$B:$P,15,FALSE),($C4-F64))) -> 0.06761749453 | H65: Smoothed Revenue | I65: Scenario 1 | J65: Scenario 2 | K65: Scenario 3 | L65: Scenario 4
B66: Return on Equity | C66: =C64+C65*$C16 -> 0.0554993316 | D66: =D64+D65*$C16 -> 0.0554993316 | E66: =E64+E65*$C16 -> 0.0554993316 | F66: =F64+F65*$C16 -> 0.0554993316 | H66: =IF(C29="","","Current") ->  | I66: =$C29 -> 0 | J66: =$C29 -> 0 | K66: 0 | L66: 0
H67: =B71 -> 2022 | I67: 655.1829656 | J67: 649.8039947 | K67: 670.4621189 | L67: 662.9841926
B68: WACC | H68: =B72 -> 2023 | I68: 671.5625398 | J68: 666.0490946 | K68: 687.2236719 | L68: 679.5587974
H69: =B73 -> 2024 | I69: 688.3516033 | J69: 682.7003219 | K69: 704.4042637 | L69: 696.5477674
B70: Vanilla WACC | C70: Scenario 1 | D70: Scenario 2 | E70: Scenario 3 | F70: Scenario 4 | H70: =B74 -> 2025 | I70: 705.5603933 | J70: 699.76783 | K70: 722.0143703 | L70: 713.9614616
B71: =C11 -> 2022 | C71: =$C$14*C53+(1-$C$14)*C$66 -> 0.05000220895 | D71: 0.05000220895 | E71: 0.05000220895 | F71: 0.05000220895 | H71: =B75 -> 2026 | I71: 723.1994032 | J71: 717.2620257 | K71: 740.0647296 | L71: 731.8104981
B72: =B71+1 -> 2023 | C72: 0.04782486739 | D72: 0.04762096029 | E72: 0.04869846126 | F72: 0.04847377878
B73: =B72+1 -> 2024 | C73: 0.04572615739 | D73: 0.04507365467 | E73: 0.04784781591 | F73: 0.04702398016
B74: 2025 | C74: 0.04410398982 | D74: 0.04275820297 | E74: 0.04792307796 | F74: 0.04605072398
B75: 2026 | C75: 0.04285741158 | D75: 0.04057365207 | E75: 0.04882329429 | F75: 0.04545305713 | H75: Unsmoothed building block components
H76: Return on Capital | I76: Scenario 1 | J76: Scenario 2 | K76: Scenario 3 | L76: Scenario 4
B77: Scenario 1 | C77: RFR | D77: COD | E77: COE | F77: WACC | H77: =IF(C30="","","Current") ->  | I77: =$C30 -> 0 | J77: =$C30 -> 0 | K77: 0 | L77: 0
B78: =C11 -> 2022 | C78: =VLOOKUP(B45,Scenarios!B:F,2,FALSE) -> 0.01487352941 | D78: =C53 -> 0.04633746051 | E78: =C66 -> 0.0554993316 | F78: =C71 -> 0.05000220895 | H78: =B71 -> 2022 | I78: 307.6020243 | J78: 307.6020243 | K78: 307.6020243 | L78: 307.6020243
B79: =B78+1 -> 2023 | C79: =VLOOKUP(B46,Scenarios!B:F,2,FALSE) -> 0.01133562092 | D79: =C54 -> 0.04270855792 | E79: =E78 -> 0.0554993316 | F79: =C72 -> 0.04782486739 | H79: =B72 -> 2023 | I79: 301.1047284 | J79: 299.8233263 | K79: 306.5946058 | L79: 305.1826462
B80: =B79+1 -> 2024 | C80: =VLOOKUP(B47,Scenarios!B:F,2,FALSE) -> 0.01133562092 | D80: 0.03921070791 | E80: =E79 -> 0.0554993316 | F80: 0.04572615739 | H80: =B73 -> 2024 | I80: 294.6417007 | J80: 290.4454258 | K80: 308.2861838 | L80: 302.9880584
B81: 2025 | C81: =VLOOKUP(B48,Scenarios!B:F,2,FALSE) -> 0.01133562092 | D81: 0.0365070953 | E81: 0.0554993316 | F81: 0.04410398982 | H81: =B74 -> 2025 | I81: 290.8486622 | J81: 281.9916669 | K81: 315.983137 | L81: 303.6606579
B82: 2026 | C82: =VLOOKUP(B49,Scenarios!B:F,2,FALSE) -> 0.01133562092 | D82: 0.0344294649 | E82: 0.0554993316 | F82: 0.04285741158 | H82: =B75 -> 2026 | I82: 289.2472257 | J82: 273.8660677 | K82: 329.4275442 | L82: 306.7289413
B84: Scenario 2 | C84: RFR | D84: COD | E84: COE | F84: WACC | H84: Opex
B85: =B78 -> 2022 | C85: =VLOOKUP(B45,Scenarios!B:F,3,FALSE) -> 0.01487352941 | D85: =D53 -> 0.04633746051 | E85: =D66 -> 0.0554993316 | F85: =D71 -> 0.05000220895 | H85: =B71 -> 2022 | I85: 247.4842947 | J85: 247.4842947 | K85: 247.4842947 | L85: 247.4842947 | P85: Return on Capital | Q85: Opex | R85: Regulatory Depreciation | S85: Tax Allowance
B86: =B85+1 -> 2023 | C86: =VLOOKUP(B46,Scenarios!B:F,3,FALSE) -> 0.008613017429 | D86: =D54 -> 0.04236871275 | E86: =E85 -> 0.0554993316 | F86: =D72 -> 0.04762096029 | H86: =B72 -> 2023 | I86: 253.2655821 | J86: 253.2655821 | K86: 253.2655821 | L86: 253.2655821 | M86: =H78 -> 2022 | N86: =M86 -> 2022 | O86: Scenario 1 | P86: =VLOOKUP($M86,$H$76:$L$82,MATCH($O86,$H$76:$L$76,0),FALSE) -> 307.6020243 | Q86: =VLOOKUP($M86,$H$84:$L$89,MATCH($O86,$H$76:$L$76,0),FALSE) -> 247.4842947 | R86: =VLOOKUP($M86,$H$91:$L$96,MATCH($O86,$H$76:$L$76,0),FALSE) -> 125.6301018 | S86: =VLOOKUP($M86,$H$98:$L$103,MATCH($O86,$H$76:$L$76,0),FALSE) -> 0
B87: =B86+1 -> 2024 | C87: =VLOOKUP(B47,Scenarios!B:F,3,FALSE) -> 0.005345893246 | D87: 0.03812320339 | E87: =E86 -> 0.0554993316 | F87: 0.04507365467 | H87: =B73 -> 2024 | I87: 259.1819216 | J87: 259.1819216 | K87: 259.1819216 | L87: 259.1819216 | M87: =M86 -> 2022 | O87: Scenario 2 | P87: 307.6020243 | Q87: 247.4842947 | R87: 125.6301018 | S87: 0
B88: 2025 | C88: =VLOOKUP(B48,Scenarios!B:F,3,FALSE) -> 0.002078769063 | D88: 0.03426411721 | E88: 0.0554993316 | F88: 0.04275820297 | H88: =B74 -> 2025 | I88: 265.2364681 | J88: 265.2364681 | K88: 265.2364681 | L88: 265.2364681 | M88: =M87 -> 2022 | O88: Scenario 3 | P88: 307.6020243 | Q88: 247.4842947 | R88: 125.6301018 | S88: 0
B89: 2026 | C89: =VLOOKUP(B49,Scenarios!B:F,3,FALSE) -> -0.00118835512 | D89: 0.03062319906 | E89: 0.0554993316 | F89: 0.04057365207 | H89: =B75 -> 2026 | I89: 271.4324501 | J89: 271.4324501 | K89: 271.4324501 | L89: 271.4324501 | M89: 2022 | O89: Scenario 4 | P89: 307.6020243 | Q89: 247.4842947 | R89: 125.6301018 | S89: 0
M90: =H79 -> 2023 | N90: =M90 -> 2023 | O90: Scenario 1 | P90: 301.1047284 | Q90: 253.2655821 | R90: 128.5648486 | S90: 0
B91: Scenario 3 | C91: RFR | D91: COD | E91: COE | F91: WACC | H91: Reg depreciation | M91: =M90 -> 2023 | O91: Scenario 2 | P91: 299.8233263 | Q91: 253.2655821 | R91: 128.5648486 | S91: 0
B92: =B85 -> 2022 | C92: =VLOOKUP(B45,Scenarios!B:F,4,FALSE) -> 0.01487352941 | D92: =E53 -> 0.04633746051 | E92: =E66 -> 0.0554993316 | F92: =E71 -> 0.05000220895 | H92: =B71 -> 2022 | I92: 125.6301018 | J92: 125.6301018 | K92: 125.6301018 | L92: 125.6301018 | M92: =M91 -> 2023 | O92: Scenario 3 | P92: 306.5946058 | Q92: 253.2655821 | R92: 128.5648486 | S92: 0
B93: =B92+1 -> 2023 | C93: =VLOOKUP(B46,Scenarios!B:F,4,FALSE) -> 0.023 | D93: =E54 -> 0.04416454769 | E93: =E92 -> 0.0554993316 | F93: =E72 -> 0.04869846126 | H93: =B72 -> 2023 | I93: 128.5648486 | J93: 128.5648486 | K93: 128.5648486 | L93: 128.5648486 | M93: 2023 | O93: Scenario 4 | P93: 305.1826462 | Q93: 253.2655821 | R93: 128.5648486 | S93: 0
B94: =B93+1 -> 2024 | C94: =VLOOKUP(B47,Scenarios!B:F,4,FALSE) -> 0.028 | D94: 0.04274680545 | E94: =E93 -> 0.0554993316 | F94: 0.04784781591 | H94: =B73 -> 2024 | I94: 131.5681516 | J94: 131.5681516 | K94: 131.5681516 | L94: 131.5681516 | M94: =H80 -> 2024 | N94: =M94 -> 2024 | O94: Scenario 1 | P94: 294.6417007 | Q94: 259.1819216 | R94: 131.5681516 | S94: 0
B95: 2025 | C95: =VLOOKUP(B48,Scenarios!B:F,4,FALSE) -> 0.034 | D95: 0.0428722422 | E95: 0.0554993316 | F95: 0.04792307796 | H95: =B74 -> 2025 | I95: 134.6416125 | J95: 134.6416125 | K95: 134.6416125 | L95: 134.6416125 | M95: =M94 -> 2024 | O95: Scenario 2 | P95: 290.4454258 | Q95: 259.1819216 | R95: 131.5681516 | S95: 0
B96: 2026 | C96: =VLOOKUP(B49,Scenarios!B:F,4,FALSE) -> 0.04 | D96: 0.04437260275 | E96: 0.0554993316 | F96: 0.04882329429 | H96: =B75 -> 2026 | I96: 137.78687 | J96: 137.78687 | K96: 137.78687 | L96: 137.78687 | M96: =M95 -> 2024 | O96: Scenario 3 | P96: 308.2861838 | Q96: 259.1819216 | R96: 131.5681516 | S96: 0
M97: 2024 | O97: Scenario 4 | P97: 302.9880584 | Q97: 259.1819216 | R97: 131.5681516 | S97: 0
B98: Scenario 4 | C98: RFR | D98: COD | E98: COE | F98: WACC | H98: Tax allowance | M98: =H81 -> 2025 | N98: =M98 -> 2025 | O98: Scenario 1 | P98: 290.8486622 | Q98: 265.2364681 | R98: 134.6416125 | S98: 0
B99: =B92 -> 2022 | C99: =VLOOKUP(B45,Scenarios!B:F,5,FALSE) -> 0.01487352941 | D99: =F53 -> 0.04633746051 | E99: =F66 -> 0.0554993316 | F99: =F71 -> 0.05000220895 | H99: =B71 -> 2022 | I99: 0 | J99: 0 | K99: 0 | L99: 0 | M99: =M98 -> 2025 | O99: Scenario 2 | P99: 281.9916669 | Q99: 265.2364681 | R99: 134.6416125 | S99: 0
B100: =B99+1 -> 2023 | C100: =VLOOKUP(B46,Scenarios!B:F,5,FALSE) -> 0.02 | D100: =F54 -> 0.0437900769 | E100: =E99 -> 0.0554993316 | F100: =F72 -> 0.04847377878 | H100: =B72 -> 2023 | I100: 0 | J100: 0 | K100: 0 | L100: 0 | M100: =M99 -> 2025 | O100: Scenario 3 | P100: 315.983137 | Q100: 265.2364681 | R100: 134.6416125 | S100: 0
B101: =B100+1 -> 2024 | C101: =VLOOKUP(B47,Scenarios!B:F,5,FALSE) -> 0.02 | D101: 0.04137374587 | E101: =E100 -> 0.0554993316 | F101: 0.04702398016 | H101: =B73 -> 2024 | I101: 0 | J101: 0 | K101: 0 | L101: 0 | M101: 2025 | O101: Scenario 4 | P101: 303.6606579 | Q101: 265.2364681 | R101: 134.6416125 | S101: 0
B102: 2025 | C102: =VLOOKUP(B48,Scenarios!B:F,5,FALSE) -> 0.02 | D102: 0.03975165223 | E102: 0.0554993316 | F102: 0.04605072398 | H102: =B74 -> 2025 | I102: 0 | J102: 0 | K102: 0 | L102: 0 | M102: =H82 -> 2026 | N102: =M102 -> 2026 | O102: Scenario 1 | P102: 289.2472257 | Q102: 271.4324501 | R102: 137.78687 | S102: 0
B103: 2026 | C103: =VLOOKUP(B49,Scenarios!B:F,5,FALSE) -> 0.02 | D103: 0.03875554081 | E103: 0.0554993316 | F103: 0.04545305713 | H103: =B75 -> 2026 | I103: 0 | J103: 0 | K103: 0 | L103: 0 | M103: =M102 -> 2026 | O103: Scenario 2 | P103: 273.8660677 | Q103: 271.4324501 | R103: 137.78687 | S103: 0
M104: =M103 -> 2026 | O104: Scenario 3 | P104: 329.4275442 | Q104: 271.4324501 | R104: 137.78687 | S104: 0
H105: Total | M105: 2026 | O105: Scenario 4 | P105: 306.7289413 | Q105: 271.4324501 | R105: 137.78687 | S105: 0
H106: =B71 -> 2022 | I106: =I78+I85+I92 -> 680.7164209 | J106: 680.7164209 | K106: 680.7164209 | L106: 680.7164209
H107: =B72 -> 2023 | I107: 682.935159 | J107: 681.653757 | K107: 688.4250365 | L107: 687.0130768 | M107: Scenario 1 | N107: Scenario 1 | O107: =H67 -> 2022 | P107: =VLOOKUP($O107,$H$76:$L$82,MATCH($M107,$H$76:$L$76,0),FALSE) -> 307.6020243 | Q107: =VLOOKUP($O107,$H$84:$L$89,MATCH($M107,$H$76:$L$76,0),FALSE) -> 247.4842947 | R107: =VLOOKUP($O107,$H$91:$L$96,MATCH($M107,$H$76:$L$76,0),FALSE) -> 125.6301018 | S107: =VLOOKUP($O107,$H$98:$L$103,MATCH($M107,$H$76:$L$76,0),FALSE) -> 0
H108: =B73 -> 2024 | I108: 685.3917739 | J108: 681.195499 | K108: 699.036257 | L108: 693.7381316 | M108: Scenario 1 | O108: =H68 -> 2023 | P108: 301.1047284 | Q108: 253.2655821 | R108: 128.5648486 | S108: 0
H109: =B74 -> 2025 | I109: 690.7267428 | J109: 681.8697474 | K109: 715.8612176 | L109: 703.5387384 | M109: Scenario 1 | O109: =H69 -> 2024 | P109: 294.6417007 | Q109: 259.1819216 | R109: 131.5681516 | S109: 0
H110: =B75 -> 2026 | I110: 698.4665459 | J110: 683.0853879 | K110: 738.6468644 | L110: 715.9482615 | M110: Scenario 1 | O110: =H70 -> 2025 | P110: 290.8486622 | Q110: 265.2364681 | R110: 134.6416125 | S110: 0
M111: Scenario 1 | O111: =H71 -> 2026 | P111: 289.2472257 | Q111: 271.4324501 | R111: 137.78687 | S111: 0
M112: Scenario 2 | N112: Scenario 2 | O112: =H67 -> 2022 | P112: 307.6020243 | Q112: 247.4842947 | R112: 125.6301018 | S112: 0
M113: Scenario 2 | O113: =H68 -> 2023 | P113: 299.8233263 | Q113: 253.2655821 | R113: 128.5648486 | S113: 0
M114: Scenario 2 | O114: =H69 -> 2024 | P114: 290.4454258 | Q114: 259.1819216 | R114: 131.5681516 | S114: 0
M115: Scenario 2 | O115: =H70 -> 2025 | P115: 281.9916669 | Q115: 265.2364681 | R115: 134.6416125 | S115: 0
M116: Scenario 2 | O116: =H71 -> 2026 | P116: 273.8660677 | Q116: 271.4324501 | R116: 137.78687 | S116: 0
M117: Scenario 3 | N117: Scenario 3 | O117: =H67 -> 2022 | P117: 307.6020243 | Q117: 247.4842947 | R117: 125.6301018 | S117: 0
M118: Scenario 3 | O118: =H68 -> 2023 | P118: 306.5946058 | Q118: 253.2655821 | R118: 128.5648486 | S118: 0
M119: Scenario 3 | O119: =H69 -> 2024 | P119: 308.2861838 | Q119: 259.1819216 | R119: 131.5681516 | S119: 0
M120: Scenario 3 | O120: =H70 -> 2025 | P120: 315.983137 | Q120: 265.2364681 | R120: 134.6416125 | S120: 0
M121: Scenario 3 | O121: =H71 -> 2026 | P121: 329.4275442 | Q121: 271.4324501 | R121: 137.78687 | S121: 0
M122: Scenario 4 | N122: Scenario 4 | O122: =H67 -> 2022 | P122: 307.6020243 | Q122: 247.4842947 | R122: 125.6301018 | S122: 0
M123: Scenario 4 | O123: =H68 -> 2023 | P123: 305.1826462 | Q123: 253.2655821 | R123: 128.5648486 | S123: 0
M124: Scenario 4 | O124: =H69 -> 2024 | P124: 302.9880584 | Q124: 259.1819216 | R124: 131.5681516 | S124: 0
M125: Scenario 4 | O125: =H70 -> 2025 | P125: 303.6606579 | Q125: 265.2364681 | R125: 134.6416125 | S125: 0
M126: Scenario 4 | O126: =H71 -> 2026 | P126: 306.7289413 | Q126: 271.4324501 | R126: 137.78687 | S126: 0

Sheet Scenarios
B1: =Summary!B1 -> 2021-10-03 2022 RORI Scenario Testing.xlsm
B2: Scenarios
D3: =MATCH(Control!C8,Scenarios!B:B,0) -> 79 | H3: Fitted to RFR | I3: Fitted to RFR | J3: Fitted to RFR | K3: Fitted to RFR
C4: Scenario 1 | D4: Scenario 2 | E4: Scenario 3 | F4: Scenario 4 | H4: Scenario 1 | I4: Scenario 2 | J4: Scenario 3 | K4: Scenario 4 | M4: Scenario 1 | N4: Scenario 2 | O4: Scenario 3 | P4: Scenario 4
B5: Month | C5: RFR | D5: RFR | E5: RFR | F5: RFR | H5: Debt margin | I5: Debt margin | J5: Debt margin | K5: Debt margin | M5: DGM MRP | N5: DGM MRP | O5: DGM MRP | P5: DGM MRP
B6: 2020-07-31 | C6: =VLOOKUP(_xlfn.MAXIFS('Nominal RFR'!B:B,'Nominal RFR'!B:B,"<="&B6),'Nominal RFR'!B:H,7,FALSE) -> 0.008299299065 | D6: =$C6 -> 0.008299299065 | E6: =$C6 -> 0.008299299065 | F6: 0.008299299065 | M6: ='Calibrated DGM'!$G$43*C6+'Calibrated DGM'!$H$43 -> 0.07286706629 | N6: ='Calibrated DGM'!$G$43*D6+'Calibrated DGM'!$H$43 -> 0.07286706629 | O6: ='Calibrated DGM'!$G$43*E6+'Calibrated DGM'!$H$43 -> 0.07286706629 | P6: ='Calibrated DGM'!$G$43*F6+'Calibrated DGM'!$H$43 -> 0.07286706629
B7: =EOMONTH(B6,1) -> 2020-08-31 | C7: =VLOOKUP(_xlfn.MAXIFS('Nominal RFR'!B:B,'Nominal RFR'!B:B,"<="&B7),'Nominal RFR'!B:H,7,FALSE) -> 0.01001448598 | D7: =$C7 -> 0.01001448598 | E7: 0.01001448598 | F7: 0.01001448598 | M7: ='Calibrated DGM'!$G$43*C7+'Calibrated DGM'!$H$43 -> 0.0714974768 | N7: ='Calibrated DGM'!$G$43*D7+'Calibrated DGM'!$H$43 -> 0.0714974768 | O7: ='Calibrated DGM'!$G$43*E7+'Calibrated DGM'!$H$43 -> 0.0714974768 | P7: ='Calibrated DGM'!$G$43*F7+'Calibrated DGM'!$H$43 -> 0.0714974768
B8: =EOMONTH(B7,1) -> 2020-09-30 | C8: =VLOOKUP(_xlfn.MAXIFS('Nominal RFR'!B:B,'Nominal RFR'!B:B,"<="&B8),'Nominal RFR'!B:H,7,FALSE) -> 0.008158411215 | D8: 0.008158411215 | E8: 0.008158411215 | F8: 0.008158411215 | M8: ='Calibrated DGM'!$G$43*C8+'Calibrated DGM'!$H$43 -> 0.07297956629 | N8: ='Calibrated DGM'!$G$43*D8+'Calibrated DGM'!$H$43 -> 0.07297956629 | O8: ='Calibrated DGM'!$G$43*E8+'Calibrated DGM'!$H$43 -> 0.07297956629 | P8: ='Calibrated DGM'!$G$43*F8+'Calibrated DGM'!$H$43 -> 0.07297956629
B9: 2020-10-31 | C9: =VLOOKUP(_xlfn.MAXIFS('Nominal RFR'!B:B,'Nominal RFR'!B:B,"<="&B9),'Nominal RFR'!B:H,7,FALSE) -> 0.008128504673 | D9: 0.008128504673 | E9: 0.008128504673 | F9: 0.008128504673 | M9: ='Calibrated DGM'!$G$43*C9+'Calibrated DGM'!$H$43 -> 0.07300344688 | N9: ='Calibrated DGM'!$G$43*D9+'Calibrated DGM'!$H$43 -> 0.07300344688 | O9: ='Calibrated DGM'!$G$43*E9+'Calibrated DGM'!$H$43 -> 0.07300344688 | P9: ='Calibrated DGM'!$G$43*F9+'Calibrated DGM'!$H$43 -> 0.07300344688
B10: 2020-11-30 | C10: =VLOOKUP(_xlfn.MAXIFS('Nominal RFR'!B:B,'Nominal RFR'!B:B,"<="&B10),'Nominal RFR'!B:H,7,FALSE) -> 0.008891121495 | D10: 0.008891121495 | E10: 0.008891121495 | F10: 0.008891121495 | M10: ='Calibrated DGM'!$G$43*C10+'Calibrated DGM'!$H$43 -> 0.07239449169 | N10: ='Calibrated DGM'!$G$43*D10+'Calibrated DGM'!$H$43 -> 0.07239449169 | O10: ='Calibrated DGM'!$G$43*E10+'Calibrated DGM'!$H$43 -> 0.07239449169 | P10: ='Calibrated DGM'!$G$43*F10+'Calibrated DGM'!$H$43 -> 0.07239449169
B11: 2020-12-31 | C11: =VLOOKUP(_xlfn.MAXIFS('Nominal RFR'!B:B,'Nominal RFR'!B:B,"<="&B11),'Nominal RFR'!B:H,7,FALSE) -> 0.009719230769 | D11: 0.009719230769 | E11: 0.009719230769 | F11: 0.009719230769 | M11: ='Calibrated DGM'!$G$43*C11+'Calibrated DGM'!$H$43 -> 0.07173324028 | N11: ='Calibrated DGM'!$G$43*D11+'Calibrated DGM'!$H$43 -> 0.07173324028 | O11: ='Calibrated DGM'!$G$43*E11+'Calibrated DGM'!$H$43 -> 0.07173324028 | P11: ='Calibrated DGM'!$G$43*F11+'Calibrated DGM'!$H$43 -> 0.07173324028
B12: 2021-01-31 | C12: =VLOOKUP(_xlfn.MAXIFS('Nominal RFR'!B:B,'Nominal RFR'!B:B,"<="&B12),'Nominal RFR'!B:H,7,FALSE) -> 0.01098571429 | D12: 0.01098571429 | E12: 0.01098571429 | F12: 0.01098571429 | M12: ='Calibrated DGM'!$G$43*C12+'Calibrated DGM'!$H$43 -> 0.07072194379 | N12: ='Calibrated DGM'!$G$43*D12+'Calibrated DGM'!$H$43 -> 0.07072194379 | O12: ='Calibrated DGM'!$G$43*E12+'Calibrated DGM'!$H$43 -> 0.07072194379 | P12: ='Calibrated DGM'!$G$43*F12+'Calibrated DGM'!$H$43 -> 0.07072194379
B13: 2021-02-28 | C13: =VLOOKUP(_xlfn.MAXIFS('Nominal RFR'!B:B,'Nominal RFR'!B:B,"<="&B13),'Nominal RFR'!B:H,7,FALSE) -> 0.01884725275 | D13: 0.01884725275 | E13: 0.01884725275 | F13: 0.01884725275 | M13: ='Calibrated DGM'!$G$43*C13+'Calibrated DGM'!$H$43 -> 0.06444444693 | N13: ='Calibrated DGM'!$G$43*D13+'Calibrated DGM'!$H$43 -> 0.06444444693 | O13: ='Calibrated DGM'!$G$43*E13+'Calibrated DGM'!$H$43 -> 0.06444444693 | P13: ='Calibrated DGM'!$G$43*F13+'Calibrated DGM'!$H$43 -> 0.06444444693
B14: 2021-03-31 | C14: =VLOOKUP(_xlfn.MAXIFS('Nominal RFR'!B:B,'Nominal RFR'!B:B,"<="&B14),'Nominal RFR'!B:H,7,FALSE) -> 0.01762472527 | D14: 0.01762472527 | E14: 0.01762472527 | F14: 0.01762472527 | M14: ='Calibrated DGM'!$G$43*C14+'Calibrated DGM'!$H$43 -> 0.0654206442 | N14: ='Calibrated DGM'!$G$43*D14+'Calibrated DGM'!$H$43 -> 0.0654206442 | O14: ='Calibrated DGM'!$G$43*E14+'Calibrated DGM'!$H$43 -> 0.0654206442 | P14: ='Calibrated DGM'!$G$43*F14+'Calibrated DGM'!$H$43 -> 0.0654206442
B15: 2021-04-30 | C15: =VLOOKUP(_xlfn.MAXIFS('Nominal RFR'!B:B,'Nominal RFR'!B:B,"<="&B15),'Nominal RFR'!B:H,7,FALSE) -> 0.01677142857 | D15: 0.01677142857 | E15: 0.01677142857 | F15: 0.01677142857 | M15: ='Calibrated DGM'!$G$43*C15+'Calibrated DGM'!$H$43 -> 0.06610200796 | N15: ='Calibrated DGM'!$G$43*D15+'Calibrated DGM'!$H$43 -> 0.06610200796 | O15: ='Calibrated DGM'!$G$43*E15+'Calibrated DGM'!$H$43 -> 0.06610200796 | P15: ='Calibrated DGM'!$G$43*F15+'Calibrated DGM'!$H$43 -> 0.06610200796
B16: 2021-05-31 | C16: =VLOOKUP(_xlfn.MAXIFS('Nominal RFR'!B:B,'Nominal RFR'!B:B,"<="&B16),'Nominal RFR'!B:H,7,FALSE) -> 0.01644807692 | D16: 0.01644807692 | E16: 0.01644807692 | F16: 0.01644807692 | M16: ='Calibrated DGM'!$G$43*C16+'Calibrated DGM'!$H$43 -> 0.06636020665 | N16: ='Calibrated DGM'!$G$43*D16+'Calibrated DGM'!$H$43 -> 0.06636020665 | O16: ='Calibrated DGM'!$G$43*E16+'Calibrated DGM'!$H$43 -> 0.06636020665 | P16: ='Calibrated DGM'!$G$43*F16+'Calibrated DGM'!$H$43 -> 0.06636020665
B17: 2021-06-30 | C17: =VLOOKUP(_xlfn.MAXIFS('Nominal RFR'!B:B,'Nominal RFR'!B:B,"<="&B17),'Nominal RFR'!B:H,7,FALSE) -> 0.01487352941 | D17: 0.01487352941 | E17: 0.01487352941 | F17: 0.01487352941 | M17: ='Calibrated DGM'!$G$43*C17+'Calibrated DGM'!$H$43 -> 0.06761749453 | N17: ='Calibrated DGM'!$G$43*D17+'Calibrated DGM'!$H$43 -> 0.06761749453 | O17: ='Calibrated DGM'!$G$43*E17+'Calibrated DGM'!$H$43 -> 0.06761749453 | P17: ='Calibrated DGM'!$G$43*F17+'Calibrated DGM'!$H$43 -> 0.06761749453
B18: 2021-07-31 | C18: =VLOOKUP(_xlfn.MAXIFS('Nominal RFR'!B:B,'Nominal RFR'!B:B,"<="&B18),'Nominal RFR'!B:H,7,FALSE) -> 0.01150196078 | D18: 0.01150196078 | E18: 0.01150196078 | F18: 0.01150196078 | M18: ='Calibrated DGM'!$G$43*C18+'Calibrated DGM'!$H$43 -> 0.07030971712 | N18: ='Calibrated DGM'!$G$43*D18+'Calibrated DGM'!$H$43 -> 0.07030971712 | O18: ='Calibrated DGM'!$G$43*E18+'Calibrated DGM'!$H$43 -> 0.07030971712 | P18: ='Calibrated DGM'!$G$43*F18+'Calibrated DGM'!$H$43 -> 0.07030971712
B19: 2021-08-31 | C19: =VLOOKUP(_xlfn.MAXIFS('Nominal RFR'!B:B,'Nominal RFR'!B:B,"<="&B19),'Nominal RFR'!B:H,7,FALSE) -> 0.01133562092 | D19: 0.01133562092 | E19: 0.01133562092 | F19: 0.01133562092 | H19: =IF(H$3="Prevailing margin",VLOOKUP(MAX('RBA Interpolation'!$B:$B),'RBA Interpolation'!$B:$O,14,FALSE),IF(H$3="Ave post-GFC margin",'Debt margin'!$N$50,'Debt margin'!$M$46*C19+'Debt margin'!$N$46)) -> 0.0179241517 | I19: =IF(I$3="Prevailing margin",VLOOKUP(MAX('RBA Interpolation'!$B:$B),'RBA Interpolation'!$B:$O,14,FALSE),IF(I$3="Ave post-GFC margin",'Debt margin'!$N$50,'Debt margin'!$M$46*D19+'Debt margin'!$N$46)) -> 0.0179241517 | J19: =IF(J$3="Prevailing margin",VLOOKUP(MAX('RBA Interpolation'!$B:$B),'RBA Interpolation'!$B:$O,14,FALSE),IF(J$3="Ave post-GFC margin",'Debt margin'!$N$50,'Debt margin'!$M$46*E19+'Debt margin'!$N$46)) -> 0.0179241517 | K19: =IF(K$3="Prevailing margin",VLOOKUP(MAX('RBA Interpolation'!$B:$B),'RBA Interpolation'!$B:$O,14,FALSE),IF(K$3="Ave post-GFC margin",'Debt margin'!$N$50,'Debt margin'!$M$46*F19+'Debt margin'!$N$46)) -> 0.0179241517 | M19: ='Calibrated DGM'!$G$43*C19+'Calibrated DGM'!$H$43 -> 0.07044254074 | N19: ='Calibrated DGM'!$G$43*D19+'Calibrated DGM'!$H$43 -> 0.07044254074 | O19: ='Calibrated DGM'!$G$43*E19+'Calibrated DGM'!$H$43 -> 0.07044254074 | P19: ='Calibrated DGM'!$G$43*F19+'Calibrated DGM'!$H$43 -> 0.07044254074 | R19: =C19+H19 -> 0.02925977262 | S19: =D19+I19 -> 0.02925977262 | T19: 0.02925977262 | U19: 0.02925977262
B20: =EOMONTH(B19,1) -> 2021-09-30 | C20: =C19 -> 0.01133562092 | D20: =IF(B20<Control!C$8,D19+(INDEX(D:D,D$3)-D$19)/(D$3-19),Control!C$7) -> 0.01106336057 | E20: =VLOOKUP(IF(MONTH(B20)<=6,DATE(YEAR(B20),6,30),DATE(YEAR(B20)+1,6,30)),'Intergenerational Chart 6.15'!A:E,MATCH(Control!C$9,'Intergenerational Chart 6.15'!A$3:E$3,0),FALSE)/100 -> 0.023 | F20: 0.02 | H20: =IF(H$3="Fitted to RFR",'Debt margin'!$M$46*C20+'Debt margin'!$N$46,H19) -> 0.0179241517 | I20: =IF(I$3="Fitted to RFR",'Debt margin'!$M$46*D20+'Debt margin'!$N$46,I19) -> 0.01785656688 | J20: =IF(J$3="Fitted to RFR",'Debt margin'!$M$46*E20+'Debt margin'!$N$46,J19) -> 0.02081967035 | K20: =IF(K$3="Fitted to RFR",'Debt margin'!$M$46*F20+'Debt margin'!$N$46,K19) -> 0.02007496239 | M20: ='Calibrated DGM'!$G$43*C20+'Calibrated DGM'!$H$43 -> 0.07044254074 | N20: ='Calibrated DGM'!$G$43*D20+'Calibrated DGM'!$H$43 -> 0.07065994265 | O20: ='Calibrated DGM'!$G$43*E20+'Calibrated DGM'!$H$43 -> 0.06112844741 | P20: ='Calibrated DGM'!$G$43*F20+'Calibrated DGM'!$H$43 -> 0.06352396969 | R20: =C20+H20 -> 0.02925977262 | S20: =D20+I20 -> 0.02891992745 | T20: =E20+J20 -> 0.04381967035 | U20: =F20+K20 -> 0.04007496239
B21: =EOMONTH(B20,1) -> 2021-10-31 | C21: =C20 -> 0.01133562092 | D21: =IF(B21<Control!C$8,D20+(INDEX(D:D,D$3)-D$19)/(D$3-19),Control!C$7) -> 0.01079110022 | E21: =VLOOKUP(IF(MONTH(B21)<=6,DATE(YEAR(B21),6,30),DATE(YEAR(B21)+1,6,30)),'Intergenerational Chart 6.15'!A:E,MATCH(Control!C$9,'Intergenerational Chart 6.15'!A$3:E$3,0),FALSE)/100 -> 0.023 | F21: 0.02 | H21: =IF(H$3="Fitted to RFR",'Debt margin'!$M$46*C21+'Debt margin'!$N$46,H20) -> 0.0179241517 | I21: =IF(I$3="Fitted to RFR",'Debt margin'!$M$46*D21+'Debt margin'!$N$46,I20) -> 0.01778898207 | J21: =IF(J$3="Fitted to RFR",'Debt margin'!$M$46*E21+'Debt margin'!$N$46,J20) -> 0.02081967035 | K21: =IF(K$3="Fitted to RFR",'Debt margin'!$M$46*F21+'Debt margin'!$N$46,K20) -> 0.02007496239 | M21: ='Calibrated DGM'!$G$43*C21+'Calibrated DGM'!$H$43 -> 0.07044254074 | N21: ='Calibrated DGM'!$G$43*D21+'Calibrated DGM'!$H$43 -> 0.07087734457 | O21: ='Calibrated DGM'!$G$43*E21+'Calibrated DGM'!$H$43 -> 0.06112844741 | P21: ='Calibrated DGM'!$G$43*F21+'Calibrated DGM'!$H$43 -> 0.06352396969 | R21: 0.02925977262 | S21: 0.02858008229 | T21: 0.04381967035 | U21: 0.04007496239
B22: 2021-11-30 | C22: 0.01133562092 | D22: =IF(B22<Control!C$8,D21+(INDEX(D:D,D$3)-D$19)/(D$3-19),Control!C$7) -> 0.01051883987 | E22: =VLOOKUP(IF(MONTH(B22)<=6,DATE(YEAR(B22),6,30),DATE(YEAR(B22)+1,6,30)),'Intergenerational Chart 6.15'!A:E,MATCH(Control!C$9,'Intergenerational Chart 6.15'!A$3:E$3,0),FALSE)/100 -> 0.023 | F22: 0.02 | H22: =IF(H$3="Fitted to RFR",'Debt margin'!$M$46*C22+'Debt margin'!$N$46,H21) -> 0.0179241517 | I22: =IF(I$3="Fitted to RFR",'Debt margin'!$M$46*D22+'Debt margin'!$N$46,I21) -> 0.01772139725 | J22: =IF(J$3="Fitted to RFR",'Debt margin'!$M$46*E22+'Debt margin'!$N$46,J21) -> 0.02081967035 | K22: =IF(K$3="Fitted to RFR",'Debt margin'!$M$46*F22+'Debt margin'!$N$46,K21) -> 0.02007496239 | M22: ='Calibrated DGM'!$G$43*C22+'Calibrated DGM'!$H$43 -> 0.07044254074 | N22: ='Calibrated DGM'!$G$43*D22+'Calibrated DGM'!$H$43 -> 0.07109474648 | O22: ='Calibrated DGM'!$G$43*E22+'Calibrated DGM'!$H$43 -> 0.06112844741 | P22: ='Calibrated DGM'!$G$43*F22+'Calibrated DGM'!$H$43 -> 0.06352396969 | R22: 0.02925977262 | S22: 0.02824023712 | T22: 0.04381967035 | U22: 0.04007496239
B23: 2021-12-31 | C23: 0.01133562092 | D23: =IF(B23<Control!C$8,D22+(INDEX(D:D,D$3)-D$19)/(D$3-19),Control!C$7) -> 0.01024657952 | E23: =VLOOKUP(IF(MONTH(B23)<=6,DATE(YEAR(B23),6,30),DATE(YEAR(B23)+1,6,30)),'Intergenerational Chart 6.15'!A:E,MATCH(Control!C$9,'Intergenerational Chart 6.15'!A$3:E$3,0),FALSE)/100 -> 0.023 | F23: 0.02 | H23: =IF(H$3="Fitted to RFR",'Debt margin'!$M$46*C23+'Debt margin'!$N$46,H22) -> 0.0179241517 | I23: =IF(I$3="Fitted to RFR",'Debt margin'!$M$46*D23+'Debt margin'!$N$46,I22) -> 0.01765381243 | J23: =IF(J$3="Fitted to RFR",'Debt margin'!$M$46*E23+'Debt margin'!$N$46,J22) -> 0.02081967035 | K23: =IF(K$3="Fitted to RFR",'Debt margin'!$M$46*F23+'Debt margin'!$N$46,K22) -> 0.02007496239 | M23: ='Calibrated DGM'!$G$43*C23+'Calibrated DGM'!$H$43 -> 0.07044254074 | N23: ='Calibrated DGM'!$G$43*D23+'Calibrated DGM'!$H$43 -> 0.07131214839 | O23: ='Calibrated DGM'!$G$43*E23+'Calibrated DGM'!$H$43 -> 0.06112844741 | P23: ='Calibrated DGM'!$G$43*F23+'Calibrated DGM'!$H$43 -> 0.06352396969 | R23: 0.02925977262 | S23: 0.02790039196 | T23: 0.04381967035 | U23: 0.04007496239
B24: 2022-01-31 | C24: 0.01133562092 | D24: =IF(B24<Control!C$8,D23+(INDEX(D:D,D$3)-D$19)/(D$3-19),Control!C$7) -> 0.009974319172 | E24: =VLOOKUP(IF(MONTH(B24)<=6,DATE(YEAR(B24),6,30),DATE(YEAR(B24)+1,6,30)),'Intergenerational Chart 6.15'!A:E,MATCH(Control!C$9,'Intergenerational Chart 6.15'!A$3:E$3,0),FALSE)/100 -> 0.023 | F24: 0.02 | H24: =IF(H$3="Fitted to RFR",'Debt margin'!$M$46*C24+'Debt margin'!$N$46,H23) -> 0.0179241517 | I24: =IF(I$3="Fitted to RFR",'Debt margin'!$M$46*D24+'Debt margin'!$N$46,I23) -> 0.01758622762 | J24: =IF(J$3="Fitted to RFR",'Debt margin'!$M$46*E24+'Debt margin'!$N$46,J23) -> 0.02081967035 | K24: =IF(K$3="Fitted to RFR",'Debt margin'!$M$46*F24+'Debt margin'!$N$46,K23) -> 0.02007496239 | M24: ='Calibrated DGM'!$G$43*C24+'Calibrated DGM'!$H$43 -> 0.07044254074 | N24: ='Calibrated DGM'!$G$43*D24+'Calibrated DGM'!$H$43 -> 0.0715295503 | O24: ='Calibrated DGM'!$G$43*E24+'Calibrated DGM'!$H$43 -> 0.06112844741 | P24: ='Calibrated DGM'!$G$43*F24+'Calibrated DGM'!$H$43 -> 0.06352396969 | R24: 0.02925977262 | S24: 0.02756054679 | T24: 0.04381967035 | U24: 0.04007496239
B25: 2022-02-28 | C25: 0.01133562092 | D25: =IF(B25<Control!C$8,D24+(INDEX(D:D,D$3)-D$19)/(D$3-19),Control!C$7) -> 0.009702058824 | E25: =VLOOKUP(IF(MONTH(B25)<=6,DATE(YEAR(B25),6,30),DATE(YEAR(B25)+1,6,30)),'Intergenerational Chart 6.15'!A:E,MATCH(Control!C$9,'Intergenerational Chart 6.15'!A$3:E$3,0),FALSE)/100 -> 0.023 | F25: 0.02 | H25: =IF(H$3="Fitted to RFR",'Debt margin'!$M$46*C25+'Debt margin'!$N$46,H24) -> 0.0179241517 | I25: =IF(I$3="Fitted to RFR",'Debt margin'!$M$46*D25+'Debt margin'!$N$46,I24) -> 0.0175186428 | J25: =IF(J$3="Fitted to RFR",'Debt margin'!$M$46*E25+'Debt margin'!$N$46,J24) -> 0.02081967035 | K25: =IF(K$3="Fitted to RFR",'Debt margin'!$M$46*F25+'Debt margin'!$N$46,K24) -> 0.02007496239 | M25: ='Calibrated DGM'!$G$43*C25+'Calibrated DGM'!$H$43 -> 0.07044254074 | N25: ='Calibrated DGM'!$G$43*D25+'Calibrated DGM'!$H$43 -> 0.07174695221 | O25: ='Calibrated DGM'!$G$43*E25+'Calibrated DGM'!$H$43 -> 0.06112844741 | P25: ='Calibrated DGM'!$G$43*F25+'Calibrated DGM'!$H$43 -> 0.06352396969 | R25: 0.02925977262 | S25: 0.02722070163 | T25: 0.04381967035 | U25: 0.04007496239
B26: 2022-03-31 | C26: 0.01133562092 | D26: =IF(B26<Control!C$8,D25+(INDEX(D:D,D$3)-D$19)/(D$3-19),Control!C$7) -> 0.009429798475 | E26: =VLOOKUP(IF(MONTH(B26)<=6,DATE(YEAR(B26),6,30),DATE(YEAR(B26)+1,6,30)),'Intergenerational Chart 6.15'!A:E,MATCH(Control!C$9,'Intergenerational Chart 6.15'!A$3:E$3,0),FALSE)/100 -> 0.023 | F26: 0.02 | H26: =IF(H$3="Fitted to RFR",'Debt margin'!$M$46*C26+'Debt margin'!$N$46,H25) -> 0.0179241517 | I26: =IF(I$3="Fitted to RFR",'Debt margin'!$M$46*D26+'Debt margin'!$N$46,I25) -> 0.01745105799 | J26: =IF(J$3="Fitted to RFR",'Debt margin'!$M$46*E26+'Debt margin'!$N$46,J25) -> 0.02081967035 | K26: =IF(K$3="Fitted to RFR",'Debt margin'!$M$46*F26+'Debt margin'!$N$46,K25) -> 0.02007496239 | M26: ='Calibrated DGM'!$G$43*C26+'Calibrated DGM'!$H$43 -> 0.07044254074 | N26: ='Calibrated DGM'!$G$43*D26+'Calibrated DGM'!$H$43 -> 0.07196435412 | O26: ='Calibrated DGM'!$G$43*E26+'Calibrated DGM'!$H$43 -> 0.06112844741 | P26: ='Calibrated DGM'!$G$43*F26+'Calibrated DGM'!$H$43 -> 0.06352396969 | R26: 0.02925977262 | S26: 0.02688085646 | T26: 0.04381967035 | U26: 0.04007496239
B27: 2022-04-30 | C27: 0.01133562092 | D27: =IF(B27<Control!C$8,D26+(INDEX(D:D,D$3)-D$19)/(D$3-19),Control!C$7) -> 0.009157538126 | E27: =VLOOKUP(IF(MONTH(B27)<=6,DATE(YEAR(B27),6,30),DATE(YEAR(B27)+1,6,30)),'Intergenerational Chart 6.15'!A:E,MATCH(Control!C$9,'Intergenerational Chart 6.15'!A$3:E$3,0),FALSE)/100 -> 0.023 | F27: 0.02 | H27: =IF(H$3="Fitted to RFR",'Debt margin'!$M$46*C27+'Debt margin'!$N$46,H26) -> 0.0179241517 | I27: =IF(I$3="Fitted to RFR",'Debt margin'!$M$46*D27+'Debt margin'!$N$46,I26) -> 0.01738347317 | J27: =IF(J$3="Fitted to RFR",'Debt margin'!$M$46*E27+'Debt margin'!$N$46,J26) -> 0.02081967035 | K27: =IF(K$3="Fitted to RFR",'Debt margin'!$M$46*F27+'Debt margin'!$N$46,K26) -> 0.02007496239 | M27: ='Calibrated DGM'!$G$43*C27+'Calibrated DGM'!$H$43 -> 0.07044254074 | N27: ='Calibrated DGM'!$G$43*D27+'Calibrated DGM'!$H$43 -> 0.07218175603 | O27: ='Calibrated DGM'!$G$43*E27+'Calibrated DGM'!$H$43 -> 0.06112844741 | P27: ='Calibrated DGM'!$G$43*F27+'Calibrated DGM'!$H$43 -> 0.06352396969 | R27: 0.02925977262 | S27: 0.0265410113 | T27: 0.04381967035 | U27: 0.04007496239
B28: 2022-05-31 | C28: 0.01133562092 | D28: =IF(B28<Control!C$8,D27+(INDEX(D:D,D$3)-D$19)/(D$3-19),Control!C$7) -> 0.008885277778 | E28: =VLOOKUP(IF(MONTH(B28)<=6,DATE(YEAR(B28),6,30),DATE(YEAR(B28)+1,6,30)),'Intergenerational Chart 6.15'!A:E,MATCH(Control!C$9,'Intergenerational Chart 6.15'!A$3:E$3,0),FALSE)/100 -> 0.023 | F28: 0.02 | H28: =IF(H$3="Fitted to RFR",'Debt margin'!$M$46*C28+'Debt margin'!$N$46,H27) -> 0.0179241517 | I28: =IF(I$3="Fitted to RFR",'Debt margin'!$M$46*D28+'Debt margin'!$N$46,I27) -> 0.01731588835 | J28: =IF(J$3="Fitted to RFR",'Debt margin'!$M$46*E28+'Debt margin'!$N$46,J27) -> 0.02081967035 | K28: =IF(K$3="Fitted to RFR",'Debt margin'!$M$46*F28+'Debt margin'!$N$46,K27) -> 0.02007496239 | M28: ='Calibrated DGM'!$G$43*C28+'Calibrated DGM'!$H$43 -> 0.07044254074 | N28: ='Calibrated DGM'!$G$43*D28+'Calibrated DGM'!$H$43 -> 0.07239915794 | O28: ='Calibrated DGM'!$G$43*E28+'Calibrated DGM'!$H$43 -> 0.06112844741 | P28: ='Calibrated DGM'!$G$43*F28+'Calibrated DGM'!$H$43 -> 0.06352396969 | R28: 0.02925977262 | S28: 0.02620116613 | T28: 0.04381967035 | U28: 0.04007496239
B29: 2022-06-30 | C29: 0.01133562092 | D29: =IF(B29<Control!C$8,D28+(INDEX(D:D,D$3)-D$19)/(D$3-19),Control!C$7) -> 0.008613017429 | E29: =VLOOKUP(IF(MONTH(B29)<=6,DATE(YEAR(B29),6,30),DATE(YEAR(B29)+1,6,30)),'Intergenerational Chart 6.15'!A:E,MATCH(Control!C$9,'Intergenerational Chart 6.15'!A$3:E$3,0),FALSE)/100 -> 0.023 | F29: 0.02 | H29: =IF(H$3="Fitted to RFR",'Debt margin'!$M$46*C29+'Debt margin'!$N$46,H28) -> 0.0179241517 | I29: =IF(I$3="Fitted to RFR",'Debt margin'!$M$46*D29+'Debt margin'!$N$46,I28) -> 0.01724830354 | J29: =IF(J$3="Fitted to RFR",'Debt margin'!$M$46*E29+'Debt margin'!$N$46,J28) -> 0.02081967035 | K29: =IF(K$3="Fitted to RFR",'Debt margin'!$M$46*F29+'Debt margin'!$N$46,K28) -> 0.02007496239 | M29: ='Calibrated DGM'!$G$43*C29+'Calibrated DGM'!$H$43 -> 0.07044254074 | N29: ='Calibrated DGM'!$G$43*D29+'Calibrated DGM'!$H$43 -> 0.07261655985 | O29: ='Calibrated DGM'!$G$43*E29+'Calibrated DGM'!$H$43 -> 0.06112844741 | P29: ='Calibrated DGM'!$G$43*F29+'Calibrated DGM'!$H$43 -> 0.06352396969 | R29: 0.02925977262 | S29: 0.02586132097 | T29: 0.04381967035 | U29: 0.04007496239
B30: 2022-07-31 | C30: 0.01133562092 | D30: =IF(B30<Control!C$8,D29+(INDEX(D:D,D$3)-D$19)/(D$3-19),Control!C$7) -> 0.008340757081 | E30: =VLOOKUP(IF(MONTH(B30)<=6,DATE(YEAR(B30),6,30),DATE(YEAR(B30)+1,6,30)),'Intergenerational Chart 6.15'!A:E,MATCH(Control!C$9,'Intergenerational Chart 6.15'!A$3:E$3,0),FALSE)/100 -> 0.028 | F30: 0.02 | H30: =IF(H$3="Fitted to RFR",'Debt margin'!$M$46*C30+'Debt margin'!$N$46,H29) -> 0.0179241517 | I30: =IF(I$3="Fitted to RFR",'Debt margin'!$M$46*D30+'Debt margin'!$N$46,I29) -> 0.01718071872 | J30: =IF(J$3="Fitted to RFR",'Debt margin'!$M$46*E30+'Debt margin'!$N$46,J29) -> 0.02206085028 | K30: =IF(K$3="Fitted to RFR",'Debt margin'!$M$46*F30+'Debt margin'!$N$46,K29) -> 0.02007496239 | M30: ='Calibrated DGM'!$G$43*C30+'Calibrated DGM'!$H$43 -> 0.07044254074 | N30: ='Calibrated DGM'!$G$43*D30+'Calibrated DGM'!$H$43 -> 0.07283396176 | O30: ='Calibrated DGM'!$G$43*E30+'Calibrated DGM'!$H$43 -> 0.05713591027 | P30: ='Calibrated DGM'!$G$43*F30+'Calibrated DGM'!$H$43 -> 0.06352396969 | R30: 0.02925977262 | S30: 0.0255214758 | T30: 0.05006085028 | U30: 0.04007496239
B31: 2022-08-31 | C31: 0.01133562092 | D31: =IF(B31<Control!C$8,D30+(INDEX(D:D,D$3)-D$19)/(D$3-19),Control!C$7) -> 0.008068496732 | E31: =VLOOKUP(IF(MONTH(B31)<=6,DATE(YEAR(B31),6,30),DATE(YEAR(B31)+1,6,30)),'Intergenerational Chart 6.15'!A:E,MATCH(Control!C$9,'Intergenerational Chart 6.15'!A$3:E$3,0),FALSE)/100 -> 0.028 | F31: 0.02 | H31: =IF(H$3="Fitted to RFR",'Debt margin'!$M$46*C31+'Debt margin'!$N$46,H30) -> 0.0179241517 | I31: =IF(I$3="Fitted to RFR",'Debt margin'!$M$46*D31+'Debt margin'!$N$46,I30) -> 0.0171131339 | J31: =IF(J$3="Fitted to RFR",'Debt margin'!$M$46*E31+'Debt margin'!$N$46,J30) -> 0.02206085028 | K31: =IF(K$3="Fitted to RFR",'Debt margin'!$M$46*F31+'Debt margin'!$N$46,K30) -> 0.02007496239 | M31: ='Calibrated DGM'!$G$43*C31+'Calibrated DGM'!$H$43 -> 0.07044254074 | N31: ='Calibrated DGM'!$G$43*D31+'Calibrated DGM'!$H$43 -> 0.07305136367 | O31: ='Calibrated DGM'!$G$43*E31+'Calibrated DGM'!$H$43 -> 0.05713591027 | P31: ='Calibrated DGM'!$G$43*F31+'Calibrated DGM'!$H$43 -> 0.06352396969 | R31: 0.02925977262 | S31: 0.02518163064 | T31: 0.05006085028 | U31: 0.04007496239
B32: 2022-09-30 | C32: 0.01133562092 | D32: =IF(B32<Control!C$8,D31+(INDEX(D:D,D$3)-D$19)/(D$3-19),Control!C$7) -> 0.007796236383 | E32: =VLOOKUP(IF(MONTH(B32)<=6,DATE(YEAR(B32),6,30),DATE(YEAR(B32)+1,6,30)),'Intergenerational Chart 6.15'!A:E,MATCH(Control!C$9,'Intergenerational Chart 6.15'!A$3:E$3,0),FALSE)/100 -> 0.028 | F32: 0.02 | H32: =IF(H$3="Fitted to RFR",'Debt margin'!$M$46*C32+'Debt margin'!$N$46,H31) -> 0.0179241517 | I32: =IF(I$3="Fitted to RFR",'Debt margin'!$M$46*D32+'Debt margin'!$N$46,I31) -> 0.01704554909 | J32: =IF(J$3="Fitted to RFR",'Debt margin'!$M$46*E32+'Debt margin'!$N$46,J31) -> 0.02206085028 | K32: =IF(K$3="Fitted to RFR",'Debt margin'!$M$46*F32+'Debt margin'!$N$46,K31) -> 0.02007496239 | M32: ='Calibrated DGM'!$G$43*C32+'Calibrated DGM'!$H$43 -> 0.07044254074 | N32: ='Calibrated DGM'!$G$43*D32+'Calibrated DGM'!$H$43 -> 0.07326876558 | O32: ='Calibrated DGM'!$G$43*E32+'Calibrated DGM'!$H$43 -> 0.05713591027 | P32: ='Calibrated DGM'!$G$43*F32+'Calibrated DGM'!$H$43 -> 0.06352396969 | R32: 0.02925977262 | S32: 0.02484178547 | T32: 0.05006085028 | U32: 0.04007496239
B33: 2022-10-31 | C33: 0.01133562092 | D33: =IF(B33<Control!C$8,D32+(INDEX(D:D,D$3)-D$19)/(D$3-19),Control!C$7) -> 0.007523976035 | E33: =VLOOKUP(IF(MONTH(B33)<=6,DATE(YEAR(B33),6,30),DATE(YEAR(B33)+1,6,30)),'Intergenerational Chart 6.15'!A:E,MATCH(Control!C$9,'Intergenerational Chart 6.15'!A$3:E$3,0),FALSE)/100 -> 0.028 | F33: 0.02 | H33: =IF(H$3="Fitted to RFR",'Debt margin'!$M$46*C33+'Debt margin'!$N$46,H32) -> 0.0179241517 | I33: =IF(I$3="Fitted to RFR",'Debt margin'!$M$46*D33+'Debt margin'!$N$46,I32) -> 0.01697796427 | J33: =IF(J$3="Fitted to RFR",'Debt margin'!$M$46*E33+'Debt margin'!$N$46,J32) -> 0.02206085028 | K33: =IF(K$3="Fitted to RFR",'Debt margin'!$M$46*F33+'Debt margin'!$N$46,K32) -> 0.02007496239 | M33: ='Calibrated DGM'!$G$43*C33+'Calibrated DGM'!$H$43 -> 0.07044254074 | N33: ='Calibrated DGM'!$G$43*D33+'Calibrated DGM'!$H$43 -> 0.07348616749 | O33: ='Calibrated DGM'!$G$43*E33+'Calibrated DGM'!$H$43 -> 0.05713591027 | P33: ='Calibrated DGM'!$G$43*F33+'Calibrated DGM'!$H$43 -> 0.06352396969 | R33: 0.02925977262 | S33: 0.02450194031 | T33: 0.05006085028 | U33: 0.04007496239
B34: 2022-11-30 | C34: 0.01133562092 | D34: =IF(B34<Control!C$8,D33+(INDEX(D:D,D$3)-D$19)/(D$3-19),Control!C$7) -> 0.007251715686 | E34: =VLOOKUP(IF(MONTH(B34)<=6,DATE(YEAR(B34),6,30),DATE(YEAR(B34)+1,6,30)),'Intergenerational Chart 6.15'!A:E,MATCH(Control!C$9,'Intergenerational Chart 6.15'!A$3:E$3,0),FALSE)/100 -> 0.028 | F34: 0.02 | H34: =IF(H$3="Fitted to RFR",'Debt margin'!$M$46*C34+'Debt margin'!$N$46,H33) -> 0.0179241517 | I34: =IF(I$3="Fitted to RFR",'Debt margin'!$M$46*D34+'Debt margin'!$N$46,I33) -> 0.01691037946 | J34: =IF(J$3="Fitted to RFR",'Debt margin'!$M$46*E34+'Debt margin'!$N$46,J33) -> 0.02206085028 | K34: =IF(K$3="Fitted to RFR",'Debt margin'!$M$46*F34+'Debt margin'!$N$46,K33) -> 0.02007496239 | M34: ='Calibrated DGM'!$G$43*C34+'Calibrated DGM'!$H$43 -> 0.07044254074 | N34: ='Calibrated DGM'!$G$43*D34+'Calibrated DGM'!$H$43 -> 0.0737035694 | O34: ='Calibrated DGM'!$G$43*E34+'Calibrated DGM'!$H$43 -> 0.05713591027 | P34: ='Calibrated DGM'!$G$43*F34+'Calibrated DGM'!$H$43 -> 0.06352396969 | R34: 0.02925977262 | S34: 0.02416209514 | T34: 0.05006085028 | U34: 0.04007496239
B35: 2022-12-31 | C35: 0.01133562092 | D35: =IF(B35<Control!C$8,D34+(INDEX(D:D,D$3)-D$19)/(D$3-19),Control!C$7) -> 0.006979455338 | E35: =VLOOKUP(IF(MONTH(B35)<=6,DATE(YEAR(B35),6,30),DATE(YEAR(B35)+1,6,30)),'Intergenerational Chart 6.15'!A:E,MATCH(Control!C$9,'Intergenerational Chart 6.15'!A$3:E$3,0),FALSE)/100 -> 0.028 | F35: 0.02 | H35: =IF(H$3="Fitted to RFR",'Debt margin'!$M$46*C35+'Debt margin'!$N$46,H34) -> 0.0179241517 | I35: =IF(I$3="Fitted to RFR",'Debt margin'!$M$46*D35+'Debt margin'!$N$46,I34) -> 0.01684279464 | J35: =IF(J$3="Fitted to RFR",'Debt margin'!$M$46*E35+'Debt margin'!$N$46,J34) -> 0.02206085028 | K35: =IF(K$3="Fitted to RFR",'Debt margin'!$M$46*F35+'Debt margin'!$N$46,K34) -> 0.02007496239 | M35: ='Calibrated DGM'!$G$43*C35+'Calibrated DGM'!$H$43 -> 0.07044254074 | N35: ='Calibrated DGM'!$G$43*D35+'Calibrated DGM'!$H$43 -> 0.07392097131 | O35: ='Calibrated DGM'!$G$43*E35+'Calibrated DGM'!$H$43 -> 0.05713591027 | P35: ='Calibrated DGM'!$G$43*F35+'Calibrated DGM'!$H$43 -> 0.06352396969 | R35: 0.02925977262 | S35: 0.02382224998 | T35: 0.05006085028 | U35: 0.04007496239
B36: 2023-01-31 | C36: 0.01133562092 | D36: =IF(B36<Control!C$8,D35+(INDEX(D:D,D$3)-D$19)/(D$3-19),Control!C$7) -> 0.006707194989 | E36: =VLOOKUP(IF(MONTH(B36)<=6,DATE(YEAR(B36),6,30),DATE(YEAR(B36)+1,6,30)),'Intergenerational Chart 6.15'!A:E,MATCH(Control!C$9,'Intergenerational Chart 6.15'!A$3:E$3,0),FALSE)/100 -> 0.028 | F36: 0.02 | H36: =IF(H$3="Fitted to RFR",'Debt margin'!$M$46*C36+'Debt margin'!$N$46,H35) -> 0.0179241517 | I36: =IF(I$3="Fitted to RFR",'Debt margin'!$M$46*D36+'Debt margin'!$N$46,I35) -> 0.01677520982 | J36: =IF(J$3="Fitted to RFR",'Debt margin'!$M$46*E36+'Debt margin'!$N$46,J35) -> 0.02206085028 | K36: =IF(K$3="Fitted to RFR",'Debt margin'!$M$46*F36+'Debt margin'!$N$46,K35) -> 0.02007496239 | M36: ='Calibrated DGM'!$G$43*C36+'Calibrated DGM'!$H$43 -> 0.07044254074 | N36: ='Calibrated DGM'!$G$43*D36+'Calibrated DGM'!$H$43 -> 0.07413837322 | O36: ='Calibrated DGM'!$G$43*E36+'Calibrated DGM'!$H$43 -> 0.05713591027 | P36: ='Calibrated DGM'!$G$43*F36+'Calibrated DGM'!$H$43 -> 0.06352396969 | R36: 0.02925977262 | S36: 0.02348240481 | T36: 0.05006085028 | U36: 0.04007496239
B37: 2023-02-28 | C37: 0.01133562092 | D37: =IF(B37<Control!C$8,D36+(INDEX(D:D,D$3)-D$19)/(D$3-19),Control!C$7) -> 0.006434934641 | E37: =VLOOKUP(IF(MONTH(B37)<=6,DATE(YEAR(B37),6,30),DATE(YEAR(B37)+1,6,30)),'Intergenerational Chart 6.15'!A:E,MATCH(Control!C$9,'Intergenerational Chart 6.15'!A$3:E$3,0),FALSE)/100 -> 0.028 | F37: 0.02 | H37: =IF(H$3="Fitted to RFR",'Debt margin'!$M$46*C37+'Debt margin'!$N$46,H36) -> 0.0179241517 | I37: =IF(I$3="Fitted to RFR",'Debt margin'!$M$46*D37+'Debt margin'!$N$46,I36) -> 0.01670762501 | J37: =IF(J$3="Fitted to RFR",'Debt margin'!$M$46*E37+'Debt margin'!$N$46,J36) -> 0.02206085028 | K37: =IF(K$3="Fitted to RFR",'Debt margin'!$M$46*F37+'Debt margin'!$N$46,K36) -> 0.02007496239 | M37: ='Calibrated DGM'!$G$43*C37+'Calibrated DGM'!$H$43 -> 0.07044254074 | N37: ='Calibrated DGM'!$G$43*D37+'Calibrated DGM'!$H$43 -> 0.07435577513 | O37: ='Calibrated DGM'!$G$43*E37+'Calibrated DGM'!$H$43 -> 0.05713591027 | P37: ='Calibrated DGM'!$G$43*F37+'Calibrated DGM'!$H$43 -> 0.06352396969 | R37: 0.02925977262 | S37: 0.02314255965 | T37: 0.05006085028 | U37: 0.04007496239
B38: 2023-03-31 | C38: 0.01133562092 | D38: =IF(B38<Control!C$8,D37+(INDEX(D:D,D$3)-D$19)/(D$3-19),Control!C$7) -> 0.006162674292 | E38: =VLOOKUP(IF(MONTH(B38)<=6,DATE(YEAR(B38),6,30),DATE(YEAR(B38)+1,6,30)),'Intergenerational Chart 6.15'!A:E,MATCH(Control!C$9,'Intergenerational Chart 6.15'!A$3:E$3,0),FALSE)/100 -> 0.028 | F38: 0.02 | H38: =IF(H$3="Fitted to RFR",'Debt margin'!$M$46*C38+'Debt margin'!$N$46,H37) -> 0.0179241517 | I38: =IF(I$3="Fitted to RFR",'Debt margin'!$M$46*D38+'Debt margin'!$N$46,I37) -> 0.01664004019 | J38: =IF(J$3="Fitted to RFR",'Debt margin'!$M$46*E38+'Debt margin'!$N$46,J37) -> 0.02206085028 | K38: =IF(K$3="Fitted to RFR",'Debt margin'!$M$46*F38+'Debt margin'!$N$46,K37) -> 0.02007496239 | M38: ='Calibrated DGM'!$G$43*C38+'Calibrated DGM'!$H$43 -> 0.07044254074 | N38: ='Calibrated DGM'!$G$43*D38+'Calibrated DGM'!$H$43 -> 0.07457317704 | O38: ='Calibrated DGM'!$G$43*E38+'Calibrated DGM'!$H$43 -> 0.05713591027 | P38: ='Calibrated DGM'!$G$43*F38+'Calibrated DGM'!$H$43 -> 0.06352396969 | R38: 0.02925977262 | S38: 0.02280271448 | T38: 0.05006085028 | U38: 0.04007496239
B39: 2023-04-30 | C39: 0.01133562092 | D39: =IF(B39<Control!C$8,D38+(INDEX(D:D,D$3)-D$19)/(D$3-19),Control!C$7) -> 0.005890413943 | E39: =VLOOKUP(IF(MONTH(B39)<=6,DATE(YEAR(B39),6,30),DATE(YEAR(B39)+1,6,30)),'Intergenerational Chart 6.15'!A:E,MATCH(Control!C$9,'Intergenerational Chart 6.15'!A$3:E$3,0),FALSE)/100 -> 0.028 | F39: 0.02 | H39: =IF(H$3="Fitted to RFR",'Debt margin'!$M$46*C39+'Debt margin'!$N$46,H38) -> 0.0179241517 | I39: =IF(I$3="Fitted to RFR",'Debt margin'!$M$46*D39+'Debt margin'!$N$46,I38) -> 0.01657245537 | J39: =IF(J$3="Fitted to RFR",'Debt margin'!$M$46*E39+'Debt margin'!$N$46,J38) -> 0.02206085028 | K39: =IF(K$3="Fitted to RFR",'Debt margin'!$M$46*F39+'Debt margin'!$N$46,K38) -> 0.02007496239 | M39: ='Calibrated DGM'!$G$43*C39+'Calibrated DGM'!$H$43 -> 0.07044254074 | N39: ='Calibrated DGM'!$G$43*D39+'Calibrated DGM'!$H$43 -> 0.07479057896 | O39: ='Calibrated DGM'!$G$43*E39+'Calibrated DGM'!$H$43 -> 0.05713591027 | P39: ='Calibrated DGM'!$G$43*F39+'Calibrated DGM'!$H$43 -> 0.06352396969 | R39: 0.02925977262 | S39: 0.02246286932 | T39: 0.05006085028 | U39: 0.04007496239
B40: 2023-05-31 | C40: 0.01133562092 | D40: =IF(B40<Control!C$8,D39+(INDEX(D:D,D$3)-D$19)/(D$3-19),Control!C$7) -> 0.005618153595 | E40: =VLOOKUP(IF(MONTH(B40)<=6,DATE(YEAR(B40),6,30),DATE(YEAR(B40)+1,6,30)),'Intergenerational Chart 6.15'!A:E,MATCH(Control!C$9,'Intergenerational Chart 6.15'!A$3:E$3,0),FALSE)/100 -> 0.028 | F40: 0.02 | H40: =IF(H$3="Fitted to RFR",'Debt margin'!$M$46*C40+'Debt margin'!$N$46,H39) -> 0.0179241517 | I40: =IF(I$3="Fitted to RFR",'Debt margin'!$M$46*D40+'Debt margin'!$N$46,I39) -> 0.01650487056 | J40: =IF(J$3="Fitted to RFR",'Debt margin'!$M$46*E40+'Debt margin'!$N$46,J39) -> 0.02206085028 | K40: =IF(K$3="Fitted to RFR",'Debt margin'!$M$46*F40+'Debt margin'!$N$46,K39) -> 0.02007496239 | M40: ='Calibrated DGM'!$G$43*C40+'Calibrated DGM'!$H$43 -> 0.07044254074 | N40: ='Calibrated DGM'!$G$43*D40+'Calibrated DGM'!$H$43 -> 0.07500798087 | O40: ='Calibrated DGM'!$G$43*E40+'Calibrated DGM'!$H$43 -> 0.05713591027 | P40: ='Calibrated DGM'!$G$43*F40+'Calibrated DGM'!$H$43 -> 0.06352396969 | R40: 0.02925977262 | S40: 0.02212302415 | T40: 0.05006085028 | U40: 0.04007496239
B41: 2023-06-30 | C41: 0.01133562092 | D41: =IF(B41<Control!C$8,D40+(INDEX(D:D,D$3)-D$19)/(D$3-19),Control!C$7) -> 0.005345893246 | E41: =VLOOKUP(IF(MONTH(B41)<=6,DATE(YEAR(B41),6,30),DATE(YEAR(B41)+1,6,30)),'Intergenerational Chart 6.15'!A:E,MATCH(Control!C$9,'Intergenerational Chart 6.15'!A$3:E$3,0),FALSE)/100 -> 0.028 | F41: 0.02 | H41: =IF(H$3="Fitted to RFR",'Debt margin'!$M$46*C41+'Debt margin'!$N$46,H40) -> 0.0179241517 | I41: =IF(I$3="Fitted to RFR",'Debt margin'!$M$46*D41+'Debt margin'!$N$46,I40) -> 0.01643728574 | J41: =IF(J$3="Fitted to RFR",'Debt margin'!$M$46*E41+'Debt margin'!$N$46,J40) -> 0.02206085028 | K41: =IF(K$3="Fitted to RFR",'Debt margin'!$M$46*F41+'Debt margin'!$N$46,K40) -> 0.02007496239 | M41: ='Calibrated DGM'!$G$43*C41+'Calibrated DGM'!$H$43 -> 0.07044254074 | N41: ='Calibrated DGM'!$G$43*D41+'Calibrated DGM'!$H$43 -> 0.07522538278 | O41: ='Calibrated DGM'!$G$43*E41+'Calibrated DGM'!$H$43 -> 0.05713591027 | P41: ='Calibrated DGM'!$G$43*F41+'Calibrated DGM'!$H$43 -> 0.06352396969 | R41: 0.02925977262 | S41: 0.02178317899 | T41: 0.05006085028 | U41: 0.04007496239
B42: 2023-07-31 | C42: 0.01133562092 | D42: =IF(B42<Control!C$8,D41+(INDEX(D:D,D$3)-D$19)/(D$3-19),Control!C$7) -> 0.005073632898 | E42: =VLOOKUP(IF(MONTH(B42)<=6,DATE(YEAR(B42),6,30),DATE(YEAR(B42)+1,6,30)),'Intergenerational Chart 6.15'!A:E,MATCH(Control!C$9,'Intergenerational Chart 6.15'!A$3:E$3,0),FALSE)/100 -> 0.034 | F42: 0.02 | H42: =IF(H$3="Fitted to RFR",'Debt margin'!$M$46*C42+'Debt margin'!$N$46,H41) -> 0.0179241517 | I42: =IF(I$3="Fitted to RFR",'Debt margin'!$M$46*D42+'Debt margin'!$N$46,I41) -> 0.01636970093 | J42: =IF(J$3="Fitted to RFR",'Debt margin'!$M$46*E42+'Debt margin'!$N$46,J41) -> 0.0235502662 | K42: =IF(K$3="Fitted to RFR",'Debt margin'!$M$46*F42+'Debt margin'!$N$46,K41) -> 0.02007496239 | M42: ='Calibrated DGM'!$G$43*C42+'Calibrated DGM'!$H$43 -> 0.07044254074 | N42: ='Calibrated DGM'!$G$43*D42+'Calibrated DGM'!$H$43 -> 0.07544278469 | O42: ='Calibrated DGM'!$G$43*E42+'Calibrated DGM'!$H$43 -> 0.0523448657 | P42: ='Calibrated DGM'!$G$43*F42+'Calibrated DGM'!$H$43 -> 0.06352396969 | R42: 0.02925977262 | S42: 0.02144333382 | T42: 0.0575502662 | U42: 0.04007496239
B43: 2023-08-31 | C43: 0.01133562092 | D43: =IF(B43<Control!C$8,D42+(INDEX(D:D,D$3)-D$19)/(D$3-19),Control!C$7) -> 0.004801372549 | E43: =VLOOKUP(IF(MONTH(B43)<=6,DATE(YEAR(B43),6,30),DATE(YEAR(B43)+1,6,30)),'Intergenerational Chart 6.15'!A:E,MATCH(Control!C$9,'Intergenerational Chart 6.15'!A$3:E$3,0),FALSE)/100 -> 0.034 | F43: 0.02 | H43: =IF(H$3="Fitted to RFR",'Debt margin'!$M$46*C43+'Debt margin'!$N$46,H42) -> 0.0179241517 | I43: =IF(I$3="Fitted to RFR",'Debt margin'!$M$46*D43+'Debt margin'!$N$46,I42) -> 0.01630211611 | J43: =IF(J$3="Fitted to RFR",'Debt margin'!$M$46*E43+'Debt margin'!$N$46,J42) -> 0.0235502662 | K43: =IF(K$3="Fitted to RFR",'Debt margin'!$M$46*F43+'Debt margin'!$N$46,K42) -> 0.02007496239 | M43: ='Calibrated DGM'!$G$43*C43+'Calibrated DGM'!$H$43 -> 0.07044254074 | N43: ='Calibrated DGM'!$G$43*D43+'Calibrated DGM'!$H$43 -> 0.0756601866 | O43: ='Calibrated DGM'!$G$43*E43+'Calibrated DGM'!$H$43 -> 0.0523448657 | P43: ='Calibrated DGM'!$G$43*F43+'Calibrated DGM'!$H$43 -> 0.06352396969 | R43: 0.02925977262 | S43: 0.02110348866 | T43: 0.0575502662 | U43: 0.04007496239
B44: 2023-09-30 | C44: 0.01133562092 | D44: =IF(B44<Control!C$8,D43+(INDEX(D:D,D$3)-D$19)/(D$3-19),Control!C$7) -> 0.0045291122 | E44: =VLOOKUP(IF(MONTH(B44)<=6,DATE(YEAR(B44),6,30),DATE(YEAR(B44)+1,6,30)),'Intergenerational Chart 6.15'!A:E,MATCH(Control!C$9,'Intergenerational Chart 6.15'!A$3:E$3,0),FALSE)/100 -> 0.034 | F44: 0.02 | H44: =IF(H$3="Fitted to RFR",'Debt margin'!$M$46*C44+'Debt margin'!$N$46,H43) -> 0.0179241517 | I44: =IF(I$3="Fitted to RFR",'Debt margin'!$M$46*D44+'Debt margin'!$N$46,I43) -> 0.01623453129 | J44: =IF(J$3="Fitted to RFR",'Debt margin'!$M$46*E44+'Debt margin'!$N$46,J43) -> 0.0235502662 | K44: =IF(K$3="Fitted to RFR",'Debt margin'!$M$46*F44+'Debt margin'!$N$46,K43) -> 0.02007496239 | M44: ='Calibrated DGM'!$G$43*C44+'Calibrated DGM'!$H$43 -> 0.07044254074 | N44: ='Calibrated DGM'!$G$43*D44+'Calibrated DGM'!$H$43 -> 0.07587758851 | O44: ='Calibrated DGM'!$G$43*E44+'Calibrated DGM'!$H$43 -> 0.0523448657 | P44: ='Calibrated DGM'!$G$43*F44+'Calibrated DGM'!$H$43 -> 0.06352396969 | R44: 0.02925977262 | S44: 0.02076364349 | T44: 0.0575502662 | U44: 0.04007496239
B45: 2023-10-31 | C45: 0.01133562092 | D45: =IF(B45<Control!C$8,D44+(INDEX(D:D,D$3)-D$19)/(D$3-19),Control!C$7) -> 0.004256851852 | E45: =VLOOKUP(IF(MONTH(B45)<=6,DATE(YEAR(B45),6,30),DATE(YEAR(B45)+1,6,30)),'Intergenerational Chart 6.15'!A:E,MATCH(Control!C$9,'Intergenerational Chart 6.15'!A$3:E$3,0),FALSE)/100 -> 0.034 | F45: 0.02 | H45: =IF(H$3="Fitted to RFR",'Debt margin'!$M$46*C45+'Debt margin'!$N$46,H44) -> 0.0179241517 | I45: =IF(I$3="Fitted to RFR",'Debt margin'!$M$46*D45+'Debt margin'!$N$46,I44) -> 0.01616694648 | J45: =IF(J$3="Fitted to RFR",'Debt margin'!$M$46*E45+'Debt margin'!$N$46,J44) -> 0.0235502662 | K45: =IF(K$3="Fitted to RFR",'Debt margin'!$M$46*F45+'Debt margin'!$N$46,K44) -> 0.02007496239 | M45: ='Calibrated DGM'!$G$43*C45+'Calibrated DGM'!$H$43 -> 0.07044254074 | N45: ='Calibrated DGM'!$G$43*D45+'Calibrated DGM'!$H$43 -> 0.07609499042 | O45: ='Calibrated DGM'!$G$43*E45+'Calibrated DGM'!$H$43 -> 0.0523448657 | P45: ='Calibrated DGM'!$G$43*F45+'Calibrated DGM'!$H$43 -> 0.06352396969 | R45: 0.02925977262 | S45: 0.02042379833 | T45: 0.0575502662 | U45: 0.04007496239
B46: 2023-11-30 | C46: 0.01133562092 | D46: =IF(B46<Control!C$8,D45+(INDEX(D:D,D$3)-D$19)/(D$3-19),Control!C$7) -> 0.003984591503 | E46: =VLOOKUP(IF(MONTH(B46)<=6,DATE(YEAR(B46),6,30),DATE(YEAR(B46)+1,6,30)),'Intergenerational Chart 6.15'!A:E,MATCH(Control!C$9,'Intergenerational Chart 6.15'!A$3:E$3,0),FALSE)/100 -> 0.034 | F46: 0.02 | H46: =IF(H$3="Fitted to RFR",'Debt margin'!$M$46*C46+'Debt margin'!$N$46,H45) -> 0.0179241517 | I46: =IF(I$3="Fitted to RFR",'Debt margin'!$M$46*D46+'Debt margin'!$N$46,I45) -> 0.01609936166 | J46: =IF(J$3="Fitted to RFR",'Debt margin'!$M$46*E46+'Debt margin'!$N$46,J45) -> 0.0235502662 | K46: =IF(K$3="Fitted to RFR",'Debt margin'!$M$46*F46+'Debt margin'!$N$46,K45) -> 0.02007496239 | M46: ='Calibrated DGM'!$G$43*C46+'Calibrated DGM'!$H$43 -> 0.07044254074 | N46: ='Calibrated DGM'!$G$43*D46+'Calibrated DGM'!$H$43 -> 0.07631239233 | O46: ='Calibrated DGM'!$G$43*E46+'Calibrated DGM'!$H$43 -> 0.0523448657 | P46: ='Calibrated DGM'!$G$43*F46+'Calibrated DGM'!$H$43 -> 0.06352396969 | R46: 0.02925977262 | S46: 0.02008395316 | T46: 0.0575502662 | U46: 0.04007496239
B47: 2023-12-31 | C47: 0.01133562092 | D47: =IF(B47<Control!C$8,D46+(INDEX(D:D,D$3)-D$19)/(D$3-19),Control!C$7) -> 0.003712331155 | E47: =VLOOKUP(IF(MONTH(B47)<=6,DATE(YEAR(B47),6,30),DATE(YEAR(B47)+1,6,30)),'Intergenerational Chart 6.15'!A:E,MATCH(Control!C$9,'Intergenerational Chart 6.15'!A$3:E$3,0),FALSE)/100 -> 0.034 | F47: 0.02 | H47: =IF(H$3="Fitted to RFR",'Debt margin'!$M$46*C47+'Debt margin'!$N$46,H46) -> 0.0179241517 | I47: =IF(I$3="Fitted to RFR",'Debt margin'!$M$46*D47+'Debt margin'!$N$46,I46) -> 0.01603177684 | J47: =IF(J$3="Fitted to RFR",'Debt margin'!$M$46*E47+'Debt margin'!$N$46,J46) -> 0.0235502662 | K47: =IF(K$3="Fitted to RFR",'Debt margin'!$M$46*F47+'Debt margin'!$N$46,K46) -> 0.02007496239 | M47: ='Calibrated DGM'!$G$43*C47+'Calibrated DGM'!$H$43 -> 0.07044254074 | N47: ='Calibrated DGM'!$G$43*D47+'Calibrated DGM'!$H$43 -> 0.07652979424 | O47: ='Calibrated DGM'!$G$43*E47+'Calibrated DGM'!$H$43 -> 0.0523448657 | P47: ='Calibrated DGM'!$G$43*F47+'Calibrated DGM'!$H$43 -> 0.06352396969 | R47: 0.02925977262 | S47: 0.019744108 | T47: 0.0575502662 | U47: 0.04007496239
B48: 2024-01-31 | C48: 0.01133562092 | D48: =IF(B48<Control!C$8,D47+(INDEX(D:D,D$3)-D$19)/(D$3-19),Control!C$7) -> 0.003440070806 | E48: =VLOOKUP(IF(MONTH(B48)<=6,DATE(YEAR(B48),6,30),DATE(YEAR(B48)+1,6,30)),'Intergenerational Chart 6.15'!A:E,MATCH(Control!C$9,'Intergenerational Chart 6.15'!A$3:E$3,0),FALSE)/100 -> 0.034 | F48: 0.02 | H48: =IF(H$3="Fitted to RFR",'Debt margin'!$M$46*C48+'Debt margin'!$N$46,H47) -> 0.0179241517 | I48: =IF(I$3="Fitted to RFR",'Debt margin'!$M$46*D48+'Debt margin'!$N$46,I47) -> 0.01596419203 | J48: =IF(J$3="Fitted to RFR",'Debt margin'!$M$46*E48+'Debt margin'!$N$46,J47) -> 0.0235502662 | K48: =IF(K$3="Fitted to RFR",'Debt margin'!$M$46*F48+'Debt margin'!$N$46,K47) -> 0.02007496239 | M48: ='Calibrated DGM'!$G$43*C48+'Calibrated DGM'!$H$43 -> 0.07044254074 | N48: ='Calibrated DGM'!$G$43*D48+'Calibrated DGM'!$H$43 -> 0.07674719615 | O48: ='Calibrated DGM'!$G$43*E48+'Calibrated DGM'!$H$43 -> 0.0523448657 | P48: ='Calibrated DGM'!$G$43*F48+'Calibrated DGM'!$H$43 -> 0.06352396969 | R48: 0.02925977262 | S48: 0.01940426283 | T48: 0.0575502662 | U48: 0.04007496239
B49: 2024-02-29 | C49: 0.01133562092 | D49: =IF(B49<Control!C$8,D48+(INDEX(D:D,D$3)-D$19)/(D$3-19),Control!C$7) -> 0.003167810458 | E49: =VLOOKUP(IF(MONTH(B49)<=6,DATE(YEAR(B49),6,30),DATE(YEAR(B49)+1,6,30)),'Intergenerational Chart 6.15'!A:E,MATCH(Control!C$9,'Intergenerational Chart 6.15'!A$3:E$3,0),FALSE)/100 -> 0.034 | F49: 0.02 | H49: =IF(H$3="Fitted to RFR",'Debt margin'!$M$46*C49+'Debt margin'!$N$46,H48) -> 0.0179241517 | I49: =IF(I$3="Fitted to RFR",'Debt margin'!$M$46*D49+'Debt margin'!$N$46,I48) -> 0.01589660721 | J49: =IF(J$3="Fitted to RFR",'Debt margin'!$M$46*E49+'Debt margin'!$N$46,J48) -> 0.0235502662 | K49: =IF(K$3="Fitted to RFR",'Debt margin'!$M$46*F49+'Debt margin'!$N$46,K48) -> 0.02007496239 | M49: ='Calibrated DGM'!$G$43*C49+'Calibrated DGM'!$H$43 -> 0.07044254074 | N49: ='Calibrated DGM'!$G$43*D49+'Calibrated DGM'!$H$43 -> 0.07696459806 | O49: ='Calibrated DGM'!$G$43*E49+'Calibrated DGM'!$H$43 -> 0.0523448657 | P49: ='Calibrated DGM'!$G$43*F49+'Calibrated DGM'!$H$43 -> 0.06352396969 | R49: 0.02925977262 | S49: 0.01906441767 | T49: 0.0575502662 | U49: 0.04007496239
B50: 2024-03-31 | C50: 0.01133562092 | D50: =IF(B50<Control!C$8,D49+(INDEX(D:D,D$3)-D$19)/(D$3-19),Control!C$7) -> 0.002895550109 | E50: =VLOOKUP(IF(MONTH(B50)<=6,DATE(YEAR(B50),6,30),DATE(YEAR(B50)+1,6,30)),'Intergenerational Chart 6.15'!A:E,MATCH(Control!C$9,'Intergenerational Chart 6.15'!A$3:E$3,0),FALSE)/100 -> 0.034 | F50: 0.02 | H50: =IF(H$3="Fitted to RFR",'Debt margin'!$M$46*C50+'Debt margin'!$N$46,H49) -> 0.0179241517 | I50: =IF(I$3="Fitted to RFR",'Debt margin'!$M$46*D50+'Debt margin'!$N$46,I49) -> 0.0158290224 | J50: =IF(J$3="Fitted to RFR",'Debt margin'!$M$46*E50+'Debt margin'!$N$46,J49) -> 0.0235502662 | K50: =IF(K$3="Fitted to RFR",'Debt margin'!$M$46*F50+'Debt margin'!$N$46,K49) -> 0.02007496239 | M50: ='Calibrated DGM'!$G$43*C50+'Calibrated DGM'!$H$43 -> 0.07044254074 | N50: ='Calibrated DGM'!$G$43*D50+'Calibrated DGM'!$H$43 -> 0.07718199997 | O50: ='Calibrated DGM'!$G$43*E50+'Calibrated DGM'!$H$43 -> 0.0523448657 | P50: ='Calibrated DGM'!$G$43*F50+'Calibrated DGM'!$H$43 -> 0.06352396969 | R50: 0.02925977262 | S50: 0.0187245725 | T50: 0.0575502662 | U50: 0.04007496239
B51: 2024-04-30 | C51: 0.01133562092 | D51: =IF(B51<Control!C$8,D50+(INDEX(D:D,D$3)-D$19)/(D$3-19),Control!C$7) -> 0.00262328976 | E51: =VLOOKUP(IF(MONTH(B51)<=6,DATE(YEAR(B51),6,30),DATE(YEAR(B51)+1,6,30)),'Intergenerational Chart 6.15'!A:E,MATCH(Control!C$9,'Intergenerational Chart 6.15'!A$3:E$3,0),FALSE)/100 -> 0.034 | F51: 0.02 | H51: =IF(H$3="Fitted to RFR",'Debt margin'!$M$46*C51+'Debt margin'!$N$46,H50) -> 0.0179241517 | I51: =IF(I$3="Fitted to RFR",'Debt margin'!$M$46*D51+'Debt margin'!$N$46,I50) -> 0.01576143758 | J51: =IF(J$3="Fitted to RFR",'Debt margin'!$M$46*E51+'Debt margin'!$N$46,J50) -> 0.0235502662 | K51: =IF(K$3="Fitted to RFR",'Debt margin'!$M$46*F51+'Debt margin'!$N$46,K50) -> 0.02007496239 | M51: ='Calibrated DGM'!$G$43*C51+'Calibrated DGM'!$H$43 -> 0.07044254074 | N51: ='Calibrated DGM'!$G$43*D51+'Calibrated DGM'!$H$43 -> 0.07739940188 | O51: ='Calibrated DGM'!$G$43*E51+'Calibrated DGM'!$H$43 -> 0.0523448657 | P51: ='Calibrated DGM'!$G$43*F51+'Calibrated DGM'!$H$43 -> 0.06352396969 | R51: 0.02925977262 | S51: 0.01838472734 | T51: 0.0575502662 | U51: 0.04007496239
B52: 2024-05-31 | C52: 0.01133562092 | D52: =IF(B52<Control!C$8,D51+(INDEX(D:D,D$3)-D$19)/(D$3-19),Control!C$7) -> 0.002351029412 | E52: =VLOOKUP(IF(MONTH(B52)<=6,DATE(YEAR(B52),6,30),DATE(YEAR(B52)+1,6,30)),'Intergenerational Chart 6.15'!A:E,MATCH(Control!C$9,'Intergenerational Chart 6.15'!A$3:E$3,0),FALSE)/100 -> 0.034 | F52: 0.02 | H52: =IF(H$3="Fitted to RFR",'Debt margin'!$M$46*C52+'Debt margin'!$N$46,H51) -> 0.0179241517 | I52: =IF(I$3="Fitted to RFR",'Debt margin'!$M$46*D52+'Debt margin'!$N$46,I51) -> 0.01569385276 | J52: =IF(J$3="Fitted to RFR",'Debt margin'!$M$46*E52+'Debt margin'!$N$46,J51) -> 0.0235502662 | K52: =IF(K$3="Fitted to RFR",'Debt margin'!$M$46*F52+'Debt margin'!$N$46,K51) -> 0.02007496239 | M52: ='Calibrated DGM'!$G$43*C52+'Calibrated DGM'!$H$43 -> 0.07044254074 | N52: ='Calibrated DGM'!$G$43*D52+'Calibrated DGM'!$H$43 -> 0.07761680379 | O52: ='Calibrated DGM'!$G$43*E52+'Calibrated DGM'!$H$43 -> 0.0523448657 | P52: ='Calibrated DGM'!$G$43*F52+'Calibrated DGM'!$H$43 -> 0.06352396969 | R52: 0.02925977262 | S52: 0.01804488217 | T52: 0.0575502662 | U52: 0.04007496239
B53: 2024-06-30 | C53: 0.01133562092 | D53: =IF(B53<Control!C$8,D52+(INDEX(D:D,D$3)-D$19)/(D$3-19),Control!C$7) -> 0.002078769063 | E53: =VLOOKUP(IF(MONTH(B53)<=6,DATE(YEAR(B53),6,30),DATE(YEAR(B53)+1,6,30)),'Intergenerational Chart 6.15'!A:E,MATCH(Control!C$9,'Intergenerational Chart 6.15'!A$3:E$3,0),FALSE)/100 -> 0.034 | F53: 0.02 | H53: =IF(H$3="Fitted to RFR",'Debt margin'!$M$46*C53+'Debt margin'!$N$46,H52) -> 0.0179241517 | I53: =IF(I$3="Fitted to RFR",'Debt margin'!$M$46*D53+'Debt margin'!$N$46,I52) -> 0.01562626795 | J53: =IF(J$3="Fitted to RFR",'Debt margin'!$M$46*E53+'Debt margin'!$N$46,J52) -> 0.0235502662 | K53: =IF(K$3="Fitted to RFR",'Debt margin'!$M$46*F53+'Debt margin'!$N$46,K52) -> 0.02007496239 | M53: ='Calibrated DGM'!$G$43*C53+'Calibrated DGM'!$H$43 -> 0.07044254074 | N53: ='Calibrated DGM'!$G$43*D53+'Calibrated DGM'!$H$43 -> 0.0778342057 | O53: ='Calibrated DGM'!$G$43*E53+'Calibrated DGM'!$H$43 -> 0.0523448657 | P53: ='Calibrated DGM'!$G$43*F53+'Calibrated DGM'!$H$43 -> 0.06352396969 | R53: 0.02925977262 | S53: 0.01770503701 | T53: 0.0575502662 | U53: 0.04007496239
B54: 2024-07-31 | C54: 0.01133562092 | D54: =IF(B54<Control!C$8,D53+(INDEX(D:D,D$3)-D$19)/(D$3-19),Control!C$7) -> 0.001806508715 | E54: =VLOOKUP(IF(MONTH(B54)<=6,DATE(YEAR(B54),6,30),DATE(YEAR(B54)+1,6,30)),'Intergenerational Chart 6.15'!A:E,MATCH(Control!C$9,'Intergenerational Chart 6.15'!A$3:E$3,0),FALSE)/100 -> 0.04 | F54: 0.02 | H54: =IF(H$3="Fitted to RFR",'Debt margin'!$M$46*C54+'Debt margin'!$N$46,H53) -> 0.0179241517 | I54: =IF(I$3="Fitted to RFR",'Debt margin'!$M$46*D54+'Debt margin'!$N$46,I53) -> 0.01555868313 | J54: =IF(J$3="Fitted to RFR",'Debt margin'!$M$46*E54+'Debt margin'!$N$46,J53) -> 0.02503968212 | K54: =IF(K$3="Fitted to RFR",'Debt margin'!$M$46*F54+'Debt margin'!$N$46,K53) -> 0.02007496239 | M54: ='Calibrated DGM'!$G$43*C54+'Calibrated DGM'!$H$43 -> 0.07044254074 | N54: ='Calibrated DGM'!$G$43*D54+'Calibrated DGM'!$H$43 -> 0.07805160761 | O54: ='Calibrated DGM'!$G$43*E54+'Calibrated DGM'!$H$43 -> 0.04755382114 | P54: ='Calibrated DGM'!$G$43*F54+'Calibrated DGM'!$H$43 -> 0.06352396969 | R54: 0.02925977262 | S54: 0.01736519185 | T54: 0.06503968212 | U54: 0.04007496239
B55: 2024-08-31 | C55: 0.01133562092 | D55: =IF(B55<Control!C$8,D54+(INDEX(D:D,D$3)-D$19)/(D$3-19),Control!C$7) -> 0.001534248366 | E55: =VLOOKUP(IF(MONTH(B55)<=6,DATE(YEAR(B55),6,30),DATE(YEAR(B55)+1,6,30)),'Intergenerational Chart 6.15'!A:E,MATCH(Control!C$9,'Intergenerational Chart 6.15'!A$3:E$3,0),FALSE)/100 -> 0.04 | F55: 0.02 | H55: =IF(H$3="Fitted to RFR",'Debt margin'!$M$46*C55+'Debt margin'!$N$46,H54) -> 0.0179241517 | I55: =IF(I$3="Fitted to RFR",'Debt margin'!$M$46*D55+'Debt margin'!$N$46,I54) -> 0.01549109831 | J55: =IF(J$3="Fitted to RFR",'Debt margin'!$M$46*E55+'Debt margin'!$N$46,J54) -> 0.02503968212 | K55: =IF(K$3="Fitted to RFR",'Debt margin'!$M$46*F55+'Debt margin'!$N$46,K54) -> 0.02007496239 | M55: ='Calibrated DGM'!$G$43*C55+'Calibrated DGM'!$H$43 -> 0.07044254074 | N55: ='Calibrated DGM'!$G$43*D55+'Calibrated DGM'!$H$43 -> 0.07826900952 | O55: ='Calibrated DGM'!$G$43*E55+'Calibrated DGM'!$H$43 -> 0.04755382114 | P55: ='Calibrated DGM'!$G$43*F55+'Calibrated DGM'!$H$43 -> 0.06352396969 | R55: 0.02925977262 | S55: 0.01702534668 | T55: 0.06503968212 | U55: 0.04007496239
B56: 2024-09-30 | C56: 0.01133562092 | D56: =IF(B56<Control!C$8,D55+(INDEX(D:D,D$3)-D$19)/(D$3-19),Control!C$7) -> 0.001261988017 | E56: =VLOOKUP(IF(MONTH(B56)<=6,DATE(YEAR(B56),6,30),DATE(YEAR(B56)+1,6,30)),'Intergenerational Chart 6.15'!A:E,MATCH(Control!C$9,'Intergenerational Chart 6.15'!A$3:E$3,0),FALSE)/100 -> 0.04 | F56: 0.02 | H56: =IF(H$3="Fitted to RFR",'Debt margin'!$M$46*C56+'Debt margin'!$N$46,H55) -> 0.0179241517 | I56: =IF(I$3="Fitted to RFR",'Debt margin'!$M$46*D56+'Debt margin'!$N$46,I55) -> 0.0154235135 | J56: =IF(J$3="Fitted to RFR",'Debt margin'!$M$46*E56+'Debt margin'!$N$46,J55) -> 0.02503968212 | K56: =IF(K$3="Fitted to RFR",'Debt margin'!$M$46*F56+'Debt margin'!$N$46,K55) -> 0.02007496239 | M56: ='Calibrated DGM'!$G$43*C56+'Calibrated DGM'!$H$43 -> 0.07044254074 | N56: ='Calibrated DGM'!$G$43*D56+'Calibrated DGM'!$H$43 -> 0.07848641144 | O56: ='Calibrated DGM'!$G$43*E56+'Calibrated DGM'!$H$43 -> 0.04755382114 | P56: ='Calibrated DGM'!$G$43*F56+'Calibrated DGM'!$H$43 -> 0.06352396969 | R56: 0.02925977262 | S56: 0.01668550152 | T56: 0.06503968212 | U56: 0.04007496239
B57: 2024-10-31 | C57: 0.01133562092 | D57: =IF(B57<Control!C$8,D56+(INDEX(D:D,D$3)-D$19)/(D$3-19),Control!C$7) -> 0.0009897276688 | E57: =VLOOKUP(IF(MONTH(B57)<=6,DATE(YEAR(B57),6,30),DATE(YEAR(B57)+1,6,30)),'Intergenerational Chart 6.15'!A:E,MATCH(Control!C$9,'Intergenerational Chart 6.15'!A$3:E$3,0),FALSE)/100 -> 0.04 | F57: 0.02 | H57: =IF(H$3="Fitted to RFR",'Debt margin'!$M$46*C57+'Debt margin'!$N$46,H56) -> 0.0179241517 | I57: =IF(I$3="Fitted to RFR",'Debt margin'!$M$46*D57+'Debt margin'!$N$46,I56) -> 0.01535592868 | J57: =IF(J$3="Fitted to RFR",'Debt margin'!$M$46*E57+'Debt margin'!$N$46,J56) -> 0.02503968212 | K57: =IF(K$3="Fitted to RFR",'Debt margin'!$M$46*F57+'Debt margin'!$N$46,K56) -> 0.02007496239 | M57: ='Calibrated DGM'!$G$43*C57+'Calibrated DGM'!$H$43 -> 0.07044254074 | N57: ='Calibrated DGM'!$G$43*D57+'Calibrated DGM'!$H$43 -> 0.07870381335 | O57: ='Calibrated DGM'!$G$43*E57+'Calibrated DGM'!$H$43 -> 0.04755382114 | P57: ='Calibrated DGM'!$G$43*F57+'Calibrated DGM'!$H$43 -> 0.06352396969 | R57: 0.02925977262 | S57: 0.01634565635 | T57: 0.06503968212 | U57: 0.04007496239
B58: 2024-11-30 | C58: 0.01133562092 | D58: =IF(B58<Control!C$8,D57+(INDEX(D:D,D$3)-D$19)/(D$3-19),Control!C$7) -> 0.0007174673203 | E58: =VLOOKUP(IF(MONTH(B58)<=6,DATE(YEAR(B58),6,30),DATE(YEAR(B58)+1,6,30)),'Intergenerational Chart 6.15'!A:E,MATCH(Control!C$9,'Intergenerational Chart 6.15'!A$3:E$3,0),FALSE)/100 -> 0.04 | F58: 0.02 | H58: =IF(H$3="Fitted to RFR",'Debt margin'!$M$46*C58+'Debt margin'!$N$46,H57) -> 0.0179241517 | I58: =IF(I$3="Fitted to RFR",'Debt margin'!$M$46*D58+'Debt margin'!$N$46,I57) -> 0.01528834387 | J58: =IF(J$3="Fitted to RFR",'Debt margin'!$M$46*E58+'Debt margin'!$N$46,J57) -> 0.02503968212 | K58: =IF(K$3="Fitted to RFR",'Debt margin'!$M$46*F58+'Debt margin'!$N$46,K57) -> 0.02007496239 | M58: ='Calibrated DGM'!$G$43*C58+'Calibrated DGM'!$H$43 -> 0.07044254074 | N58: ='Calibrated DGM'!$G$43*D58+'Calibrated DGM'!$H$43 -> 0.07892121526 | O58: ='Calibrated DGM'!$G$43*E58+'Calibrated DGM'!$H$43 -> 0.04755382114 | P58: ='Calibrated DGM'!$G$43*F58+'Calibrated DGM'!$H$43 -> 0.06352396969 | R58: 0.02925977262 | S58: 0.01600581119 | T58: 0.06503968212 | U58: 0.04007496239
B59: 2024-12-31 | C59: 0.01133562092 | D59: =IF(B59<Control!C$8,D58+(INDEX(D:D,D$3)-D$19)/(D$3-19),Control!C$7) -> 0.0004452069717 | E59: =VLOOKUP(IF(MONTH(B59)<=6,DATE(YEAR(B59),6,30),DATE(YEAR(B59)+1,6,30)),'Intergenerational Chart 6.15'!A:E,MATCH(Control!C$9,'Intergenerational Chart 6.15'!A$3:E$3,0),FALSE)/100 -> 0.04 | F59: 0.02 | H59: =IF(H$3="Fitted to RFR",'Debt margin'!$M$46*C59+'Debt margin'!$N$46,H58) -> 0.0179241517 | I59: =IF(I$3="Fitted to RFR",'Debt margin'!$M$46*D59+'Debt margin'!$N$46,I58) -> 0.01522075905 | J59: =IF(J$3="Fitted to RFR",'Debt margin'!$M$46*E59+'Debt margin'!$N$46,J58) -> 0.02503968212 | K59: =IF(K$3="Fitted to RFR",'Debt margin'!$M$46*F59+'Debt margin'!$N$46,K58) -> 0.02007496239 | M59: ='Calibrated DGM'!$G$43*C59+'Calibrated DGM'!$H$43 -> 0.07044254074 | N59: ='Calibrated DGM'!$G$43*D59+'Calibrated DGM'!$H$43 -> 0.07913861717 | O59: ='Calibrated DGM'!$G$43*E59+'Calibrated DGM'!$H$43 -> 0.04755382114 | P59: ='Calibrated DGM'!$G$43*F59+'Calibrated DGM'!$H$43 -> 0.06352396969 | R59: 0.02925977262 | S59: 0.01566596602 | T59: 0.06503968212 | U59: 0.04007496239
B60: 2025-01-31 | C60: 0.01133562092 | D60: =IF(B60<Control!C$8,D59+(INDEX(D:D,D$3)-D$19)/(D$3-19),Control!C$7) -> 0.0001729466231 | E60: =VLOOKUP(IF(MONTH(B60)<=6,DATE(YEAR(B60),6,30),DATE(YEAR(B60)+1,6,30)),'Intergenerational Chart 6.15'!A:E,MATCH(Control!C$9,'Intergenerational Chart 6.15'!A$3:E$3,0),FALSE)/100 -> 0.04 | F60: 0.02 | H60: =IF(H$3="Fitted to RFR",'Debt margin'!$M$46*C60+'Debt margin'!$N$46,H59) -> 0.0179241517 | I60: =IF(I$3="Fitted to RFR",'Debt margin'!$M$46*D60+'Debt margin'!$N$46,I59) -> 0.01515317423 | J60: =IF(J$3="Fitted to RFR",'Debt margin'!$M$46*E60+'Debt margin'!$N$46,J59) -> 0.02503968212 | K60: =IF(K$3="Fitted to RFR",'Debt margin'!$M$46*F60+'Debt margin'!$N$46,K59) -> 0.02007496239 | M60: ='Calibrated DGM'!$G$43*C60+'Calibrated DGM'!$H$43 -> 0.07044254074 | N60: ='Calibrated DGM'!$G$43*D60+'Calibrated DGM'!$H$43 -> 0.07935601908 | O60: ='Calibrated DGM'!$G$43*E60+'Calibrated DGM'!$H$43 -> 0.04755382114 | P60: ='Calibrated DGM'!$G$43*F60+'Calibrated DGM'!$H$43 -> 0.06352396969 | R60: 0.02925977262 | S60: 0.01532612086 | T60: 0.06503968212 | U60: 0.04007496239
B61: 2025-02-28 | C61: 0.01133562092 | D61: =IF(B61<Control!C$8,D60+(INDEX(D:D,D$3)-D$19)/(D$3-19),Control!C$7) -> -9.931372549e-05 | E61: =VLOOKUP(IF(MONTH(B61)<=6,DATE(YEAR(B61),6,30),DATE(YEAR(B61)+1,6,30)),'Intergenerational Chart 6.15'!A:E,MATCH(Control!C$9,'Intergenerational Chart 6.15'!A$3:E$3,0),FALSE)/100 -> 0.04 | F61: 0.02 | H61: =IF(H$3="Fitted to RFR",'Debt margin'!$M$46*C61+'Debt margin'!$N$46,H60) -> 0.0179241517 | I61: =IF(I$3="Fitted to RFR",'Debt margin'!$M$46*D61+'Debt margin'!$N$46,I60) -> 0.01508558942 | J61: =IF(J$3="Fitted to RFR",'Debt margin'!$M$46*E61+'Debt margin'!$N$46,J60) -> 0.02503968212 | K61: =IF(K$3="Fitted to RFR",'Debt margin'!$M$46*F61+'Debt margin'!$N$46,K60) -> 0.02007496239 | M61: ='Calibrated DGM'!$G$43*C61+'Calibrated DGM'!$H$43 -> 0.07044254074 | N61: ='Calibrated DGM'!$G$43*D61+'Calibrated DGM'!$H$43 -> 0.07957342099 | O61: ='Calibrated DGM'!$G$43*E61+'Calibrated DGM'!$H$43 -> 0.04755382114 | P61: ='Calibrated DGM'!$G$43*F61+'Calibrated DGM'!$H$43 -> 0.06352396969 | R61: 0.02925977262 | S61: 0.01498627569 | T61: 0.06503968212 | U61: 0.04007496239
B62: 2025-03-31 | C62: 0.01133562092 | D62: =IF(B62<Control!C$8,D61+(INDEX(D:D,D$3)-D$19)/(D$3-19),Control!C$7) -> -0.0003715740741 | E62: =VLOOKUP(IF(MONTH(B62)<=6,DATE(YEAR(B62),6,30),DATE(YEAR(B62)+1,6,30)),'Intergenerational Chart 6.15'!A:E,MATCH(Control!C$9,'Intergenerational Chart 6.15'!A$3:E$3,0),FALSE)/100 -> 0.04 | F62: 0.02 | H62: =IF(H$3="Fitted to RFR",'Debt margin'!$M$46*C62+'Debt margin'!$N$46,H61) -> 0.0179241517 | I62: =IF(I$3="Fitted to RFR",'Debt margin'!$M$46*D62+'Debt margin'!$N$46,I61) -> 0.0150180046 | J62: =IF(J$3="Fitted to RFR",'Debt margin'!$M$46*E62+'Debt margin'!$N$46,J61) -> 0.02503968212 | K62: =IF(K$3="Fitted to RFR",'Debt margin'!$M$46*F62+'Debt margin'!$N$46,K61) -> 0.02007496239 | M62: ='Calibrated DGM'!$G$43*C62+'Calibrated DGM'!$H$43 -> 0.07044254074 | N62: ='Calibrated DGM'!$G$43*D62+'Calibrated DGM'!$H$43 -> 0.0797908229 | O62: ='Calibrated DGM'!$G$43*E62+'Calibrated DGM'!$H$43 -> 0.04755382114 | P62: ='Calibrated DGM'!$G$43*F62+'Calibrated DGM'!$H$43 -> 0.06352396969 | R62: 0.02925977262 | S62: 0.01464643053 | T62: 0.06503968212 | U62: 0.04007496239
B63: 2025-04-30 | C63: 0.01133562092 | D63: =IF(B63<Control!C$8,D62+(INDEX(D:D,D$3)-D$19)/(D$3-19),Control!C$7) -> -0.0006438344227 | E63: =VLOOKUP(IF(MONTH(B63)<=6,DATE(YEAR(B63),6,30),DATE(YEAR(B63)+1,6,30)),'Intergenerational Chart 6.15'!A:E,MATCH(Control!C$9,'Intergenerational Chart 6.15'!A$3:E$3,0),FALSE)/100 -> 0.04 | F63: 0.02 | H63: =IF(H$3="Fitted to RFR",'Debt margin'!$M$46*C63+'Debt margin'!$N$46,H62) -> 0.0179241517 | I63: =IF(I$3="Fitted to RFR",'Debt margin'!$M$46*D63+'Debt margin'!$N$46,I62) -> 0.01495041978 | J63: =IF(J$3="Fitted to RFR",'Debt margin'!$M$46*E63+'Debt margin'!$N$46,J62) -> 0.02503968212 | K63: =IF(K$3="Fitted to RFR",'Debt margin'!$M$46*F63+'Debt margin'!$N$46,K62) -> 0.02007496239 | M63: ='Calibrated DGM'!$G$43*C63+'Calibrated DGM'!$H$43 -> 0.07044254074 | N63: ='Calibrated DGM'!$G$43*D63+'Calibrated DGM'!$H$43 -> 0.08000822481 | O63: ='Calibrated DGM'!$G$43*E63+'Calibrated DGM'!$H$43 -> 0.04755382114 | P63: ='Calibrated DGM'!$G$43*F63+'Calibrated DGM'!$H$43 -> 0.06352396969 | R63: 0.02925977262 | S63: 0.01430658536 | T63: 0.06503968212 | U63: 0.04007496239
B64: 2025-05-31 | C64: 0.01133562092 | D64: =IF(B64<Control!C$8,D63+(INDEX(D:D,D$3)-D$19)/(D$3-19),Control!C$7) -> -0.0009160947712 | E64: =VLOOKUP(IF(MONTH(B64)<=6,DATE(YEAR(B64),6,30),DATE(YEAR(B64)+1,6,30)),'Intergenerational Chart 6.15'!A:E,MATCH(Control!C$9,'Intergenerational Chart 6.15'!A$3:E$3,0),FALSE)/100 -> 0.04 | F64: 0.02 | H64: =IF(H$3="Fitted to RFR",'Debt margin'!$M$46*C64+'Debt margin'!$N$46,H63) -> 0.0179241517 | I64: =IF(I$3="Fitted to RFR",'Debt margin'!$M$46*D64+'Debt margin'!$N$46,I63) -> 0.01488283497 | J64: =IF(J$3="Fitted to RFR",'Debt margin'!$M$46*E64+'Debt margin'!$N$46,J63) -> 0.02503968212 | K64: =IF(K$3="Fitted to RFR",'Debt margin'!$M$46*F64+'Debt margin'!$N$46,K63) -> 0.02007496239 | M64: ='Calibrated DGM'!$G$43*C64+'Calibrated DGM'!$H$43 -> 0.07044254074 | N64: ='Calibrated DGM'!$G$43*D64+'Calibrated DGM'!$H$43 -> 0.08022562672 | O64: ='Calibrated DGM'!$G$43*E64+'Calibrated DGM'!$H$43 -> 0.04755382114 | P64: ='Calibrated DGM'!$G$43*F64+'Calibrated DGM'!$H$43 -> 0.06352396969 | R64: 0.02925977262 | S64: 0.0139667402 | T64: 0.06503968212 | U64: 0.04007496239
B65: 2025-06-30 | C65: 0.01133562092 | D65: =IF(B65<Control!C$8,D64+(INDEX(D:D,D$3)-D$19)/(D$3-19),Control!C$7) -> -0.00118835512 | E65: =VLOOKUP(IF(MONTH(B65)<=6,DATE(YEAR(B65),6,30),DATE(YEAR(B65)+1,6,30)),'Intergenerational Chart 6.15'!A:E,MATCH(Control!C$9,'Intergenerational Chart 6.15'!A$3:E$3,0),FALSE)/100 -> 0.04 | F65: 0.02 | H65: =IF(H$3="Fitted to RFR",'Debt margin'!$M$46*C65+'Debt margin'!$N$46,H64) -> 0.0179241517 | I65: =IF(I$3="Fitted to RFR",'Debt margin'!$M$46*D65+'Debt margin'!$N$46,I64) -> 0.01481525015 | J65: =IF(J$3="Fitted to RFR",'Debt margin'!$M$46*E65+'Debt margin'!$N$46,J64) -> 0.02503968212 | K65: =IF(K$3="Fitted to RFR",'Debt margin'!$M$46*F65+'Debt margin'!$N$46,K64) -> 0.02007496239 | M65: ='Calibrated DGM'!$G$43*C65+'Calibrated DGM'!$H$43 -> 0.07044254074 | N65: ='Calibrated DGM'!$G$43*D65+'Calibrated DGM'!$H$43 -> 0.08044302863 | O65: ='Calibrated DGM'!$G$43*E65+'Calibrated DGM'!$H$43 -> 0.04755382114 | P65: ='Calibrated DGM'!$G$43*F65+'Calibrated DGM'!$H$43 -> 0.06352396969 | R65: 0.02925977262 | S65: 0.01362689503 | T65: 0.06503968212 | U65: 0.04007496239
B66: 2025-07-31 | C66: 0.01133562092 | D66: =IF(B66<Control!C$8,D65+(INDEX(D:D,D$3)-D$19)/(D$3-19),Control!C$7) -> -0.001460615468 | E66: =VLOOKUP(IF(MONTH(B66)<=6,DATE(YEAR(B66),6,30),DATE(YEAR(B66)+1,6,30)),'Intergenerational Chart 6.15'!A:E,MATCH(Control!C$9,'Intergenerational Chart 6.15'!A$3:E$3,0),FALSE)/100 -> 0.045 | F66: 0.02 | H66: =IF(H$3="Fitted to RFR",'Debt margin'!$M$46*C66+'Debt margin'!$N$46,H65) -> 0.0179241517 | I66: =IF(I$3="Fitted to RFR",'Debt margin'!$M$46*D66+'Debt margin'!$N$46,I65) -> 0.01474766534 | J66: =IF(J$3="Fitted to RFR",'Debt margin'!$M$46*E66+'Debt margin'!$N$46,J65) -> 0.02628086206 | K66: =IF(K$3="Fitted to RFR",'Debt margin'!$M$46*F66+'Debt margin'!$N$46,K65) -> 0.02007496239 | M66: ='Calibrated DGM'!$G$43*C66+'Calibrated DGM'!$H$43 -> 0.07044254074 | N66: ='Calibrated DGM'!$G$43*D66+'Calibrated DGM'!$H$43 -> 0.08066043054 | O66: ='Calibrated DGM'!$G$43*E66+'Calibrated DGM'!$H$43 -> 0.043561284 | P66: ='Calibrated DGM'!$G$43*F66+'Calibrated DGM'!$H$43 -> 0.06352396969 | R66: 0.02925977262 | S66: 0.01328704987 | T66: 0.07128086206 | U66: 0.04007496239
B67: 2025-08-31 | C67: 0.01133562092 | D67: =IF(B67<Control!C$8,D66+(INDEX(D:D,D$3)-D$19)/(D$3-19),Control!C$7) -> -0.001732875817 | E67: =VLOOKUP(IF(MONTH(B67)<=6,DATE(YEAR(B67),6,30),DATE(YEAR(B67)+1,6,30)),'Intergenerational Chart 6.15'!A:E,MATCH(Control!C$9,'Intergenerational Chart 6.15'!A$3:E$3,0),FALSE)/100 -> 0.045 | F67: 0.02 | H67: =IF(H$3="Fitted to RFR",'Debt margin'!$M$46*C67+'Debt margin'!$N$46,H66) -> 0.0179241517 | I67: =IF(I$3="Fitted to RFR",'Debt margin'!$M$46*D67+'Debt margin'!$N$46,I66) -> 0.01468008052 | J67: =IF(J$3="Fitted to RFR",'Debt margin'!$M$46*E67+'Debt margin'!$N$46,J66) -> 0.02628086206 | K67: =IF(K$3="Fitted to RFR",'Debt margin'!$M$46*F67+'Debt margin'!$N$46,K66) -> 0.02007496239 | M67: ='Calibrated DGM'!$G$43*C67+'Calibrated DGM'!$H$43 -> 0.07044254074 | N67: ='Calibrated DGM'!$G$43*D67+'Calibrated DGM'!$H$43 -> 0.08087783245 | O67: ='Calibrated DGM'!$G$43*E67+'Calibrated DGM'!$H$43 -> 0.043561284 | P67: ='Calibrated DGM'!$G$43*F67+'Calibrated DGM'!$H$43 -> 0.06352396969 | R67: 0.02925977262 | S67: 0.0129472047 | T67: 0.07128086206 | U67: 0.04007496239
B68: 2025-09-30 | C68: 0.01133562092 | D68: =IF(B68<Control!C$8,D67+(INDEX(D:D,D$3)-D$19)/(D$3-19),Control!C$7) -> -0.002005136166 | E68: =VLOOKUP(IF(MONTH(B68)<=6,DATE(YEAR(B68),6,30),DATE(YEAR(B68)+1,6,30)),'Intergenerational Chart 6.15'!A:E,MATCH(Control!C$9,'Intergenerational Chart 6.15'!A$3:E$3,0),FALSE)/100 -> 0.045 | F68: 0.02 | H68: =IF(H$3="Fitted to RFR",'Debt margin'!$M$46*C68+'Debt margin'!$N$46,H67) -> 0.0179241517 | I68: =IF(I$3="Fitted to RFR",'Debt margin'!$M$46*D68+'Debt margin'!$N$46,I67) -> 0.0146124957 | J68: =IF(J$3="Fitted to RFR",'Debt margin'!$M$46*E68+'Debt margin'!$N$46,J67) -> 0.02628086206 | K68: =IF(K$3="Fitted to RFR",'Debt margin'!$M$46*F68+'Debt margin'!$N$46,K67) -> 0.02007496239 | M68: ='Calibrated DGM'!$G$43*C68+'Calibrated DGM'!$H$43 -> 0.07044254074 | N68: ='Calibrated DGM'!$G$43*D68+'Calibrated DGM'!$H$43 -> 0.08109523436 | O68: ='Calibrated DGM'!$G$43*E68+'Calibrated DGM'!$H$43 -> 0.043561284 | P68: ='Calibrated DGM'!$G$43*F68+'Calibrated DGM'!$H$43 -> 0.06352396969 | R68: 0.02925977262 | S68: 0.01260735954 | T68: 0.07128086206 | U68: 0.04007496239
B69: 2025-10-31 | C69: 0.01133562092 | D69: =IF(B69<Control!C$8,D68+(INDEX(D:D,D$3)-D$19)/(D$3-19),Control!C$7) -> -0.002277396514 | E69: =VLOOKUP(IF(MONTH(B69)<=6,DATE(YEAR(B69),6,30),DATE(YEAR(B69)+1,6,30)),'Intergenerational Chart 6.15'!A:E,MATCH(Control!C$9,'Intergenerational Chart 6.15'!A$3:E$3,0),FALSE)/100 -> 0.045 | F69: 0.02 | H69: =IF(H$3="Fitted to RFR",'Debt margin'!$M$46*C69+'Debt margin'!$N$46,H68) -> 0.0179241517 | I69: =IF(I$3="Fitted to RFR",'Debt margin'!$M$46*D69+'Debt margin'!$N$46,I68) -> 0.01454491089 | J69: =IF(J$3="Fitted to RFR",'Debt margin'!$M$46*E69+'Debt margin'!$N$46,J68) -> 0.02628086206 | K69: =IF(K$3="Fitted to RFR",'Debt margin'!$M$46*F69+'Debt margin'!$N$46,K68) -> 0.02007496239 | M69: ='Calibrated DGM'!$G$43*C69+'Calibrated DGM'!$H$43 -> 0.07044254074 | N69: ='Calibrated DGM'!$G$43*D69+'Calibrated DGM'!$H$43 -> 0.08131263627 | O69: ='Calibrated DGM'!$G$43*E69+'Calibrated DGM'!$H$43 -> 0.043561284 | P69: ='Calibrated DGM'!$G$43*F69+'Calibrated DGM'!$H$43 -> 0.06352396969 | R69: 0.02925977262 | S69: 0.01226751437 | T69: 0.07128086206 | U69: 0.04007496239
B70: 2025-11-30 | C70: 0.01133562092 | D70: =IF(B70<Control!C$8,D69+(INDEX(D:D,D$3)-D$19)/(D$3-19),Control!C$7) -> -0.002549656863 | E70: =VLOOKUP(IF(MONTH(B70)<=6,DATE(YEAR(B70),6,30),DATE(YEAR(B70)+1,6,30)),'Intergenerational Chart 6.15'!A:E,MATCH(Control!C$9,'Intergenerational Chart 6.15'!A$3:E$3,0),FALSE)/100 -> 0.045 | F70: 0.02 | H70: =IF(H$3="Fitted to RFR",'Debt margin'!$M$46*C70+'Debt margin'!$N$46,H69) -> 0.0179241517 | I70: =IF(I$3="Fitted to RFR",'Debt margin'!$M$46*D70+'Debt margin'!$N$46,I69) -> 0.01447732607 | J70: =IF(J$3="Fitted to RFR",'Debt margin'!$M$46*E70+'Debt margin'!$N$46,J69) -> 0.02628086206 | K70: =IF(K$3="Fitted to RFR",'Debt margin'!$M$46*F70+'Debt margin'!$N$46,K69) -> 0.02007496239 | M70: ='Calibrated DGM'!$G$43*C70+'Calibrated DGM'!$H$43 -> 0.07044254074 | N70: ='Calibrated DGM'!$G$43*D70+'Calibrated DGM'!$H$43 -> 0.08153003818 | O70: ='Calibrated DGM'!$G$43*E70+'Calibrated DGM'!$H$43 -> 0.043561284 | P70: ='Calibrated DGM'!$G$43*F70+'Calibrated DGM'!$H$43 -> 0.06352396969 | R70: 0.02925977262 | S70: 0.01192766921 | T70: 0.07128086206 | U70: 0.04007496239
B71: 2025-12-31 | C71: 0.01133562092 | D71: =IF(B71<Control!C$8,D70+(INDEX(D:D,D$3)-D$19)/(D$3-19),Control!C$7) -> -0.002821917211 | E71: =VLOOKUP(IF(MONTH(B71)<=6,DATE(YEAR(B71),6,30),DATE(YEAR(B71)+1,6,30)),'Intergenerational Chart 6.15'!A:E,MATCH(Control!C$9,'Intergenerational Chart 6.15'!A$3:E$3,0),FALSE)/100 -> 0.045 | F71: 0.02 | H71: =IF(H$3="Fitted to RFR",'Debt margin'!$M$46*C71+'Debt margin'!$N$46,H70) -> 0.0179241517 | I71: =IF(I$3="Fitted to RFR",'Debt margin'!$M$46*D71+'Debt margin'!$N$46,I70) -> 0.01440974125 | J71: =IF(J$3="Fitted to RFR",'Debt margin'!$M$46*E71+'Debt margin'!$N$46,J70) -> 0.02628086206 | K71: =IF(K$3="Fitted to RFR",'Debt margin'!$M$46*F71+'Debt margin'!$N$46,K70) -> 0.02007496239 | M71: ='Calibrated DGM'!$G$43*C71+'Calibrated DGM'!$H$43 -> 0.07044254074 | N71: ='Calibrated DGM'!$G$43*D71+'Calibrated DGM'!$H$43 -> 0.08174744009 | O71: ='Calibrated DGM'!$G$43*E71+'Calibrated DGM'!$H$43 -> 0.043561284 | P71: ='Calibrated DGM'!$G$43*F71+'Calibrated DGM'!$H$43 -> 0.06352396969 | R71: 0.02925977262 | S71: 0.01158782404 | T71: 0.07128086206 | U71: 0.04007496239
B72: 2026-01-31 | C72: 0.01133562092 | D72: =IF(B72<Control!C$8,D71+(INDEX(D:D,D$3)-D$19)/(D$3-19),Control!C$7) -> -0.00309417756 | E72: =VLOOKUP(IF(MONTH(B72)<=6,DATE(YEAR(B72),6,30),DATE(YEAR(B72)+1,6,30)),'Intergenerational Chart 6.15'!A:E,MATCH(Control!C$9,'Intergenerational Chart 6.15'!A$3:E$3,0),FALSE)/100 -> 0.045 | F72: 0.02 | H72: =IF(H$3="Fitted to RFR",'Debt margin'!$M$46*C72+'Debt margin'!$N$46,H71) -> 0.0179241517 | I72: =IF(I$3="Fitted to RFR",'Debt margin'!$M$46*D72+'Debt margin'!$N$46,I71) -> 0.01434215644 | J72: =IF(J$3="Fitted to RFR",'Debt margin'!$M$46*E72+'Debt margin'!$N$46,J71) -> 0.02628086206 | K72: =IF(K$3="Fitted to RFR",'Debt margin'!$M$46*F72+'Debt margin'!$N$46,K71) -> 0.02007496239 | M72: ='Calibrated DGM'!$G$43*C72+'Calibrated DGM'!$H$43 -> 0.07044254074 | N72: ='Calibrated DGM'!$G$43*D72+'Calibrated DGM'!$H$43 -> 0.081964842 | O72: ='Calibrated DGM'!$G$43*E72+'Calibrated DGM'!$H$43 -> 0.043561284 | P72: ='Calibrated DGM'!$G$43*F72+'Calibrated DGM'!$H$43 -> 0.06352396969 | R72: 0.02925977262 | S72: 0.01124797888 | T72: 0.07128086206 | U72: 0.04007496239
B73: 2026-02-28 | C73: 0.01133562092 | D73: =IF(B73<Control!C$8,D72+(INDEX(D:D,D$3)-D$19)/(D$3-19),Control!C$7) -> -0.003366437908 | E73: =VLOOKUP(IF(MONTH(B73)<=6,DATE(YEAR(B73),6,30),DATE(YEAR(B73)+1,6,30)),'Intergenerational Chart 6.15'!A:E,MATCH(Control!C$9,'Intergenerational Chart 6.15'!A$3:E$3,0),FALSE)/100 -> 0.045 | F73: 0.02 | H73: =IF(H$3="Fitted to RFR",'Debt margin'!$M$46*C73+'Debt margin'!$N$46,H72) -> 0.0179241517 | I73: =IF(I$3="Fitted to RFR",'Debt margin'!$M$46*D73+'Debt margin'!$N$46,I72) -> 0.01427457162 | J73: =IF(J$3="Fitted to RFR",'Debt margin'!$M$46*E73+'Debt margin'!$N$46,J72) -> 0.02628086206 | K73: =IF(K$3="Fitted to RFR",'Debt margin'!$M$46*F73+'Debt margin'!$N$46,K72) -> 0.02007496239 | M73: ='Calibrated DGM'!$G$43*C73+'Calibrated DGM'!$H$43 -> 0.07044254074 | N73: ='Calibrated DGM'!$G$43*D73+'Calibrated DGM'!$H$43 -> 0.08218224392 | O73: ='Calibrated DGM'!$G$43*E73+'Calibrated DGM'!$H$43 -> 0.043561284 | P73: ='Calibrated DGM'!$G$43*F73+'Calibrated DGM'!$H$43 -> 0.06352396969 | R73: 0.02925977262 | S73: 0.01090813371 | T73: 0.07128086206 | U73: 0.04007496239
B74: 2026-03-31 | C74: 0.01133562092 | D74: =IF(B74<Control!C$8,D73+(INDEX(D:D,D$3)-D$19)/(D$3-19),Control!C$7) -> -0.003638698257 | E74: =VLOOKUP(IF(MONTH(B74)<=6,DATE(YEAR(B74),6,30),DATE(YEAR(B74)+1,6,30)),'Intergenerational Chart 6.15'!A:E,MATCH(Control!C$9,'Intergenerational Chart 6.15'!A$3:E$3,0),FALSE)/100 -> 0.045 | F74: 0.02 | H74: =IF(H$3="Fitted to RFR",'Debt margin'!$M$46*C74+'Debt margin'!$N$46,H73) -> 0.0179241517 | I74: =IF(I$3="Fitted to RFR",'Debt margin'!$M$46*D74+'Debt margin'!$N$46,I73) -> 0.01420698681 | J74: =IF(J$3="Fitted to RFR",'Debt margin'!$M$46*E74+'Debt margin'!$N$46,J73) -> 0.02628086206 | K74: =IF(K$3="Fitted to RFR",'Debt margin'!$M$46*F74+'Debt margin'!$N$46,K73) -> 0.02007496239 | M74: ='Calibrated DGM'!$G$43*C74+'Calibrated DGM'!$H$43 -> 0.07044254074 | N74: ='Calibrated DGM'!$G$43*D74+'Calibrated DGM'!$H$43 -> 0.08239964583 | O74: ='Calibrated DGM'!$G$43*E74+'Calibrated DGM'!$H$43 -> 0.043561284 | P74: ='Calibrated DGM'!$G$43*F74+'Calibrated DGM'!$H$43 -> 0.06352396969 | R74: 0.02925977262 | S74: 0.01056828855 | T74: 0.07128086206 | U74: 0.04007496239
B75: 2026-04-30 | C75: 0.01133562092 | D75: =IF(B75<Control!C$8,D74+(INDEX(D:D,D$3)-D$19)/(D$3-19),Control!C$7) -> -0.003910958606 | E75: =VLOOKUP(IF(MONTH(B75)<=6,DATE(YEAR(B75),6,30),DATE(YEAR(B75)+1,6,30)),'Intergenerational Chart 6.15'!A:E,MATCH(Control!C$9,'Intergenerational Chart 6.15'!A$3:E$3,0),FALSE)/100 -> 0.045 | F75: 0.02 | H75: =IF(H$3="Fitted to RFR",'Debt margin'!$M$46*C75+'Debt margin'!$N$46,H74) -> 0.0179241517 | I75: =IF(I$3="Fitted to RFR",'Debt margin'!$M$46*D75+'Debt margin'!$N$46,I74) -> 0.01413940199 | J75: =IF(J$3="Fitted to RFR",'Debt margin'!$M$46*E75+'Debt margin'!$N$46,J74) -> 0.02628086206 | K75: =IF(K$3="Fitted to RFR",'Debt margin'!$M$46*F75+'Debt margin'!$N$46,K74) -> 0.02007496239 | M75: ='Calibrated DGM'!$G$43*C75+'Calibrated DGM'!$H$43 -> 0.07044254074 | N75: ='Calibrated DGM'!$G$43*D75+'Calibrated DGM'!$H$43 -> 0.08261704774 | O75: ='Calibrated DGM'!$G$43*E75+'Calibrated DGM'!$H$43 -> 0.043561284 | P75: ='Calibrated DGM'!$G$43*F75+'Calibrated DGM'!$H$43 -> 0.06352396969 | R75: 0.02925977262 | S75: 0.01022844338 | T75: 0.07128086206 | U75: 0.04007496239
B76: 2026-05-31 | C76: 0.01133562092 | D76: =IF(B76<Control!C$8,D75+(INDEX(D:D,D$3)-D$19)/(D$3-19),Control!C$7) -> -0.004183218954 | E76: =VLOOKUP(IF(MONTH(B76)<=6,DATE(YEAR(B76),6,30),DATE(YEAR(B76)+1,6,30)),'Intergenerational Chart 6.15'!A:E,MATCH(Control!C$9,'Intergenerational Chart 6.15'!A$3:E$3,0),FALSE)/100 -> 0.045 | F76: 0.02 | H76: =IF(H$3="Fitted to RFR",'Debt margin'!$M$46*C76+'Debt margin'!$N$46,H75) -> 0.0179241517 | I76: =IF(I$3="Fitted to RFR",'Debt margin'!$M$46*D76+'Debt margin'!$N$46,I75) -> 0.01407181717 | J76: =IF(J$3="Fitted to RFR",'Debt margin'!$M$46*E76+'Debt margin'!$N$46,J75) -> 0.02628086206 | K76: =IF(K$3="Fitted to RFR",'Debt margin'!$M$46*F76+'Debt margin'!$N$46,K75) -> 0.02007496239 | M76: ='Calibrated DGM'!$G$43*C76+'Calibrated DGM'!$H$43 -> 0.07044254074 | N76: ='Calibrated DGM'!$G$43*D76+'Calibrated DGM'!$H$43 -> 0.08283444965 | O76: ='Calibrated DGM'!$G$43*E76+'Calibrated DGM'!$H$43 -> 0.043561284 | P76: ='Calibrated DGM'!$G$43*F76+'Calibrated DGM'!$H$43 -> 0.06352396969 | R76: 0.02925977262 | S76: 0.009888598219 | T76: 0.07128086206 | U76: 0.04007496239
B77: 2026-06-30 | C77: 0.01133562092 | D77: =IF(B77<Control!C$8,D76+(INDEX(D:D,D$3)-D$19)/(D$3-19),Control!C$7) -> -0.004455479303 | E77: =VLOOKUP(IF(MONTH(B77)<=6,DATE(YEAR(B77),6,30),DATE(YEAR(B77)+1,6,30)),'Intergenerational Chart 6.15'!A:E,MATCH(Control!C$9,'Intergenerational Chart 6.15'!A$3:E$3,0),FALSE)/100 -> 0.045 | F77: 0.02 | H77: =IF(H$3="Fitted to RFR",'Debt margin'!$M$46*C77+'Debt margin'!$N$46,H76) -> 0.0179241517 | I77: =IF(I$3="Fitted to RFR",'Debt margin'!$M$46*D77+'Debt margin'!$N$46,I76) -> 0.01400423236 | J77: =IF(J$3="Fitted to RFR",'Debt margin'!$M$46*E77+'Debt margin'!$N$46,J76) -> 0.02628086206 | K77: =IF(K$3="Fitted to RFR",'Debt margin'!$M$46*F77+'Debt margin'!$N$46,K76) -> 0.02007496239 | M77: ='Calibrated DGM'!$G$43*C77+'Calibrated DGM'!$H$43 -> 0.07044254074 | N77: ='Calibrated DGM'!$G$43*D77+'Calibrated DGM'!$H$43 -> 0.08305185156 | O77: ='Calibrated DGM'!$G$43*E77+'Calibrated DGM'!$H$43 -> 0.043561284 | P77: ='Calibrated DGM'!$G$43*F77+'Calibrated DGM'!$H$43 -> 0.06352396969 | R77: 0.02925977262 | S77: 0.009548753054 | T77: 0.07128086206 | U77: 0.04007496239
B78: 2026-07-31 | C78: 0.01133562092 | D78: =IF(B78<Control!C$8,D77+(INDEX(D:D,D$3)-D$19)/(D$3-19),Control!C$7) -> -0.004727739651 | E78: =VLOOKUP(IF(MONTH(B78)<=6,DATE(YEAR(B78),6,30),DATE(YEAR(B78)+1,6,30)),'Intergenerational Chart 6.15'!A:E,MATCH(Control!C$9,'Intergenerational Chart 6.15'!A$3:E$3,0),FALSE)/100 -> 0.049 | F78: 0.02 | H78: =IF(H$3="Fitted to RFR",'Debt margin'!$M$46*C78+'Debt margin'!$N$46,H77) -> 0.0179241517 | I78: =IF(I$3="Fitted to RFR",'Debt margin'!$M$46*D78+'Debt margin'!$N$46,I77) -> 0.01393664754 | J78: =IF(J$3="Fitted to RFR",'Debt margin'!$M$46*E78+'Debt margin'!$N$46,J77) -> 0.027273806 | K78: =IF(K$3="Fitted to RFR",'Debt margin'!$M$46*F78+'Debt margin'!$N$46,K77) -> 0.02007496239 | M78: ='Calibrated DGM'!$G$43*C78+'Calibrated DGM'!$H$43 -> 0.07044254074 | N78: ='Calibrated DGM'!$G$43*D78+'Calibrated DGM'!$H$43 -> 0.08326925347 | O78: ='Calibrated DGM'!$G$43*E78+'Calibrated DGM'!$H$43 -> 0.04036725429 | P78: ='Calibrated DGM'!$G$43*F78+'Calibrated DGM'!$H$43 -> 0.06352396969 | R78: 0.02925977262 | S78: 0.009208907889 | T78: 0.076273806 | U78: 0.04007496239
B79: 2026-08-31 | C79: 0.01133562092 | D79: =IF(B79<Control!C$8,D78+(INDEX(D:D,D$3)-D$19)/(D$3-19),Control!C$7) -> -0.005 | E79: =VLOOKUP(IF(MONTH(B79)<=6,DATE(YEAR(B79),6,30),DATE(YEAR(B79)+1,6,30)),'Intergenerational Chart 6.15'!A:E,MATCH(Control!C$9,'Intergenerational Chart 6.15'!A$3:E$3,0),FALSE)/100 -> 0.049 | F79: 0.02 | H79: =IF(H$3="Fitted to RFR",'Debt margin'!$M$46*C79+'Debt margin'!$N$46,H78) -> 0.0179241517 | I79: =IF(I$3="Fitted to RFR",'Debt margin'!$M$46*D79+'Debt margin'!$N$46,I78) -> 0.01386906272 | J79: =IF(J$3="Fitted to RFR",'Debt margin'!$M$46*E79+'Debt margin'!$N$46,J78) -> 0.027273806 | K79: =IF(K$3="Fitted to RFR",'Debt margin'!$M$46*F79+'Debt margin'!$N$46,K78) -> 0.02007496239 | M79: ='Calibrated DGM'!$G$43*C79+'Calibrated DGM'!$H$43 -> 0.07044254074 | N79: ='Calibrated DGM'!$G$43*D79+'Calibrated DGM'!$H$43 -> 0.08348665538 | O79: ='Calibrated DGM'!$G$43*E79+'Calibrated DGM'!$H$43 -> 0.04036725429 | P79: ='Calibrated DGM'!$G$43*F79+'Calibrated DGM'!$H$43 -> 0.06352396969 | R79: 0.02925977262 | S79: 0.008869062724 | T79: 0.076273806 | U79: 0.04007496239
B80: 2026-09-30 | C80: 0.01133562092 | D80: =IF(B80<Control!C$8,D79+(INDEX(D:D,D$3)-D$19)/(D$3-19),Control!C$7) -> -0.005 | E80: =VLOOKUP(IF(MONTH(B80)<=6,DATE(YEAR(B80),6,30),DATE(YEAR(B80)+1,6,30)),'Intergenerational Chart 6.15'!A:E,MATCH(Control!C$9,'Intergenerational Chart 6.15'!A$3:E$3,0),FALSE)/100 -> 0.049 | F80: 0.02 | H80: =IF(H$3="Fitted to RFR",'Debt margin'!$M$46*C80+'Debt margin'!$N$46,H79) -> 0.0179241517 | I80: =IF(I$3="Fitted to RFR",'Debt margin'!$M$46*D80+'Debt margin'!$N$46,I79) -> 0.01386906272 | J80: =IF(J$3="Fitted to RFR",'Debt margin'!$M$46*E80+'Debt margin'!$N$46,J79) -> 0.027273806 | K80: =IF(K$3="Fitted to RFR",'Debt margin'!$M$46*F80+'Debt margin'!$N$46,K79) -> 0.02007496239 | M80: ='Calibrated DGM'!$G$43*C80+'Calibrated DGM'!$H$43 -> 0.07044254074 | N80: ='Calibrated DGM'!$G$43*D80+'Calibrated DGM'!$H$43 -> 0.08348665538 | O80: ='Calibrated DGM'!$G$43*E80+'Calibrated DGM'!$H$43 -> 0.04036725429 | P80: ='Calibrated DGM'!$G$43*F80+'Calibrated DGM'!$H$43 -> 0.06352396969 | R80: 0.02925977262 | S80: 0.008869062724 | T80: 0.076273806 | U80: 0.04007496239
B81: 2026-10-31 | C81: 0.01133562092 | D81: =IF(B81<Control!C$8,D80+(INDEX(D:D,D$3)-D$19)/(D$3-19),Control!C$7) -> -0.005 | E81: =VLOOKUP(IF(MONTH(B81)<=6,DATE(YEAR(B81),6,30),DATE(YEAR(B81)+1,6,30)),'Intergenerational Chart 6.15'!A:E,MATCH(Control!C$9,'Intergenerational Chart 6.15'!A$3:E$3,0),FALSE)/100 -> 0.049 | F81: 0.02 | H81: =IF(H$3="Fitted to RFR",'Debt margin'!$M$46*C81+'Debt margin'!$N$46,H80) -> 0.0179241517 | I81: =IF(I$3="Fitted to RFR",'Debt margin'!$M$46*D81+'Debt margin'!$N$46,I80) -> 0.01386906272 | J81: =IF(J$3="Fitted to RFR",'Debt margin'!$M$46*E81+'Debt margin'!$N$46,J80) -> 0.027273806 | K81: =IF(K$3="Fitted to RFR",'Debt margin'!$M$46*F81+'Debt margin'!$N$46,K80) -> 0.02007496239 | M81: ='Calibrated DGM'!$G$43*C81+'Calibrated DGM'!$H$43 -> 0.07044254074 | N81: ='Calibrated DGM'!$G$43*D81+'Calibrated DGM'!$H$43 -> 0.08348665538 | O81: ='Calibrated DGM'!$G$43*E81+'Calibrated DGM'!$H$43 -> 0.04036725429 | P81: ='Calibrated DGM'!$G$43*F81+'Calibrated DGM'!$H$43 -> 0.06352396969 | R81: 0.02925977262 | S81: 0.008869062724 | T81: 0.076273806 | U81: 0.04007496239
B82: 2026-11-30 | C82: 0.01133562092 | D82: =IF(B82<Control!C$8,D81+(INDEX(D:D,D$3)-D$19)/(D$3-19),Control!C$7) -> -0.005 | E82: =VLOOKUP(IF(MONTH(B82)<=6,DATE(YEAR(B82),6,30),DATE(YEAR(B82)+1,6,30)),'Intergenerational Chart 6.15'!A:E,MATCH(Control!C$9,'Intergenerational Chart 6.15'!A$3:E$3,0),FALSE)/100 -> 0.049 | F82: 0.02 | H82: =IF(H$3="Fitted to RFR",'Debt margin'!$M$46*C82+'Debt margin'!$N$46,H81) -> 0.0179241517 | I82: =IF(I$3="Fitted to RFR",'Debt margin'!$M$46*D82+'Debt margin'!$N$46,I81) -> 0.01386906272 | J82: =IF(J$3="Fitted to RFR",'Debt margin'!$M$46*E82+'Debt margin'!$N$46,J81) -> 0.027273806 | K82: =IF(K$3="Fitted to RFR",'Debt margin'!$M$46*F82+'Debt margin'!$N$46,K81) -> 0.02007496239 | M82: ='Calibrated DGM'!$G$43*C82+'Calibrated DGM'!$H$43 -> 0.07044254074 | N82: ='Calibrated DGM'!$G$43*D82+'Calibrated DGM'!$H$43 -> 0.08348665538 | O82: ='Calibrated DGM'!$G$43*E82+'Calibrated DGM'!$H$43 -> 0.04036725429 | P82: ='Calibrated DGM'!$G$43*F82+'Calibrated DGM'!$H$43 -> 0.06352396969 | R82: 0.02925977262 | S82: 0.008869062724 | T82: 0.076273806 | U82: 0.04007496239
B83: 2026-12-31 | C83: 0.01133562092 | D83: =IF(B83<Control!C$8,D82+(INDEX(D:D,D$3)-D$19)/(D$3-19),Control!C$7) -> -0.005 | E83: =VLOOKUP(IF(MONTH(B83)<=6,DATE(YEAR(B83),6,30),DATE(YEAR(B83)+1,6,30)),'Intergenerational Chart 6.15'!A:E,MATCH(Control!C$9,'Intergenerational Chart 6.15'!A$3:E$3,0),FALSE)/100 -> 0.049 | F83: 0.02 | H83: =IF(H$3="Fitted to RFR",'Debt margin'!$M$46*C83+'Debt margin'!$N$46,H82) -> 0.0179241517 | I83: =IF(I$3="Fitted to RFR",'Debt margin'!$M$46*D83+'Debt margin'!$N$46,I82) -> 0.01386906272 | J83: =IF(J$3="Fitted to RFR",'Debt margin'!$M$46*E83+'Debt margin'!$N$46,J82) -> 0.027273806 | K83: =IF(K$3="Fitted to RFR",'Debt margin'!$M$46*F83+'Debt margin'!$N$46,K82) -> 0.02007496239 | M83: ='Calibrated DGM'!$G$43*C83+'Calibrated DGM'!$H$43 -> 0.07044254074 | N83: ='Calibrated DGM'!$G$43*D83+'Calibrated DGM'!$H$43 -> 0.08348665538 | O83: ='Calibrated DGM'!$G$43*E83+'Calibrated DGM'!$H$43 -> 0.04036725429 | P83: ='Calibrated DGM'!$G$43*F83+'Calibrated DGM'!$H$43 -> 0.06352396969 | R83: 0.02925977262 | S83: 0.008869062724 | T83: 0.076273806 | U83: 0.04007496239
B84: 2027-01-31 | C84: 0.01133562092 | D84: =IF(B84<Control!C$8,D83+(INDEX(D:D,D$3)-D$19)/(D$3-19),Control!C$7) -> -0.005 | E84: =VLOOKUP(IF(MONTH(B84)<=6,DATE(YEAR(B84),6,30),DATE(YEAR(B84)+1,6,30)),'Intergenerational Chart 6.15'!A:E,MATCH(Control!C$9,'Intergenerational Chart 6.15'!A$3:E$3,0),FALSE)/100 -> 0.049 | F84: 0.02 | H84: =IF(H$3="Fitted to RFR",'Debt margin'!$M$46*C84+'Debt margin'!$N$46,H83) -> 0.0179241517 | I84: =IF(I$3="Fitted to RFR",'Debt margin'!$M$46*D84+'Debt margin'!$N$46,I83) -> 0.01386906272 | J84: =IF(J$3="Fitted to RFR",'Debt margin'!$M$46*E84+'Debt margin'!$N$46,J83) -> 0.027273806 | K84: =IF(K$3="Fitted to RFR",'Debt margin'!$M$46*F84+'Debt margin'!$N$46,K83) -> 0.02007496239 | M84: ='Calibrated DGM'!$G$43*C84+'Calibrated DGM'!$H$43 -> 0.07044254074 | N84: ='Calibrated DGM'!$G$43*D84+'Calibrated DGM'!$H$43 -> 0.08348665538 | O84: ='Calibrated DGM'!$G$43*E84+'Calibrated DGM'!$H$43 -> 0.04036725429 | P84: ='Calibrated DGM'!$G$43*F84+'Calibrated DGM'!$H$43 -> 0.06352396969 | R84: =C84+H84 -> 0.02925977262 | S84: =D84+I84 -> 0.008869062724 | T84: =E84+J84 -> 0.076273806 | U84: =F84+K84 -> 0.04007496239
B85: =EOMONTH(B84,1) -> 2027-02-28 | C85: =C84 -> 0.01133562092 | D85: =IF(B85<Control!C$8,D84+(INDEX(D:D,D$3)-D$19)/(D$3-19),Control!C$7) -> -0.005 | E85: =VLOOKUP(IF(MONTH(B85)<=6,DATE(YEAR(B85),6,30),DATE(YEAR(B85)+1,6,30)),'Intergenerational Chart 6.15'!A:E,MATCH(Control!C$9,'Intergenerational Chart 6.15'!A$3:E$3,0),FALSE)/100 -> 0.049 | F85: 0.02 | H85: =IF(H$3="Fitted to RFR",'Debt margin'!$M$46*C85+'Debt margin'!$N$46,H84) -> 0.0179241517 | I85: =IF(I$3="Fitted to RFR",'Debt margin'!$M$46*D85+'Debt margin'!$N$46,I84) -> 0.01386906272 | J85: =IF(J$3="Fitted to RFR",'Debt margin'!$M$46*E85+'Debt margin'!$N$46,J84) -> 0.027273806 | K85: =IF(K$3="Fitted to RFR",'Debt margin'!$M$46*F85+'Debt margin'!$N$46,K84) -> 0.02007496239 | M85: ='Calibrated DGM'!$G$43*C85+'Calibrated DGM'!$H$43 -> 0.07044254074 | N85: ='Calibrated DGM'!$G$43*D85+'Calibrated DGM'!$H$43 -> 0.08348665538 | O85: ='Calibrated DGM'!$G$43*E85+'Calibrated DGM'!$H$43 -> 0.04036725429 | P85: ='Calibrated DGM'!$G$43*F85+'Calibrated DGM'!$H$43 -> 0.06352396969 | R85: 0.02925977262 | S85: 0.008869062724 | T85: 0.076273806 | U85: 0.04007496239
B86: 2027-03-31 | C86: 0.01133562092 | D86: =IF(B86<Control!C$8,D85+(INDEX(D:D,D$3)-D$19)/(D$3-19),Control!C$7) -> -0.005 | E86: =VLOOKUP(IF(MONTH(B86)<=6,DATE(YEAR(B86),6,30),DATE(YEAR(B86)+1,6,30)),'Intergenerational Chart 6.15'!A:E,MATCH(Control!C$9,'Intergenerational Chart 6.15'!A$3:E$3,0),FALSE)/100 -> 0.049 | F86: 0.02 | H86: =IF(H$3="Fitted to RFR",'Debt margin'!$M$46*C86+'Debt margin'!$N$46,H85) -> 0.0179241517 | I86: =IF(I$3="Fitted to RFR",'Debt margin'!$M$46*D86+'Debt margin'!$N$46,I85) -> 0.01386906272 | J86: =IF(J$3="Fitted to RFR",'Debt margin'!$M$46*E86+'Debt margin'!$N$46,J85) -> 0.027273806 | K86: =IF(K$3="Fitted to RFR",'Debt margin'!$M$46*F86+'Debt margin'!$N$46,K85) -> 0.02007496239 | M86: ='Calibrated DGM'!$G$43*C86+'Calibrated DGM'!$H$43 -> 0.07044254074 | N86: ='Calibrated DGM'!$G$43*D86+'Calibrated DGM'!$H$43 -> 0.08348665538 | O86: ='Calibrated DGM'!$G$43*E86+'Calibrated DGM'!$H$43 -> 0.04036725429 | P86: ='Calibrated DGM'!$G$43*F86+'Calibrated DGM'!$H$43 -> 0.06352396969 | R86: 0.02925977262 | S86: 0.008869062724 | T86: 0.076273806 | U86: 0.04007496239
B87: 2027-04-30 | C87: 0.01133562092 | D87: =IF(B87<Control!C$8,D86+(INDEX(D:D,D$3)-D$19)/(D$3-19),Control!C$7) -> -0.005 | E87: =VLOOKUP(IF(MONTH(B87)<=6,DATE(YEAR(B87),6,30),DATE(YEAR(B87)+1,6,30)),'Intergenerational Chart 6.15'!A:E,MATCH(Control!C$9,'Intergenerational Chart 6.15'!A$3:E$3,0),FALSE)/100 -> 0.049 | F87: 0.02 | H87: =IF(H$3="Fitted to RFR",'Debt margin'!$M$46*C87+'Debt margin'!$N$46,H86) -> 0.0179241517 | I87: =IF(I$3="Fitted to RFR",'Debt margin'!$M$46*D87+'Debt margin'!$N$46,I86) -> 0.01386906272 | J87: =IF(J$3="Fitted to RFR",'Debt margin'!$M$46*E87+'Debt margin'!$N$46,J86) -> 0.027273806 | K87: =IF(K$3="Fitted to RFR",'Debt margin'!$M$46*F87+'Debt margin'!$N$46,K86) -> 0.02007496239 | M87: ='Calibrated DGM'!$G$43*C87+'Calibrated DGM'!$H$43 -> 0.07044254074 | N87: ='Calibrated DGM'!$G$43*D87+'Calibrated DGM'!$H$43 -> 0.08348665538 | O87: ='Calibrated DGM'!$G$43*E87+'Calibrated DGM'!$H$43 -> 0.04036725429 | P87: ='Calibrated DGM'!$G$43*F87+'Calibrated DGM'!$H$43 -> 0.06352396969 | R87: 0.02925977262 | S87: 0.008869062724 | T87: 0.076273806 | U87: 0.04007496239
B88: 2027-05-31 | C88: 0.01133562092 | D88: =IF(B88<Control!C$8,D87+(INDEX(D:D,D$3)-D$19)/(D$3-19),Control!C$7) -> -0.005 | E88: =VLOOKUP(IF(MONTH(B88)<=6,DATE(YEAR(B88),6,30),DATE(YEAR(B88)+1,6,30)),'Intergenerational Chart 6.15'!A:E,MATCH(Control!C$9,'Intergenerational Chart 6.15'!A$3:E$3,0),FALSE)/100 -> 0.049 | F88: 0.02 | H88: =IF(H$3="Fitted to RFR",'Debt margin'!$M$46*C88+'Debt margin'!$N$46,H87) -> 0.0179241517 | I88: =IF(I$3="Fitted to RFR",'Debt margin'!$M$46*D88+'Debt margin'!$N$46,I87) -> 0.01386906272 | J88: =IF(J$3="Fitted to RFR",'Debt margin'!$M$46*E88+'Debt margin'!$N$46,J87) -> 0.027273806 | K88: =IF(K$3="Fitted to RFR",'Debt margin'!$M$46*F88+'Debt margin'!$N$46,K87) -> 0.02007496239 | M88: ='Calibrated DGM'!$G$43*C88+'Calibrated DGM'!$H$43 -> 0.07044254074 | N88: ='Calibrated DGM'!$G$43*D88+'Calibrated DGM'!$H$43 -> 0.08348665538 | O88: ='Calibrated DGM'!$G$43*E88+'Calibrated DGM'!$H$43 -> 0.04036725429 | P88: ='Calibrated DGM'!$G$43*F88+'Calibrated DGM'!$H$43 -> 0.06352396969 | R88: 0.02925977262 | S88: 0.008869062724 | T88: 0.076273806 | U88: 0.04007496239
B89: 2027-06-30 | C89: 0.01133562092 | D89: =IF(B89<Control!C$8,D88+(INDEX(D:D,D$3)-D$19)/(D$3-19),Control!C$7) -> -0.005 | E89: =VLOOKUP(IF(MONTH(B89)<=6,DATE(YEAR(B89),6,30),DATE(YEAR(B89)+1,6,30)),'Intergenerational Chart 6.15'!A:E,MATCH(Control!C$9,'Intergenerational Chart 6.15'!A$3:E$3,0),FALSE)/100 -> 0.049 | F89: 0.02 | H89: =IF(H$3="Fitted to RFR",'Debt margin'!$M$46*C89+'Debt margin'!$N$46,H88) -> 0.0179241517 | I89: =IF(I$3="Fitted to RFR",'Debt margin'!$M$46*D89+'Debt margin'!$N$46,I88) -> 0.01386906272 | J89: =IF(J$3="Fitted to RFR",'Debt margin'!$M$46*E89+'Debt margin'!$N$46,J88) -> 0.027273806 | K89: =IF(K$3="Fitted to RFR",'Debt margin'!$M$46*F89+'Debt margin'!$N$46,K88) -> 0.02007496239 | M89: ='Calibrated DGM'!$G$43*C89+'Calibrated DGM'!$H$43 -> 0.07044254074 | N89: ='Calibrated DGM'!$G$43*D89+'Calibrated DGM'!$H$43 -> 0.08348665538 | O89: ='Calibrated DGM'!$G$43*E89+'Calibrated DGM'!$H$43 -> 0.04036725429 | P89: ='Calibrated DGM'!$G$43*F89+'Calibrated DGM'!$H$43 -> 0.06352396969 | R89: 0.02925977262 | S89: 0.008869062724 | T89: 0.076273806 | U89: 0.04007496239
B90: 2027-07-31 | C90: 0.01133562092 | D90: =IF(B90<Control!C$8,D89+(INDEX(D:D,D$3)-D$19)/(D$3-19),Control!C$7) -> -0.005 | E90: =VLOOKUP(IF(MONTH(B90)<=6,DATE(YEAR(B90),6,30),DATE(YEAR(B90)+1,6,30)),'Intergenerational Chart 6.15'!A:E,MATCH(Control!C$9,'Intergenerational Chart 6.15'!A$3:E$3,0),FALSE)/100 -> 0.052 | F90: 0.02 | H90: =IF(H$3="Fitted to RFR",'Debt margin'!$M$46*C90+'Debt margin'!$N$46,H89) -> 0.0179241517 | I90: =IF(I$3="Fitted to RFR",'Debt margin'!$M$46*D90+'Debt margin'!$N$46,I89) -> 0.01386906272 | J90: =IF(J$3="Fitted to RFR",'Debt margin'!$M$46*E90+'Debt margin'!$N$46,J89) -> 0.02801851397 | K90: =IF(K$3="Fitted to RFR",'Debt margin'!$M$46*F90+'Debt margin'!$N$46,K89) -> 0.02007496239 | M90: ='Calibrated DGM'!$G$43*C90+'Calibrated DGM'!$H$43 -> 0.07044254074 | N90: ='Calibrated DGM'!$G$43*D90+'Calibrated DGM'!$H$43 -> 0.08348665538 | O90: ='Calibrated DGM'!$G$43*E90+'Calibrated DGM'!$H$43 -> 0.03797173201 | P90: ='Calibrated DGM'!$G$43*F90+'Calibrated DGM'!$H$43 -> 0.06352396969 | R90: 0.02925977262 | S90: 0.008869062724 | T90: 0.08001851397 | U90: 0.04007496239
B91: 2027-08-31 | C91: 0.01133562092 | D91: =IF(B91<Control!C$8,D90+(INDEX(D:D,D$3)-D$19)/(D$3-19),Control!C$7) -> -0.005 | E91: =VLOOKUP(IF(MONTH(B91)<=6,DATE(YEAR(B91),6,30),DATE(YEAR(B91)+1,6,30)),'Intergenerational Chart 6.15'!A:E,MATCH(Control!C$9,'Intergenerational Chart 6.15'!A$3:E$3,0),FALSE)/100 -> 0.052 | F91: 0.02 | H91: =IF(H$3="Fitted to RFR",'Debt margin'!$M$46*C91+'Debt margin'!$N$46,H90) -> 0.0179241517 | I91: =IF(I$3="Fitted to RFR",'Debt margin'!$M$46*D91+'Debt margin'!$N$46,I90) -> 0.01386906272 | J91: =IF(J$3="Fitted to RFR",'Debt margin'!$M$46*E91+'Debt margin'!$N$46,J90) -> 0.02801851397 | K91: =IF(K$3="Fitted to RFR",'Debt margin'!$M$46*F91+'Debt margin'!$N$46,K90) -> 0.02007496239 | M91: ='Calibrated DGM'!$G$43*C91+'Calibrated DGM'!$H$43 -> 0.07044254074 | N91: ='Calibrated DGM'!$G$43*D91+'Calibrated DGM'!$H$43 -> 0.08348665538 | O91: ='Calibrated DGM'!$G$43*E91+'Calibrated DGM'!$H$43 -> 0.03797173201 | P91: ='Calibrated DGM'!$G$43*F91+'Calibrated DGM'!$H$43 -> 0.06352396969 | R91: 0.02925977262 | S91: 0.008869062724 | T91: 0.08001851397 | U91: 0.04007496239
B92: 2027-09-30 | C92: 0.01133562092 | D92: =IF(B92<Control!C$8,D91+(INDEX(D:D,D$3)-D$19)/(D$3-19),Control!C$7) -> -0.005 | E92: =VLOOKUP(IF(MONTH(B92)<=6,DATE(YEAR(B92),6,30),DATE(YEAR(B92)+1,6,30)),'Intergenerational Chart 6.15'!A:E,MATCH(Control!C$9,'Intergenerational Chart 6.15'!A$3:E$3,0),FALSE)/100 -> 0.052 | F92: 0.02 | H92: =IF(H$3="Fitted to RFR",'Debt margin'!$M$46*C92+'Debt margin'!$N$46,H91) -> 0.0179241517 | I92: =IF(I$3="Fitted to RFR",'Debt margin'!$M$46*D92+'Debt margin'!$N$46,I91) -> 0.01386906272 | J92: =IF(J$3="Fitted to RFR",'Debt margin'!$M$46*E92+'Debt margin'!$N$46,J91) -> 0.02801851397 | K92: =IF(K$3="Fitted to RFR",'Debt margin'!$M$46*F92+'Debt margin'!$N$46,K91) -> 0.02007496239 | M92: ='Calibrated DGM'!$G$43*C92+'Calibrated DGM'!$H$43 -> 0.07044254074 | N92: ='Calibrated DGM'!$G$43*D92+'Calibrated DGM'!$H$43 -> 0.08348665538 | O92: ='Calibrated DGM'!$G$43*E92+'Calibrated DGM'!$H$43 -> 0.03797173201 | P92: ='Calibrated DGM'!$G$43*F92+'Calibrated DGM'!$H$43 -> 0.06352396969 | R92: 0.02925977262 | S92: 0.008869062724 | T92: 0.08001851397 | U92: 0.04007496239
B93: 2027-10-31 | C93: 0.01133562092 | D93: =IF(B93<Control!C$8,D92+(INDEX(D:D,D$3)-D$19)/(D$3-19),Control!C$7) -> -0.005 | E93: =VLOOKUP(IF(MONTH(B93)<=6,DATE(YEAR(B93),6,30),DATE(YEAR(B93)+1,6,30)),'Intergenerational Chart 6.15'!A:E,MATCH(Control!C$9,'Intergenerational Chart 6.15'!A$3:E$3,0),FALSE)/100 -> 0.052 | F93: 0.02 | H93: =IF(H$3="Fitted to RFR",'Debt margin'!$M$46*C93+'Debt margin'!$N$46,H92) -> 0.0179241517 | I93: =IF(I$3="Fitted to RFR",'Debt margin'!$M$46*D93+'Debt margin'!$N$46,I92) -> 0.01386906272 | J93: =IF(J$3="Fitted to RFR",'Debt margin'!$M$46*E93+'Debt margin'!$N$46,J92) -> 0.02801851397 | K93: =IF(K$3="Fitted to RFR",'Debt margin'!$M$46*F93+'Debt margin'!$N$46,K92) -> 0.02007496239 | M93: ='Calibrated DGM'!$G$43*C93+'Calibrated DGM'!$H$43 -> 0.07044254074 | N93: ='Calibrated DGM'!$G$43*D93+'Calibrated DGM'!$H$43 -> 0.08348665538 | O93: ='Calibrated DGM'!$G$43*E93+'Calibrated DGM'!$H$43 -> 0.03797173201 | P93: ='Calibrated DGM'!$G$43*F93+'Calibrated DGM'!$H$43 -> 0.06352396969 | R93: 0.02925977262 | S93: 0.008869062724 | T93: 0.08001851397 | U93: 0.04007496239
B94: 2027-11-30 | C94: 0.01133562092 | D94: =IF(B94<Control!C$8,D93+(INDEX(D:D,D$3)-D$19)/(D$3-19),Control!C$7) -> -0.005 | E94: =VLOOKUP(IF(MONTH(B94)<=6,DATE(YEAR(B94),6,30),DATE(YEAR(B94)+1,6,30)),'Intergenerational Chart 6.15'!A:E,MATCH(Control!C$9,'Intergenerational Chart 6.15'!A$3:E$3,0),FALSE)/100 -> 0.052 | F94: 0.02 | H94: =IF(H$3="Fitted to RFR",'Debt margin'!$M$46*C94+'Debt margin'!$N$46,H93) -> 0.0179241517 | I94: =IF(I$3="Fitted to RFR",'Debt margin'!$M$46*D94+'Debt margin'!$N$46,I93) -> 0.01386906272 | J94: =IF(J$3="Fitted to RFR",'Debt margin'!$M$46*E94+'Debt margin'!$N$46,J93) -> 0.02801851397 | K94: =IF(K$3="Fitted to RFR",'Debt margin'!$M$46*F94+'Debt margin'!$N$46,K93) -> 0.02007496239 | M94: ='Calibrated DGM'!$G$43*C94+'Calibrated DGM'!$H$43 -> 0.07044254074 | N94: ='Calibrated DGM'!$G$43*D94+'Calibrated DGM'!$H$43 -> 0.08348665538 | O94: ='Calibrated DGM'!$G$43*E94+'Calibrated DGM'!$H$43 -> 0.03797173201 | P94: ='Calibrated DGM'!$G$43*F94+'Calibrated DGM'!$H$43 -> 0.06352396969 | R94: 0.02925977262 | S94: 0.008869062724 | T94: 0.08001851397 | U94: 0.04007496239
B95: 2027-12-31 | C95: 0.01133562092 | D95: =IF(B95<Control!C$8,D94+(INDEX(D:D,D$3)-D$19)/(D$3-19),Control!C$7) -> -0.005 | E95: =VLOOKUP(IF(MONTH(B95)<=6,DATE(YEAR(B95),6,30),DATE(YEAR(B95)+1,6,30)),'Intergenerational Chart 6.15'!A:E,MATCH(Control!C$9,'Intergenerational Chart 6.15'!A$3:E$3,0),FALSE)/100 -> 0.052 | F95: 0.02 | H95: =IF(H$3="Fitted to RFR",'Debt margin'!$M$46*C95+'Debt margin'!$N$46,H94) -> 0.0179241517 | I95: =IF(I$3="Fitted to RFR",'Debt margin'!$M$46*D95+'Debt margin'!$N$46,I94) -> 0.01386906272 | J95: =IF(J$3="Fitted to RFR",'Debt margin'!$M$46*E95+'Debt margin'!$N$46,J94) -> 0.02801851397 | K95: =IF(K$3="Fitted to RFR",'Debt margin'!$M$46*F95+'Debt margin'!$N$46,K94) -> 0.02007496239 | M95: ='Calibrated DGM'!$G$43*C95+'Calibrated DGM'!$H$43 -> 0.07044254074 | N95: ='Calibrated DGM'!$G$43*D95+'Calibrated DGM'!$H$43 -> 0.08348665538 | O95: ='Calibrated DGM'!$G$43*E95+'Calibrated DGM'!$H$43 -> 0.03797173201 | P95: ='Calibrated DGM'!$G$43*F95+'Calibrated DGM'!$H$43 -> 0.06352396969 | R95: 0.02925977262 | S95: 0.008869062724 | T95: 0.08001851397 | U95: 0.04007496239
B96: 2028-01-31 | C96: 0.01133562092 | D96: =IF(B96<Control!C$8,D95+(INDEX(D:D,D$3)-D$19)/(D$3-19),Control!C$7) -> -0.005 | E96: =VLOOKUP(IF(MONTH(B96)<=6,DATE(YEAR(B96),6,30),DATE(YEAR(B96)+1,6,30)),'Intergenerational Chart 6.15'!A:E,MATCH(Control!C$9,'Intergenerational Chart 6.15'!A$3:E$3,0),FALSE)/100 -> 0.052 | F96: 0.02 | H96: =IF(H$3="Fitted to RFR",'Debt margin'!$M$46*C96+'Debt margin'!$N$46,H95) -> 0.0179241517 | I96: =IF(I$3="Fitted to RFR",'Debt margin'!$M$46*D96+'Debt margin'!$N$46,I95) -> 0.01386906272 | J96: =IF(J$3="Fitted to RFR",'Debt margin'!$M$46*E96+'Debt margin'!$N$46,J95) -> 0.02801851397 | K96: =IF(K$3="Fitted to RFR",'Debt margin'!$M$46*F96+'Debt margin'!$N$46,K95) -> 0.02007496239 | M96: ='Calibrated DGM'!$G$43*C96+'Calibrated DGM'!$H$43 -> 0.07044254074 | N96: ='Calibrated DGM'!$G$43*D96+'Calibrated DGM'!$H$43 -> 0.08348665538 | O96: ='Calibrated DGM'!$G$43*E96+'Calibrated DGM'!$H$43 -> 0.03797173201 | P96: ='Calibrated DGM'!$G$43*F96+'Calibrated DGM'!$H$43 -> 0.06352396969 | R96: 0.02925977262 | S96: 0.008869062724 | T96: 0.08001851397 | U96: 0.04007496239
B97: 2028-02-29 | C97: 0.01133562092 | D97: =IF(B97<Control!C$8,D96+(INDEX(D:D,D$3)-D$19)/(D$3-19),Control!C$7) -> -0.005 | E97: =VLOOKUP(IF(MONTH(B97)<=6,DATE(YEAR(B97),6,30),DATE(YEAR(B97)+1,6,30)),'Intergenerational Chart 6.15'!A:E,MATCH(Control!C$9,'Intergenerational Chart 6.15'!A$3:E$3,0),FALSE)/100 -> 0.052 | F97: 0.02 | H97: =IF(H$3="Fitted to RFR",'Debt margin'!$M$46*C97+'Debt margin'!$N$46,H96) -> 0.0179241517 | I97: =IF(I$3="Fitted to RFR",'Debt margin'!$M$46*D97+'Debt margin'!$N$46,I96) -> 0.01386906272 | J97: =IF(J$3="Fitted to RFR",'Debt margin'!$M$46*E97+'Debt margin'!$N$46,J96) -> 0.02801851397 | K97: =IF(K$3="Fitted to RFR",'Debt margin'!$M$46*F97+'Debt margin'!$N$46,K96) -> 0.02007496239 | M97: ='Calibrated DGM'!$G$43*C97+'Calibrated DGM'!$H$43 -> 0.07044254074 | N97: ='Calibrated DGM'!$G$43*D97+'Calibrated DGM'!$H$43 -> 0.08348665538 | O97: ='Calibrated DGM'!$G$43*E97+'Calibrated DGM'!$H$43 -> 0.03797173201 | P97: ='Calibrated DGM'!$G$43*F97+'Calibrated DGM'!$H$43 -> 0.06352396969 | R97: 0.02925977262 | S97: 0.008869062724 | T97: 0.08001851397 | U97: 0.04007496239
B98: 2028-03-31 | C98: 0.01133562092 | D98: =IF(B98<Control!C$8,D97+(INDEX(D:D,D$3)-D$19)/(D$3-19),Control!C$7) -> -0.005 | E98: =VLOOKUP(IF(MONTH(B98)<=6,DATE(YEAR(B98),6,30),DATE(YEAR(B98)+1,6,30)),'Intergenerational Chart 6.15'!A:E,MATCH(Control!C$9,'Intergenerational Chart 6.15'!A$3:E$3,0),FALSE)/100 -> 0.052 | F98: 0.02 | H98: =IF(H$3="Fitted to RFR",'Debt margin'!$M$46*C98+'Debt margin'!$N$46,H97) -> 0.0179241517 | I98: =IF(I$3="Fitted to RFR",'Debt margin'!$M$46*D98+'Debt margin'!$N$46,I97) -> 0.01386906272 | J98: =IF(J$3="Fitted to RFR",'Debt margin'!$M$46*E98+'Debt margin'!$N$46,J97) -> 0.02801851397 | K98: =IF(K$3="Fitted to RFR",'Debt margin'!$M$46*F98+'Debt margin'!$N$46,K97) -> 0.02007496239 | M98: ='Calibrated DGM'!$G$43*C98+'Calibrated DGM'!$H$43 -> 0.07044254074 | N98: ='Calibrated DGM'!$G$43*D98+'Calibrated DGM'!$H$43 -> 0.08348665538 | O98: ='Calibrated DGM'!$G$43*E98+'Calibrated DGM'!$H$43 -> 0.03797173201 | P98: ='Calibrated DGM'!$G$43*F98+'Calibrated DGM'!$H$43 -> 0.06352396969 | R98: 0.02925977262 | S98: 0.008869062724 | T98: 0.08001851397 | U98: 0.04007496239
B99: 2028-04-30 | C99: 0.01133562092 | D99: =IF(B99<Control!C$8,D98+(INDEX(D:D,D$3)-D$19)/(D$3-19),Control!C$7) -> -0.005 | E99: =VLOOKUP(IF(MONTH(B99)<=6,DATE(YEAR(B99),6,30),DATE(YEAR(B99)+1,6,30)),'Intergenerational Chart 6.15'!A:E,MATCH(Control!C$9,'Intergenerational Chart 6.15'!A$3:E$3,0),FALSE)/100 -> 0.052 | F99: 0.02 | H99: =IF(H$3="Fitted to RFR",'Debt margin'!$M$46*C99+'Debt margin'!$N$46,H98) -> 0.0179241517 | I99: =IF(I$3="Fitted to RFR",'Debt margin'!$M$46*D99+'Debt margin'!$N$46,I98) -> 0.01386906272 | J99: =IF(J$3="Fitted to RFR",'Debt margin'!$M$46*E99+'Debt margin'!$N$46,J98) -> 0.02801851397 | K99: =IF(K$3="Fitted to RFR",'Debt margin'!$M$46*F99+'Debt margin'!$N$46,K98) -> 0.02007496239 | M99: ='Calibrated DGM'!$G$43*C99+'Calibrated DGM'!$H$43 -> 0.07044254074 | N99: ='Calibrated DGM'!$G$43*D99+'Calibrated DGM'!$H$43 -> 0.08348665538 | O99: ='Calibrated DGM'!$G$43*E99+'Calibrated DGM'!$H$43 -> 0.03797173201 | P99: ='Calibrated DGM'!$G$43*F99+'Calibrated DGM'!$H$43 -> 0.06352396969 | R99: 0.02925977262 | S99: 0.008869062724 | T99: 0.08001851397 | U99: 0.04007496239
B100: 2028-05-31 | C100: 0.01133562092 | D100: =IF(B100<Control!C$8,D99+(INDEX(D:D,D$3)-D$19)/(D$3-19),Control!C$7) -> -0.005 | E100: =VLOOKUP(IF(MONTH(B100)<=6,DATE(YEAR(B100),6,30),DATE(YEAR(B100)+1,6,30)),'Intergenerational Chart 6.15'!A:E,MATCH(Control!C$9,'Intergenerational Chart 6.15'!A$3:E$3,0),FALSE)/100 -> 0.052 | F100: 0.02 | H100: =IF(H$3="Fitted to RFR",'Debt margin'!$M$46*C100+'Debt margin'!$N$46,H99) -> 0.0179241517 | I100: =IF(I$3="Fitted to RFR",'Debt margin'!$M$46*D100+'Debt margin'!$N$46,I99) -> 0.01386906272 | J100: =IF(J$3="Fitted to RFR",'Debt margin'!$M$46*E100+'Debt margin'!$N$46,J99) -> 0.02801851397 | K100: =IF(K$3="Fitted to RFR",'Debt margin'!$M$46*F100+'Debt margin'!$N$46,K99) -> 0.02007496239 | M100: ='Calibrated DGM'!$G$43*C100+'Calibrated DGM'!$H$43 -> 0.07044254074 | N100: ='Calibrated DGM'!$G$43*D100+'Calibrated DGM'!$H$43 -> 0.08348665538 | O100: ='Calibrated DGM'!$G$43*E100+'Calibrated DGM'!$H$43 -> 0.03797173201 | P100: ='Calibrated DGM'!$G$43*F100+'Calibrated DGM'!$H$43 -> 0.06352396969 | R100: 0.02925977262 | S100: 0.008869062724 | T100: 0.08001851397 | U100: 0.04007496239
B101: 2028-06-30 | C101: 0.01133562092 | D101: =IF(B101<Control!C$8,D100+(INDEX(D:D,D$3)-D$19)/(D$3-19),Control!C$7) -> -0.005 | E101: =VLOOKUP(IF(MONTH(B101)<=6,DATE(YEAR(B101),6,30),DATE(YEAR(B101)+1,6,30)),'Intergenerational Chart 6.15'!A:E,MATCH(Control!C$9,'Intergenerational Chart 6.15'!A$3:E$3,0),FALSE)/100 -> 0.052 | F101: 0.02 | H101: =IF(H$3="Fitted to RFR",'Debt margin'!$M$46*C101+'Debt margin'!$N$46,H100) -> 0.0179241517 | I101: =IF(I$3="Fitted to RFR",'Debt margin'!$M$46*D101+'Debt margin'!$N$46,I100) -> 0.01386906272 | J101: =IF(J$3="Fitted to RFR",'Debt margin'!$M$46*E101+'Debt margin'!$N$46,J100) -> 0.02801851397 | K101: =IF(K$3="Fitted to RFR",'Debt margin'!$M$46*F101+'Debt margin'!$N$46,K100) -> 0.02007496239 | M101: ='Calibrated DGM'!$G$43*C101+'Calibrated DGM'!$H$43 -> 0.07044254074 | N101: ='Calibrated DGM'!$G$43*D101+'Calibrated DGM'!$H$43 -> 0.08348665538 | O101: ='Calibrated DGM'!$G$43*E101+'Calibrated DGM'!$H$43 -> 0.03797173201 | P101: ='Calibrated DGM'!$G$43*F101+'Calibrated DGM'!$H$43 -> 0.06352396969 | R101: 0.02925977262 | S101: 0.008869062724 | T101: 0.08001851397 | U101: 0.04007496239
B102: 2028-07-31 | C102: 0.01133562092 | D102: =IF(B102<Control!C$8,D101+(INDEX(D:D,D$3)-D$19)/(D$3-19),Control!C$7) -> -0.005 | E102: =VLOOKUP(IF(MONTH(B102)<=6,DATE(YEAR(B102),6,30),DATE(YEAR(B102)+1,6,30)),'Intergenerational Chart 6.15'!A:E,MATCH(Control!C$9,'Intergenerational Chart 6.15'!A$3:E$3,0),FALSE)/100 -> 0.054 | F102: 0.02 | H102: =IF(H$3="Fitted to RFR",'Debt margin'!$M$46*C102+'Debt margin'!$N$46,H101) -> 0.0179241517 | I102: =IF(I$3="Fitted to RFR",'Debt margin'!$M$46*D102+'Debt margin'!$N$46,I101) -> 0.01386906272 | J102: =IF(J$3="Fitted to RFR",'Debt margin'!$M$46*E102+'Debt margin'!$N$46,J101) -> 0.02851498594 | K102: =IF(K$3="Fitted to RFR",'Debt margin'!$M$46*F102+'Debt margin'!$N$46,K101) -> 0.02007496239 | M102: ='Calibrated DGM'!$G$43*C102+'Calibrated DGM'!$H$43 -> 0.07044254074 | N102: ='Calibrated DGM'!$G$43*D102+'Calibrated DGM'!$H$43 -> 0.08348665538 | O102: ='Calibrated DGM'!$G$43*E102+'Calibrated DGM'!$H$43 -> 0.03637471715 | P102: ='Calibrated DGM'!$G$43*F102+'Calibrated DGM'!$H$43 -> 0.06352396969 | R102: 0.02925977262 | S102: 0.008869062724 | T102: 0.08251498594 | U102: 0.04007496239
B103: 2028-08-31 | C103: 0.01133562092 | D103: =IF(B103<Control!C$8,D102+(INDEX(D:D,D$3)-D$19)/(D$3-19),Control!C$7) -> -0.005 | E103: =VLOOKUP(IF(MONTH(B103)<=6,DATE(YEAR(B103),6,30),DATE(YEAR(B103)+1,6,30)),'Intergenerational Chart 6.15'!A:E,MATCH(Control!C$9,'Intergenerational Chart 6.15'!A$3:E$3,0),FALSE)/100 -> 0.054 | F103: 0.02 | H103: =IF(H$3="Fitted to RFR",'Debt margin'!$M$46*C103+'Debt margin'!$N$46,H102) -> 0.0179241517 | I103: =IF(I$3="Fitted to RFR",'Debt margin'!$M$46*D103+'Debt margin'!$N$46,I102) -> 0.01386906272 | J103: =IF(J$3="Fitted to RFR",'Debt margin'!$M$46*E103+'Debt margin'!$N$46,J102) -> 0.02851498594 | K103: =IF(K$3="Fitted to RFR",'Debt margin'!$M$46*F103+'Debt margin'!$N$46,K102) -> 0.02007496239 | M103: ='Calibrated DGM'!$G$43*C103+'Calibrated DGM'!$H$43 -> 0.07044254074 | N103: ='Calibrated DGM'!$G$43*D103+'Calibrated DGM'!$H$43 -> 0.08348665538 | O103: ='Calibrated DGM'!$G$43*E103+'Calibrated DGM'!$H$43 -> 0.03637471715 | P103: ='Calibrated DGM'!$G$43*F103+'Calibrated DGM'!$H$43 -> 0.06352396969 | R103: 0.02925977262 | S103: 0.008869062724 | T103: 0.08251498594 | U103: 0.04007496239
B104: 2028-09-30 | C104: 0.01133562092 | D104: =IF(B104<Control!C$8,D103+(INDEX(D:D,D$3)-D$19)/(D$3-19),Control!C$7) -> -0.005 | E104: =VLOOKUP(IF(MONTH(B104)<=6,DATE(YEAR(B104),6,30),DATE(YEAR(B104)+1,6,30)),'Intergenerational Chart 6.15'!A:E,MATCH(Control!C$9,'Intergenerational Chart 6.15'!A$3:E$3,0),FALSE)/100 -> 0.054 | F104: 0.02 | H104: =IF(H$3="Fitted to RFR",'Debt margin'!$M$46*C104+'Debt margin'!$N$46,H103) -> 0.0179241517 | I104: =IF(I$3="Fitted to RFR",'Debt margin'!$M$46*D104+'Debt margin'!$N$46,I103) -> 0.01386906272 | J104: =IF(J$3="Fitted to RFR",'Debt margin'!$M$46*E104+'Debt margin'!$N$46,J103) -> 0.02851498594 | K104: =IF(K$3="Fitted to RFR",'Debt margin'!$M$46*F104+'Debt margin'!$N$46,K103) -> 0.02007496239 | M104: ='Calibrated DGM'!$G$43*C104+'Calibrated DGM'!$H$43 -> 0.07044254074 | N104: ='Calibrated DGM'!$G$43*D104+'Calibrated DGM'!$H$43 -> 0.08348665538 | O104: ='Calibrated DGM'!$G$43*E104+'Calibrated DGM'!$H$43 -> 0.03637471715 | P104: ='Calibrated DGM'!$G$43*F104+'Calibrated DGM'!$H$43 -> 0.06352396969 | R104: 0.02925977262 | S104: 0.008869062724 | T104: 0.08251498594 | U104: 0.04007496239
B105: 2028-10-31 | C105: 0.01133562092 | D105: =IF(B105<Control!C$8,D104+(INDEX(D:D,D$3)-D$19)/(D$3-19),Control!C$7) -> -0.005 | E105: =VLOOKUP(IF(MONTH(B105)<=6,DATE(YEAR(B105),6,30),DATE(YEAR(B105)+1,6,30)),'Intergenerational Chart 6.15'!A:E,MATCH(Control!C$9,'Intergenerational Chart 6.15'!A$3:E$3,0),FALSE)/100 -> 0.054 | F105: 0.02 | H105: =IF(H$3="Fitted to RFR",'Debt margin'!$M$46*C105+'Debt margin'!$N$46,H104) -> 0.0179241517 | I105: =IF(I$3="Fitted to RFR",'Debt margin'!$M$46*D105+'Debt margin'!$N$46,I104) -> 0.01386906272 | J105: =IF(J$3="Fitted to RFR",'Debt margin'!$M$46*E105+'Debt margin'!$N$46,J104) -> 0.02851498594 | K105: =IF(K$3="Fitted to RFR",'Debt margin'!$M$46*F105+'Debt margin'!$N$46,K104) -> 0.02007496239 | M105: ='Calibrated DGM'!$G$43*C105+'Calibrated DGM'!$H$43 -> 0.07044254074 | N105: ='Calibrated DGM'!$G$43*D105+'Calibrated DGM'!$H$43 -> 0.08348665538 | O105: ='Calibrated DGM'!$G$43*E105+'Calibrated DGM'!$H$43 -> 0.03637471715 | P105: ='Calibrated DGM'!$G$43*F105+'Calibrated DGM'!$H$43 -> 0.06352396969 | R105: 0.02925977262 | S105: 0.008869062724 | T105: 0.08251498594 | U105: 0.04007496239
B106: 2028-11-30 | C106: 0.01133562092 | D106: =IF(B106<Control!C$8,D105+(INDEX(D:D,D$3)-D$19)/(D$3-19),Control!C$7) -> -0.005 | E106: =VLOOKUP(IF(MONTH(B106)<=6,DATE(YEAR(B106),6,30),DATE(YEAR(B106)+1,6,30)),'Intergenerational Chart 6.15'!A:E,MATCH(Control!C$9,'Intergenerational Chart 6.15'!A$3:E$3,0),FALSE)/100 -> 0.054 | F106: 0.02 | H106: =IF(H$3="Fitted to RFR",'Debt margin'!$M$46*C106+'Debt margin'!$N$46,H105) -> 0.0179241517 | I106: =IF(I$3="Fitted to RFR",'Debt margin'!$M$46*D106+'Debt margin'!$N$46,I105) -> 0.01386906272 | J106: =IF(J$3="Fitted to RFR",'Debt margin'!$M$46*E106+'Debt margin'!$N$46,J105) -> 0.02851498594 | K106: =IF(K$3="Fitted to RFR",'Debt margin'!$M$46*F106+'Debt margin'!$N$46,K105) -> 0.02007496239 | M106: ='Calibrated DGM'!$G$43*C106+'Calibrated DGM'!$H$43 -> 0.07044254074 | N106: ='Calibrated DGM'!$G$43*D106+'Calibrated DGM'!$H$43 -> 0.08348665538 | O106: ='Calibrated DGM'!$G$43*E106+'Calibrated DGM'!$H$43 -> 0.03637471715 | P106: ='Calibrated DGM'!$G$43*F106+'Calibrated DGM'!$H$43 -> 0.06352396969 | R106: 0.02925977262 | S106: 0.008869062724 | T106: 0.08251498594 | U106: 0.04007496239
B107: 2028-12-31 | C107: 0.01133562092 | D107: =IF(B107<Control!C$8,D106+(INDEX(D:D,D$3)-D$19)/(D$3-19),Control!C$7) -> -0.005 | E107: =VLOOKUP(IF(MONTH(B107)<=6,DATE(YEAR(B107),6,30),DATE(YEAR(B107)+1,6,30)),'Intergenerational Chart 6.15'!A:E,MATCH(Control!C$9,'Intergenerational Chart 6.15'!A$3:E$3,0),FALSE)/100 -> 0.054 | F107: 0.02 | H107: =IF(H$3="Fitted to RFR",'Debt margin'!$M$46*C107+'Debt margin'!$N$46,H106) -> 0.0179241517 | I107: =IF(I$3="Fitted to RFR",'Debt margin'!$M$46*D107+'Debt margin'!$N$46,I106) -> 0.01386906272 | J107: =IF(J$3="Fitted to RFR",'Debt margin'!$M$46*E107+'Debt margin'!$N$46,J106) -> 0.02851498594 | K107: =IF(K$3="Fitted to RFR",'Debt margin'!$M$46*F107+'Debt margin'!$N$46,K106) -> 0.02007496239 | M107: ='Calibrated DGM'!$G$43*C107+'Calibrated DGM'!$H$43 -> 0.07044254074 | N107: ='Calibrated DGM'!$G$43*D107+'Calibrated DGM'!$H$43 -> 0.08348665538 | O107: ='Calibrated DGM'!$G$43*E107+'Calibrated DGM'!$H$43 -> 0.03637471715 | P107: ='Calibrated DGM'!$G$43*F107+'Calibrated DGM'!$H$43 -> 0.06352396969 | R107: 0.02925977262 | S107: 0.008869062724 | T107: 0.08251498594 | U107: 0.04007496239
B108: 2029-01-31 | C108: 0.01133562092 | D108: =IF(B108<Control!C$8,D107+(INDEX(D:D,D$3)-D$19)/(D$3-19),Control!C$7) -> -0.005 | E108: =VLOOKUP(IF(MONTH(B108)<=6,DATE(YEAR(B108),6,30),DATE(YEAR(B108)+1,6,30)),'Intergenerational Chart 6.15'!A:E,MATCH(Control!C$9,'Intergenerational Chart 6.15'!A$3:E$3,0),FALSE)/100 -> 0.054 | F108: 0.02 | H108: =IF(H$3="Fitted to RFR",'Debt margin'!$M$46*C108+'Debt margin'!$N$46,H107) -> 0.0179241517 | I108: =IF(I$3="Fitted to RFR",'Debt margin'!$M$46*D108+'Debt margin'!$N$46,I107) -> 0.01386906272 | J108: =IF(J$3="Fitted to RFR",'Debt margin'!$M$46*E108+'Debt margin'!$N$46,J107) -> 0.02851498594 | K108: =IF(K$3="Fitted to RFR",'Debt margin'!$M$46*F108+'Debt margin'!$N$46,K107) -> 0.02007496239 | M108: ='Calibrated DGM'!$G$43*C108+'Calibrated DGM'!$H$43 -> 0.07044254074 | N108: ='Calibrated DGM'!$G$43*D108+'Calibrated DGM'!$H$43 -> 0.08348665538 | O108: ='Calibrated DGM'!$G$43*E108+'Calibrated DGM'!$H$43 -> 0.03637471715 | P108: ='Calibrated DGM'!$G$43*F108+'Calibrated DGM'!$H$43 -> 0.06352396969 | R108: 0.02925977262 | S108: 0.008869062724 | T108: 0.08251498594 | U108: 0.04007496239
B109: 2029-02-28 | C109: 0.01133562092 | D109: =IF(B109<Control!C$8,D108+(INDEX(D:D,D$3)-D$19)/(D$3-19),Control!C$7) -> -0.005 | E109: =VLOOKUP(IF(MONTH(B109)<=6,DATE(YEAR(B109),6,30),DATE(YEAR(B109)+1,6,30)),'Intergenerational Chart 6.15'!A:E,MATCH(Control!C$9,'Intergenerational Chart 6.15'!A$3:E$3,0),FALSE)/100 -> 0.054 | F109: 0.02 | H109: =IF(H$3="Fitted to RFR",'Debt margin'!$M$46*C109+'Debt margin'!$N$46,H108) -> 0.0179241517 | I109: =IF(I$3="Fitted to RFR",'Debt margin'!$M$46*D109+'Debt margin'!$N$46,I108) -> 0.01386906272 | J109: =IF(J$3="Fitted to RFR",'Debt margin'!$M$46*E109+'Debt margin'!$N$46,J108) -> 0.02851498594 | K109: =IF(K$3="Fitted to RFR",'Debt margin'!$M$46*F109+'Debt margin'!$N$46,K108) -> 0.02007496239 | M109: ='Calibrated DGM'!$G$43*C109+'Calibrated DGM'!$H$43 -> 0.07044254074 | N109: ='Calibrated DGM'!$G$43*D109+'Calibrated DGM'!$H$43 -> 0.08348665538 | O109: ='Calibrated DGM'!$G$43*E109+'Calibrated DGM'!$H$43 -> 0.03637471715 | P109: ='Calibrated DGM'!$G$43*F109+'Calibrated DGM'!$H$43 -> 0.06352396969 | R109: 0.02925977262 | S109: 0.008869062724 | T109: 0.08251498594 | U109: 0.04007496239
B110: 2029-03-31 | C110: 0.01133562092 | D110: =IF(B110<Control!C$8,D109+(INDEX(D:D,D$3)-D$19)/(D$3-19),Control!C$7) -> -0.005 | E110: =VLOOKUP(IF(MONTH(B110)<=6,DATE(YEAR(B110),6,30),DATE(YEAR(B110)+1,6,30)),'Intergenerational Chart 6.15'!A:E,MATCH(Control!C$9,'Intergenerational Chart 6.15'!A$3:E$3,0),FALSE)/100 -> 0.054 | F110: 0.02 | H110: =IF(H$3="Fitted to RFR",'Debt margin'!$M$46*C110+'Debt margin'!$N$46,H109) -> 0.0179241517 | I110: =IF(I$3="Fitted to RFR",'Debt margin'!$M$46*D110+'Debt margin'!$N$46,I109) -> 0.01386906272 | J110: =IF(J$3="Fitted to RFR",'Debt margin'!$M$46*E110+'Debt margin'!$N$46,J109) -> 0.02851498594 | K110: =IF(K$3="Fitted to RFR",'Debt margin'!$M$46*F110+'Debt margin'!$N$46,K109) -> 0.02007496239 | M110: ='Calibrated DGM'!$G$43*C110+'Calibrated DGM'!$H$43 -> 0.07044254074 | N110: ='Calibrated DGM'!$G$43*D110+'Calibrated DGM'!$H$43 -> 0.08348665538 | O110: ='Calibrated DGM'!$G$43*E110+'Calibrated DGM'!$H$43 -> 0.03637471715 | P110: ='Calibrated DGM'!$G$43*F110+'Calibrated DGM'!$H$43 -> 0.06352396969 | R110: 0.02925977262 | S110: 0.008869062724 | T110: 0.08251498594 | U110: 0.04007496239
B111: 2029-04-30 | C111: 0.01133562092 | D111: =IF(B111<Control!C$8,D110+(INDEX(D:D,D$3)-D$19)/(D$3-19),Control!C$7) -> -0.005 | E111: =VLOOKUP(IF(MONTH(B111)<=6,DATE(YEAR(B111),6,30),DATE(YEAR(B111)+1,6,30)),'Intergenerational Chart 6.15'!A:E,MATCH(Control!C$9,'Intergenerational Chart 6.15'!A$3:E$3,0),FALSE)/100 -> 0.054 | F111: 0.02 | H111: =IF(H$3="Fitted to RFR",'Debt margin'!$M$46*C111+'Debt margin'!$N$46,H110) -> 0.0179241517 | I111: =IF(I$3="Fitted to RFR",'Debt margin'!$M$46*D111+'Debt margin'!$N$46,I110) -> 0.01386906272 | J111: =IF(J$3="Fitted to RFR",'Debt margin'!$M$46*E111+'Debt margin'!$N$46,J110) -> 0.02851498594 | K111: =IF(K$3="Fitted to RFR",'Debt margin'!$M$46*F111+'Debt margin'!$N$46,K110) -> 0.02007496239 | M111: ='Calibrated DGM'!$G$43*C111+'Calibrated DGM'!$H$43 -> 0.07044254074 | N111: ='Calibrated DGM'!$G$43*D111+'Calibrated DGM'!$H$43 -> 0.08348665538 | O111: ='Calibrated DGM'!$G$43*E111+'Calibrated DGM'!$H$43 -> 0.03637471715 | P111: ='Calibrated DGM'!$G$43*F111+'Calibrated DGM'!$H$43 -> 0.06352396969 | R111: 0.02925977262 | S111: 0.008869062724 | T111: 0.08251498594 | U111: 0.04007496239
B112: 2029-05-31 | C112: 0.01133562092 | D112: =IF(B112<Control!C$8,D111+(INDEX(D:D,D$3)-D$19)/(D$3-19),Control!C$7) -> -0.005 | E112: =VLOOKUP(IF(MONTH(B112)<=6,DATE(YEAR(B112),6,30),DATE(YEAR(B112)+1,6,30)),'Intergenerational Chart 6.15'!A:E,MATCH(Control!C$9,'Intergenerational Chart 6.15'!A$3:E$3,0),FALSE)/100 -> 0.054 | F112: 0.02 | H112: =IF(H$3="Fitted to RFR",'Debt margin'!$M$46*C112+'Debt margin'!$N$46,H111) -> 0.0179241517 | I112: =IF(I$3="Fitted to RFR",'Debt margin'!$M$46*D112+'Debt margin'!$N$46,I111) -> 0.01386906272 | J112: =IF(J$3="Fitted to RFR",'Debt margin'!$M$46*E112+'Debt margin'!$N$46,J111) -> 0.02851498594 | K112: =IF(K$3="Fitted to RFR",'Debt margin'!$M$46*F112+'Debt margin'!$N$46,K111) -> 0.02007496239 | M112: ='Calibrated DGM'!$G$43*C112+'Calibrated DGM'!$H$43 -> 0.07044254074 | N112: ='Calibrated DGM'!$G$43*D112+'Calibrated DGM'!$H$43 -> 0.08348665538 | O112: ='Calibrated DGM'!$G$43*E112+'Calibrated DGM'!$H$43 -> 0.03637471715 | P112: ='Calibrated DGM'!$G$43*F112+'Calibrated DGM'!$H$43 -> 0.06352396969 | R112: 0.02925977262 | S112: 0.008869062724 | T112: 0.08251498594 | U112: 0.04007496239
B113: 2029-06-30 | C113: 0.01133562092 | D113: =IF(B113<Control!C$8,D112+(INDEX(D:D,D$3)-D$19)/(D$3-19),Control!C$7) -> -0.005 | E113: =VLOOKUP(IF(MONTH(B113)<=6,DATE(YEAR(B113),6,30),DATE(YEAR(B113)+1,6,30)),'Intergenerational Chart 6.15'!A:E,MATCH(Control!C$9,'Intergenerational Chart 6.15'!A$3:E$3,0),FALSE)/100 -> 0.054 | F113: 0.02 | H113: =IF(H$3="Fitted to RFR",'Debt margin'!$M$46*C113+'Debt margin'!$N$46,H112) -> 0.0179241517 | I113: =IF(I$3="Fitted to RFR",'Debt margin'!$M$46*D113+'Debt margin'!$N$46,I112) -> 0.01386906272 | J113: =IF(J$3="Fitted to RFR",'Debt margin'!$M$46*E113+'Debt margin'!$N$46,J112) -> 0.02851498594 | K113: =IF(K$3="Fitted to RFR",'Debt margin'!$M$46*F113+'Debt margin'!$N$46,K112) -> 0.02007496239 | M113: ='Calibrated DGM'!$G$43*C113+'Calibrated DGM'!$H$43 -> 0.07044254074 | N113: ='Calibrated DGM'!$G$43*D113+'Calibrated DGM'!$H$43 -> 0.08348665538 | O113: ='Calibrated DGM'!$G$43*E113+'Calibrated DGM'!$H$43 -> 0.03637471715 | P113: ='Calibrated DGM'!$G$43*F113+'Calibrated DGM'!$H$43 -> 0.06352396969 | R113: 0.02925977262 | S113: 0.008869062724 | T113: 0.08251498594 | U113: 0.04007496239
B114: 2029-07-31 | C114: 0.01133562092 | D114: =IF(B114<Control!C$8,D113+(INDEX(D:D,D$3)-D$19)/(D$3-19),Control!C$7) -> -0.005 | E114: =VLOOKUP(IF(MONTH(B114)<=6,DATE(YEAR(B114),6,30),DATE(YEAR(B114)+1,6,30)),'Intergenerational Chart 6.15'!A:E,MATCH(Control!C$9,'Intergenerational Chart 6.15'!A$3:E$3,0),FALSE)/100 -> 0.055 | F114: 0.02 | H114: =IF(H$3="Fitted to RFR",'Debt margin'!$M$46*C114+'Debt margin'!$N$46,H113) -> 0.0179241517 | I114: =IF(I$3="Fitted to RFR",'Debt margin'!$M$46*D114+'Debt margin'!$N$46,I113) -> 0.01386906272 | J114: =IF(J$3="Fitted to RFR",'Debt margin'!$M$46*E114+'Debt margin'!$N$46,J113) -> 0.02876322193 | K114: =IF(K$3="Fitted to RFR",'Debt margin'!$M$46*F114+'Debt margin'!$N$46,K113) -> 0.02007496239 | M114: ='Calibrated DGM'!$G$43*C114+'Calibrated DGM'!$H$43 -> 0.07044254074 | N114: ='Calibrated DGM'!$G$43*D114+'Calibrated DGM'!$H$43 -> 0.08348665538 | O114: ='Calibrated DGM'!$G$43*E114+'Calibrated DGM'!$H$43 -> 0.03557620972 | P114: ='Calibrated DGM'!$G$43*F114+'Calibrated DGM'!$H$43 -> 0.06352396969 | R114: 0.02925977262 | S114: 0.008869062724 | T114: 0.08376322193 | U114: 0.04007496239
B115: 2029-08-31 | C115: 0.01133562092 | D115: =IF(B115<Control!C$8,D114+(INDEX(D:D,D$3)-D$19)/(D$3-19),Control!C$7) -> -0.005 | E115: =VLOOKUP(IF(MONTH(B115)<=6,DATE(YEAR(B115),6,30),DATE(YEAR(B115)+1,6,30)),'Intergenerational Chart 6.15'!A:E,MATCH(Control!C$9,'Intergenerational Chart 6.15'!A$3:E$3,0),FALSE)/100 -> 0.055 | F115: 0.02 | H115: =IF(H$3="Fitted to RFR",'Debt margin'!$M$46*C115+'Debt margin'!$N$46,H114) -> 0.0179241517 | I115: =IF(I$3="Fitted to RFR",'Debt margin'!$M$46*D115+'Debt margin'!$N$46,I114) -> 0.01386906272 | J115: =IF(J$3="Fitted to RFR",'Debt margin'!$M$46*E115+'Debt margin'!$N$46,J114) -> 0.02876322193 | K115: =IF(K$3="Fitted to RFR",'Debt margin'!$M$46*F115+'Debt margin'!$N$46,K114) -> 0.02007496239 | M115: ='Calibrated DGM'!$G$43*C115+'Calibrated DGM'!$H$43 -> 0.07044254074 | N115: ='Calibrated DGM'!$G$43*D115+'Calibrated DGM'!$H$43 -> 0.08348665538 | O115: ='Calibrated DGM'!$G$43*E115+'Calibrated DGM'!$H$43 -> 0.03557620972 | P115: ='Calibrated DGM'!$G$43*F115+'Calibrated DGM'!$H$43 -> 0.06352396969 | R115: 0.02925977262 | S115: 0.008869062724 | T115: 0.08376322193 | U115: 0.04007496239
B116: 2029-09-30 | C116: 0.01133562092 | D116: =IF(B116<Control!C$8,D115+(INDEX(D:D,D$3)-D$19)/(D$3-19),Control!C$7) -> -0.005 | E116: =VLOOKUP(IF(MONTH(B116)<=6,DATE(YEAR(B116),6,30),DATE(YEAR(B116)+1,6,30)),'Intergenerational Chart 6.15'!A:E,MATCH(Control!C$9,'Intergenerational Chart 6.15'!A$3:E$3,0),FALSE)/100 -> 0.055 | F116: 0.02 | H116: =IF(H$3="Fitted to RFR",'Debt margin'!$M$46*C116+'Debt margin'!$N$46,H115) -> 0.0179241517 | I116: =IF(I$3="Fitted to RFR",'Debt margin'!$M$46*D116+'Debt margin'!$N$46,I115) -> 0.01386906272 | J116: =IF(J$3="Fitted to RFR",'Debt margin'!$M$46*E116+'Debt margin'!$N$46,J115) -> 0.02876322193 | K116: =IF(K$3="Fitted to RFR",'Debt margin'!$M$46*F116+'Debt margin'!$N$46,K115) -> 0.02007496239 | M116: ='Calibrated DGM'!$G$43*C116+'Calibrated DGM'!$H$43 -> 0.07044254074 | N116: ='Calibrated DGM'!$G$43*D116+'Calibrated DGM'!$H$43 -> 0.08348665538 | O116: ='Calibrated DGM'!$G$43*E116+'Calibrated DGM'!$H$43 -> 0.03557620972 | P116: ='Calibrated DGM'!$G$43*F116+'Calibrated DGM'!$H$43 -> 0.06352396969 | R116: 0.02925977262 | S116: 0.008869062724 | T116: 0.08376322193 | U116: 0.04007496239
B117: 2029-10-31 | C117: 0.01133562092 | D117: =IF(B117<Control!C$8,D116+(INDEX(D:D,D$3)-D$19)/(D$3-19),Control!C$7) -> -0.005 | E117: =VLOOKUP(IF(MONTH(B117)<=6,DATE(YEAR(B117),6,30),DATE(YEAR(B117)+1,6,30)),'Intergenerational Chart 6.15'!A:E,MATCH(Control!C$9,'Intergenerational Chart 6.15'!A$3:E$3,0),FALSE)/100 -> 0.055 | F117: 0.02 | H117: =IF(H$3="Fitted to RFR",'Debt margin'!$M$46*C117+'Debt margin'!$N$46,H116) -> 0.0179241517 | I117: =IF(I$3="Fitted to RFR",'Debt margin'!$M$46*D117+'Debt margin'!$N$46,I116) -> 0.01386906272 | J117: =IF(J$3="Fitted to RFR",'Debt margin'!$M$46*E117+'Debt margin'!$N$46,J116) -> 0.02876322193 | K117: =IF(K$3="Fitted to RFR",'Debt margin'!$M$46*F117+'Debt margin'!$N$46,K116) -> 0.02007496239 | M117: ='Calibrated DGM'!$G$43*C117+'Calibrated DGM'!$H$43 -> 0.07044254074 | N117: ='Calibrated DGM'!$G$43*D117+'Calibrated DGM'!$H$43 -> 0.08348665538 | O117: ='Calibrated DGM'!$G$43*E117+'Calibrated DGM'!$H$43 -> 0.03557620972 | P117: ='Calibrated DGM'!$G$43*F117+'Calibrated DGM'!$H$43 -> 0.06352396969 | R117: 0.02925977262 | S117: 0.008869062724 | T117: 0.08376322193 | U117: 0.04007496239
B118: 2029-11-30 | C118: 0.01133562092 | D118: =IF(B118<Control!C$8,D117+(INDEX(D:D,D$3)-D$19)/(D$3-19),Control!C$7) -> -0.005 | E118: =VLOOKUP(IF(MONTH(B118)<=6,DATE(YEAR(B118),6,30),DATE(YEAR(B118)+1,6,30)),'Intergenerational Chart 6.15'!A:E,MATCH(Control!C$9,'Intergenerational Chart 6.15'!A$3:E$3,0),FALSE)/100 -> 0.055 | F118: 0.02 | H118: =IF(H$3="Fitted to RFR",'Debt margin'!$M$46*C118+'Debt margin'!$N$46,H117) -> 0.0179241517 | I118: =IF(I$3="Fitted to RFR",'Debt margin'!$M$46*D118+'Debt margin'!$N$46,I117) -> 0.01386906272 | J118: =IF(J$3="Fitted to RFR",'Debt margin'!$M$46*E118+'Debt margin'!$N$46,J117) -> 0.02876322193 | K118: =IF(K$3="Fitted to RFR",'Debt margin'!$M$46*F118+'Debt margin'!$N$46,K117) -> 0.02007496239 | M118: ='Calibrated DGM'!$G$43*C118+'Calibrated DGM'!$H$43 -> 0.07044254074 | N118: ='Calibrated DGM'!$G$43*D118+'Calibrated DGM'!$H$43 -> 0.08348665538 | O118: ='Calibrated DGM'!$G$43*E118+'Calibrated DGM'!$H$43 -> 0.03557620972 | P118: ='Calibrated DGM'!$G$43*F118+'Calibrated DGM'!$H$43 -> 0.06352396969 | R118: 0.02925977262 | S118: 0.008869062724 | T118: 0.08376322193 | U118: 0.04007496239
B119: 2029-12-31 | C119: 0.01133562092 | D119: =IF(B119<Control!C$8,D118+(INDEX(D:D,D$3)-D$19)/(D$3-19),Control!C$7) -> -0.005 | E119: =VLOOKUP(IF(MONTH(B119)<=6,DATE(YEAR(B119),6,30),DATE(YEAR(B119)+1,6,30)),'Intergenerational Chart 6.15'!A:E,MATCH(Control!C$9,'Intergenerational Chart 6.15'!A$3:E$3,0),FALSE)/100 -> 0.055 | F119: 0.02 | H119: =IF(H$3="Fitted to RFR",'Debt margin'!$M$46*C119+'Debt margin'!$N$46,H118) -> 0.0179241517 | I119: =IF(I$3="Fitted to RFR",'Debt margin'!$M$46*D119+'Debt margin'!$N$46,I118) -> 0.01386906272 | J119: =IF(J$3="Fitted to RFR",'Debt margin'!$M$46*E119+'Debt margin'!$N$46,J118) -> 0.02876322193 | K119: =IF(K$3="Fitted to RFR",'Debt margin'!$M$46*F119+'Debt margin'!$N$46,K118) -> 0.02007496239 | M119: ='Calibrated DGM'!$G$43*C119+'Calibrated DGM'!$H$43 -> 0.07044254074 | N119: ='Calibrated DGM'!$G$43*D119+'Calibrated DGM'!$H$43 -> 0.08348665538 | O119: ='Calibrated DGM'!$G$43*E119+'Calibrated DGM'!$H$43 -> 0.03557620972 | P119: ='Calibrated DGM'!$G$43*F119+'Calibrated DGM'!$H$43 -> 0.06352396969 | R119: 0.02925977262 | S119: 0.008869062724 | T119: 0.08376322193 | U119: 0.04007496239
B120: 2030-01-31 | C120: 0.01133562092 | D120: =IF(B120<Control!C$8,D119+(INDEX(D:D,D$3)-D$19)/(D$3-19),Control!C$7) -> -0.005 | E120: =VLOOKUP(IF(MONTH(B120)<=6,DATE(YEAR(B120),6,30),DATE(YEAR(B120)+1,6,30)),'Intergenerational Chart 6.15'!A:E,MATCH(Control!C$9,'Intergenerational Chart 6.15'!A$3:E$3,0),FALSE)/100 -> 0.055 | F120: 0.02 | H120: =IF(H$3="Fitted to RFR",'Debt margin'!$M$46*C120+'Debt margin'!$N$46,H119) -> 0.0179241517 | I120: =IF(I$3="Fitted to RFR",'Debt margin'!$M$46*D120+'Debt margin'!$N$46,I119) -> 0.01386906272 | J120: =IF(J$3="Fitted to RFR",'Debt margin'!$M$46*E120+'Debt margin'!$N$46,J119) -> 0.02876322193 | K120: =IF(K$3="Fitted to RFR",'Debt margin'!$M$46*F120+'Debt margin'!$N$46,K119) -> 0.02007496239 | M120: ='Calibrated DGM'!$G$43*C120+'Calibrated DGM'!$H$43 -> 0.07044254074 | N120: ='Calibrated DGM'!$G$43*D120+'Calibrated DGM'!$H$43 -> 0.08348665538 | O120: ='Calibrated DGM'!$G$43*E120+'Calibrated DGM'!$H$43 -> 0.03557620972 | P120: ='Calibrated DGM'!$G$43*F120+'Calibrated DGM'!$H$43 -> 0.06352396969 | R120: 0.02925977262 | S120: 0.008869062724 | T120: 0.08376322193 | U120: 0.04007496239
B121: 2030-02-28 | C121: 0.01133562092 | D121: =IF(B121<Control!C$8,D120+(INDEX(D:D,D$3)-D$19)/(D$3-19),Control!C$7) -> -0.005 | E121: =VLOOKUP(IF(MONTH(B121)<=6,DATE(YEAR(B121),6,30),DATE(YEAR(B121)+1,6,30)),'Intergenerational Chart 6.15'!A:E,MATCH(Control!C$9,'Intergenerational Chart 6.15'!A$3:E$3,0),FALSE)/100 -> 0.055 | F121: 0.02 | H121: =IF(H$3="Fitted to RFR",'Debt margin'!$M$46*C121+'Debt margin'!$N$46,H120) -> 0.0179241517 | I121: =IF(I$3="Fitted to RFR",'Debt margin'!$M$46*D121+'Debt margin'!$N$46,I120) -> 0.01386906272 | J121: =IF(J$3="Fitted to RFR",'Debt margin'!$M$46*E121+'Debt margin'!$N$46,J120) -> 0.02876322193 | K121: =IF(K$3="Fitted to RFR",'Debt margin'!$M$46*F121+'Debt margin'!$N$46,K120) -> 0.02007496239 | M121: ='Calibrated DGM'!$G$43*C121+'Calibrated DGM'!$H$43 -> 0.07044254074 | N121: ='Calibrated DGM'!$G$43*D121+'Calibrated DGM'!$H$43 -> 0.08348665538 | O121: ='Calibrated DGM'!$G$43*E121+'Calibrated DGM'!$H$43 -> 0.03557620972 | P121: ='Calibrated DGM'!$G$43*F121+'Calibrated DGM'!$H$43 -> 0.06352396969 | R121: 0.02925977262 | S121: 0.008869062724 | T121: 0.08376322193 | U121: 0.04007496239
B122: 2030-03-31 | C122: 0.01133562092 | D122: =IF(B122<Control!C$8,D121+(INDEX(D:D,D$3)-D$19)/(D$3-19),Control!C$7) -> -0.005 | E122: =VLOOKUP(IF(MONTH(B122)<=6,DATE(YEAR(B122),6,30),DATE(YEAR(B122)+1,6,30)),'Intergenerational Chart 6.15'!A:E,MATCH(Control!C$9,'Intergenerational Chart 6.15'!A$3:E$3,0),FALSE)/100 -> 0.055 | F122: 0.02 | H122: =IF(H$3="Fitted to RFR",'Debt margin'!$M$46*C122+'Debt margin'!$N$46,H121) -> 0.0179241517 | I122: =IF(I$3="Fitted to RFR",'Debt margin'!$M$46*D122+'Debt margin'!$N$46,I121) -> 0.01386906272 | J122: =IF(J$3="Fitted to RFR",'Debt margin'!$M$46*E122+'Debt margin'!$N$46,J121) -> 0.02876322193 | K122: =IF(K$3="Fitted to RFR",'Debt margin'!$M$46*F122+'Debt margin'!$N$46,K121) -> 0.02007496239 | M122: ='Calibrated DGM'!$G$43*C122+'Calibrated DGM'!$H$43 -> 0.07044254074 | N122: ='Calibrated DGM'!$G$43*D122+'Calibrated DGM'!$H$43 -> 0.08348665538 | O122: ='Calibrated DGM'!$G$43*E122+'Calibrated DGM'!$H$43 -> 0.03557620972 | P122: ='Calibrated DGM'!$G$43*F122+'Calibrated DGM'!$H$43 -> 0.06352396969 | R122: 0.02925977262 | S122: 0.008869062724 | T122: 0.08376322193 | U122: 0.04007496239
B123: 2030-04-30 | C123: 0.01133562092 | D123: =IF(B123<Control!C$8,D122+(INDEX(D:D,D$3)-D$19)/(D$3-19),Control!C$7) -> -0.005 | E123: =VLOOKUP(IF(MONTH(B123)<=6,DATE(YEAR(B123),6,30),DATE(YEAR(B123)+1,6,30)),'Intergenerational Chart 6.15'!A:E,MATCH(Control!C$9,'Intergenerational Chart 6.15'!A$3:E$3,0),FALSE)/100 -> 0.055 | F123: 0.02 | H123: =IF(H$3="Fitted to RFR",'Debt margin'!$M$46*C123+'Debt margin'!$N$46,H122) -> 0.0179241517 | I123: =IF(I$3="Fitted to RFR",'Debt margin'!$M$46*D123+'Debt margin'!$N$46,I122) -> 0.01386906272 | J123: =IF(J$3="Fitted to RFR",'Debt margin'!$M$46*E123+'Debt margin'!$N$46,J122) -> 0.02876322193 | K123: =IF(K$3="Fitted to RFR",'Debt margin'!$M$46*F123+'Debt margin'!$N$46,K122) -> 0.02007496239 | M123: ='Calibrated DGM'!$G$43*C123+'Calibrated DGM'!$H$43 -> 0.07044254074 | N123: ='Calibrated DGM'!$G$43*D123+'Calibrated DGM'!$H$43 -> 0.08348665538 | O123: ='Calibrated DGM'!$G$43*E123+'Calibrated DGM'!$H$43 -> 0.03557620972 | P123: ='Calibrated DGM'!$G$43*F123+'Calibrated DGM'!$H$43 -> 0.06352396969 | R123: 0.02925977262 | S123: 0.008869062724 | T123: 0.08376322193 | U123: 0.04007496239
B124: 2030-05-31 | C124: 0.01133562092 | D124: =IF(B124<Control!C$8,D123+(INDEX(D:D,D$3)-D$19)/(D$3-19),Control!C$7) -> -0.005 | E124: =VLOOKUP(IF(MONTH(B124)<=6,DATE(YEAR(B124),6,30),DATE(YEAR(B124)+1,6,30)),'Intergenerational Chart 6.15'!A:E,MATCH(Control!C$9,'Intergenerational Chart 6.15'!A$3:E$3,0),FALSE)/100 -> 0.055 | F124: 0.02 | H124: =IF(H$3="Fitted to RFR",'Debt margin'!$M$46*C124+'Debt margin'!$N$46,H123) -> 0.0179241517 | I124: =IF(I$3="Fitted to RFR",'Debt margin'!$M$46*D124+'Debt margin'!$N$46,I123) -> 0.01386906272 | J124: =IF(J$3="Fitted to RFR",'Debt margin'!$M$46*E124+'Debt margin'!$N$46,J123) -> 0.02876322193 | K124: =IF(K$3="Fitted to RFR",'Debt margin'!$M$46*F124+'Debt margin'!$N$46,K123) -> 0.02007496239 | M124: ='Calibrated DGM'!$G$43*C124+'Calibrated DGM'!$H$43 -> 0.07044254074 | N124: ='Calibrated DGM'!$G$43*D124+'Calibrated DGM'!$H$43 -> 0.08348665538 | O124: ='Calibrated DGM'!$G$43*E124+'Calibrated DGM'!$H$43 -> 0.03557620972 | P124: ='Calibrated DGM'!$G$43*F124+'Calibrated DGM'!$H$43 -> 0.06352396969 | R124: 0.02925977262 | S124: 0.008869062724 | T124: 0.08376322193 | U124: 0.04007496239
B125: 2030-06-30 | C125: 0.01133562092 | D125: =IF(B125<Control!C$8,D124+(INDEX(D:D,D$3)-D$19)/(D$3-19),Control!C$7) -> -0.005 | E125: =VLOOKUP(IF(MONTH(B125)<=6,DATE(YEAR(B125),6,30),DATE(YEAR(B125)+1,6,30)),'Intergenerational Chart 6.15'!A:E,MATCH(Control!C$9,'Intergenerational Chart 6.15'!A$3:E$3,0),FALSE)/100 -> 0.055 | F125: 0.02 | H125: =IF(H$3="Fitted to RFR",'Debt margin'!$M$46*C125+'Debt margin'!$N$46,H124) -> 0.0179241517 | I125: =IF(I$3="Fitted to RFR",'Debt margin'!$M$46*D125+'Debt margin'!$N$46,I124) -> 0.01386906272 | J125: =IF(J$3="Fitted to RFR",'Debt margin'!$M$46*E125+'Debt margin'!$N$46,J124) -> 0.02876322193 | K125: =IF(K$3="Fitted to RFR",'Debt margin'!$M$46*F125+'Debt margin'!$N$46,K124) -> 0.02007496239 | M125: ='Calibrated DGM'!$G$43*C125+'Calibrated DGM'!$H$43 -> 0.07044254074 | N125: ='Calibrated DGM'!$G$43*D125+'Calibrated DGM'!$H$43 -> 0.08348665538 | O125: ='Calibrated DGM'!$G$43*E125+'Calibrated DGM'!$H$43 -> 0.03557620972 | P125: ='Calibrated DGM'!$G$43*F125+'Calibrated DGM'!$H$43 -> 0.06352396969 | R125: 0.02925977262 | S125: 0.008869062724 | T125: 0.08376322193 | U125: 0.04007496239
B126: 2030-07-31 | C126: 0.01133562092 | D126: =IF(B126<Control!C$8,D125+(INDEX(D:D,D$3)-D$19)/(D$3-19),Control!C$7) -> -0.005 | E126: =VLOOKUP(IF(MONTH(B126)<=6,DATE(YEAR(B126),6,30),DATE(YEAR(B126)+1,6,30)),'Intergenerational Chart 6.15'!A:E,MATCH(Control!C$9,'Intergenerational Chart 6.15'!A$3:E$3,0),FALSE)/100 -> 0.055 | F126: 0.02 | H126: =IF(H$3="Fitted to RFR",'Debt margin'!$M$46*C126+'Debt margin'!$N$46,H125) -> 0.0179241517 | I126: =IF(I$3="Fitted to RFR",'Debt margin'!$M$46*D126+'Debt margin'!$N$46,I125) -> 0.01386906272 | J126: =IF(J$3="Fitted to RFR",'Debt margin'!$M$46*E126+'Debt margin'!$N$46,J125) -> 0.02876322193 | K126: =IF(K$3="Fitted to RFR",'Debt margin'!$M$46*F126+'Debt margin'!$N$46,K125) -> 0.02007496239 | M126: ='Calibrated DGM'!$G$43*C126+'Calibrated DGM'!$H$43 -> 0.07044254074 | N126: ='Calibrated DGM'!$G$43*D126+'Calibrated DGM'!$H$43 -> 0.08348665538 | O126: ='Calibrated DGM'!$G$43*E126+'Calibrated DGM'!$H$43 -> 0.03557620972 | P126: ='Calibrated DGM'!$G$43*F126+'Calibrated DGM'!$H$43 -> 0.06352396969 | R126: 0.02925977262 | S126: 0.008869062724 | T126: 0.08376322193 | U126: 0.04007496239
B127: 2030-08-31 | C127: 0.01133562092 | D127: =IF(B127<Control!C$8,D126+(INDEX(D:D,D$3)-D$19)/(D$3-19),Control!C$7) -> -0.005 | E127: =VLOOKUP(IF(MONTH(B127)<=6,DATE(YEAR(B127),6,30),DATE(YEAR(B127)+1,6,30)),'Intergenerational Chart 6.15'!A:E,MATCH(Control!C$9,'Intergenerational Chart 6.15'!A$3:E$3,0),FALSE)/100 -> 0.055 | F127: 0.02 | H127: =IF(H$3="Fitted to RFR",'Debt margin'!$M$46*C127+'Debt margin'!$N$46,H126) -> 0.0179241517 | I127: =IF(I$3="Fitted to RFR",'Debt margin'!$M$46*D127+'Debt margin'!$N$46,I126) -> 0.01386906272 | J127: =IF(J$3="Fitted to RFR",'Debt margin'!$M$46*E127+'Debt margin'!$N$46,J126) -> 0.02876322193 | K127: =IF(K$3="Fitted to RFR",'Debt margin'!$M$46*F127+'Debt margin'!$N$46,K126) -> 0.02007496239 | M127: ='Calibrated DGM'!$G$43*C127+'Calibrated DGM'!$H$43 -> 0.07044254074 | N127: ='Calibrated DGM'!$G$43*D127+'Calibrated DGM'!$H$43 -> 0.08348665538 | O127: ='Calibrated DGM'!$G$43*E127+'Calibrated DGM'!$H$43 -> 0.03557620972 | P127: ='Calibrated DGM'!$G$43*F127+'Calibrated DGM'!$H$43 -> 0.06352396969 | R127: 0.02925977262 | S127: 0.008869062724 | T127: 0.08376322193 | U127: 0.04007496239
B128: 2030-09-30 | C128: 0.01133562092 | D128: =IF(B128<Control!C$8,D127+(INDEX(D:D,D$3)-D$19)/(D$3-19),Control!C$7) -> -0.005 | E128: =VLOOKUP(IF(MONTH(B128)<=6,DATE(YEAR(B128),6,30),DATE(YEAR(B128)+1,6,30)),'Intergenerational Chart 6.15'!A:E,MATCH(Control!C$9,'Intergenerational Chart 6.15'!A$3:E$3,0),FALSE)/100 -> 0.055 | F128: 0.02 | H128: =IF(H$3="Fitted to RFR",'Debt margin'!$M$46*C128+'Debt margin'!$N$46,H127) -> 0.0179241517 | I128: =IF(I$3="Fitted to RFR",'Debt margin'!$M$46*D128+'Debt margin'!$N$46,I127) -> 0.01386906272 | J128: =IF(J$3="Fitted to RFR",'Debt margin'!$M$46*E128+'Debt margin'!$N$46,J127) -> 0.02876322193 | K128: =IF(K$3="Fitted to RFR",'Debt margin'!$M$46*F128+'Debt margin'!$N$46,K127) -> 0.02007496239 | M128: ='Calibrated DGM'!$G$43*C128+'Calibrated DGM'!$H$43 -> 0.07044254074 | N128: ='Calibrated DGM'!$G$43*D128+'Calibrated DGM'!$H$43 -> 0.08348665538 | O128: ='Calibrated DGM'!$G$43*E128+'Calibrated DGM'!$H$43 -> 0.03557620972 | P128: ='Calibrated DGM'!$G$43*F128+'Calibrated DGM'!$H$43 -> 0.06352396969 | R128: 0.02925977262 | S128: 0.008869062724 | T128: 0.08376322193 | U128: 0.04007496239
B129: 2030-10-31 | C129: 0.01133562092 | D129: =IF(B129<Control!C$8,D128+(INDEX(D:D,D$3)-D$19)/(D$3-19),Control!C$7) -> -0.005 | E129: =VLOOKUP(IF(MONTH(B129)<=6,DATE(YEAR(B129),6,30),DATE(YEAR(B129)+1,6,30)),'Intergenerational Chart 6.15'!A:E,MATCH(Control!C$9,'Intergenerational Chart 6.15'!A$3:E$3,0),FALSE)/100 -> 0.055 | F129: 0.02 | H129: =IF(H$3="Fitted to RFR",'Debt margin'!$M$46*C129+'Debt margin'!$N$46,H128) -> 0.0179241517 | I129: =IF(I$3="Fitted to RFR",'Debt margin'!$M$46*D129+'Debt margin'!$N$46,I128) -> 0.01386906272 | J129: =IF(J$3="Fitted to RFR",'Debt margin'!$M$46*E129+'Debt margin'!$N$46,J128) -> 0.02876322193 | K129: =IF(K$3="Fitted to RFR",'Debt margin'!$M$46*F129+'Debt margin'!$N$46,K128) -> 0.02007496239 | M129: ='Calibrated DGM'!$G$43*C129+'Calibrated DGM'!$H$43 -> 0.07044254074 | N129: ='Calibrated DGM'!$G$43*D129+'Calibrated DGM'!$H$43 -> 0.08348665538 | O129: ='Calibrated DGM'!$G$43*E129+'Calibrated DGM'!$H$43 -> 0.03557620972 | P129: ='Calibrated DGM'!$G$43*F129+'Calibrated DGM'!$H$43 -> 0.06352396969 | R129: 0.02925977262 | S129: 0.008869062724 | T129: 0.08376322193 | U129: 0.04007496239
B130: 2030-11-30 | C130: 0.01133562092 | D130: =IF(B130<Control!C$8,D129+(INDEX(D:D,D$3)-D$19)/(D$3-19),Control!C$7) -> -0.005 | E130: =VLOOKUP(IF(MONTH(B130)<=6,DATE(YEAR(B130),6,30),DATE(YEAR(B130)+1,6,30)),'Intergenerational Chart 6.15'!A:E,MATCH(Control!C$9,'Intergenerational Chart 6.15'!A$3:E$3,0),FALSE)/100 -> 0.055 | F130: 0.02 | H130: =IF(H$3="Fitted to RFR",'Debt margin'!$M$46*C130+'Debt margin'!$N$46,H129) -> 0.0179241517 | I130: =IF(I$3="Fitted to RFR",'Debt margin'!$M$46*D130+'Debt margin'!$N$46,I129) -> 0.01386906272 | J130: =IF(J$3="Fitted to RFR",'Debt margin'!$M$46*E130+'Debt margin'!$N$46,J129) -> 0.02876322193 | K130: =IF(K$3="Fitted to RFR",'Debt margin'!$M$46*F130+'Debt margin'!$N$46,K129) -> 0.02007496239 | M130: ='Calibrated DGM'!$G$43*C130+'Calibrated DGM'!$H$43 -> 0.07044254074 | N130: ='Calibrated DGM'!$G$43*D130+'Calibrated DGM'!$H$43 -> 0.08348665538 | O130: ='Calibrated DGM'!$G$43*E130+'Calibrated DGM'!$H$43 -> 0.03557620972 | P130: ='Calibrated DGM'!$G$43*F130+'Calibrated DGM'!$H$43 -> 0.06352396969 | R130: 0.02925977262 | S130: 0.008869062724 | T130: 0.08376322193 | U130: 0.04007496239
B131: 2030-12-31 | C131: 0.01133562092 | D131: =IF(B131<Control!C$8,D130+(INDEX(D:D,D$3)-D$19)/(D$3-19),Control!C$7) -> -0.005 | E131: =VLOOKUP(IF(MONTH(B131)<=6,DATE(YEAR(B131),6,30),DATE(YEAR(B131)+1,6,30)),'Intergenerational Chart 6.15'!A:E,MATCH(Control!C$9,'Intergenerational Chart 6.15'!A$3:E$3,0),FALSE)/100 -> 0.055 | F131: 0.02 | H131: =IF(H$3="Fitted to RFR",'Debt margin'!$M$46*C131+'Debt margin'!$N$46,H130) -> 0.0179241517 | I131: =IF(I$3="Fitted to RFR",'Debt margin'!$M$46*D131+'Debt margin'!$N$46,I130) -> 0.01386906272 | J131: =IF(J$3="Fitted to RFR",'Debt margin'!$M$46*E131+'Debt margin'!$N$46,J130) -> 0.02876322193 | K131: =IF(K$3="Fitted to RFR",'Debt margin'!$M$46*F131+'Debt margin'!$N$46,K130) -> 0.02007496239 | M131: ='Calibrated DGM'!$G$43*C131+'Calibrated DGM'!$H$43 -> 0.07044254074 | N131: ='Calibrated DGM'!$G$43*D131+'Calibrated DGM'!$H$43 -> 0.08348665538 | O131: ='Calibrated DGM'!$G$43*E131+'Calibrated DGM'!$H$43 -> 0.03557620972 | P131: ='Calibrated DGM'!$G$43*F131+'Calibrated DGM'!$H$43 -> 0.06352396969 | R131: 0.02925977262 | S131: 0.008869062724 | T131: 0.08376322193 | U131: 0.04007496239
B132: 2031-01-31 | C132: 0.01133562092 | D132: =IF(B132<Control!C$8,D131+(INDEX(D:D,D$3)-D$19)/(D$3-19),Control!C$7) -> -0.005 | E132: =VLOOKUP(IF(MONTH(B132)<=6,DATE(YEAR(B132),6,30),DATE(YEAR(B132)+1,6,30)),'Intergenerational Chart 6.15'!A:E,MATCH(Control!C$9,'Intergenerational Chart 6.15'!A$3:E$3,0),FALSE)/100 -> 0.055 | F132: 0.02 | H132: =IF(H$3="Fitted to RFR",'Debt margin'!$M$46*C132+'Debt margin'!$N$46,H131) -> 0.0179241517 | I132: =IF(I$3="Fitted to RFR",'Debt margin'!$M$46*D132+'Debt margin'!$N$46,I131) -> 0.01386906272 | J132: =IF(J$3="Fitted to RFR",'Debt margin'!$M$46*E132+'Debt margin'!$N$46,J131) -> 0.02876322193 | K132: =IF(K$3="Fitted to RFR",'Debt margin'!$M$46*F132+'Debt margin'!$N$46,K131) -> 0.02007496239 | M132: ='Calibrated DGM'!$G$43*C132+'Calibrated DGM'!$H$43 -> 0.07044254074 | N132: ='Calibrated DGM'!$G$43*D132+'Calibrated DGM'!$H$43 -> 0.08348665538 | O132: ='Calibrated DGM'!$G$43*E132+'Calibrated DGM'!$H$43 -> 0.03557620972 | P132: ='Calibrated DGM'!$G$43*F132+'Calibrated DGM'!$H$43 -> 0.06352396969 | R132: 0.02925977262 | S132: 0.008869062724 | T132: 0.08376322193 | U132: 0.04007496239
B133: 2031-02-28 | C133: 0.01133562092 | D133: =IF(B133<Control!C$8,D132+(INDEX(D:D,D$3)-D$19)/(D$3-19),Control!C$7) -> -0.005 | E133: =VLOOKUP(IF(MONTH(B133)<=6,DATE(YEAR(B133),6,30),DATE(YEAR(B133)+1,6,30)),'Intergenerational Chart 6.15'!A:E,MATCH(Control!C$9,'Intergenerational Chart 6.15'!A$3:E$3,0),FALSE)/100 -> 0.055 | F133: 0.02 | H133: =IF(H$3="Fitted to RFR",'Debt margin'!$M$46*C133+'Debt margin'!$N$46,H132) -> 0.0179241517 | I133: =IF(I$3="Fitted to RFR",'Debt margin'!$M$46*D133+'Debt margin'!$N$46,I132) -> 0.01386906272 | J133: =IF(J$3="Fitted to RFR",'Debt margin'!$M$46*E133+'Debt margin'!$N$46,J132) -> 0.02876322193 | K133: =IF(K$3="Fitted to RFR",'Debt margin'!$M$46*F133+'Debt margin'!$N$46,K132) -> 0.02007496239 | M133: ='Calibrated DGM'!$G$43*C133+'Calibrated DGM'!$H$43 -> 0.07044254074 | N133: ='Calibrated DGM'!$G$43*D133+'Calibrated DGM'!$H$43 -> 0.08348665538 | O133: ='Calibrated DGM'!$G$43*E133+'Calibrated DGM'!$H$43 -> 0.03557620972 | P133: ='Calibrated DGM'!$G$43*F133+'Calibrated DGM'!$H$43 -> 0.06352396969 | R133: 0.02925977262 | S133: 0.008869062724 | T133: 0.08376322193 | U133: 0.04007496239
B134: 2031-03-31 | C134: 0.01133562092 | D134: =IF(B134<Control!C$8,D133+(INDEX(D:D,D$3)-D$19)/(D$3-19),Control!C$7) -> -0.005 | E134: =VLOOKUP(IF(MONTH(B134)<=6,DATE(YEAR(B134),6,30),DATE(YEAR(B134)+1,6,30)),'Intergenerational Chart 6.15'!A:E,MATCH(Control!C$9,'Intergenerational Chart 6.15'!A$3:E$3,0),FALSE)/100 -> 0.055 | F134: 0.02 | H134: =IF(H$3="Fitted to RFR",'Debt margin'!$M$46*C134+'Debt margin'!$N$46,H133) -> 0.0179241517 | I134: =IF(I$3="Fitted to RFR",'Debt margin'!$M$46*D134+'Debt margin'!$N$46,I133) -> 0.01386906272 | J134: =IF(J$3="Fitted to RFR",'Debt margin'!$M$46*E134+'Debt margin'!$N$46,J133) -> 0.02876322193 | K134: =IF(K$3="Fitted to RFR",'Debt margin'!$M$46*F134+'Debt margin'!$N$46,K133) -> 0.02007496239 | M134: ='Calibrated DGM'!$G$43*C134+'Calibrated DGM'!$H$43 -> 0.07044254074 | N134: ='Calibrated DGM'!$G$43*D134+'Calibrated DGM'!$H$43 -> 0.08348665538 | O134: ='Calibrated DGM'!$G$43*E134+'Calibrated DGM'!$H$43 -> 0.03557620972 | P134: ='Calibrated DGM'!$G$43*F134+'Calibrated DGM'!$H$43 -> 0.06352396969 | R134: 0.02925977262 | S134: 0.008869062724 | T134: 0.08376322193 | U134: 0.04007496239
B135: 2031-04-30 | C135: 0.01133562092 | D135: =IF(B135<Control!C$8,D134+(INDEX(D:D,D$3)-D$19)/(D$3-19),Control!C$7) -> -0.005 | E135: =VLOOKUP(IF(MONTH(B135)<=6,DATE(YEAR(B135),6,30),DATE(YEAR(B135)+1,6,30)),'Intergenerational Chart 6.15'!A:E,MATCH(Control!C$9,'Intergenerational Chart 6.15'!A$3:E$3,0),FALSE)/100 -> 0.055 | F135: 0.02 | H135: =IF(H$3="Fitted to RFR",'Debt margin'!$M$46*C135+'Debt margin'!$N$46,H134) -> 0.0179241517 | I135: =IF(I$3="Fitted to RFR",'Debt margin'!$M$46*D135+'Debt margin'!$N$46,I134) -> 0.01386906272 | J135: =IF(J$3="Fitted to RFR",'Debt margin'!$M$46*E135+'Debt margin'!$N$46,J134) -> 0.02876322193 | K135: =IF(K$3="Fitted to RFR",'Debt margin'!$M$46*F135+'Debt margin'!$N$46,K134) -> 0.02007496239 | M135: ='Calibrated DGM'!$G$43*C135+'Calibrated DGM'!$H$43 -> 0.07044254074 | N135: ='Calibrated DGM'!$G$43*D135+'Calibrated DGM'!$H$43 -> 0.08348665538 | O135: ='Calibrated DGM'!$G$43*E135+'Calibrated DGM'!$H$43 -> 0.03557620972 | P135: ='Calibrated DGM'!$G$43*F135+'Calibrated DGM'!$H$43 -> 0.06352396969 | R135: 0.02925977262 | S135: 0.008869062724 | T135: 0.08376322193 | U135: 0.04007496239
B136: 2031-05-31 | C136: 0.01133562092 | D136: =IF(B136<Control!C$8,D135+(INDEX(D:D,D$3)-D$19)/(D$3-19),Control!C$7) -> -0.005 | E136: =VLOOKUP(IF(MONTH(B136)<=6,DATE(YEAR(B136),6,30),DATE(YEAR(B136)+1,6,30)),'Intergenerational Chart 6.15'!A:E,MATCH(Control!C$9,'Intergenerational Chart 6.15'!A$3:E$3,0),FALSE)/100 -> 0.055 | F136: 0.02 | H136: =IF(H$3="Fitted to RFR",'Debt margin'!$M$46*C136+'Debt margin'!$N$46,H135) -> 0.0179241517 | I136: =IF(I$3="Fitted to RFR",'Debt margin'!$M$46*D136+'Debt margin'!$N$46,I135) -> 0.01386906272 | J136: =IF(J$3="Fitted to RFR",'Debt margin'!$M$46*E136+'Debt margin'!$N$46,J135) -> 0.02876322193 | K136: =IF(K$3="Fitted to RFR",'Debt margin'!$M$46*F136+'Debt margin'!$N$46,K135) -> 0.02007496239 | M136: ='Calibrated DGM'!$G$43*C136+'Calibrated DGM'!$H$43 -> 0.07044254074 | N136: ='Calibrated DGM'!$G$43*D136+'Calibrated DGM'!$H$43 -> 0.08348665538 | O136: ='Calibrated DGM'!$G$43*E136+'Calibrated DGM'!$H$43 -> 0.03557620972 | P136: ='Calibrated DGM'!$G$43*F136+'Calibrated DGM'!$H$43 -> 0.06352396969 | R136: 0.02925977262 | S136: 0.008869062724 | T136: 0.08376322193 | U136: 0.04007496239
B137: 2031-06-30 | C137: 0.01133562092 | D137: =IF(B137<Control!C$8,D136+(INDEX(D:D,D$3)-D$19)/(D$3-19),Control!C$7) -> -0.005 | E137: =VLOOKUP(IF(MONTH(B137)<=6,DATE(YEAR(B137),6,30),DATE(YEAR(B137)+1,6,30)),'Intergenerational Chart 6.15'!A:E,MATCH(Control!C$9,'Intergenerational Chart 6.15'!A$3:E$3,0),FALSE)/100 -> 0.055 | F137: 0.02 | H137: =IF(H$3="Fitted to RFR",'Debt margin'!$M$46*C137+'Debt margin'!$N$46,H136) -> 0.0179241517 | I137: =IF(I$3="Fitted to RFR",'Debt margin'!$M$46*D137+'Debt margin'!$N$46,I136) -> 0.01386906272 | J137: =IF(J$3="Fitted to RFR",'Debt margin'!$M$46*E137+'Debt margin'!$N$46,J136) -> 0.02876322193 | K137: =IF(K$3="Fitted to RFR",'Debt margin'!$M$46*F137+'Debt margin'!$N$46,K136) -> 0.02007496239 | M137: ='Calibrated DGM'!$G$43*C137+'Calibrated DGM'!$H$43 -> 0.07044254074 | N137: ='Calibrated DGM'!$G$43*D137+'Calibrated DGM'!$H$43 -> 0.08348665538 | O137: ='Calibrated DGM'!$G$43*E137+'Calibrated DGM'!$H$43 -> 0.03557620972 | P137: ='Calibrated DGM'!$G$43*F137+'Calibrated DGM'!$H$43 -> 0.06352396969 | R137: 0.02925977262 | S137: 0.008869062724 | T137: 0.08376322193 | U137: 0.04007496239
B138: 2031-07-31 | C138: 0.01133562092 | D138: =IF(B138<Control!C$8,D137+(INDEX(D:D,D$3)-D$19)/(D$3-19),Control!C$7) -> -0.005 | E138: =VLOOKUP(IF(MONTH(B138)<=6,DATE(YEAR(B138),6,30),DATE(YEAR(B138)+1,6,30)),'Intergenerational Chart 6.15'!A:E,MATCH(Control!C$9,'Intergenerational Chart 6.15'!A$3:E$3,0),FALSE)/100 -> 0.055 | F138: 0.02 | H138: =IF(H$3="Fitted to RFR",'Debt margin'!$M$46*C138+'Debt margin'!$N$46,H137) -> 0.0179241517 | I138: =IF(I$3="Fitted to RFR",'Debt margin'!$M$46*D138+'Debt margin'!$N$46,I137) -> 0.01386906272 | J138: =IF(J$3="Fitted to RFR",'Debt margin'!$M$46*E138+'Debt margin'!$N$46,J137) -> 0.02876322193 | K138: =IF(K$3="Fitted to RFR",'Debt margin'!$M$46*F138+'Debt margin'!$N$46,K137) -> 0.02007496239 | M138: ='Calibrated DGM'!$G$43*C138+'Calibrated DGM'!$H$43 -> 0.07044254074 | N138: ='Calibrated DGM'!$G$43*D138+'Calibrated DGM'!$H$43 -> 0.08348665538 | O138: ='Calibrated DGM'!$G$43*E138+'Calibrated DGM'!$H$43 -> 0.03557620972 | P138: ='Calibrated DGM'!$G$43*F138+'Calibrated DGM'!$H$43 -> 0.06352396969 | R138: 0.02925977262 | S138: 0.008869062724 | T138: 0.08376322193 | U138: 0.04007496239
B139: 2031-08-31 | C139: 0.01133562092 | D139: =IF(B139<Control!C$8,D138+(INDEX(D:D,D$3)-D$19)/(D$3-19),Control!C$7) -> -0.005 | E139: =VLOOKUP(IF(MONTH(B139)<=6,DATE(YEAR(B139),6,30),DATE(YEAR(B139)+1,6,30)),'Intergenerational Chart 6.15'!A:E,MATCH(Control!C$9,'Intergenerational Chart 6.15'!A$3:E$3,0),FALSE)/100 -> 0.055 | F139: 0.02 | H139: =IF(H$3="Fitted to RFR",'Debt margin'!$M$46*C139+'Debt margin'!$N$46,H138) -> 0.0179241517 | I139: =IF(I$3="Fitted to RFR",'Debt margin'!$M$46*D139+'Debt margin'!$N$46,I138) -> 0.01386906272 | J139: =IF(J$3="Fitted to RFR",'Debt margin'!$M$46*E139+'Debt margin'!$N$46,J138) -> 0.02876322193 | K139: =IF(K$3="Fitted to RFR",'Debt margin'!$M$46*F139+'Debt margin'!$N$46,K138) -> 0.02007496239 | M139: ='Calibrated DGM'!$G$43*C139+'Calibrated DGM'!$H$43 -> 0.07044254074 | N139: ='Calibrated DGM'!$G$43*D139+'Calibrated DGM'!$H$43 -> 0.08348665538 | O139: ='Calibrated DGM'!$G$43*E139+'Calibrated DGM'!$H$43 -> 0.03557620972 | P139: ='Calibrated DGM'!$G$43*F139+'Calibrated DGM'!$H$43 -> 0.06352396969 | R139: 0.02925977262 | S139: 0.008869062724 | T139: 0.08376322193 | U139: 0.04007496239
B140: 2031-09-30 | C140: 0.01133562092 | D140: =IF(B140<Control!C$8,D139+(INDEX(D:D,D$3)-D$19)/(D$3-19),Control!C$7) -> -0.005 | E140: =VLOOKUP(IF(MONTH(B140)<=6,DATE(YEAR(B140),6,30),DATE(YEAR(B140)+1,6,30)),'Intergenerational Chart 6.15'!A:E,MATCH(Control!C$9,'Intergenerational Chart 6.15'!A$3:E$3,0),FALSE)/100 -> 0.055 | F140: 0.02 | H140: =IF(H$3="Fitted to RFR",'Debt margin'!$M$46*C140+'Debt margin'!$N$46,H139) -> 0.0179241517 | I140: =IF(I$3="Fitted to RFR",'Debt margin'!$M$46*D140+'Debt margin'!$N$46,I139) -> 0.01386906272 | J140: =IF(J$3="Fitted to RFR",'Debt margin'!$M$46*E140+'Debt margin'!$N$46,J139) -> 0.02876322193 | K140: =IF(K$3="Fitted to RFR",'Debt margin'!$M$46*F140+'Debt margin'!$N$46,K139) -> 0.02007496239 | M140: ='Calibrated DGM'!$G$43*C140+'Calibrated DGM'!$H$43 -> 0.07044254074 | N140: ='Calibrated DGM'!$G$43*D140+'Calibrated DGM'!$H$43 -> 0.08348665538 | O140: ='Calibrated DGM'!$G$43*E140+'Calibrated DGM'!$H$43 -> 0.03557620972 | P140: ='Calibrated DGM'!$G$43*F140+'Calibrated DGM'!$H$43 -> 0.06352396969 | R140: 0.02925977262 | S140: 0.008869062724 | T140: 0.08376322193 | U140: 0.04007496239
B141: 2031-10-31 | C141: 0.01133562092 | D141: =IF(B141<Control!C$8,D140+(INDEX(D:D,D$3)-D$19)/(D$3-19),Control!C$7) -> -0.005 | E141: =VLOOKUP(IF(MONTH(B141)<=6,DATE(YEAR(B141),6,30),DATE(YEAR(B141)+1,6,30)),'Intergenerational Chart 6.15'!A:E,MATCH(Control!C$9,'Intergenerational Chart 6.15'!A$3:E$3,0),FALSE)/100 -> 0.055 | F141: 0.02 | H141: =IF(H$3="Fitted to RFR",'Debt margin'!$M$46*C141+'Debt margin'!$N$46,H140) -> 0.0179241517 | I141: =IF(I$3="Fitted to RFR",'Debt margin'!$M$46*D141+'Debt margin'!$N$46,I140) -> 0.01386906272 | J141: =IF(J$3="Fitted to RFR",'Debt margin'!$M$46*E141+'Debt margin'!$N$46,J140) -> 0.02876322193 | K141: =IF(K$3="Fitted to RFR",'Debt margin'!$M$46*F141+'Debt margin'!$N$46,K140) -> 0.02007496239 | M141: ='Calibrated DGM'!$G$43*C141+'Calibrated DGM'!$H$43 -> 0.07044254074 | N141: ='Calibrated DGM'!$G$43*D141+'Calibrated DGM'!$H$43 -> 0.08348665538 | O141: ='Calibrated DGM'!$G$43*E141+'Calibrated DGM'!$H$43 -> 0.03557620972 | P141: ='Calibrated DGM'!$G$43*F141+'Calibrated DGM'!$H$43 -> 0.06352396969 | R141: 0.02925977262 | S141: 0.008869062724 | T141: 0.08376322193 | U141: 0.04007496239
B142: 2031-11-30 | C142: 0.01133562092 | D142: =IF(B142<Control!C$8,D141+(INDEX(D:D,D$3)-D$19)/(D$3-19),Control!C$7) -> -0.005 | E142: =VLOOKUP(IF(MONTH(B142)<=6,DATE(YEAR(B142),6,30),DATE(YEAR(B142)+1,6,30)),'Intergenerational Chart 6.15'!A:E,MATCH(Control!C$9,'Intergenerational Chart 6.15'!A$3:E$3,0),FALSE)/100 -> 0.055 | F142: 0.02 | H142: =IF(H$3="Fitted to RFR",'Debt margin'!$M$46*C142+'Debt margin'!$N$46,H141) -> 0.0179241517 | I142: =IF(I$3="Fitted to RFR",'Debt margin'!$M$46*D142+'Debt margin'!$N$46,I141) -> 0.01386906272 | J142: =IF(J$3="Fitted to RFR",'Debt margin'!$M$46*E142+'Debt margin'!$N$46,J141) -> 0.02876322193 | K142: =IF(K$3="Fitted to RFR",'Debt margin'!$M$46*F142+'Debt margin'!$N$46,K141) -> 0.02007496239 | M142: ='Calibrated DGM'!$G$43*C142+'Calibrated DGM'!$H$43 -> 0.07044254074 | N142: ='Calibrated DGM'!$G$43*D142+'Calibrated DGM'!$H$43 -> 0.08348665538 | O142: ='Calibrated DGM'!$G$43*E142+'Calibrated DGM'!$H$43 -> 0.03557620972 | P142: ='Calibrated DGM'!$G$43*F142+'Calibrated DGM'!$H$43 -> 0.06352396969 | R142: 0.02925977262 | S142: 0.008869062724 | T142: 0.08376322193 | U142: 0.04007496239
B143: 2031-12-31 | C143: 0.01133562092 | D143: =IF(B143<Control!C$8,D142+(INDEX(D:D,D$3)-D$19)/(D$3-19),Control!C$7) -> -0.005 | E143: =VLOOKUP(IF(MONTH(B143)<=6,DATE(YEAR(B143),6,30),DATE(YEAR(B143)+1,6,30)),'Intergenerational Chart 6.15'!A:E,MATCH(Control!C$9,'Intergenerational Chart 6.15'!A$3:E$3,0),FALSE)/100 -> 0.055 | F143: 0.02 | H143: =IF(H$3="Fitted to RFR",'Debt margin'!$M$46*C143+'Debt margin'!$N$46,H142) -> 0.0179241517 | I143: =IF(I$3="Fitted to RFR",'Debt margin'!$M$46*D143+'Debt margin'!$N$46,I142) -> 0.01386906272 | J143: =IF(J$3="Fitted to RFR",'Debt margin'!$M$46*E143+'Debt margin'!$N$46,J142) -> 0.02876322193 | K143: =IF(K$3="Fitted to RFR",'Debt margin'!$M$46*F143+'Debt margin'!$N$46,K142) -> 0.02007496239 | M143: ='Calibrated DGM'!$G$43*C143+'Calibrated DGM'!$H$43 -> 0.07044254074 | N143: ='Calibrated DGM'!$G$43*D143+'Calibrated DGM'!$H$43 -> 0.08348665538 | O143: ='Calibrated DGM'!$G$43*E143+'Calibrated DGM'!$H$43 -> 0.03557620972 | P143: ='Calibrated DGM'!$G$43*F143+'Calibrated DGM'!$H$43 -> 0.06352396969 | R143: 0.02925977262 | S143: 0.008869062724 | T143: 0.08376322193 | U143: 0.04007496239
B144: 2032-01-31 | C144: 0.01133562092 | D144: =IF(B144<Control!C$8,D143+(INDEX(D:D,D$3)-D$19)/(D$3-19),Control!C$7) -> -0.005 | E144: =VLOOKUP(IF(MONTH(B144)<=6,DATE(YEAR(B144),6,30),DATE(YEAR(B144)+1,6,30)),'Intergenerational Chart 6.15'!A:E,MATCH(Control!C$9,'Intergenerational Chart 6.15'!A$3:E$3,0),FALSE)/100 -> 0.055 | F144: 0.02 | H144: =IF(H$3="Fitted to RFR",'Debt margin'!$M$46*C144+'Debt margin'!$N$46,H143) -> 0.0179241517 | I144: =IF(I$3="Fitted to RFR",'Debt margin'!$M$46*D144+'Debt margin'!$N$46,I143) -> 0.01386906272 | J144: =IF(J$3="Fitted to RFR",'Debt margin'!$M$46*E144+'Debt margin'!$N$46,J143) -> 0.02876322193 | K144: =IF(K$3="Fitted to RFR",'Debt margin'!$M$46*F144+'Debt margin'!$N$46,K143) -> 0.02007496239 | M144: ='Calibrated DGM'!$G$43*C144+'Calibrated DGM'!$H$43 -> 0.07044254074 | N144: ='Calibrated DGM'!$G$43*D144+'Calibrated DGM'!$H$43 -> 0.08348665538 | O144: ='Calibrated DGM'!$G$43*E144+'Calibrated DGM'!$H$43 -> 0.03557620972 | P144: ='Calibrated DGM'!$G$43*F144+'Calibrated DGM'!$H$43 -> 0.06352396969 | R144: 0.02925977262 | S144: 0.008869062724 | T144: 0.08376322193 | U144: 0.04007496239
B145: 2032-02-29 | C145: 0.01133562092 | D145: =IF(B145<Control!C$8,D144+(INDEX(D:D,D$3)-D$19)/(D$3-19),Control!C$7) -> -0.005 | E145: =VLOOKUP(IF(MONTH(B145)<=6,DATE(YEAR(B145),6,30),DATE(YEAR(B145)+1,6,30)),'Intergenerational Chart 6.15'!A:E,MATCH(Control!C$9,'Intergenerational Chart 6.15'!A$3:E$3,0),FALSE)/100 -> 0.055 | F145: 0.02 | H145: =IF(H$3="Fitted to RFR",'Debt margin'!$M$46*C145+'Debt margin'!$N$46,H144) -> 0.0179241517 | I145: =IF(I$3="Fitted to RFR",'Debt margin'!$M$46*D145+'Debt margin'!$N$46,I144) -> 0.01386906272 | J145: =IF(J$3="Fitted to RFR",'Debt margin'!$M$46*E145+'Debt margin'!$N$46,J144) -> 0.02876322193 | K145: =IF(K$3="Fitted to RFR",'Debt margin'!$M$46*F145+'Debt margin'!$N$46,K144) -> 0.02007496239 | M145: ='Calibrated DGM'!$G$43*C145+'Calibrated DGM'!$H$43 -> 0.07044254074 | N145: ='Calibrated DGM'!$G$43*D145+'Calibrated DGM'!$H$43 -> 0.08348665538 | O145: ='Calibrated DGM'!$G$43*E145+'Calibrated DGM'!$H$43 -> 0.03557620972 | P145: ='Calibrated DGM'!$G$43*F145+'Calibrated DGM'!$H$43 -> 0.06352396969 | R145: 0.02925977262 | S145: 0.008869062724 | T145: 0.08376322193 | U145: 0.04007496239
B146: 2032-03-31 | C146: 0.01133562092 | D146: =IF(B146<Control!C$8,D145+(INDEX(D:D,D$3)-D$19)/(D$3-19),Control!C$7) -> -0.005 | E146: =VLOOKUP(IF(MONTH(B146)<=6,DATE(YEAR(B146),6,30),DATE(YEAR(B146)+1,6,30)),'Intergenerational Chart 6.15'!A:E,MATCH(Control!C$9,'Intergenerational Chart 6.15'!A$3:E$3,0),FALSE)/100 -> 0.055 | F146: 0.02 | H146: =IF(H$3="Fitted to RFR",'Debt margin'!$M$46*C146+'Debt margin'!$N$46,H145) -> 0.0179241517 | I146: =IF(I$3="Fitted to RFR",'Debt margin'!$M$46*D146+'Debt margin'!$N$46,I145) -> 0.01386906272 | J146: =IF(J$3="Fitted to RFR",'Debt margin'!$M$46*E146+'Debt margin'!$N$46,J145) -> 0.02876322193 | K146: =IF(K$3="Fitted to RFR",'Debt margin'!$M$46*F146+'Debt margin'!$N$46,K145) -> 0.02007496239 | M146: ='Calibrated DGM'!$G$43*C146+'Calibrated DGM'!$H$43 -> 0.07044254074 | N146: ='Calibrated DGM'!$G$43*D146+'Calibrated DGM'!$H$43 -> 0.08348665538 | O146: ='Calibrated DGM'!$G$43*E146+'Calibrated DGM'!$H$43 -> 0.03557620972 | P146: ='Calibrated DGM'!$G$43*F146+'Calibrated DGM'!$H$43 -> 0.06352396969 | R146: 0.02925977262 | S146: 0.008869062724 | T146: 0.08376322193 | U146: 0.04007496239
B147: 2032-04-30 | C147: 0.01133562092 | D147: =IF(B147<Control!C$8,D146+(INDEX(D:D,D$3)-D$19)/(D$3-19),Control!C$7) -> -0.005 | E147: =VLOOKUP(IF(MONTH(B147)<=6,DATE(YEAR(B147),6,30),DATE(YEAR(B147)+1,6,30)),'Intergenerational Chart 6.15'!A:E,MATCH(Control!C$9,'Intergenerational Chart 6.15'!A$3:E$3,0),FALSE)/100 -> 0.055 | F147: 0.02 | H147: =IF(H$3="Fitted to RFR",'Debt margin'!$M$46*C147+'Debt margin'!$N$46,H146) -> 0.0179241517 | I147: =IF(I$3="Fitted to RFR",'Debt margin'!$M$46*D147+'Debt margin'!$N$46,I146) -> 0.01386906272 | J147: =IF(J$3="Fitted to RFR",'Debt margin'!$M$46*E147+'Debt margin'!$N$46,J146) -> 0.02876322193 | K147: =IF(K$3="Fitted to RFR",'Debt margin'!$M$46*F147+'Debt margin'!$N$46,K146) -> 0.02007496239 | M147: ='Calibrated DGM'!$G$43*C147+'Calibrated DGM'!$H$43 -> 0.07044254074 | N147: ='Calibrated DGM'!$G$43*D147+'Calibrated DGM'!$H$43 -> 0.08348665538 | O147: ='Calibrated DGM'!$G$43*E147+'Calibrated DGM'!$H$43 -> 0.03557620972 | P147: ='Calibrated DGM'!$G$43*F147+'Calibrated DGM'!$H$43 -> 0.06352396969 | R147: 0.02925977262 | S147: 0.008869062724 | T147: 0.08376322193 | U147: 0.04007496239
B148: 2032-05-31 | C148: 0.01133562092 | D148: =IF(B148<Control!C$8,D147+(INDEX(D:D,D$3)-D$19)/(D$3-19),Control!C$7) -> -0.005 | E148: =VLOOKUP(IF(MONTH(B148)<=6,DATE(YEAR(B148),6,30),DATE(YEAR(B148)+1,6,30)),'Intergenerational Chart 6.15'!A:E,MATCH(Control!C$9,'Intergenerational Chart 6.15'!A$3:E$3,0),FALSE)/100 -> 0.055 | F148: 0.02 | H148: =IF(H$3="Fitted to RFR",'Debt margin'!$M$46*C148+'Debt margin'!$N$46,H147) -> 0.0179241517 | I148: =IF(I$3="Fitted to RFR",'Debt margin'!$M$46*D148+'Debt margin'!$N$46,I147) -> 0.01386906272 | J148: =IF(J$3="Fitted to RFR",'Debt margin'!$M$46*E148+'Debt margin'!$N$46,J147) -> 0.02876322193 | K148: =IF(K$3="Fitted to RFR",'Debt margin'!$M$46*F148+'Debt margin'!$N$46,K147) -> 0.02007496239 | M148: ='Calibrated DGM'!$G$43*C148+'Calibrated DGM'!$H$43 -> 0.07044254074 | N148: ='Calibrated DGM'!$G$43*D148+'Calibrated DGM'!$H$43 -> 0.08348665538 | O148: ='Calibrated DGM'!$G$43*E148+'Calibrated DGM'!$H$43 -> 0.03557620972 | P148: ='Calibrated DGM'!$G$43*F148+'Calibrated DGM'!$H$43 -> 0.06352396969 | R148: =C148+H148 -> 0.02925977262 | S148: =D148+I148 -> 0.008869062724 | T148: =E148+J148 -> 0.08376322193 | U148: =F148+K148 -> 0.04007496239
B149: 2032-06-30 | C149: 0.01133562092 | D149: =IF(B149<Control!C$8,D148+(INDEX(D:D,D$3)-D$19)/(D$3-19),Control!C$7) -> -0.005 | E149: =VLOOKUP(IF(MONTH(B149)<=6,DATE(YEAR(B149),6,30),DATE(YEAR(B149)+1,6,30)),'Intergenerational Chart 6.15'!A:E,MATCH(Control!C$9,'Intergenerational Chart 6.15'!A$3:E$3,0),FALSE)/100 -> 0.055 | F149: 0.02 | H149: =IF(H$3="Fitted to RFR",'Debt margin'!$M$46*C149+'Debt margin'!$N$46,H148) -> 0.0179241517 | I149: =IF(I$3="Fitted to RFR",'Debt margin'!$M$46*D149+'Debt margin'!$N$46,I148) -> 0.01386906272 | J149: =IF(J$3="Fitted to RFR",'Debt margin'!$M$46*E149+'Debt margin'!$N$46,J148) -> 0.02876322193 | K149: =IF(K$3="Fitted to RFR",'Debt margin'!$M$46*F149+'Debt margin'!$N$46,K148) -> 0.02007496239 | M149: ='Calibrated DGM'!$G$43*C149+'Calibrated DGM'!$H$43 -> 0.07044254074 | N149: ='Calibrated DGM'!$G$43*D149+'Calibrated DGM'!$H$43 -> 0.08348665538 | O149: ='Calibrated DGM'!$G$43*E149+'Calibrated DGM'!$H$43 -> 0.03557620972 | P149: ='Calibrated DGM'!$G$43*F149+'Calibrated DGM'!$H$43 -> 0.06352396969 | R149: 0.02925977262 | S149: 0.008869062724 | T149: 0.08376322193 | U149: 0.04007496239

Sheet Debt margin
B1: =Summary!B1 -> 2021-10-03 2022 RORI Scenario Testing.xlsm
B2: Debt margin
C25: Since Jan 2009 | M25: Since GFC
M45: Slope | N45: Intercept
M46: =LINEST('RBA Interpolation'!$O$199:$O$3160,'RBA Interpolation'!$E$199:$E$3160) -> 0.2482359867 | N46: 0.01511024266
M48: ="Margin = "&100*ROUND(N46,4)&"% +"&ROUND(M46,3)&"*RFR" -> Margin = 1.51% +0.248*RFR
M50: Average margin post GFC | N50: =AVERAGE('RBA Interpolation'!$O$199:$O$3160) -> 0.0226257293

Sheet RBA Interpolation
B1: =Summary!B1 -> 2021-10-03 2022 RORI Scenario Testing.xlsm
B2: RBA Interpolation
H4: BBB | K4: A
B5: Date | C5: Year | D5: Month | E5: RFR | F5: Prev | G5: Next | H5: Yield | I5: Spread | J5: BBB | K5: Yield | L5: Spread | M5: A | N5: BBB+ | O5: BBB+ Spread
A6: =EOMONTH(B6,0) -> 39844 | B6: ='Nominal RFR'!B24 -> 2009-01-30 | C6: =YEAR(B6) -> 2009 | D6: =MONTH(B6) -> 1 | E6: ='Nominal RFR'!H24 -> 0.04087519789 | F6: =MATCH(IF(D6=1,_xlfn.MAXIFS(B:B,C:C,C6-1,D:D,12),_xlfn.MAXIFS(B:B,C:C,C6,D:D,D6-1)),B:B,0) ->  | G6: =MATCH(_xlfn.MAXIFS(B:B,C:C,C6,D:D,D6),B:B,0) -> 6 | H6: =IF(B6=_xlfn.MAXIFS(B:B,C:C,C6,D:D,D6),VLOOKUP(EOMONTH('RBA Interpolation'!B6,0),'RBA Adjustments'!B:J,5,FALSE)/100,"") -> 0.1220002992 | I6: =IF(H6="","",H6-E6) -> 0.08112510129 | J6: =(1+(E6+IF(I6="",INDEX(I:I,F6)+(INDEX(I:I,G6)-INDEX(I:I,F6))*(ROW(B6)-F6)/(G6-F6),I6))/2)^2-1 -> 0.1257213174 | K6: =IF(B6=_xlfn.MAXIFS(B:B,C:C,C6,D:D,D6),VLOOKUP(EOMONTH('RBA Interpolation'!B6,0),'RBA Adjustments'!B:J,9,FALSE)/100,"") -> 0.08510347445 | L6: =IF(K6="","",K6-E6) -> 0.04422827656 | M6: =(1+(E6+IF(L6="",INDEX(L:L,F6)+(INDEX(L:L,G6)-INDEX(L:L,F6))*(ROW(B6)-F6)/(G6-F6),L6))/2)^2-1 -> 0.08691412479 | N6: =2/3*J6+1/3*M6 -> 0.1127855866 | O6: =N6-E6 -> 0.07191038866
A7: =EOMONTH(B7,0) -> 39872 | B7: ='Nominal RFR'!B25 -> 2009-02-02 | C7: =YEAR(B7) -> 2009 | D7: =MONTH(B7) -> 2 | E7: ='Nominal RFR'!H25 -> 0.04082288918 | F7: 6 | G7: 26 | H7: =IF(B7=_xlfn.MAXIFS(B:B,C:C,C7,D:D,D7),VLOOKUP(EOMONTH('RBA Interpolation'!B7,0),'RBA Adjustments'!B:J,5,FALSE)/100,"") ->  | J7: =(1+(E7+IF(I7="",INDEX(I:I,F7)+(INDEX(I:I,G7)-INDEX(I:I,F7))*(ROW(B7)-F7)/(G7-F7),I7))/2)^2-1 -> 0.1246307426 | K7: =IF(B7=_xlfn.MAXIFS(B:B,C:C,C7,D:D,D7),VLOOKUP(EOMONTH('RBA Interpolation'!B7,0),'RBA Adjustments'!B:J,9,FALSE)/100,"") ->  | L7: =IF(K7="","",K7-E7) ->  | M7: =(1+(E7+IF(L7="",INDEX(L:L,F7)+(INDEX(L:L,G7)-INDEX(L:L,F7))*(ROW(B7)-F7)/(G7-F7),L7))/2)^2-1 -> 0.08741022991 | N7: =2/3*J7+1/3*M7 -> 0.1122239051 | O7: =N7-E7 -> 0.07140101587
A8: 39872 | B8: ='Nominal RFR'!B26 -> 2009-02-03 | C8: 2009 | D8: 2 | E8: ='Nominal RFR'!H26 -> 0.04202862797 | F8: 6 | G8: 26 | H8: =IF(B8=_xlfn.MAXIFS(B:B,C:C,C8,D:D,D8),VLOOKUP(EOMONTH('RBA Interpolation'!B8,0),'RBA Adjustments'!B:J,5,FALSE)/100,"") ->  | J8: =(1+(E8+IF(I8="",INDEX(I:I,F8)+(INDEX(I:I,G8)-INDEX(I:I,F8))*(ROW(B8)-F8)/(G8-F8),I8))/2)^2-1 -> 0.1248745872 | K8: =IF(B8=_xlfn.MAXIFS(B:B,C:C,C8,D:D,D8),VLOOKUP(EOMONTH('RBA Interpolation'!B8,0),'RBA Adjustments'!B:J,9,FALSE)/100,"") ->  | M8: =(1+(E8+IF(L8="",INDEX(L:L,F8)+(INDEX(L:L,G8)-INDEX(L:L,F8))*(ROW(B8)-F8)/(G8-F8),L8))/2)^2-1 -> 0.08921902207 | N8: 0.1129893988 | O8: 0.07096077083
A9: 39872 | B9: ='Nominal RFR'!B27 -> 2009-02-04 | C9: 2009 | D9: 2 | E9: ='Nominal RFR'!H27 -> 0.04292908971 | F9: 6 | G9: 26 | H9: =IF(B9=_xlfn.MAXIFS(B:B,C:C,C9,D:D,D9),VLOOKUP(EOMONTH('RBA Interpolation'!B9,0),'RBA Adjustments'!B:J,5,FALSE)/100,"") ->  | J9: =(1+(E9+IF(I9="",INDEX(I:I,F9)+(INDEX(I:I,G9)-INDEX(I:I,F9))*(ROW(B9)-F9)/(G9-F9),I9))/2)^2-1 -> 0.1247946692 | K9: =IF(B9=_xlfn.MAXIFS(B:B,C:C,C9,D:D,D9),VLOOKUP(EOMONTH('RBA Interpolation'!B9,0),'RBA Adjustments'!B:J,9,FALSE)/100,"") ->  | M9: =(1+(E9+IF(L9="",INDEX(L:L,F9)+(INDEX(L:L,G9)-INDEX(L:L,F9))*(ROW(B9)-F9)/(G9-F9),L9))/2)^2-1 -> 0.09071047161 | N9: 0.11343327 | O9: 0.07050418028
A10: 39872 | B10: ='Nominal RFR'!B28 -> 2009-02-05 | C10: 2009 | D10: 2 | E10: ='Nominal RFR'!H28 -> 0.04357968338 | F10: 6 | G10: 26 | H10: =IF(B10=_xlfn.MAXIFS(B:B,C:C,C10,D:D,D10),VLOOKUP(EOMONTH('RBA Interpolation'!B10,0),'RBA Adjustments'!B:J,5,FALSE)/100,"") ->  | J10: =(1+(E10+IF(I10="",INDEX(I:I,F10)+(INDEX(I:I,G10)-INDEX(I:I,F10))*(ROW(B10)-F10)/(G10-F10),I10))/2)^2-1 -> 0.1244497781 | K10: =IF(B10=_xlfn.MAXIFS(B:B,C:C,C10,D:D,D10),VLOOKUP(EOMONTH('RBA Interpolation'!B10,0),'RBA Adjustments'!B:J,9,FALSE)/100,"") ->  | M10: =(1+(E10+IF(L10="",INDEX(L:L,F10)+(INDEX(L:L,G10)-INDEX(L:L,F10))*(ROW(B10)-F10)/(G10-F10),L10))/2)^2-1 -> 0.09194182376 | N10: 0.1136137933 | O10: 0.07003410996
A11: 39872 | B11: ='Nominal RFR'!B29 -> 2009-02-06 | C11: 2009 | D11: 2 | E11: ='Nominal RFR'!H29 -> 0.0442901715 | F11: 6 | G11: 26 | H11: =IF(B11=_xlfn.MAXIFS(B:B,C:C,C11,D:D,D11),VLOOKUP(EOMONTH('RBA Interpolation'!B11,0),'RBA Adjustments'!B:J,5,FALSE)/100,"") ->  | J11: =(1+(E11+IF(I11="",INDEX(I:I,F11)+(INDEX(I:I,G11)-INDEX(I:I,F11))*(ROW(B11)-F11)/(G11-F11),I11))/2)^2-1 -> 0.1241684432 | K11: =IF(B11=_xlfn.MAXIFS(B:B,C:C,C11,D:D,D11),VLOOKUP(EOMONTH('RBA Interpolation'!B11,0),'RBA Adjustments'!B:J,9,FALSE)/100,"") ->  | M11: =(1+(E11+IF(L11="",INDEX(L:L,F11)+(INDEX(L:L,G11)-INDEX(L:L,F11))*(ROW(B11)-F11)/(G11-F11),L11))/2)^2-1 -> 0.09323649409 | N11: 0.1138577935 | O11: 0.06956762203
A12: 39872 | B12: ='Nominal RFR'!B30 -> 2009-02-09 | C12: 2009 | D12: 2 | E12: ='Nominal RFR'!H30 -> 0.04340131926 | F12: 6 | G12: 26 | H12: =IF(B12=_xlfn.MAXIFS(B:B,C:C,C12,D:D,D12),VLOOKUP(EOMONTH('RBA Interpolation'!B12,0),'RBA Adjustments'!B:J,5,FALSE)/100,"") ->  | J12: =(1+(E12+IF(I12="",INDEX(I:I,F12)+(INDEX(I:I,G12)-INDEX(I:I,F12))*(ROW(B12)-F12)/(G12-F12),I12))/2)^2-1 -> 0.1221922656 | K12: =IF(B12=_xlfn.MAXIFS(B:B,C:C,C12,D:D,D12),VLOOKUP(EOMONTH('RBA Interpolation'!B12,0),'RBA Adjustments'!B:J,9,FALSE)/100,"") ->  | M12: =(1+(E12+IF(L12="",INDEX(L:L,F12)+(INDEX(L:L,G12)-INDEX(L:L,F12))*(ROW(B12)-F12)/(G12-F12),L12))/2)^2-1 -> 0.09285934299 | N12: 0.1124146248 | O12: 0.0690133055
A13: 39872 | B13: ='Nominal RFR'!B31 -> 2009-02-10 | C13: 2009 | D13: =MONTH(B13) -> 2 | E13: ='Nominal RFR'!H31 -> 0.04324986807 | F13: 6 | G13: 26 | H13: =IF(B13=_xlfn.MAXIFS(B:B,C:C,C13,D:D,D13),VLOOKUP(EOMONTH('RBA Interpolation'!B13,0),'RBA Adjustments'!B:J,5,FALSE)/100,"") ->  | J13: =(1+(E13+IF(I13="",INDEX(I:I,F13)+(INDEX(I:I,G13)-INDEX(I:I,F13))*(ROW(B13)-F13)/(G13-F13),I13))/2)^2-1 -> 0.1209984303 | K13: =IF(B13=_xlfn.MAXIFS(B:B,C:C,C13,D:D,D13),VLOOKUP(EOMONTH('RBA Interpolation'!B13,0),'RBA Adjustments'!B:J,9,FALSE)/100,"") ->  | M13: =(1+(E13+IF(L13="",INDEX(L:L,F13)+(INDEX(L:L,G13)-INDEX(L:L,F13))*(ROW(B13)-F13)/(G13-F13),L13))/2)^2-1 -> 0.09325313831 | N13: 0.1117499996 | O13: 0.06850013155
A14: 39872 | B14: ='Nominal RFR'!B32 -> 2009-02-11 | C14: 2009 | D14: 2 | E14: ='Nominal RFR'!H32 -> 0.04240079156 | F14: 6 | G14: 26 | H14: =IF(B14=_xlfn.MAXIFS(B:B,C:C,C14,D:D,D14),VLOOKUP(EOMONTH('RBA Interpolation'!B14,0),'RBA Adjustments'!B:J,5,FALSE)/100,"") ->  | J14: =(1+(E14+IF(I14="",INDEX(I:I,F14)+(INDEX(I:I,G14)-INDEX(I:I,F14))*(ROW(B14)-F14)/(G14-F14),I14))/2)^2-1 -> 0.1190671189 | K14: =IF(B14=_xlfn.MAXIFS(B:B,C:C,C14,D:D,D14),VLOOKUP(EOMONTH('RBA Interpolation'!B14,0),'RBA Adjustments'!B:J,9,FALSE)/100,"") ->  | M14: =(1+(E14+IF(L14="",INDEX(L:L,F14)+(INDEX(L:L,G14)-INDEX(L:L,F14))*(ROW(B14)-F14)/(G14-F14),L14))/2)^2-1 -> 0.09291756656 | N14: 0.1103506014 | O14: 0.06794980989
A15: 39872 | B15: ='Nominal RFR'!B33 -> 2009-02-12 | C15: 2009 | D15: 2 | E15: ='Nominal RFR'!H33 -> 0.04175389182 | F15: 6 | G15: 26 | H15: =IF(B15=_xlfn.MAXIFS(B:B,C:C,C15,D:D,D15),VLOOKUP(EOMONTH('RBA Interpolation'!B15,0),'RBA Adjustments'!B:J,5,FALSE)/100,"") ->  | J15: =(1+(E15+IF(I15="",INDEX(I:I,F15)+(INDEX(I:I,G15)-INDEX(I:I,F15))*(ROW(B15)-F15)/(G15-F15),I15))/2)^2-1 -> 0.117351173 | K15: =IF(B15=_xlfn.MAXIFS(B:B,C:C,C15,D:D,D15),VLOOKUP(EOMONTH('RBA Interpolation'!B15,0),'RBA Adjustments'!B:J,9,FALSE)/100,"") ->  | M15: =(1+(E15+IF(L15="",INDEX(L:L,F15)+(INDEX(L:L,G15)-INDEX(L:L,F15))*(ROW(B15)-F15)/(G15-F15),L15))/2)^2-1 -> 0.09279338515 | N15: 0.1091652437 | O15: 0.06741135192
A16: 39872 | B16: ='Nominal RFR'!B34 -> 2009-02-13 | C16: 2009 | D16: 2 | E16: ='Nominal RFR'!H34 -> 0.04226094987 | F16: 6 | G16: 26 | H16: =IF(B16=_xlfn.MAXIFS(B:B,C:C,C16,D:D,D16),VLOOKUP(EOMONTH('RBA Interpolation'!B16,0),'RBA Adjustments'!B:J,5,FALSE)/100,"") ->  | J16: =(1+(E16+IF(I16="",INDEX(I:I,F16)+(INDEX(I:I,G16)-INDEX(I:I,F16))*(ROW(B16)-F16)/(G16-F16),I16))/2)^2-1 -> 0.1168557295 | K16: =IF(B16=_xlfn.MAXIFS(B:B,C:C,C16,D:D,D16),VLOOKUP(EOMONTH('RBA Interpolation'!B16,0),'RBA Adjustments'!B:J,9,FALSE)/100,"") ->  | M16: =(1+(E16+IF(L16="",INDEX(L:L,F16)+(INDEX(L:L,G16)-INDEX(L:L,F16))*(ROW(B16)-F16)/(G16-F16),L16))/2)^2-1 -> 0.09387578523 | N16: 0.1091957481 | O16: 0.06693479824
A17: 39872 | B17: ='Nominal RFR'!B35 -> 2009-02-16 | C17: 2009 | D17: 2 | E17: ='Nominal RFR'!H35 -> 0.04371807388 | F17: 6 | G17: 26 | H17: =IF(B17=_xlfn.MAXIFS(B:B,C:C,C17,D:D,D17),VLOOKUP(EOMONTH('RBA Interpolation'!B17,0),'RBA Adjustments'!B:J,5,FALSE)/100,"") ->  | J17: =(1+(E17+IF(I17="",INDEX(I:I,F17)+(INDEX(I:I,G17)-INDEX(I:I,F17))*(ROW(B17)-F17)/(G17-F17),I17))/2)^2-1 -> 0.1173644419 | K17: =IF(B17=_xlfn.MAXIFS(B:B,C:C,C17,D:D,D17),VLOOKUP(EOMONTH('RBA Interpolation'!B17,0),'RBA Adjustments'!B:J,9,FALSE)/100,"") ->  | M17: =(1+(E17+IF(L17="",INDEX(L:L,F17)+(INDEX(L:L,G17)-INDEX(L:L,F17))*(ROW(B17)-F17)/(G17-F17),L17))/2)^2-1 -> 0.09595309838 | N17: 0.1102273274 | O17: 0.0665092535
A18: 39872 | B18: ='Nominal RFR'!B36 -> 2009-02-17 | C18: 2009 | D18: 2 | E18: ='Nominal RFR'!H36 -> 0.04252110818 | F18: 6 | G18: 26 | H18: =IF(B18=_xlfn.MAXIFS(B:B,C:C,C18,D:D,D18),VLOOKUP(EOMONTH('RBA Interpolation'!B18,0),'RBA Adjustments'!B:J,5,FALSE)/100,"") ->  | J18: =(1+(E18+IF(I18="",INDEX(I:I,F18)+(INDEX(I:I,G18)-INDEX(I:I,F18))*(ROW(B18)-F18)/(G18-F18),I18))/2)^2-1 -> 0.1150688746 | K18: =IF(B18=_xlfn.MAXIFS(B:B,C:C,C18,D:D,D18),VLOOKUP(EOMONTH('RBA Interpolation'!B18,0),'RBA Adjustments'!B:J,9,FALSE)/100,"") ->  | M18: =(1+(E18+IF(L18="",INDEX(L:L,F18)+(INDEX(L:L,G18)-INDEX(L:L,F18))*(ROW(B18)-F18)/(G18-F18),L18))/2)^2-1 -> 0.09525300111 | N18: 0.1084635834 | O18: 0.06594247527
A19: 39872 | B19: ='Nominal RFR'!B37 -> 2009-02-18 | C19: 2009 | D19: 2 | E19: ='Nominal RFR'!H37 -> 0.04067744063 | F19: 6 | G19: 26 | H19: =IF(B19=_xlfn.MAXIFS(B:B,C:C,C19,D:D,D19),VLOOKUP(EOMONTH('RBA Interpolation'!B19,0),'RBA Adjustments'!B:J,5,FALSE)/100,"") ->  | J19: =(1+(E19+IF(I19="",INDEX(I:I,F19)+(INDEX(I:I,G19)-INDEX(I:I,F19))*(ROW(B19)-F19)/(G19-F19),I19))/2)^2-1 -> 0.1120935784 | K19: =IF(B19=_xlfn.MAXIFS(B:B,C:C,C19,D:D,D19),VLOOKUP(EOMONTH('RBA Interpolation'!B19,0),'RBA Adjustments'!B:J,9,FALSE)/100,"") ->  | M19: =(1+(E19+IF(L19="",INDEX(L:L,F19)+(INDEX(L:L,G19)-INDEX(L:L,F19))*(ROW(B19)-F19)/(G19-F19),L19))/2)^2-1 -> 0.09387664683 | N19: 0.1060212679 | O19: 0.06534382723
A20: 39872 | B20: ='Nominal RFR'!B38 -> 2009-02-19 | C20: 2009 | D20: 2 | E20: ='Nominal RFR'!H38 -> 0.04213034301 | F20: 6 | G20: 26 | H20: =IF(B20=_xlfn.MAXIFS(B:B,C:C,C20,D:D,D20),VLOOKUP(EOMONTH('RBA Interpolation'!B20,0),'RBA Adjustments'!B:J,5,FALSE)/100,"") ->  | J20: =(1+(E20+IF(I20="",INDEX(I:I,F20)+(INDEX(I:I,G20)-INDEX(I:I,F20))*(ROW(B20)-F20)/(G20-F20),I20))/2)^2-1 -> 0.1125967522 | K20: =IF(B20=_xlfn.MAXIFS(B:B,C:C,C20,D:D,D20),VLOOKUP(EOMONTH('RBA Interpolation'!B20,0),'RBA Adjustments'!B:J,9,FALSE)/100,"") ->  | M20: =(1+(E20+IF(L20="",INDEX(L:L,F20)+(INDEX(L:L,G20)-INDEX(L:L,F20))*(ROW(B20)-F20)/(G20-F20),L20))/2)^2-1 -> 0.09594954127 | N20: 0.1070476819 | O20: 0.06491733885
A21: 39872 | B21: ='Nominal RFR'!B39 -> 2009-02-20 | C21: 2009 | D21: 2 | E21: ='Nominal RFR'!H39 -> 0.04153627968 | F21: 6 | G21: 26 | H21: =IF(B21=_xlfn.MAXIFS(B:B,C:C,C21,D:D,D21),VLOOKUP(EOMONTH('RBA Interpolation'!B21,0),'RBA Adjustments'!B:J,5,FALSE)/100,"") ->  | J21: =(1+(E21+IF(I21="",INDEX(I:I,F21)+(INDEX(I:I,G21)-INDEX(I:I,F21))*(ROW(B21)-F21)/(G21-F21),I21))/2)^2-1 -> 0.1109414656 | K21: =IF(B21=_xlfn.MAXIFS(B:B,C:C,C21,D:D,D21),VLOOKUP(EOMONTH('RBA Interpolation'!B21,0),'RBA Adjustments'!B:J,9,FALSE)/100,"") ->  | M21: =(1+(E21+IF(L21="",INDEX(L:L,F21)+(INDEX(L:L,G21)-INDEX(L:L,F21))*(ROW(B21)-F21)/(G21-F21),L21))/2)^2-1 -> 0.09588049846 | N21: 0.1059211432 | O21: 0.06438486357
A22: 39872 | B22: ='Nominal RFR'!B40 -> 2009-02-23 | C22: 2009 | D22: 2 | E22: ='Nominal RFR'!H40 -> 0.04144459103 | F22: 6 | G22: 26 | H22: =IF(B22=_xlfn.MAXIFS(B:B,C:C,C22,D:D,D22),VLOOKUP(EOMONTH('RBA Interpolation'!B22,0),'RBA Adjustments'!B:J,5,FALSE)/100,"") ->  | J22: =(1+(E22+IF(I22="",INDEX(I:I,F22)+(INDEX(I:I,G22)-INDEX(I:I,F22))*(ROW(B22)-F22)/(G22-F22),I22))/2)^2-1 -> 0.1098165891 | K22: =IF(B22=_xlfn.MAXIFS(B:B,C:C,C22,D:D,D22),VLOOKUP(EOMONTH('RBA Interpolation'!B22,0),'RBA Adjustments'!B:J,9,FALSE)/100,"") ->  | M22: =(1+(E22+IF(L22="",INDEX(L:L,F22)+(INDEX(L:L,G22)-INDEX(L:L,F22))*(ROW(B22)-F22)/(G22-F22),L22))/2)^2-1 -> 0.09633741182 | N22: 0.10532353 | O22: 0.06387893899
A23: 39872 | B23: ='Nominal RFR'!B41 -> 2009-02-24 | C23: 2009 | D23: 2 | E23: ='Nominal RFR'!H41 -> 0.04114736148 | F23: 6 | G23: 26 | H23: =IF(B23=_xlfn.MAXIFS(B:B,C:C,C23,D:D,D23),VLOOKUP(EOMONTH('RBA Interpolation'!B23,0),'RBA Adjustments'!B:J,5,FALSE)/100,"") ->  | J23: =(1+(E23+IF(I23="",INDEX(I:I,F23)+(INDEX(I:I,G23)-INDEX(I:I,F23))*(ROW(B23)-F23)/(G23-F23),I23))/2)^2-1 -> 0.1084758698 | K23: =IF(B23=_xlfn.MAXIFS(B:B,C:C,C23,D:D,D23),VLOOKUP(EOMONTH('RBA Interpolation'!B23,0),'RBA Adjustments'!B:J,9,FALSE)/100,"") ->  | M23: =(1+(E23+IF(L23="",INDEX(L:L,F23)+(INDEX(L:L,G23)-INDEX(L:L,F23))*(ROW(B23)-F23)/(G23-F23),L23))/2)^2-1 -> 0.09657917219 | N23: 0.1045103039 | O23: 0.06336294244
A24: 39872 | B24: ='Nominal RFR'!B42 -> 2009-02-25 | C24: 2009 | D24: 2 | E24: ='Nominal RFR'!H42 -> 0.04260013193 | F24: 6 | G24: 26 | H24: =IF(B24=_xlfn.MAXIFS(B:B,C:C,C24,D:D,D24),VLOOKUP(EOMONTH('RBA Interpolation'!B24,0),'RBA Adjustments'!B:J,5,FALSE)/100,"") ->  | J24: =(1+(E24+IF(I24="",INDEX(I:I,F24)+(INDEX(I:I,G24)-INDEX(I:I,F24))*(ROW(B24)-F24)/(G24-F24),I24))/2)^2-1 -> 0.1089780856 | K24: =IF(B24=_xlfn.MAXIFS(B:B,C:C,C24,D:D,D24),VLOOKUP(EOMONTH('RBA Interpolation'!B24,0),'RBA Adjustments'!B:J,9,FALSE)/100,"") ->  | M24: =(1+(E24+IF(L24="",INDEX(L:L,F24)+(INDEX(L:L,G24)-INDEX(L:L,F24))*(ROW(B24)-F24)/(G24-F24),L24))/2)^2-1 -> 0.0986544862 | N24: 0.1055368858 | O24: 0.06293675389
A25: 39872 | B25: ='Nominal RFR'!B43 -> 2009-02-26 | C25: 2009 | D25: 2 | E25: ='Nominal RFR'!H43 -> 0.042451781 | F25: 6 | G25: 26 | H25: =IF(B25=_xlfn.MAXIFS(B:B,C:C,C25,D:D,D25),VLOOKUP(EOMONTH('RBA Interpolation'!B25,0),'RBA Adjustments'!B:J,5,FALSE)/100,"") ->  | J25: =(1+(E25+IF(I25="",INDEX(I:I,F25)+(INDEX(I:I,G25)-INDEX(I:I,F25))*(ROW(B25)-F25)/(G25-F25),I25))/2)^2-1 -> 0.1077945649 | K25: =IF(B25=_xlfn.MAXIFS(B:B,C:C,C25,D:D,D25),VLOOKUP(EOMONTH('RBA Interpolation'!B25,0),'RBA Adjustments'!B:J,9,FALSE)/100,"") ->  | M25: =(1+(E25+IF(L25="",INDEX(L:L,F25)+(INDEX(L:L,G25)-INDEX(L:L,F25))*(ROW(B25)-F25)/(G25-F25),L25))/2)^2-1 -> 0.09905257432 | N25: 0.1048805681 | O25: 0.06242878706
A26: 39872 | B26: ='Nominal RFR'!B44 -> 2009-02-27 | C26: 2009 | D26: 2 | E26: ='Nominal RFR'!H44 -> 0.04395356201 | F26: 6 | G26: 26 | H26: =IF(B26=_xlfn.MAXIFS(B:B,C:C,C26,D:D,D26),VLOOKUP(EOMONTH('RBA Interpolation'!B26,0),'RBA Adjustments'!B:J,5,FALSE)/100,"") -> 0.1055623697 | I26: 0.06160880774 | J26: =(1+(E26+IF(I26="",INDEX(I:I,F26)+(INDEX(I:I,G26)-INDEX(I:I,F26))*(ROW(B26)-F26)/(G26-F26),I26))/2)^2-1 -> 0.1083482232 | K26: =IF(B26=_xlfn.MAXIFS(B:B,C:C,C26,D:D,D26),VLOOKUP(EOMONTH('RBA Interpolation'!B26,0),'RBA Adjustments'!B:J,9,FALSE)/100,"") -> 0.09874405882 | L26: 0.05479049682 | M26: =(1+(E26+IF(L26="",INDEX(L:L,F26)+(INDEX(L:L,G26)-INDEX(L:L,F26))*(ROW(B26)-F26)/(G26-F26),L26))/2)^2-1 -> 0.1011816561 | N26: 0.1059593675 | O26: 0.06200580552
A27: 39903 | B27: ='Nominal RFR'!B45 -> 2009-03-02 | C27: 2009 | D27: 3 | E27: ='Nominal RFR'!H45 -> 0.04301226913 | F27: 26 | G27: 48 | H27: =IF(B27=_xlfn.MAXIFS(B:B,C:C,C27,D:D,D27),VLOOKUP(EOMONTH('RBA Interpolation'!B27,0),'RBA Adjustments'!B:J,5,FALSE)/100,"") ->  | J27: =(1+(E27+IF(I27="",INDEX(I:I,F27)+(INDEX(I:I,G27)-INDEX(I:I,F27))*(ROW(B27)-F27)/(G27-F27),I27))/2)^2-1 -> 0.1079286509 | K27: =IF(B27=_xlfn.MAXIFS(B:B,C:C,C27,D:D,D27),VLOOKUP(EOMONTH('RBA Interpolation'!B27,0),'RBA Adjustments'!B:J,9,FALSE)/100,"") ->  | M27: =(1+(E27+IF(L27="",INDEX(L:L,F27)+(INDEX(L:L,G27)-INDEX(L:L,F27))*(ROW(B27)-F27)/(G27-F27),L27))/2)^2-1 -> 0.09998140081 | N27: 0.1052795676 | O27: 0.06226729842
A28: 39903 | B28: ='Nominal RFR'!B46 -> 2009-03-03 | C28: 2009 | D28: 3 | E28: ='Nominal RFR'!H46 -> 0.04301675462 | F28: 26 | G28: 48 | H28: =IF(B28=_xlfn.MAXIFS(B:B,C:C,C28,D:D,D28),VLOOKUP(EOMONTH('RBA Interpolation'!B28,0),'RBA Adjustments'!B:J,5,FALSE)/100,"") ->  | J28: =(1+(E28+IF(I28="",INDEX(I:I,F28)+(INDEX(I:I,G28)-INDEX(I:I,F28))*(ROW(B28)-F28)/(G28-F28),I28))/2)^2-1 -> 0.1085047024 | K28: =IF(B28=_xlfn.MAXIFS(B:B,C:C,C28,D:D,D28),VLOOKUP(EOMONTH('RBA Interpolation'!B28,0),'RBA Adjustments'!B:J,9,FALSE)/100,"") ->  | M28: =(1+(E28+IF(L28="",INDEX(L:L,F28)+(INDEX(L:L,G28)-INDEX(L:L,F28))*(ROW(B28)-F28)/(G28-F28),L28))/2)^2-1 -> 0.09977341492 | N28: 0.1055942732 | O28: 0.0625775186
A29: 39903 | B29: ='Nominal RFR'!B47 -> 2009-03-04 | C29: 2009 | D29: 3 | E29: ='Nominal RFR'!H47 -> 0.04346807388 | F29: 26 | G29: 48 | H29: =IF(B29=_xlfn.MAXIFS(B:B,C:C,C29,D:D,D29),VLOOKUP(EOMONTH('RBA Interpolation'!B29,0),'RBA Adjustments'!B:J,5,FALSE)/100,"") ->  | J29: =(1+(E29+IF(I29="",INDEX(I:I,F29)+(INDEX(I:I,G29)-INDEX(I:I,F29))*(ROW(B29)-F29)/(G29-F29),I29))/2)^2-1 -> 0.1095515271 | K29: =IF(B29=_xlfn.MAXIFS(B:B,C:C,C29,D:D,D29),VLOOKUP(EOMONTH('RBA Interpolation'!B29,0),'RBA Adjustments'!B:J,9,FALSE)/100,"") ->  | M29: =(1+(E29+IF(L29="",INDEX(L:L,F29)+(INDEX(L:L,G29)-INDEX(L:L,F29))*(ROW(B29)-F29)/(G29-F29),L29))/2)^2-1 -> 0.1000340492 | N29: 0.1063790345 | O29: 0.06291096061
A30: 39903 | B30: ='Nominal RFR'!B48 -> 2009-03-05 | C30: 2009 | D30: 3 | E30: ='Nominal RFR'!H48 -> 0.04402031662 | F30: 26 | G30: 48 | H30: =IF(B30=_xlfn.MAXIFS(B:B,C:C,C30,D:D,D30),VLOOKUP(EOMONTH('RBA Interpolation'!B30,0),'RBA Adjustments'!B:J,5,FALSE)/100,"") ->  | J30: =(1+(E30+IF(I30="",INDEX(I:I,F30)+(INDEX(I:I,G30)-INDEX(I:I,F30))*(ROW(B30)-F30)/(G30-F30),I30))/2)^2-1 -> 0.1107052066 | K30: =IF(B30=_xlfn.MAXIFS(B:B,C:C,C30,D:D,D30),VLOOKUP(EOMONTH('RBA Interpolation'!B30,0),'RBA Adjustments'!B:J,9,FALSE)/100,"") ->  | M30: =(1+(E30+IF(L30="",INDEX(L:L,F30)+(INDEX(L:L,G30)-INDEX(L:L,F30))*(ROW(B30)-F30)/(G30-F30),L30))/2)^2-1 -> 0.1004005806 | N30: 0.1072703313 | O30: 0.06325001465
A31: 39903 | B31: ='Nominal RFR'!B49 -> 2009-03-06 | C31: 2009 | D31: 3 | E31: ='Nominal RFR'!H49 -> 0.04237387863 | F31: 26 | G31: 48 | H31: =IF(B31=_xlfn.MAXIFS(B:B,C:C,C31,D:D,D31),VLOOKUP(EOMONTH('RBA Interpolation'!B31,0),'RBA Adjustments'!B:J,5,FALSE)/100,"") ->  | J31: =(1+(E31+IF(I31="",INDEX(I:I,F31)+(INDEX(I:I,G31)-INDEX(I:I,F31))*(ROW(B31)-F31)/(G31-F31),I31))/2)^2-1 -> 0.1095423008 | K31: =IF(B31=_xlfn.MAXIFS(B:B,C:C,C31,D:D,D31),VLOOKUP(EOMONTH('RBA Interpolation'!B31,0),'RBA Adjustments'!B:J,9,FALSE)/100,"") ->  | M31: =(1+(E31+IF(L31="",INDEX(L:L,F31)+(INDEX(L:L,G31)-INDEX(L:L,F31))*(ROW(B31)-F31)/(G31-F31),L31))/2)^2-1 -> 0.09846158177 | N31: 0.1058487278 | O31: 0.06347484914
A32: 39903 | B32: ='Nominal RFR'!B50 -> 2009-03-09 | C32: 2009 | D32: 3 | E32: ='Nominal RFR'!H50 -> 0.04118337731 | F32: 26 | G32: 48 | H32: =IF(B32=_xlfn.MAXIFS(B:B,C:C,C32,D:D,D32),VLOOKUP(EOMONTH('RBA Interpolation'!B32,0),'RBA Adjustments'!B:J,5,FALSE)/100,"") ->  | J32: =(1+(E32+IF(I32="",INDEX(I:I,F32)+(INDEX(I:I,G32)-INDEX(I:I,F32))*(ROW(B32)-F32)/(G32-F32),I32))/2)^2-1 -> 0.1088600644 | K32: =IF(B32=_xlfn.MAXIFS(B:B,C:C,C32,D:D,D32),VLOOKUP(EOMONTH('RBA Interpolation'!B32,0),'RBA Adjustments'!B:J,9,FALSE)/100,"") ->  | M32: =(1+(E32+IF(L32="",INDEX(L:L,F32)+(INDEX(L:L,G32)-INDEX(L:L,F32))*(ROW(B32)-F32)/(G32-F32),L32))/2)^2-1 -> 0.09700177909 | N32: 0.1049073027 | O32: 0.06372392535
A33: 39903 | B33: ='Nominal RFR'!B51 -> 2009-03-10 | C33: 2009 | D33: =MONTH(B33) -> 3 | E33: ='Nominal RFR'!H51 -> 0.04253581794 | F33: 26 | G33: 48 | H33: =IF(B33=_xlfn.MAXIFS(B:B,C:C,C33,D:D,D33),VLOOKUP(EOMONTH('RBA Interpolation'!B33,0),'RBA Adjustments'!B:J,5,FALSE)/100,"") ->  | J33: =(1+(E33+IF(I33="",INDEX(I:I,F33)+(INDEX(I:I,G33)-INDEX(I:I,F33))*(ROW(B33)-F33)/(G33-F33),I33))/2)^2-1 -> 0.1108566104 | K33: =IF(B33=_xlfn.MAXIFS(B:B,C:C,C33,D:D,D33),VLOOKUP(EOMONTH('RBA Interpolation'!B33,0),'RBA Adjustments'!B:J,9,FALSE)/100,"") ->  | M33: =(1+(E33+IF(L33="",INDEX(L:L,F33)+(INDEX(L:L,G33)-INDEX(L:L,F33))*(ROW(B33)-F33)/(G33-F33),L33))/2)^2-1 -> 0.09820621495 | N33: 0.1066398119 | O33: 0.06410399401
A34: 39903 | B34: ='Nominal RFR'!B52 -> 2009-03-11 | C34: 2009 | D34: 3 | E34: ='Nominal RFR'!H52 -> 0.04328865435 | F34: 26 | G34: 48 | H34: =IF(B34=_xlfn.MAXIFS(B:B,C:C,C34,D:D,D34),VLOOKUP(EOMONTH('RBA Interpolation'!B34,0),'RBA Adjustments'!B:J,5,FALSE)/100,"") ->  | J34: =(1+(E34+IF(I34="",INDEX(I:I,F34)+(INDEX(I:I,G34)-INDEX(I:I,F34))*(ROW(B34)-F34)/(G34-F34),I34))/2)^2-1 -> 0.112222508 | K34: =IF(B34=_xlfn.MAXIFS(B:B,C:C,C34,D:D,D34),VLOOKUP(EOMONTH('RBA Interpolation'!B34,0),'RBA Adjustments'!B:J,9,FALSE)/100,"") ->  | M34: =(1+(E34+IF(L34="",INDEX(L:L,F34)+(INDEX(L:L,G34)-INDEX(L:L,F34))*(ROW(B34)-F34)/(G34-F34),L34))/2)^2-1 -> 0.09878269961 | N34: 0.1077425719 | O34: 0.06445391753
A35: 39903 | B35: ='Nominal RFR'!B53 -> 2009-03-12 | C35: 2009 | D35: 3 | E35: ='Nominal RFR'!H53 -> 0.04269129288 | F35: 26 | G35: 48 | H35: =IF(B35=_xlfn.MAXIFS(B:B,C:C,C35,D:D,D35),VLOOKUP(EOMONTH('RBA Interpolation'!B35,0),'RBA Adjustments'!B:J,5,FALSE)/100,"") ->  | J35: =(1+(E35+IF(I35="",INDEX(I:I,F35)+(INDEX(I:I,G35)-INDEX(I:I,F35))*(ROW(B35)-F35)/(G35-F35),I35))/2)^2-1 -> 0.1121648808 | K35: =IF(B35=_xlfn.MAXIFS(B:B,C:C,C35,D:D,D35),VLOOKUP(EOMONTH('RBA Interpolation'!B35,0),'RBA Adjustments'!B:J,9,FALSE)/100,"") ->  | M35: =(1+(E35+IF(L35="",INDEX(L:L,F35)+(INDEX(L:L,G35)-INDEX(L:L,F35))*(ROW(B35)-F35)/(G35-F35),L35))/2)^2-1 -> 0.09794410425 | N35: 0.1074246219 | O35: 0.06473332907
A36: 39903 | B36: ='Nominal RFR'!B54 -> 2009-03-13 | C36: 2009 | D36: 3 | E36: ='Nominal RFR'!H54 -> 0.04279432718 | F36: 26 | G36: 48 | H36: =IF(B36=_xlfn.MAXIFS(B:B,C:C,C36,D:D,D36),VLOOKUP(EOMONTH('RBA Interpolation'!B36,0),'RBA Adjustments'!B:J,5,FALSE)/100,"") ->  | J36: =(1+(E36+IF(I36="",INDEX(I:I,F36)+(INDEX(I:I,G36)-INDEX(I:I,F36))*(ROW(B36)-F36)/(G36-F36),I36))/2)^2-1 -> 0.1128459905 | K36: =IF(B36=_xlfn.MAXIFS(B:B,C:C,C36,D:D,D36),VLOOKUP(EOMONTH('RBA Interpolation'!B36,0),'RBA Adjustments'!B:J,9,FALSE)/100,"") ->  | M36: =(1+(E36+IF(L36="",INDEX(L:L,F36)+(INDEX(L:L,G36)-INDEX(L:L,F36))*(ROW(B36)-F36)/(G36-F36),L36))/2)^2-1 -> 0.09783956595 | N36: 0.107843849 | O36: 0.06504952184
A37: 39903 | B37: ='Nominal RFR'!B55 -> 2009-03-16 | C37: 2009 | D37: 3 | E37: ='Nominal RFR'!H55 -> 0.04305239899 | F37: 26 | G37: 48 | H37: =IF(B37=_xlfn.MAXIFS(B:B,C:C,C37,D:D,D37),VLOOKUP(EOMONTH('RBA Interpolation'!B37,0),'RBA Adjustments'!B:J,5,FALSE)/100,"") ->  | J37: =(1+(E37+IF(I37="",INDEX(I:I,F37)+(INDEX(I:I,G37)-INDEX(I:I,F37))*(ROW(B37)-F37)/(G37-F37),I37))/2)^2-1 -> 0.1136909163 | K37: =IF(B37=_xlfn.MAXIFS(B:B,C:C,C37,D:D,D37),VLOOKUP(EOMONTH('RBA Interpolation'!B37,0),'RBA Adjustments'!B:J,9,FALSE)/100,"") ->  | M37: =(1+(E37+IF(L37="",INDEX(L:L,F37)+(INDEX(L:L,G37)-INDEX(L:L,F37))*(ROW(B37)-F37)/(G37-F37),L37))/2)^2-1 -> 0.09789747585 | N37: 0.1084264361 | O37: 0.06537403715
A38: 39903 | B38: ='Nominal RFR'!B56 -> 2009-03-17 | C38: 2009 | D38: 3 | E38: ='Nominal RFR'!H56 -> 0.04350479798 | F38: 26 | G38: 48 | H38: =IF(B38=_xlfn.MAXIFS(B:B,C:C,C38,D:D,D38),VLOOKUP(EOMONTH('RBA Interpolation'!B38,0),'RBA Adjustments'!B:J,5,FALSE)/100,"") ->  | J38: =(1+(E38+IF(I38="",INDEX(I:I,F38)+(INDEX(I:I,G38)-INDEX(I:I,F38))*(ROW(B38)-F38)/(G38-F38),I38))/2)^2-1 -> 0.1147413264 | K38: =IF(B38=_xlfn.MAXIFS(B:B,C:C,C38,D:D,D38),VLOOKUP(EOMONTH('RBA Interpolation'!B38,0),'RBA Adjustments'!B:J,9,FALSE)/100,"") ->  | M38: =(1+(E38+IF(L38="",INDEX(L:L,F38)+(INDEX(L:L,G38)-INDEX(L:L,F38))*(ROW(B38)-F38)/(G38-F38),L38))/2)^2-1 -> 0.09815901928 | N38: 0.1092138907 | O38: 0.06570909272
A39: 39903 | B39: ='Nominal RFR'!B57 -> 2009-03-18 | C39: 2009 | D39: 3 | E39: ='Nominal RFR'!H57 -> 0.04365719697 | F39: 26 | G39: 48 | H39: =IF(B39=_xlfn.MAXIFS(B:B,C:C,C39,D:D,D39),VLOOKUP(EOMONTH('RBA Interpolation'!B39,0),'RBA Adjustments'!B:J,5,FALSE)/100,"") ->  | J39: =(1+(E39+IF(I39="",INDEX(I:I,F39)+(INDEX(I:I,G39)-INDEX(I:I,F39))*(ROW(B39)-F39)/(G39-F39),I39))/2)^2-1 -> 0.1154753609 | K39: =IF(B39=_xlfn.MAXIFS(B:B,C:C,C39,D:D,D39),VLOOKUP(EOMONTH('RBA Interpolation'!B39,0),'RBA Adjustments'!B:J,9,FALSE)/100,"") ->  | M39: =(1+(E39+IF(L39="",INDEX(L:L,F39)+(INDEX(L:L,G39)-INDEX(L:L,F39))*(ROW(B39)-F39)/(G39-F39),L39))/2)^2-1 -> 0.09810619968 | N39: 0.1096856405 | O39: 0.06602844355
A40: 39903 | B40: ='Nominal RFR'!B58 -> 2009-03-19 | C40: 2009 | D40: 3 | E40: ='Nominal RFR'!H58 -> 0.04095934343 | F40: 26 | G40: 48 | H40: =IF(B40=_xlfn.MAXIFS(B:B,C:C,C40,D:D,D40),VLOOKUP(EOMONTH('RBA Interpolation'!B40,0),'RBA Adjustments'!B:J,5,FALSE)/100,"") ->  | J40: =(1+(E40+IF(I40="",INDEX(I:I,F40)+(INDEX(I:I,G40)-INDEX(I:I,F40))*(ROW(B40)-F40)/(G40-F40),I40))/2)^2-1 -> 0.1132003528 | K40: =IF(B40=_xlfn.MAXIFS(B:B,C:C,C40,D:D,D40),VLOOKUP(EOMONTH('RBA Interpolation'!B40,0),'RBA Adjustments'!B:J,9,FALSE)/100,"") ->  | M40: =(1+(E40+IF(L40="",INDEX(L:L,F40)+(INDEX(L:L,G40)-INDEX(L:L,F40))*(ROW(B40)-F40)/(G40-F40),L40))/2)^2-1 -> 0.0950686885 | N40: 0.1071564647 | O40: 0.06619712128
A41: 39903 | B41: ='Nominal RFR'!B59 -> 2009-03-20 | C41: 2009 | D41: 3 | E41: ='Nominal RFR'!H59 -> 0.04166294192 | F41: 26 | G41: 48 | H41: =IF(B41=_xlfn.MAXIFS(B:B,C:C,C41,D:D,D41),VLOOKUP(EOMONTH('RBA Interpolation'!B41,0),'RBA Adjustments'!B:J,5,FALSE)/100,"") ->  | J41: =(1+(E41+IF(I41="",INDEX(I:I,F41)+(INDEX(I:I,G41)-INDEX(I:I,F41))*(ROW(B41)-F41)/(G41-F41),I41))/2)^2-1 -> 0.1145157087 | K41: =IF(B41=_xlfn.MAXIFS(B:B,C:C,C41,D:D,D41),VLOOKUP(EOMONTH('RBA Interpolation'!B41,0),'RBA Adjustments'!B:J,9,FALSE)/100,"") ->  | M41: =(1+(E41+IF(L41="",INDEX(L:L,F41)+(INDEX(L:L,G41)-INDEX(L:L,F41))*(ROW(B41)-F41)/(G41-F41),L41))/2)^2-1 -> 0.09559281096 | N41: 0.1082080761 | O41: 0.06654513421
A42: 39903 | B42: ='Nominal RFR'!B60 -> 2009-03-23 | C42: 2009 | D42: 3 | E42: ='Nominal RFR'!H60 -> 0.04302121212 | F42: 26 | G42: 48 | H42: =IF(B42=_xlfn.MAXIFS(B:B,C:C,C42,D:D,D42),VLOOKUP(EOMONTH('RBA Interpolation'!B42,0),'RBA Adjustments'!B:J,5,FALSE)/100,"") ->  | J42: =(1+(E42+IF(I42="",INDEX(I:I,F42)+(INDEX(I:I,G42)-INDEX(I:I,F42))*(ROW(B42)-F42)/(G42-F42),I42))/2)^2-1 -> 0.1165234974 | K42: =IF(B42=_xlfn.MAXIFS(B:B,C:C,C42,D:D,D42),VLOOKUP(EOMONTH('RBA Interpolation'!B42,0),'RBA Adjustments'!B:J,9,FALSE)/100,"") ->  | M42: =(1+(E42+IF(L42="",INDEX(L:L,F42)+(INDEX(L:L,G42)-INDEX(L:L,F42))*(ROW(B42)-F42)/(G42-F42),L42))/2)^2-1 -> 0.09680257851 | N42: 0.1099498578 | O42: 0.06692864566
A43: 39903 | B43: ='Nominal RFR'!B61 -> 2009-03-24 | C43: 2009 | D43: 3 | E43: ='Nominal RFR'!H61 -> 0.04367329545 | F43: 26 | G43: 48 | H43: =IF(B43=_xlfn.MAXIFS(B:B,C:C,C43,D:D,D43),VLOOKUP(EOMONTH('RBA Interpolation'!B43,0),'RBA Adjustments'!B:J,5,FALSE)/100,"") ->  | J43: =(1+(E43+IF(I43="",INDEX(I:I,F43)+(INDEX(I:I,G43)-INDEX(I:I,F43))*(ROW(B43)-F43)/(G43-F43),I43))/2)^2-1 -> 0.1177863493 | K43: =IF(B43=_xlfn.MAXIFS(B:B,C:C,C43,D:D,D43),VLOOKUP(EOMONTH('RBA Interpolation'!B43,0),'RBA Adjustments'!B:J,9,FALSE)/100,"") ->  | M43: =(1+(E43+IF(L43="",INDEX(L:L,F43)+(INDEX(L:L,G43)-INDEX(L:L,F43))*(ROW(B43)-F43)/(G43-F43),L43))/2)^2-1 -> 0.0972731525 | N43: 0.110948617 | O43: 0.06727532158
A44: 39903 | B44: ='Nominal RFR'!B62 -> 2009-03-25 | C44: 2009 | D44: 3 | E44: ='Nominal RFR'!H62 -> 0.04457588384 | F44: 26 | G44: 48 | H44: =IF(B44=_xlfn.MAXIFS(B:B,C:C,C44,D:D,D44),VLOOKUP(EOMONTH('RBA Interpolation'!B44,0),'RBA Adjustments'!B:J,5,FALSE)/100,"") ->  | J44: =(1+(E44+IF(I44="",INDEX(I:I,F44)+(INDEX(I:I,G44)-INDEX(I:I,F44))*(ROW(B44)-F44)/(G44-F44),I44))/2)^2-1 -> 0.1193149278 | K44: =IF(B44=_xlfn.MAXIFS(B:B,C:C,C44,D:D,D44),VLOOKUP(EOMONTH('RBA Interpolation'!B44,0),'RBA Adjustments'!B:J,9,FALSE)/100,"") ->  | M44: =(1+(E44+IF(L44="",INDEX(L:L,F44)+(INDEX(L:L,G44)-INDEX(L:L,F44))*(ROW(B44)-F44)/(G44-F44),L44))/2)^2-1 -> 0.09800630543 | N44: 0.1122120537 | O44: 0.06763616986
A45: 39903 | B45: ='Nominal RFR'!B63 -> 2009-03-26 | C45: 2009 | D45: 3 | E45: ='Nominal RFR'!H63 -> 0.04517708333 | F45: 26 | G45: 48 | H45: =IF(B45=_xlfn.MAXIFS(B:B,C:C,C45,D:D,D45),VLOOKUP(EOMONTH('RBA Interpolation'!B45,0),'RBA Adjustments'!B:J,5,FALSE)/100,"") ->  | J45: =(1+(E45+IF(I45="",INDEX(I:I,F45)+(INDEX(I:I,G45)-INDEX(I:I,F45))*(ROW(B45)-F45)/(G45-F45),I45))/2)^2-1 -> 0.1205254933 | K45: =IF(B45=_xlfn.MAXIFS(B:B,C:C,C45,D:D,D45),VLOOKUP(EOMONTH('RBA Interpolation'!B45,0),'RBA Adjustments'!B:J,9,FALSE)/100,"") ->  | M45: =(1+(E45+IF(L45="",INDEX(L:L,F45)+(INDEX(L:L,G45)-INDEX(L:L,F45))*(ROW(B45)-F45)/(G45-F45),L45))/2)^2-1 -> 0.09842380772 | N45: 0.1131582647 | O45: 0.06798118141
A46: 39903 | B46: ='Nominal RFR'!B64 -> 2009-03-27 | C46: 2009 | D46: 3 | E46: ='Nominal RFR'!H64 -> 0.04567954545 | F46: 26 | G46: 48 | H46: =IF(B46=_xlfn.MAXIFS(B:B,C:C,C46,D:D,D46),VLOOKUP(EOMONTH('RBA Interpolation'!B46,0),'RBA Adjustments'!B:J,5,FALSE)/100,"") ->  | J46: =(1+(E46+IF(I46="",INDEX(I:I,F46)+(INDEX(I:I,G46)-INDEX(I:I,F46))*(ROW(B46)-F46)/(G46-F46),I46))/2)^2-1 -> 0.1216321406 | K46: =IF(B46=_xlfn.MAXIFS(B:B,C:C,C46,D:D,D46),VLOOKUP(EOMONTH('RBA Interpolation'!B46,0),'RBA Adjustments'!B:J,9,FALSE)/100,"") ->  | M46: =(1+(E46+IF(L46="",INDEX(L:L,F46)+(INDEX(L:L,G46)-INDEX(L:L,F46))*(ROW(B46)-F46)/(G46-F46),L46))/2)^2-1 -> 0.09873788973 | N46: 0.1140007236 | O46: 0.06832117819
A47: 39903 | B47: ='Nominal RFR'!B65 -> 2009-03-30 | C47: 2009 | D47: 3 | E47: ='Nominal RFR'!H65 -> 0.04463693182 | F47: 26 | G47: 48 | H47: =IF(B47=_xlfn.MAXIFS(B:B,C:C,C47,D:D,D47),VLOOKUP(EOMONTH('RBA Interpolation'!B47,0),'RBA Adjustments'!B:J,5,FALSE)/100,"") ->  | J47: =(1+(E47+IF(I47="",INDEX(I:I,F47)+(INDEX(I:I,G47)-INDEX(I:I,F47))*(ROW(B47)-F47)/(G47-F47),I47))/2)^2-1 -> 0.121102778 | K47: =IF(B47=_xlfn.MAXIFS(B:B,C:C,C47,D:D,D47),VLOOKUP(EOMONTH('RBA Interpolation'!B47,0),'RBA Adjustments'!B:J,9,FALSE)/100,"") ->  | M47: =(1+(E47+IF(L47="",INDEX(L:L,F47)+(INDEX(L:L,G47)-INDEX(L:L,F47))*(ROW(B47)-F47)/(G47-F47),L47))/2)^2-1 -> 0.09743282275 | N47: 0.1132127929 | O47: 0.06857586112
A48: 39903 | B48: ='Nominal RFR'!B66 -> 2009-03-31 | C48: 2009 | D48: 3 | E48: ='Nominal RFR'!H66 -> 0.04413939394 | F48: 26 | G48: 48 | H48: =IF(B48=_xlfn.MAXIFS(B:B,C:C,C48,D:D,D48),VLOOKUP(EOMONTH('RBA Interpolation'!B48,0),'RBA Adjustments'!B:J,5,FALSE)/100,"") -> 0.117688 | I48: 0.07354860606 | J48: =(1+(E48+IF(I48="",INDEX(I:I,F48)+(INDEX(I:I,G48)-INDEX(I:I,F48))*(ROW(B48)-F48)/(G48-F48),I48))/2)^2-1 -> 0.1211506163 | K48: =IF(B48=_xlfn.MAXIFS(B:B,C:C,C48,D:D,D48),VLOOKUP(EOMONTH('RBA Interpolation'!B48,0),'RBA Adjustments'!B:J,9,FALSE)/100,"") -> 0.0944682179 | L48: 0.05032882396 | M48: =(1+(E48+IF(L48="",INDEX(L:L,F48)+(INDEX(L:L,G48)-INDEX(L:L,F48))*(ROW(B48)-F48)/(G48-F48),L48))/2)^2-1 -> 0.09669927895 | N48: 0.1130001705 | O48: 0.0688607766
A49: 39933 | B49: ='Nominal RFR'!B67 -> 2009-04-01 | C49: 2009 | D49: 4 | E49: ='Nominal RFR'!H67 -> 0.04394185606 | F49: 48 | G49: 68 | H49: =IF(B49=_xlfn.MAXIFS(B:B,C:C,C49,D:D,D49),VLOOKUP(EOMONTH('RBA Interpolation'!B49,0),'RBA Adjustments'!B:J,5,FALSE)/100,"") ->  | J49: =(1+(E49+IF(I49="",INDEX(I:I,F49)+(INDEX(I:I,G49)-INDEX(I:I,F49))*(ROW(B49)-F49)/(G49-F49),I49))/2)^2-1 -> 0.1204118058 | K49: =IF(B49=_xlfn.MAXIFS(B:B,C:C,C49,D:D,D49),VLOOKUP(EOMONTH('RBA Interpolation'!B49,0),'RBA Adjustments'!B:J,9,FALSE)/100,"") ->  | M49: =(1+(E49+IF(L49="",INDEX(L:L,F49)+(INDEX(L:L,G49)-INDEX(L:L,F49))*(ROW(B49)-F49)/(G49-F49),L49))/2)^2-1 -> 0.09600106528 | N49: 0.1122748923 | O49: 0.06833303625
A50: 39933 | B50: ='Nominal RFR'!B68 -> 2009-04-02 | C50: 2009 | D50: 4 | E50: ='Nominal RFR'!H68 -> 0.04374431818 | F50: 48 | G50: 68 | H50: =IF(B50=_xlfn.MAXIFS(B:B,C:C,C50,D:D,D50),VLOOKUP(EOMONTH('RBA Interpolation'!B50,0),'RBA Adjustments'!B:J,5,FALSE)/100,"") ->  | J50: =(1+(E50+IF(I50="",INDEX(I:I,F50)+(INDEX(I:I,G50)-INDEX(I:I,F50))*(ROW(B50)-F50)/(G50-F50),I50))/2)^2-1 -> 0.1196732388 | K50: =IF(B50=_xlfn.MAXIFS(B:B,C:C,C50,D:D,D50),VLOOKUP(EOMONTH('RBA Interpolation'!B50,0),'RBA Adjustments'!B:J,9,FALSE)/100,"") ->  | M50: =(1+(E50+IF(L50="",INDEX(L:L,F50)+(INDEX(L:L,G50)-INDEX(L:L,F50))*(ROW(B50)-F50)/(G50-F50),L50))/2)^2-1 -> 0.09530307395 | N50: 0.1115498505 | O50: 0.06780553234
A51: 39933 | B51: ='Nominal RFR'!B69 -> 2009-04-03 | C51: 2009 | D51: 4 | E51: ='Nominal RFR'!H69 -> 0.04429558081 | F51: 48 | G51: 68 | H51: =IF(B51=_xlfn.MAXIFS(B:B,C:C,C51,D:D,D51),VLOOKUP(EOMONTH('RBA Interpolation'!B51,0),'RBA Adjustments'!B:J,5,FALSE)/100,"") ->  | J51: =(1+(E51+IF(I51="",INDEX(I:I,F51)+(INDEX(I:I,G51)-INDEX(I:I,F51))*(ROW(B51)-F51)/(G51-F51),I51))/2)^2-1 -> 0.1197271346 | K51: =IF(B51=_xlfn.MAXIFS(B:B,C:C,C51,D:D,D51),VLOOKUP(EOMONTH('RBA Interpolation'!B51,0),'RBA Adjustments'!B:J,9,FALSE)/100,"") ->  | M51: =(1+(E51+IF(L51="",INDEX(L:L,F51)+(INDEX(L:L,G51)-INDEX(L:L,F51))*(ROW(B51)-F51)/(G51-F51),L51))/2)^2-1 -> 0.09538886557 | N51: 0.1116143782 | O51: 0.06731879743
A52: 39933 | B52: ='Nominal RFR'!B70 -> 2009-04-06 | C52: 2009 | D52: 4 | E52: ='Nominal RFR'!H70 -> 0.04615694444 | F52: 48 | G52: 68 | H52: =IF(B52=_xlfn.MAXIFS(B:B,C:C,C52,D:D,D52),VLOOKUP(EOMONTH('RBA Interpolation'!B52,0),'RBA Adjustments'!B:J,5,FALSE)/100,"") ->  | J52: =(1+(E52+IF(I52="",INDEX(I:I,F52)+(INDEX(I:I,G52)-INDEX(I:I,F52))*(ROW(B52)-F52)/(G52-F52),I52))/2)^2-1 -> 0.1211678058 | K52: =IF(B52=_xlfn.MAXIFS(B:B,C:C,C52,D:D,D52),VLOOKUP(EOMONTH('RBA Interpolation'!B52,0),'RBA Adjustments'!B:J,9,FALSE)/100,"") ->  | M52: =(1+(E52+IF(L52="",INDEX(L:L,F52)+(INDEX(L:L,G52)-INDEX(L:L,F52))*(ROW(B52)-F52)/(G52-F52),L52))/2)^2-1 -> 0.09684630588 | N52: 0.1130606391 | O52: 0.06690369469
A53: 39933 | B53: ='Nominal RFR'!B71 -> 2009-04-07 | C53: 2009 | D53: 4 | E53: ='Nominal RFR'!H71 -> 0.04611098485 | F53: 48 | G53: 68 | H53: =IF(B53=_xlfn.MAXIFS(B:B,C:C,C53,D:D,D53),VLOOKUP(EOMONTH('RBA Interpolation'!B53,0),'RBA Adjustments'!B:J,5,FALSE)/100,"") ->  | J53: =(1+(E53+IF(I53="",INDEX(I:I,F53)+(INDEX(I:I,G53)-INDEX(I:I,F53))*(ROW(B53)-F53)/(G53-F53),I53))/2)^2-1 -> 0.1205894414 | K53: =IF(B53=_xlfn.MAXIFS(B:B,C:C,C53,D:D,D53),VLOOKUP(EOMONTH('RBA Interpolation'!B53,0),'RBA Adjustments'!B:J,9,FALSE)/100,"") ->  | M53: =(1+(E53+IF(L53="",INDEX(L:L,F53)+(INDEX(L:L,G53)-INDEX(L:L,F53))*(ROW(B53)-F53)/(G53-F53),L53))/2)^2-1 -> 0.0963067492 | N53: 0.1124952107 | O53: 0.06638422583
A54: 39933 | B54: ='Nominal RFR'!B72 -> 2009-04-08 | C54: 2009 | D54: 4 | E54: ='Nominal RFR'!H72 -> 0.04541212121 | F54: 48 | G54: 68 | H54: =IF(B54=_xlfn.MAXIFS(B:B,C:C,C54,D:D,D54),VLOOKUP(EOMONTH('RBA Interpolation'!B54,0),'RBA Adjustments'!B:J,5,FALSE)/100,"") ->  | J54: =(1+(E54+IF(I54="",INDEX(I:I,F54)+(INDEX(I:I,G54)-INDEX(I:I,F54))*(ROW(B54)-F54)/(G54-F54),I54))/2)^2-1 -> 0.1193203607 | K54: =IF(B54=_xlfn.MAXIFS(B:B,C:C,C54,D:D,D54),VLOOKUP(EOMONTH('RBA Interpolation'!B54,0),'RBA Adjustments'!B:J,9,FALSE)/100,"") ->  | M54: =(1+(E54+IF(L54="",INDEX(L:L,F54)+(INDEX(L:L,G54)-INDEX(L:L,F54))*(ROW(B54)-F54)/(G54-F54),L54))/2)^2-1 -> 0.09508397903 | N54: 0.1112415668 | O54: 0.0658294456
A55: 39933 | B55: ='Nominal RFR'!B73 -> 2009-04-09 | C55: 2009 | D55: 4 | E55: ='Nominal RFR'!H73 -> 0.0459147096 | F55: 48 | G55: 68 | H55: =IF(B55=_xlfn.MAXIFS(B:B,C:C,C55,D:D,D55),VLOOKUP(EOMONTH('RBA Interpolation'!B55,0),'RBA Adjustments'!B:J,5,FALSE)/100,"") ->  | J55: =(1+(E55+IF(I55="",INDEX(I:I,F55)+(INDEX(I:I,G55)-INDEX(I:I,F55))*(ROW(B55)-F55)/(G55-F55),I55))/2)^2-1 -> 0.119322751 | K55: =IF(B55=_xlfn.MAXIFS(B:B,C:C,C55,D:D,D55),VLOOKUP(EOMONTH('RBA Interpolation'!B55,0),'RBA Adjustments'!B:J,9,FALSE)/100,"") ->  | M55: =(1+(E55+IF(L55="",INDEX(L:L,F55)+(INDEX(L:L,G55)-INDEX(L:L,F55))*(ROW(B55)-F55)/(G55-F55),L55))/2)^2-1 -> 0.09511882489 | N55: 0.1112547756 | O55: 0.06534006602
A56: 39933 | B56: ='Nominal RFR'!B74 -> 2009-04-14 | C56: 2009 | D56: 4 | E56: ='Nominal RFR'!H74 -> 0.04642765152 | F56: 48 | G56: 68 | H56: =IF(B56=_xlfn.MAXIFS(B:B,C:C,C56,D:D,D56),VLOOKUP(EOMONTH('RBA Interpolation'!B56,0),'RBA Adjustments'!B:J,5,FALSE)/100,"") ->  | J56: =(1+(E56+IF(I56="",INDEX(I:I,F56)+(INDEX(I:I,G56)-INDEX(I:I,F56))*(ROW(B56)-F56)/(G56-F56),I56))/2)^2-1 -> 0.1193360951 | K56: =IF(B56=_xlfn.MAXIFS(B:B,C:C,C56,D:D,D56),VLOOKUP(EOMONTH('RBA Interpolation'!B56,0),'RBA Adjustments'!B:J,9,FALSE)/100,"") ->  | M56: =(1+(E56+IF(L56="",INDEX(L:L,F56)+(INDEX(L:L,G56)-INDEX(L:L,F56))*(ROW(B56)-F56)/(G56-F56),L56))/2)^2-1 -> 0.09516450627 | N56: 0.1112788988 | O56: 0.06485124733
A57: 39933 | B57: ='Nominal RFR'!B75 -> 2009-04-15 | C57: 2009 | D57: 4 | E57: ='Nominal RFR'!H75 -> 0.0458302399 | F57: 48 | G57: 68 | H57: =IF(B57=_xlfn.MAXIFS(B:B,C:C,C57,D:D,D57),VLOOKUP(EOMONTH('RBA Interpolation'!B57,0),'RBA Adjustments'!B:J,5,FALSE)/100,"") ->  | J57: =(1+(E57+IF(I57="",INDEX(I:I,F57)+(INDEX(I:I,G57)-INDEX(I:I,F57))*(ROW(B57)-F57)/(G57-F57),I57))/2)^2-1 -> 0.1181750012 | K57: =IF(B57=_xlfn.MAXIFS(B:B,C:C,C57,D:D,D57),VLOOKUP(EOMONTH('RBA Interpolation'!B57,0),'RBA Adjustments'!B:J,9,FALSE)/100,"") ->  | M57: =(1+(E57+IF(L57="",INDEX(L:L,F57)+(INDEX(L:L,G57)-INDEX(L:L,F57))*(ROW(B57)-F57)/(G57-F57),L57))/2)^2-1 -> 0.09404848641 | N57: 0.1101328296 | O57: 0.06430258969
A58: 39933 | B58: ='Nominal RFR'!B76 -> 2009-04-16 | C58: 2009 | D58: 4 | E58: ='Nominal RFR'!H76 -> 0.04518080808 | F58: 48 | G58: 68 | H58: =IF(B58=_xlfn.MAXIFS(B:B,C:C,C58,D:D,D58),VLOOKUP(EOMONTH('RBA Interpolation'!B58,0),'RBA Adjustments'!B:J,5,FALSE)/100,"") ->  | J58: =(1+(E58+IF(I58="",INDEX(I:I,F58)+(INDEX(I:I,G58)-INDEX(I:I,F58))*(ROW(B58)-F58)/(G58-F58),I58))/2)^2-1 -> 0.1169595308 | K58: =IF(B58=_xlfn.MAXIFS(B:B,C:C,C58,D:D,D58),VLOOKUP(EOMONTH('RBA Interpolation'!B58,0),'RBA Adjustments'!B:J,9,FALSE)/100,"") ->  | M58: =(1+(E58+IF(L58="",INDEX(L:L,F58)+(INDEX(L:L,G58)-INDEX(L:L,F58))*(ROW(B58)-F58)/(G58-F58),L58))/2)^2-1 -> 0.09287865244 | N58: 0.1089325714 | O58: 0.06375176329
A59: 39933 | B59: ='Nominal RFR'!B77 -> 2009-04-17 | C59: 2009 | D59: 4 | E59: ='Nominal RFR'!H77 -> 0.04523333333 | F59: 48 | G59: 68 | H59: =IF(B59=_xlfn.MAXIFS(B:B,C:C,C59,D:D,D59),VLOOKUP(EOMONTH('RBA Interpolation'!B59,0),'RBA Adjustments'!B:J,5,FALSE)/100,"") ->  | J59: =(1+(E59+IF(I59="",INDEX(I:I,F59)+(INDEX(I:I,G59)-INDEX(I:I,F59))*(ROW(B59)-F59)/(G59-F59),I59))/2)^2-1 -> 0.1164863136 | K59: =IF(B59=_xlfn.MAXIFS(B:B,C:C,C59,D:D,D59),VLOOKUP(EOMONTH('RBA Interpolation'!B59,0),'RBA Adjustments'!B:J,9,FALSE)/100,"") ->  | M59: =(1+(E59+IF(L59="",INDEX(L:L,F59)+(INDEX(L:L,G59)-INDEX(L:L,F59))*(ROW(B59)-F59)/(G59-F59),L59))/2)^2-1 -> 0.09244300658 | N59: 0.1084718779 | O59: 0.06323854461
A60: 39933 | B60: ='Nominal RFR'!B78 -> 2009-04-20 | C60: 2009 | D60: 4 | E60: ='Nominal RFR'!H78 -> 0.04609090909 | F60: 48 | G60: 68 | H60: =IF(B60=_xlfn.MAXIFS(B:B,C:C,C60,D:D,D60),VLOOKUP(EOMONTH('RBA Interpolation'!B60,0),'RBA Adjustments'!B:J,5,FALSE)/100,"") ->  | J60: =(1+(E60+IF(I60="",INDEX(I:I,F60)+(INDEX(I:I,G60)-INDEX(I:I,F60))*(ROW(B60)-F60)/(G60-F60),I60))/2)^2-1 -> 0.1168638263 | K60: =IF(B60=_xlfn.MAXIFS(B:B,C:C,C60,D:D,D60),VLOOKUP(EOMONTH('RBA Interpolation'!B60,0),'RBA Adjustments'!B:J,9,FALSE)/100,"") ->  | M60: =(1+(E60+IF(L60="",INDEX(L:L,F60)+(INDEX(L:L,G60)-INDEX(L:L,F60))*(ROW(B60)-F60)/(G60-F60),L60))/2)^2-1 -> 0.09284888061 | N60: 0.1088588444 | O60: 0.06276793533
A61: 39933 | B61: ='Nominal RFR'!B79 -> 2009-04-21 | C61: 2009 | D61: 4 | E61: ='Nominal RFR'!H79 -> 0.04379109848 | F61: 48 | G61: 68 | H61: =IF(B61=_xlfn.MAXIFS(B:B,C:C,C61,D:D,D61),VLOOKUP(EOMONTH('RBA Interpolation'!B61,0),'RBA Adjustments'!B:J,5,FALSE)/100,"") ->  | J61: =(1+(E61+IF(I61="",INDEX(I:I,F61)+(INDEX(I:I,G61)-INDEX(I:I,F61))*(ROW(B61)-F61)/(G61-F61),I61))/2)^2-1 -> 0.1139065491 | K61: =IF(B61=_xlfn.MAXIFS(B:B,C:C,C61,D:D,D61),VLOOKUP(EOMONTH('RBA Interpolation'!B61,0),'RBA Adjustments'!B:J,9,FALSE)/100,"") ->  | M61: =(1+(E61+IF(L61="",INDEX(L:L,F61)+(INDEX(L:L,G61)-INDEX(L:L,F61))*(ROW(B61)-F61)/(G61-F61),L61))/2)^2-1 -> 0.08995599615 | N61: 0.1059230314 | O61: 0.06213193295
A62: 39933 | B62: ='Nominal RFR'!B80 -> 2009-04-22 | C62: 2009 | D62: 4 | E62: ='Nominal RFR'!H80 -> 0.04469116162 | F62: 48 | G62: 68 | H62: =IF(B62=_xlfn.MAXIFS(B:B,C:C,C62,D:D,D62),VLOOKUP(EOMONTH('RBA Interpolation'!B62,0),'RBA Adjustments'!B:J,5,FALSE)/100,"") ->  | J62: =(1+(E62+IF(I62="",INDEX(I:I,F62)+(INDEX(I:I,G62)-INDEX(I:I,F62))*(ROW(B62)-F62)/(G62-F62),I62))/2)^2-1 -> 0.1143284754 | K62: =IF(B62=_xlfn.MAXIFS(B:B,C:C,C62,D:D,D62),VLOOKUP(EOMONTH('RBA Interpolation'!B62,0),'RBA Adjustments'!B:J,9,FALSE)/100,"") ->  | M62: =(1+(E62+IF(L62="",INDEX(L:L,F62)+(INDEX(L:L,G62)-INDEX(L:L,F62))*(ROW(B62)-F62)/(G62-F62),L62))/2)^2-1 -> 0.09040577389 | N62: 0.1063542416 | O62: 0.06166307994
A63: 39933 | B63: ='Nominal RFR'!B81 -> 2009-04-23 | C63: 2009 | D63: 4 | E63: ='Nominal RFR'!H81 -> 0.04499356061 | F63: 48 | G63: 68 | H63: =IF(B63=_xlfn.MAXIFS(B:B,C:C,C63,D:D,D63),VLOOKUP(EOMONTH('RBA Interpolation'!B63,0),'RBA Adjustments'!B:J,5,FALSE)/100,"") ->  | J63: =(1+(E63+IF(I63="",INDEX(I:I,F63)+(INDEX(I:I,G63)-INDEX(I:I,F63))*(ROW(B63)-F63)/(G63-F63),I63))/2)^2-1 -> 0.1141195467 | K63: =IF(B63=_xlfn.MAXIFS(B:B,C:C,C63,D:D,D63),VLOOKUP(EOMONTH('RBA Interpolation'!B63,0),'RBA Adjustments'!B:J,9,FALSE)/100,"") ->  | M63: =(1+(E63+IF(L63="",INDEX(L:L,F63)+(INDEX(L:L,G63)-INDEX(L:L,F63))*(ROW(B63)-F63)/(G63-F63),L63))/2)^2-1 -> 0.09023150916 | N63: 0.1061568675 | O63: 0.0611633069
A64: 39933 | B64: ='Nominal RFR'!B82 -> 2009-04-24 | C64: 2009 | D64: 4 | E64: ='Nominal RFR'!H82 -> 0.0451959596 | F64: 48 | G64: 68 | H64: =IF(B64=_xlfn.MAXIFS(B:B,C:C,C64,D:D,D64),VLOOKUP(EOMONTH('RBA Interpolation'!B64,0),'RBA Adjustments'!B:J,5,FALSE)/100,"") ->  | J64: =(1+(E64+IF(I64="",INDEX(I:I,F64)+(INDEX(I:I,G64)-INDEX(I:I,F64))*(ROW(B64)-F64)/(G64-F64),I64))/2)^2-1 -> 0.1138050981 | K64: =IF(B64=_xlfn.MAXIFS(B:B,C:C,C64,D:D,D64),VLOOKUP(EOMONTH('RBA Interpolation'!B64,0),'RBA Adjustments'!B:J,9,FALSE)/100,"") ->  | M64: =(1+(E64+IF(L64="",INDEX(L:L,F64)+(INDEX(L:L,G64)-INDEX(L:L,F64))*(ROW(B64)-F64)/(G64-F64),L64))/2)^2-1 -> 0.08995285505 | N64: 0.1058543504 | O64: 0.06065839081
A65: 39933 | B65: ='Nominal RFR'!B83 -> 2009-04-27 | C65: 2009 | D65: 4 | E65: ='Nominal RFR'!H83 -> 0.04480315657 | F65: 48 | G65: 68 | H65: =IF(B65=_xlfn.MAXIFS(B:B,C:C,C65,D:D,D65),VLOOKUP(EOMONTH('RBA Interpolation'!B65,0),'RBA Adjustments'!B:J,5,FALSE)/100,"") ->  | J65: =(1+(E65+IF(I65="",INDEX(I:I,F65)+(INDEX(I:I,G65)-INDEX(I:I,F65))*(ROW(B65)-F65)/(G65-F65),I65))/2)^2-1 -> 0.112862713 | K65: =IF(B65=_xlfn.MAXIFS(B:B,C:C,C65,D:D,D65),VLOOKUP(EOMONTH('RBA Interpolation'!B65,0),'RBA Adjustments'!B:J,9,FALSE)/100,"") ->  | M65: =(1+(E65+IF(L65="",INDEX(L:L,F65)+(INDEX(L:L,G65)-INDEX(L:L,F65))*(ROW(B65)-F65)/(G65-F65),L65))/2)^2-1 -> 0.08905300884 | N65: 0.1049261449 | O65: 0.06012298835
A66: 39933 | B66: ='Nominal RFR'!B84 -> 2009-04-28 | C66: 2009 | D66: 4 | E66: ='Nominal RFR'!H84 -> 0.04450833333 | F66: 48 | G66: 68 | H66: =IF(B66=_xlfn.MAXIFS(B:B,C:C,C66,D:D,D66),VLOOKUP(EOMONTH('RBA Interpolation'!B66,0),'RBA Adjustments'!B:J,5,FALSE)/100,"") ->  | J66: =(1+(E66+IF(I66="",INDEX(I:I,F66)+(INDEX(I:I,G66)-INDEX(I:I,F66))*(ROW(B66)-F66)/(G66-F66),I66))/2)^2-1 -> 0.1120240465 | K66: =IF(B66=_xlfn.MAXIFS(B:B,C:C,C66,D:D,D66),VLOOKUP(EOMONTH('RBA Interpolation'!B66,0),'RBA Adjustments'!B:J,9,FALSE)/100,"") ->  | M66: =(1+(E66+IF(L66="",INDEX(L:L,F66)+(INDEX(L:L,G66)-INDEX(L:L,F66))*(ROW(B66)-F66)/(G66-F66),L66))/2)^2-1 -> 0.08825574387 | N66: 0.1041012789 | O66: 0.0595929456
A67: 39933 | B67: ='Nominal RFR'!B85 -> 2009-04-29 | C67: 2009 | D67: 4 | E67: ='Nominal RFR'!H85 -> 0.04594269521 | F67: 48 | G67: 68 | H67: =IF(B67=_xlfn.MAXIFS(B:B,C:C,C67,D:D,D67),VLOOKUP(EOMONTH('RBA Interpolation'!B67,0),'RBA Adjustments'!B:J,5,FALSE)/100,"") ->  | J67: =(1+(E67+IF(I67="",INDEX(I:I,F67)+(INDEX(I:I,G67)-INDEX(I:I,F67))*(ROW(B67)-F67)/(G67-F67),I67))/2)^2-1 -> 0.113009226 | K67: =IF(B67=_xlfn.MAXIFS(B:B,C:C,C67,D:D,D67),VLOOKUP(EOMONTH('RBA Interpolation'!B67,0),'RBA Adjustments'!B:J,9,FALSE)/100,"") ->  | M67: =(1+(E67+IF(L67="",INDEX(L:L,F67)+(INDEX(L:L,G67)-INDEX(L:L,F67))*(ROW(B67)-F67)/(G67-F67),L67))/2)^2-1 -> 0.08926273491 | N67: 0.1050937289 | O67: 0.05915103372
A68: 39933 | B68: ='Nominal RFR'!B86 -> 2009-04-30 | C68: 2009 | D68: 4 | E68: ='Nominal RFR'!H86 -> 0.04590277078 | F68: 48 | G68: 68 | H68: =IF(B68=_xlfn.MAXIFS(B:B,C:C,C68,D:D,D68),VLOOKUP(EOMONTH('RBA Interpolation'!B68,0),'RBA Adjustments'!B:J,5,FALSE)/100,"") -> 0.1094447947 | I68: 0.06354202392 | J68: =(1+(E68+IF(I68="",INDEX(I:I,F68)+(INDEX(I:I,G68)-INDEX(I:I,F68))*(ROW(B68)-F68)/(G68-F68),I68))/2)^2-1 -> 0.1124393355 | K68: =IF(B68=_xlfn.MAXIFS(B:B,C:C,C68,D:D,D68),VLOOKUP(EOMONTH('RBA Interpolation'!B68,0),'RBA Adjustments'!B:J,9,FALSE)/100,"") -> 0.08684579608 | L68: 0.0409430253 | M68: =(1+(E68+IF(L68="",INDEX(L:L,F68)+(INDEX(L:L,G68)-INDEX(L:L,F68))*(ROW(B68)-F68)/(G68-F68),L68))/2)^2-1 -> 0.08873134415 | N68: 0.1045366717 | O68: 0.05863390092
A69: 39964 | B69: ='Nominal RFR'!B87 -> 2009-05-01 | C69: 2009 | D69: 5 | E69: ='Nominal RFR'!H87 -> 0.04702493703 | F69: 68 | G69: 89 | H69: =IF(B69=_xlfn.MAXIFS(B:B,C:C,C69,D:D,D69),VLOOKUP(EOMONTH('RBA Interpolation'!B69,0),'RBA Adjustments'!B:J,5,FALSE)/100,"") ->  | J69: =(1+(E69+IF(I69="",INDEX(I:I,F69)+(INDEX(I:I,G69)-INDEX(I:I,F69))*(ROW(B69)-F69)/(G69-F69),I69))/2)^2-1 -> 0.1127925667 | K69: =IF(B69=_xlfn.MAXIFS(B:B,C:C,C69,D:D,D69),VLOOKUP(EOMONTH('RBA Interpolation'!B69,0),'RBA Adjustments'!B:J,9,FALSE)/100,"") ->  | M69: =(1+(E69+IF(L69="",INDEX(L:L,F69)+(INDEX(L:L,G69)-INDEX(L:L,F69))*(ROW(B69)-F69)/(G69-F69),L69))/2)^2-1 -> 0.08932726295 | N69: 0.1049707988 | O69: 0.05794586178
A70: 39964 | B70: ='Nominal RFR'!B88 -> 2009-05-04 | C70: 2009 | D70: 5 | E70: ='Nominal RFR'!H88 -> 0.04717670025 | F70: =MATCH(IF(D70=1,_xlfn.MAXIFS(B:B,C:C,C70-1,D:D,12),_xlfn.MAXIFS(B:B,C:C,C70,D:D,D70-1)),B:B,0) -> 68 | G70: =MATCH(_xlfn.MAXIFS(B:B,C:C,C70,D:D,D70),B:B,0) -> 89 | H70: =IF(B70=_xlfn.MAXIFS(B:B,C:C,C70,D:D,D70),VLOOKUP(EOMONTH('RBA Interpolation'!B70,0),'RBA Adjustments'!B:J,5,FALSE)/100,"") ->  | I70: =IF(H70="","",H70-E70) ->  | J70: =(1+(E70+IF(I70="",INDEX(I:I,F70)+(INDEX(I:I,G70)-INDEX(I:I,F70))*(ROW(B70)-F70)/(G70-F70),I70))/2)^2-1 -> 0.1121222587 | K70: =IF(B70=_xlfn.MAXIFS(B:B,C:C,C70,D:D,D70),VLOOKUP(EOMONTH('RBA Interpolation'!B70,0),'RBA Adjustments'!B:J,9,FALSE)/100,"") ->  | M70: =(1+(E70+IF(L70="",INDEX(L:L,F70)+(INDEX(L:L,G70)-INDEX(L:L,F70))*(ROW(B70)-F70)/(G70-F70),L70))/2)^2-1 -> 0.08891048533 | N70: 0.1043850009 | O70: 0.05720830068
A71: =EOMONTH(B71,0) -> 39964 | B71: ='Nominal RFR'!B89 -> 2009-05-05 | C71: =YEAR(B71) -> 2009 | D71: 5 | E71: ='Nominal RFR'!H89 -> 0.04838123426 | F71: 68 | G71: 89 | H71: =IF(B71=_xlfn.MAXIFS(B:B,C:C,C71,D:D,D71),VLOOKUP(EOMONTH('RBA Interpolation'!B71,0),'RBA Adjustments'!B:J,5,FALSE)/100,"") ->  | J71: =(1+(E71+IF(I71="",INDEX(I:I,F71)+(INDEX(I:I,G71)-INDEX(I:I,F71))*(ROW(B71)-F71)/(G71-F71),I71))/2)^2-1 -> 0.1125623179 | K71: =IF(B71=_xlfn.MAXIFS(B:B,C:C,C71,D:D,D71),VLOOKUP(EOMONTH('RBA Interpolation'!B71,0),'RBA Adjustments'!B:J,9,FALSE)/100,"") ->  | L71: =IF(K71="","",K71-E71) ->  | M71: =(1+(E71+IF(L71="",INDEX(L:L,F71)+(INDEX(L:L,G71)-INDEX(L:L,F71))*(ROW(B71)-F71)/(G71-F71),L71))/2)^2-1 -> 0.08959242983 | N71: =2/3*J71+1/3*M71 -> 0.1049056885 | O71: =N71-E71 -> 0.05652445428
A72: 39964 | B72: ='Nominal RFR'!B90 -> 2009-05-06 | C72: 2009 | D72: 5 | E72: ='Nominal RFR'!H90 -> 0.04799231738 | F72: 68 | G72: 89 | H72: =IF(B72=_xlfn.MAXIFS(B:B,C:C,C72,D:D,D72),VLOOKUP(EOMONTH('RBA Interpolation'!B72,0),'RBA Adjustments'!B:J,5,FALSE)/100,"") ->  | J72: =(1+(E72+IF(I72="",INDEX(I:I,F72)+(INDEX(I:I,G72)-INDEX(I:I,F72))*(ROW(B72)-F72)/(G72-F72),I72))/2)^2-1 -> 0.1113220252 | K72: =IF(B72=_xlfn.MAXIFS(B:B,C:C,C72,D:D,D72),VLOOKUP(EOMONTH('RBA Interpolation'!B72,0),'RBA Adjustments'!B:J,9,FALSE)/100,"") ->  | M72: =(1+(E72+IF(L72="",INDEX(L:L,F72)+(INDEX(L:L,G72)-INDEX(L:L,F72))*(ROW(B72)-F72)/(G72-F72),L72))/2)^2-1 -> 0.08861140149 | N72: 0.1037518173 | O72: 0.05575949991
A73: 39964 | B73: ='Nominal RFR'!B91 -> 2009-05-07 | C73: 2009 | D73: 5 | E73: ='Nominal RFR'!H91 -> 0.0492336272 | F73: 68 | G73: 89 | H73: =IF(B73=_xlfn.MAXIFS(B:B,C:C,C73,D:D,D73),VLOOKUP(EOMONTH('RBA Interpolation'!B73,0),'RBA Adjustments'!B:J,5,FALSE)/100,"") ->  | J73: =(1+(E73+IF(I73="",INDEX(I:I,F73)+(INDEX(I:I,G73)-INDEX(I:I,F73))*(ROW(B73)-F73)/(G73-F73),I73))/2)^2-1 -> 0.1118007028 | K73: =IF(B73=_xlfn.MAXIFS(B:B,C:C,C73,D:D,D73),VLOOKUP(EOMONTH('RBA Interpolation'!B73,0),'RBA Adjustments'!B:J,9,FALSE)/100,"") ->  | M73: =(1+(E73+IF(L73="",INDEX(L:L,F73)+(INDEX(L:L,G73)-INDEX(L:L,F73))*(ROW(B73)-F73)/(G73-F73),L73))/2)^2-1 -> 0.08933163531 | N73: 0.1043110136 | O73: 0.05507738645
A74: 39964 | B74: ='Nominal RFR'!B92 -> 2009-05-08 | C74: 2009 | D74: 5 | E74: ='Nominal RFR'!H92 -> 0.04988803526 | F74: 68 | G74: 89 | H74: =IF(B74=_xlfn.MAXIFS(B:B,C:C,C74,D:D,D74),VLOOKUP(EOMONTH('RBA Interpolation'!B74,0),'RBA Adjustments'!B:J,5,FALSE)/100,"") ->  | J74: =(1+(E74+IF(I74="",INDEX(I:I,F74)+(INDEX(I:I,G74)-INDEX(I:I,F74))*(ROW(B74)-F74)/(G74-F74),I74))/2)^2-1 -> 0.1116605957 | K74: =IF(B74=_xlfn.MAXIFS(B:B,C:C,C74,D:D,D74),VLOOKUP(EOMONTH('RBA Interpolation'!B74,0),'RBA Adjustments'!B:J,9,FALSE)/100,"") ->  | M74: =(1+(E74+IF(L74="",INDEX(L:L,F74)+(INDEX(L:L,G74)-INDEX(L:L,F74))*(ROW(B74)-F74)/(G74-F74),L74))/2)^2-1 -> 0.08943943536 | N74: 0.1042535422 | O74: 0.05436550696
A75: 39964 | B75: ='Nominal RFR'!B93 -> 2009-05-11 | C75: 2009 | D75: 5 | E75: ='Nominal RFR'!H93 -> 0.04945125945 | F75: 68 | G75: 89 | H75: =IF(B75=_xlfn.MAXIFS(B:B,C:C,C75,D:D,D75),VLOOKUP(EOMONTH('RBA Interpolation'!B75,0),'RBA Adjustments'!B:J,5,FALSE)/100,"") ->  | J75: =(1+(E75+IF(I75="",INDEX(I:I,F75)+(INDEX(I:I,G75)-INDEX(I:I,F75))*(ROW(B75)-F75)/(G75-F75),I75))/2)^2-1 -> 0.1103703743 | K75: =IF(B75=_xlfn.MAXIFS(B:B,C:C,C75,D:D,D75),VLOOKUP(EOMONTH('RBA Interpolation'!B75,0),'RBA Adjustments'!B:J,9,FALSE)/100,"") ->  | M75: =(1+(E75+IF(L75="",INDEX(L:L,F75)+(INDEX(L:L,G75)-INDEX(L:L,F75))*(ROW(B75)-F75)/(G75-F75),L75))/2)^2-1 -> 0.08840854562 | N75: 0.1030497648 | O75: 0.05359850531
A76: 39964 | B76: ='Nominal RFR'!B94 -> 2009-05-12 | C76: 2009 | D76: 5 | E76: ='Nominal RFR'!H94 -> 0.04960566751 | F76: 68 | G76: 89 | H76: =IF(B76=_xlfn.MAXIFS(B:B,C:C,C76,D:D,D76),VLOOKUP(EOMONTH('RBA Interpolation'!B76,0),'RBA Adjustments'!B:J,5,FALSE)/100,"") ->  | J76: =(1+(E76+IF(I76="",INDEX(I:I,F76)+(INDEX(I:I,G76)-INDEX(I:I,F76))*(ROW(B76)-F76)/(G76-F76),I76))/2)^2-1 -> 0.1097035825 | K76: =IF(B76=_xlfn.MAXIFS(B:B,C:C,C76,D:D,D76),VLOOKUP(EOMONTH('RBA Interpolation'!B76,0),'RBA Adjustments'!B:J,9,FALSE)/100,"") ->  | M76: =(1+(E76+IF(L76="",INDEX(L:L,F76)+(INDEX(L:L,G76)-INDEX(L:L,F76))*(ROW(B76)-F76)/(G76-F76),L76))/2)^2-1 -> 0.08799470255 | N76: 0.1024672892 | O76: 0.05286162167
A77: 39964 | B77: ='Nominal RFR'!B95 -> 2009-05-13 | C77: 2009 | D77: 5 | E77: ='Nominal RFR'!H95 -> 0.04951007557 | F77: 68 | G77: 89 | H77: =IF(B77=_xlfn.MAXIFS(B:B,C:C,C77,D:D,D77),VLOOKUP(EOMONTH('RBA Interpolation'!B77,0),'RBA Adjustments'!B:J,5,FALSE)/100,"") ->  | J77: =(1+(E77+IF(I77="",INDEX(I:I,F77)+(INDEX(I:I,G77)-INDEX(I:I,F77))*(ROW(B77)-F77)/(G77-F77),I77))/2)^2-1 -> 0.1087737295 | K77: =IF(B77=_xlfn.MAXIFS(B:B,C:C,C77,D:D,D77),VLOOKUP(EOMONTH('RBA Interpolation'!B77,0),'RBA Adjustments'!B:J,9,FALSE)/100,"") ->  | M77: =(1+(E77+IF(L77="",INDEX(L:L,F77)+(INDEX(L:L,G77)-INDEX(L:L,F77))*(ROW(B77)-F77)/(G77-F77),L77))/2)^2-1 -> 0.08732023594 | N77: 0.101622565 | O77: 0.05211248939
A78: 39964 | B78: ='Nominal RFR'!B96 -> 2009-05-14 | C78: 2009 | D78: 5 | E78: ='Nominal RFR'!H96 -> 0.04896448363 | F78: 68 | G78: 89 | H78: =IF(B78=_xlfn.MAXIFS(B:B,C:C,C78,D:D,D78),VLOOKUP(EOMONTH('RBA Interpolation'!B78,0),'RBA Adjustments'!B:J,5,FALSE)/100,"") ->  | J78: =(1+(E78+IF(I78="",INDEX(I:I,F78)+(INDEX(I:I,G78)-INDEX(I:I,F78))*(ROW(B78)-F78)/(G78-F78),I78))/2)^2-1 -> 0.107370673 | K78: =IF(B78=_xlfn.MAXIFS(B:B,C:C,C78,D:D,D78),VLOOKUP(EOMONTH('RBA Interpolation'!B78,0),'RBA Adjustments'!B:J,9,FALSE)/100,"") ->  | M78: =(1+(E78+IF(L78="",INDEX(L:L,F78)+(INDEX(L:L,G78)-INDEX(L:L,F78))*(ROW(B78)-F78)/(G78-F78),L78))/2)^2-1 -> 0.08617693866 | N78: 0.1003060949 | O78: 0.05134161126
A79: 39964 | B79: ='Nominal RFR'!B97 -> 2009-05-15 | C79: 2009 | D79: 5 | E79: ='Nominal RFR'!H97 -> 0.04891889169 | F79: 68 | G79: 89 | H79: =IF(B79=_xlfn.MAXIFS(B:B,C:C,C79,D:D,D79),VLOOKUP(EOMONTH('RBA Interpolation'!B79,0),'RBA Adjustments'!B:J,5,FALSE)/100,"") ->  | J79: =(1+(E79+IF(I79="",INDEX(I:I,F79)+(INDEX(I:I,G79)-INDEX(I:I,F79))*(ROW(B79)-F79)/(G79-F79),I79))/2)^2-1 -> 0.1064943925 | K79: =IF(B79=_xlfn.MAXIFS(B:B,C:C,C79,D:D,D79),VLOOKUP(EOMONTH('RBA Interpolation'!B79,0),'RBA Adjustments'!B:J,9,FALSE)/100,"") ->  | M79: =(1+(E79+IF(L79="",INDEX(L:L,F79)+(INDEX(L:L,G79)-INDEX(L:L,F79))*(ROW(B79)-F79)/(G79-F79),L79))/2)^2-1 -> 0.08555513016 | N79: 0.09951463839 | O79: 0.05059574671
A80: 39964 | B80: ='Nominal RFR'!B98 -> 2009-05-18 | C80: 2009 | D80: 5 | E80: ='Nominal RFR'!H98 -> 0.04884017632 | F80: 68 | G80: 89 | H80: =IF(B80=_xlfn.MAXIFS(B:B,C:C,C80,D:D,D80),VLOOKUP(EOMONTH('RBA Interpolation'!B80,0),'RBA Adjustments'!B:J,5,FALSE)/100,"") ->  | J80: =(1+(E80+IF(I80="",INDEX(I:I,F80)+(INDEX(I:I,G80)-INDEX(I:I,F80))*(ROW(B80)-F80)/(G80-F80),I80))/2)^2-1 -> 0.1055836304 | K80: =IF(B80=_xlfn.MAXIFS(B:B,C:C,C80,D:D,D80),VLOOKUP(EOMONTH('RBA Interpolation'!B80,0),'RBA Adjustments'!B:J,9,FALSE)/100,"") ->  | M80: =(1+(E80+IF(L80="",INDEX(L:L,F80)+(INDEX(L:L,G80)-INDEX(L:L,F80))*(ROW(B80)-F80)/(G80-F80),L80))/2)^2-1 -> 0.08489899856 | N80: 0.09868875311 | O80: 0.04984857679
A81: 39964 | B81: ='Nominal RFR'!B99 -> 2009-05-19 | C81: 2009 | D81: 5 | E81: ='Nominal RFR'!H99 -> 0.05019471033 | F81: 68 | G81: 89 | H81: =IF(B81=_xlfn.MAXIFS(B:B,C:C,C81,D:D,D81),VLOOKUP(EOMONTH('RBA Interpolation'!B81,0),'RBA Adjustments'!B:J,5,FALSE)/100,"") ->  | J81: =(1+(E81+IF(I81="",INDEX(I:I,F81)+(INDEX(I:I,G81)-INDEX(I:I,F81))*(ROW(B81)-F81)/(G81-F81),I81))/2)^2-1 -> 0.1061801511 | K81: =IF(B81=_xlfn.MAXIFS(B:B,C:C,C81,D:D,D81),VLOOKUP(EOMONTH('RBA Interpolation'!B81,0),'RBA Adjustments'!B:J,9,FALSE)/100,"") ->  | M81: =(1+(E81+IF(L81="",INDEX(L:L,F81)+(INDEX(L:L,G81)-INDEX(L:L,F81))*(ROW(B81)-F81)/(G81-F81),L81))/2)^2-1 -> 0.08573597834 | N81: 0.09936542687 | O81: 0.04917071654
A82: 39964 | B82: ='Nominal RFR'!B100 -> 2009-05-20 | C82: 2009 | D82: 5 | E82: ='Nominal RFR'!H100 -> 0.05099924433 | F82: 68 | G82: 89 | H82: =IF(B82=_xlfn.MAXIFS(B:B,C:C,C82,D:D,D82),VLOOKUP(EOMONTH('RBA Interpolation'!B82,0),'RBA Adjustments'!B:J,5,FALSE)/100,"") ->  | J82: =(1+(E82+IF(I82="",INDEX(I:I,F82)+(INDEX(I:I,G82)-INDEX(I:I,F82))*(ROW(B82)-F82)/(G82-F82),I82))/2)^2-1 -> 0.1061982894 | K82: =IF(B82=_xlfn.MAXIFS(B:B,C:C,C82,D:D,D82),VLOOKUP(EOMONTH('RBA Interpolation'!B82,0),'RBA Adjustments'!B:J,9,FALSE)/100,"") ->  | M82: =(1+(E82+IF(L82="",INDEX(L:L,F82)+(INDEX(L:L,G82)-INDEX(L:L,F82))*(ROW(B82)-F82)/(G82-F82),L82))/2)^2-1 -> 0.08600004293 | N82: 0.09946554055 | O82: 0.04846629622
A83: 39964 | B83: ='Nominal RFR'!B101 -> 2009-05-21 | C83: 2009 | D83: 5 | E83: ='Nominal RFR'!H101 -> 0.05139534005 | F83: 68 | G83: 89 | H83: =IF(B83=_xlfn.MAXIFS(B:B,C:C,C83,D:D,D83),VLOOKUP(EOMONTH('RBA Interpolation'!B83,0),'RBA Adjustments'!B:J,5,FALSE)/100,"") ->  | J83: =(1+(E83+IF(I83="",INDEX(I:I,F83)+(INDEX(I:I,G83)-INDEX(I:I,F83))*(ROW(B83)-F83)/(G83-F83),I83))/2)^2-1 -> 0.105786887 | K83: =IF(B83=_xlfn.MAXIFS(B:B,C:C,C83,D:D,D83),VLOOKUP(EOMONTH('RBA Interpolation'!B83,0),'RBA Adjustments'!B:J,9,FALSE)/100,"") ->  | M83: =(1+(E83+IF(L83="",INDEX(L:L,F83)+(INDEX(L:L,G83)-INDEX(L:L,F83))*(ROW(B83)-F83)/(G83-F83),L83))/2)^2-1 -> 0.08583849062 | N83: 0.09913742155 | O83: 0.0477420815
A84: 39964 | B84: ='Nominal RFR'!B102 -> 2009-05-22 | C84: 2009 | D84: 5 | E84: ='Nominal RFR'!H102 -> 0.05229974811 | F84: 68 | G84: 89 | H84: =IF(B84=_xlfn.MAXIFS(B:B,C:C,C84,D:D,D84),VLOOKUP(EOMONTH('RBA Interpolation'!B84,0),'RBA Adjustments'!B:J,5,FALSE)/100,"") ->  | J84: =(1+(E84+IF(I84="",INDEX(I:I,F84)+(INDEX(I:I,G84)-INDEX(I:I,F84))*(ROW(B84)-F84)/(G84-F84),I84))/2)^2-1 -> 0.1059100493 | K84: =IF(B84=_xlfn.MAXIFS(B:B,C:C,C84,D:D,D84),VLOOKUP(EOMONTH('RBA Interpolation'!B84,0),'RBA Adjustments'!B:J,9,FALSE)/100,"") ->  | M84: =(1+(E84+IF(L84="",INDEX(L:L,F84)+(INDEX(L:L,G84)-INDEX(L:L,F84))*(ROW(B84)-F84)/(G84-F84),L84))/2)^2-1 -> 0.08620665516 | N84: 0.09934225128 | O84: 0.04704250317
A85: 39964 | B85: ='Nominal RFR'!B103 -> 2009-05-25 | C85: 2009 | D85: 5 | E85: ='Nominal RFR'!H103 -> 0.05302191436 | F85: 68 | G85: 89 | H85: =IF(B85=_xlfn.MAXIFS(B:B,C:C,C85,D:D,D85),VLOOKUP(EOMONTH('RBA Interpolation'!B85,0),'RBA Adjustments'!B:J,5,FALSE)/100,"") ->  | J85: =(1+(E85+IF(I85="",INDEX(I:I,F85)+(INDEX(I:I,G85)-INDEX(I:I,F85))*(ROW(B85)-F85)/(G85-F85),I85))/2)^2-1 -> 0.1058415665 | K85: =IF(B85=_xlfn.MAXIFS(B:B,C:C,C85,D:D,D85),VLOOKUP(EOMONTH('RBA Interpolation'!B85,0),'RBA Adjustments'!B:J,9,FALSE)/100,"") ->  | M85: =(1+(E85+IF(L85="",INDEX(L:L,F85)+(INDEX(L:L,G85)-INDEX(L:L,F85))*(ROW(B85)-F85)/(G85-F85),L85))/2)^2-1 -> 0.08638492354 | N85: 0.09935601887 | O85: 0.04633410451
A86: 39964 | B86: ='Nominal RFR'!B104 -> 2009-05-26 | C86: 2009 | D86: 5 | E86: ='Nominal RFR'!H104 -> 0.05256738035 | F86: 68 | G86: 89 | H86: =IF(B86=_xlfn.MAXIFS(B:B,C:C,C86,D:D,D86),VLOOKUP(EOMONTH('RBA Interpolation'!B86,0),'RBA Adjustments'!B:J,5,FALSE)/100,"") ->  | J86: =(1+(E86+IF(I86="",INDEX(I:I,F86)+(INDEX(I:I,G86)-INDEX(I:I,F86))*(ROW(B86)-F86)/(G86-F86),I86))/2)^2-1 -> 0.1045360641 | K86: =IF(B86=_xlfn.MAXIFS(B:B,C:C,C86,D:D,D86),VLOOKUP(EOMONTH('RBA Interpolation'!B86,0),'RBA Adjustments'!B:J,9,FALSE)/100,"") ->  | M86: =(1+(E86+IF(L86="",INDEX(L:L,F86)+(INDEX(L:L,G86)-INDEX(L:L,F86))*(ROW(B86)-F86)/(G86-F86),L86))/2)^2-1 -> 0.08533697987 | N86: 0.09813636935 | O86: 0.04556898899
A87: 39964 | B87: ='Nominal RFR'!B105 -> 2009-05-27 | C87: 2009 | D87: 5 | E87: ='Nominal RFR'!H105 -> 0.05424017632 | F87: 68 | G87: 89 | H87: =IF(B87=_xlfn.MAXIFS(B:B,C:C,C87,D:D,D87),VLOOKUP(EOMONTH('RBA Interpolation'!B87,0),'RBA Adjustments'!B:J,5,FALSE)/100,"") ->  | J87: =(1+(E87+IF(I87="",INDEX(I:I,F87)+(INDEX(I:I,G87)-INDEX(I:I,F87))*(ROW(B87)-F87)/(G87-F87),I87))/2)^2-1 -> 0.1054669013 | K87: =IF(B87=_xlfn.MAXIFS(B:B,C:C,C87,D:D,D87),VLOOKUP(EOMONTH('RBA Interpolation'!B87,0),'RBA Adjustments'!B:J,9,FALSE)/100,"") ->  | M87: =(1+(E87+IF(L87="",INDEX(L:L,F87)+(INDEX(L:L,G87)-INDEX(L:L,F87))*(ROW(B87)-F87)/(G87-F87),L87))/2)^2-1 -> 0.08650584546 | N87: 0.09914654934 | O87: 0.04490637302
A88: 39964 | B88: ='Nominal RFR'!B106 -> 2009-05-28 | C88: 2009 | D88: 5 | E88: ='Nominal RFR'!H106 -> 0.05393551637 | F88: 68 | G88: 89 | H88: =IF(B88=_xlfn.MAXIFS(B:B,C:C,C88,D:D,D88),VLOOKUP(EOMONTH('RBA Interpolation'!B88,0),'RBA Adjustments'!B:J,5,FALSE)/100,"") ->  | J88: =(1+(E88+IF(I88="",INDEX(I:I,F88)+(INDEX(I:I,G88)-INDEX(I:I,F88))*(ROW(B88)-F88)/(G88-F88),I88))/2)^2-1 -> 0.104319112 | K88: =IF(B88=_xlfn.MAXIFS(B:B,C:C,C88,D:D,D88),VLOOKUP(EOMONTH('RBA Interpolation'!B88,0),'RBA Adjustments'!B:J,9,FALSE)/100,"") ->  | M88: =(1+(E88+IF(L88="",INDEX(L:L,F88)+(INDEX(L:L,G88)-INDEX(L:L,F88))*(ROW(B88)-F88)/(G88-F88),L88))/2)^2-1 -> 0.08561399581 | N88: 0.09808407326 | O88: 0.04414855689
A89: 39964 | B89: ='Nominal RFR'!B107 -> 2009-05-29 | C89: 2009 | D89: 5 | E89: ='Nominal RFR'!H107 -> 0.05308060453 | F89: 68 | G89: 89 | H89: =IF(B89=_xlfn.MAXIFS(B:B,C:C,C89,D:D,D89),VLOOKUP(EOMONTH('RBA Interpolation'!B89,0),'RBA Adjustments'!B:J,5,FALSE)/100,"") -> 0.1000895734 | I89: 0.04700896884 | J89: =(1+(E89+IF(I89="",INDEX(I:I,F89)+(INDEX(I:I,G89)-INDEX(I:I,F89))*(ROW(B89)-F89)/(G89-F89),I89))/2)^2-1 -> 0.1025940541 | K89: =IF(B89=_xlfn.MAXIFS(B:B,C:C,C89,D:D,D89),VLOOKUP(EOMONTH('RBA Interpolation'!B89,0),'RBA Adjustments'!B:J,9,FALSE)/100,"") -> 0.08245 | L89: 0.02936939547 | M89: =(1+(E89+IF(L89="",INDEX(L:L,F89)+(INDEX(L:L,G89)-INDEX(L:L,F89))*(ROW(B89)-F89)/(G89-F89),L89))/2)^2-1 -> 0.08414950063 | N89: 0.09644586958 | O89: 0.04336526504
A90: 39994 | B90: ='Nominal RFR'!B108 -> 2009-06-01 | C90: 2009 | D90: 6 | E90: ='Nominal RFR'!H108 -> 0.05389382872 | F90: 89 | G90: 110 | H90: =IF(B90=_xlfn.MAXIFS(B:B,C:C,C90,D:D,D90),VLOOKUP(EOMONTH('RBA Interpolation'!B90,0),'RBA Adjustments'!B:J,5,FALSE)/100,"") ->  | J90: =(1+(E90+IF(I90="",INDEX(I:I,F90)+(INDEX(I:I,G90)-INDEX(I:I,F90))*(ROW(B90)-F90)/(G90-F90),I90))/2)^2-1 -> 0.1032156836 | K90: =IF(B90=_xlfn.MAXIFS(B:B,C:C,C90,D:D,D90),VLOOKUP(EOMONTH('RBA Interpolation'!B90,0),'RBA Adjustments'!B:J,9,FALSE)/100,"") ->  | M90: =(1+(E90+IF(L90="",INDEX(L:L,F90)+(INDEX(L:L,G90)-INDEX(L:L,F90))*(ROW(B90)-F90)/(G90-F90),L90))/2)^2-1 -> 0.08481242227 | N90: 0.09708126316 | O90: 0.04318743444
A91: 39994 | B91: ='Nominal RFR'!B109 -> 2009-06-02 | C91: 2009 | D91: 6 | E91: ='Nominal RFR'!H109 -> 0.05514823678 | F91: 89 | G91: 110 | H91: =IF(B91=_xlfn.MAXIFS(B:B,C:C,C91,D:D,D91),VLOOKUP(EOMONTH('RBA Interpolation'!B91,0),'RBA Adjustments'!B:J,5,FALSE)/100,"") ->  | J91: =(1+(E91+IF(I91="",INDEX(I:I,F91)+(INDEX(I:I,G91)-INDEX(I:I,F91))*(ROW(B91)-F91)/(G91-F91),I91))/2)^2-1 -> 0.104301061 | K91: =IF(B91=_xlfn.MAXIFS(B:B,C:C,C91,D:D,D91),VLOOKUP(EOMONTH('RBA Interpolation'!B91,0),'RBA Adjustments'!B:J,9,FALSE)/100,"") ->  | M91: =(1+(E91+IF(L91="",INDEX(L:L,F91)+(INDEX(L:L,G91)-INDEX(L:L,F91))*(ROW(B91)-F91)/(G91-F91),L91))/2)^2-1 -> 0.08593524773 | N91: 0.09817912322 | O91: 0.04303088644
A92: 39994 | B92: ='Nominal RFR'!B110 -> 2009-06-03 | C92: 2009 | D92: 6 | E92: ='Nominal RFR'!H110 -> 0.05524256927 | F92: 89 | G92: 110 | H92: =IF(B92=_xlfn.MAXIFS(B:B,C:C,C92,D:D,D92),VLOOKUP(EOMONTH('RBA Interpolation'!B92,0),'RBA Adjustments'!B:J,5,FALSE)/100,"") ->  | J92: =(1+(E92+IF(I92="",INDEX(I:I,F92)+(INDEX(I:I,G92)-INDEX(I:I,F92))*(ROW(B92)-F92)/(G92-F92),I92))/2)^2-1 -> 0.1041676353 | K92: =IF(B92=_xlfn.MAXIFS(B:B,C:C,C92,D:D,D92),VLOOKUP(EOMONTH('RBA Interpolation'!B92,0),'RBA Adjustments'!B:J,9,FALSE)/100,"") ->  | M92: =(1+(E92+IF(L92="",INDEX(L:L,F92)+(INDEX(L:L,G92)-INDEX(L:L,F92))*(ROW(B92)-F92)/(G92-F92),L92))/2)^2-1 -> 0.0858494712 | N92: 0.09806158061 | O92: 0.04281901134
A93: 39994 | B93: ='Nominal RFR'!B111 -> 2009-06-04 | C93: 2009 | D93: 6 | E93: ='Nominal RFR'!H111 -> 0.05449685139 | F93: 89 | G93: 110 | H93: =IF(B93=_xlfn.MAXIFS(B:B,C:C,C93,D:D,D93),VLOOKUP(EOMONTH('RBA Interpolation'!B93,0),'RBA Adjustments'!B:J,5,FALSE)/100,"") ->  | J93: =(1+(E93+IF(I93="",INDEX(I:I,F93)+(INDEX(I:I,G93)-INDEX(I:I,F93))*(ROW(B93)-F93)/(G93-F93),I93))/2)^2-1 -> 0.1031517277 | K93: =IF(B93=_xlfn.MAXIFS(B:B,C:C,C93,D:D,D93),VLOOKUP(EOMONTH('RBA Interpolation'!B93,0),'RBA Adjustments'!B:J,9,FALSE)/100,"") ->  | M93: =(1+(E93+IF(L93="",INDEX(L:L,F93)+(INDEX(L:L,G93)-INDEX(L:L,F93))*(ROW(B93)-F93)/(G93-F93),L93))/2)^2-1 -> 0.08488854212 | N93: 0.0970639992 | O93: 0.04256714781
A94: 39994 | B94: ='Nominal RFR'!B112 -> 2009-06-05 | C94: 2009 | D94: 6 | E94: ='Nominal RFR'!H112 -> 0.0562011335 | F94: 89 | G94: 110 | H94: =IF(B94=_xlfn.MAXIFS(B:B,C:C,C94,D:D,D94),VLOOKUP(EOMONTH('RBA Interpolation'!B94,0),'RBA Adjustments'!B:J,5,FALSE)/100,"") ->  | J94: =(1+(E94+IF(I94="",INDEX(I:I,F94)+(INDEX(I:I,G94)-INDEX(I:I,F94))*(ROW(B94)-F94)/(G94-F94),I94))/2)^2-1 -> 0.104709864 | K94: =IF(B94=_xlfn.MAXIFS(B:B,C:C,C94,D:D,D94),VLOOKUP(EOMONTH('RBA Interpolation'!B94,0),'RBA Adjustments'!B:J,9,FALSE)/100,"") ->  | M94: =(1+(E94+IF(L94="",INDEX(L:L,F94)+(INDEX(L:L,G94)-INDEX(L:L,F94))*(ROW(B94)-F94)/(G94-F94),L94))/2)^2-1 -> 0.08648027972 | N94: 0.0986333359 | O94: 0.0424322024
A95: 39994 | B95: ='Nominal RFR'!B113 -> 2009-06-09 | C95: 2009 | D95: 6 | E95: ='Nominal RFR'!H113 -> 0.05586410579 | F95: 89 | G95: 110 | H95: =IF(B95=_xlfn.MAXIFS(B:B,C:C,C95,D:D,D95),VLOOKUP(EOMONTH('RBA Interpolation'!B95,0),'RBA Adjustments'!B:J,5,FALSE)/100,"") ->  | J95: =(1+(E95+IF(I95="",INDEX(I:I,F95)+(INDEX(I:I,G95)-INDEX(I:I,F95))*(ROW(B95)-F95)/(G95-F95),I95))/2)^2-1 -> 0.1041231056 | K95: =IF(B95=_xlfn.MAXIFS(B:B,C:C,C95,D:D,D95),VLOOKUP(EOMONTH('RBA Interpolation'!B95,0),'RBA Adjustments'!B:J,9,FALSE)/100,"") ->  | M95: =(1+(E95+IF(L95="",INDEX(L:L,F95)+(INDEX(L:L,G95)-INDEX(L:L,F95))*(ROW(B95)-F95)/(G95-F95),L95))/2)^2-1 -> 0.08594492038 | N95: 0.09806371055 | O95: 0.04219960475
A96: 39994 | B96: ='Nominal RFR'!B114 -> 2009-06-10 | C96: 2009 | D96: 6 | E96: ='Nominal RFR'!H114 -> 0.05626775819 | F96: 89 | G96: 110 | H96: =IF(B96=_xlfn.MAXIFS(B:B,C:C,C96,D:D,D96),VLOOKUP(EOMONTH('RBA Interpolation'!B96,0),'RBA Adjustments'!B:J,5,FALSE)/100,"") ->  | J96: =(1+(E96+IF(I96="",INDEX(I:I,F96)+(INDEX(I:I,G96)-INDEX(I:I,F96))*(ROW(B96)-F96)/(G96-F96),I96))/2)^2-1 -> 0.1043147199 | K96: =IF(B96=_xlfn.MAXIFS(B:B,C:C,C96,D:D,D96),VLOOKUP(EOMONTH('RBA Interpolation'!B96,0),'RBA Adjustments'!B:J,9,FALSE)/100,"") ->  | M96: =(1+(E96+IF(L96="",INDEX(L:L,F96)+(INDEX(L:L,G96)-INDEX(L:L,F96))*(ROW(B96)-F96)/(G96-F96),L96))/2)^2-1 -> 0.08618149285 | N96: 0.09827031088 | O96: 0.0420025527
A97: 39994 | B97: ='Nominal RFR'!B115 -> 2009-06-11 | C97: 2009 | D97: =MONTH(B97) -> 6 | E97: ='Nominal RFR'!H115 -> 0.05641032746 | F97: 89 | G97: 110 | H97: =IF(B97=_xlfn.MAXIFS(B:B,C:C,C97,D:D,D97),VLOOKUP(EOMONTH('RBA Interpolation'!B97,0),'RBA Adjustments'!B:J,5,FALSE)/100,"") ->  | J97: =(1+(E97+IF(I97="",INDEX(I:I,F97)+(INDEX(I:I,G97)-INDEX(I:I,F97))*(ROW(B97)-F97)/(G97-F97),I97))/2)^2-1 -> 0.1042319812 | K97: =IF(B97=_xlfn.MAXIFS(B:B,C:C,C97,D:D,D97),VLOOKUP(EOMONTH('RBA Interpolation'!B97,0),'RBA Adjustments'!B:J,9,FALSE)/100,"") ->  | M97: =(1+(E97+IF(L97="",INDEX(L:L,F97)+(INDEX(L:L,G97)-INDEX(L:L,F97))*(ROW(B97)-F97)/(G97-F97),L97))/2)^2-1 -> 0.08614597759 | N97: 0.09820331334 | O97: 0.04179298589
A98: 39994 | B98: ='Nominal RFR'!B116 -> 2009-06-12 | C98: 2009 | D98: 6 | E98: ='Nominal RFR'!H116 -> 0.0557638539 | F98: 89 | G98: 110 | H98: =IF(B98=_xlfn.MAXIFS(B:B,C:C,C98,D:D,D98),VLOOKUP(EOMONTH('RBA Interpolation'!B98,0),'RBA Adjustments'!B:J,5,FALSE)/100,"") ->  | J98: =(1+(E98+IF(I98="",INDEX(I:I,F98)+(INDEX(I:I,G98)-INDEX(I:I,F98))*(ROW(B98)-F98)/(G98-F98),I98))/2)^2-1 -> 0.1033202869 | K98: =IF(B98=_xlfn.MAXIFS(B:B,C:C,C98,D:D,D98),VLOOKUP(EOMONTH('RBA Interpolation'!B98,0),'RBA Adjustments'!B:J,9,FALSE)/100,"") ->  | M98: =(1+(E98+IF(L98="",INDEX(L:L,F98)+(INDEX(L:L,G98)-INDEX(L:L,F98))*(ROW(B98)-F98)/(G98-F98),L98))/2)^2-1 -> 0.08528830476 | N98: 0.09730962617 | O98: 0.04154577227
A99: 39994 | B99: ='Nominal RFR'!B117 -> 2009-06-15 | C99: 2009 | D99: 6 | E99: ='Nominal RFR'!H117 -> 0.05528967254 | F99: 89 | G99: 110 | H99: =IF(B99=_xlfn.MAXIFS(B:B,C:C,C99,D:D,D99),VLOOKUP(EOMONTH('RBA Interpolation'!B99,0),'RBA Adjustments'!B:J,5,FALSE)/100,"") ->  | J99: =(1+(E99+IF(I99="",INDEX(I:I,F99)+(INDEX(I:I,G99)-INDEX(I:I,F99))*(ROW(B99)-F99)/(G99-F99),I99))/2)^2-1 -> 0.1025898758 | K99: =IF(B99=_xlfn.MAXIFS(B:B,C:C,C99,D:D,D99),VLOOKUP(EOMONTH('RBA Interpolation'!B99,0),'RBA Adjustments'!B:J,9,FALSE)/100,"") ->  | M99: =(1+(E99+IF(L99="",INDEX(L:L,F99)+(INDEX(L:L,G99)-INDEX(L:L,F99))*(ROW(B99)-F99)/(G99-F99),L99))/2)^2-1 -> 0.08461039634 | N99: 0.09659671599 | O99: 0.04130704345
A100: 39994 | B100: ='Nominal RFR'!B118 -> 2009-06-16 | C100: 2009 | D100: 6 | E100: ='Nominal RFR'!H118 -> 0.05464282116 | F100: 89 | G100: 110 | H100: =IF(B100=_xlfn.MAXIFS(B:B,C:C,C100,D:D,D100),VLOOKUP(EOMONTH('RBA Interpolation'!B100,0),'RBA Adjustments'!B:J,5,FALSE)/100,"") ->  | J100: =(1+(E100+IF(I100="",INDEX(I:I,F100)+(INDEX(I:I,G100)-INDEX(I:I,F100))*(ROW(B100)-F100)/(G100-F100),I100))/2)^2-1 -> 0.1016784632 | K100: =IF(B100=_xlfn.MAXIFS(B:B,C:C,C100,D:D,D100),VLOOKUP(EOMONTH('RBA Interpolation'!B100,0),'RBA Adjustments'!B:J,9,FALSE)/100,"") ->  | M100: =(1+(E100+IF(L100="",INDEX(L:L,F100)+(INDEX(L:L,G100)-INDEX(L:L,F100))*(ROW(B100)-F100)/(G100-F100),L100))/2)^2-1 -> 0.08375293679 | N100: 0.09570328772 | O100: 0.04106046656
A101: 39994 | B101: ='Nominal RFR'!B119 -> 2009-06-17 | C101: 2009 | D101: 6 | E101: ='Nominal RFR'!H119 -> 0.05508413098 | F101: 89 | G101: 110 | H101: =IF(B101=_xlfn.MAXIFS(B:B,C:C,C101,D:D,D101),VLOOKUP(EOMONTH('RBA Interpolation'!B101,0),'RBA Adjustments'!B:J,5,FALSE)/100,"") ->  | J101: =(1+(E101+IF(I101="",INDEX(I:I,F101)+(INDEX(I:I,G101)-INDEX(I:I,F101))*(ROW(B101)-F101)/(G101-F101),I101))/2)^2-1 -> 0.1019093946 | K101: =IF(B101=_xlfn.MAXIFS(B:B,C:C,C101,D:D,D101),VLOOKUP(EOMONTH('RBA Interpolation'!B101,0),'RBA Adjustments'!B:J,9,FALSE)/100,"") ->  | M101: =(1+(E101+IF(L101="",INDEX(L:L,F101)+(INDEX(L:L,G101)-INDEX(L:L,F101))*(ROW(B101)-F101)/(G101-F101),L101))/2)^2-1 -> 0.08402847771 | N101: 0.09594908895 | O101: 0.04086495797
A102: 39994 | B102: ='Nominal RFR'!B120 -> 2009-06-18 | C102: 2009 | D102: 6 | E102: ='Nominal RFR'!H120 -> 0.05606322418 | F102: 89 | G102: 110 | H102: =IF(B102=_xlfn.MAXIFS(B:B,C:C,C102,D:D,D102),VLOOKUP(EOMONTH('RBA Interpolation'!B102,0),'RBA Adjustments'!B:J,5,FALSE)/100,"") ->  | J102: =(1+(E102+IF(I102="",INDEX(I:I,F102)+(INDEX(I:I,G102)-INDEX(I:I,F102))*(ROW(B102)-F102)/(G102-F102),I102))/2)^2-1 -> 0.1027050029 | K102: =IF(B102=_xlfn.MAXIFS(B:B,C:C,C102,D:D,D102),VLOOKUP(EOMONTH('RBA Interpolation'!B102,0),'RBA Adjustments'!B:J,9,FALSE)/100,"") ->  | M102: =(1+(E102+IF(L102="",INDEX(L:L,F102)+(INDEX(L:L,G102)-INDEX(L:L,F102))*(ROW(B102)-F102)/(G102-F102),L102))/2)^2-1 -> 0.08486411936 | N102: 0.09675804171 | O102: 0.04069481753
A103: 39994 | B103: ='Nominal RFR'!B121 -> 2009-06-19 | C103: 2009 | D103: 6 | E103: ='Nominal RFR'!H121 -> 0.05881599496 | F103: 89 | G103: 110 | H103: =IF(B103=_xlfn.MAXIFS(B:B,C:C,C103,D:D,D103),VLOOKUP(EOMONTH('RBA Interpolation'!B103,0),'RBA Adjustments'!B:J,5,FALSE)/100,"") ->  | J103: =(1+(E103+IF(I103="",INDEX(I:I,F103)+(INDEX(I:I,G103)-INDEX(I:I,F103))*(ROW(B103)-F103)/(G103-F103),I103))/2)^2-1 -> 0.1053648915 | K103: =IF(B103=_xlfn.MAXIFS(B:B,C:C,C103,D:D,D103),VLOOKUP(EOMONTH('RBA Interpolation'!B103,0),'RBA Adjustments'!B:J,9,FALSE)/100,"") ->  | M103: =(1+(E103+IF(L103="",INDEX(L:L,F103)+(INDEX(L:L,G103)-INDEX(L:L,F103))*(ROW(B103)-F103)/(G103-F103),L103))/2)^2-1 -> 0.08754898709 | N103: 0.09942625667 | O103: 0.0406102617
A104: 39994 | B104: ='Nominal RFR'!B122 -> 2009-06-22 | C104: 2009 | D104: 6 | E104: ='Nominal RFR'!H122 -> 0.0574243073 | F104: 89 | G104: 110 | H104: =IF(B104=_xlfn.MAXIFS(B:B,C:C,C104,D:D,D104),VLOOKUP(EOMONTH('RBA Interpolation'!B104,0),'RBA Adjustments'!B:J,5,FALSE)/100,"") ->  | J104: =(1+(E104+IF(I104="",INDEX(I:I,F104)+(INDEX(I:I,G104)-INDEX(I:I,F104))*(ROW(B104)-F104)/(G104-F104),I104))/2)^2-1 -> 0.1036697008 | K104: =IF(B104=_xlfn.MAXIFS(B:B,C:C,C104,D:D,D104),VLOOKUP(EOMONTH('RBA Interpolation'!B104,0),'RBA Adjustments'!B:J,9,FALSE)/100,"") ->  | M104: =(1+(E104+IF(L104="",INDEX(L:L,F104)+(INDEX(L:L,G104)-INDEX(L:L,F104))*(ROW(B104)-F104)/(G104-F104),L104))/2)^2-1 -> 0.0859140548 | N104: 0.09775115215 | O104: 0.04032684485
A105: 39994 | B105: ='Nominal RFR'!B123 -> 2009-06-23 | C105: 2009 | D105: 6 | E105: ='Nominal RFR'!H123 -> 0.05607707809 | F105: 89 | G105: 110 | H105: =IF(B105=_xlfn.MAXIFS(B:B,C:C,C105,D:D,D105),VLOOKUP(EOMONTH('RBA Interpolation'!B105,0),'RBA Adjustments'!B:J,5,FALSE)/100,"") ->  | J105: =(1+(E105+IF(I105="",INDEX(I:I,F105)+(INDEX(I:I,G105)-INDEX(I:I,F105))*(ROW(B105)-F105)/(G105-F105),I105))/2)^2-1 -> 0.1020224818 | K105: =IF(B105=_xlfn.MAXIFS(B:B,C:C,C105,D:D,D105),VLOOKUP(EOMONTH('RBA Interpolation'!B105,0),'RBA Adjustments'!B:J,9,FALSE)/100,"") ->  | M105: =(1+(E105+IF(L105="",INDEX(L:L,F105)+(INDEX(L:L,G105)-INDEX(L:L,F105))*(ROW(B105)-F105)/(G105-F105),L105))/2)^2-1 -> 0.08432664688 | N105: 0.09612387018 | O105: 0.0400467921
A106: 39994 | B106: ='Nominal RFR'!B124 -> 2009-06-24 | C106: 2009 | D106: 6 | E106: ='Nominal RFR'!H124 -> 0.05642984887 | F106: 89 | G106: 110 | H106: =IF(B106=_xlfn.MAXIFS(B:B,C:C,C106,D:D,D106),VLOOKUP(EOMONTH('RBA Interpolation'!B106,0),'RBA Adjustments'!B:J,5,FALSE)/100,"") ->  | J106: =(1+(E106+IF(I106="",INDEX(I:I,F106)+(INDEX(I:I,G106)-INDEX(I:I,F106))*(ROW(B106)-F106)/(G106-F106),I106))/2)^2-1 -> 0.1021604956 | K106: =IF(B106=_xlfn.MAXIFS(B:B,C:C,C106,D:D,D106),VLOOKUP(EOMONTH('RBA Interpolation'!B106,0),'RBA Adjustments'!B:J,9,FALSE)/100,"") ->  | M106: =(1+(E106+IF(L106="",INDEX(L:L,F106)+(INDEX(L:L,G106)-INDEX(L:L,F106))*(ROW(B106)-F106)/(G106-F106),L106))/2)^2-1 -> 0.08451005436 | N106: 0.09627701521 | O106: 0.03984716634
A107: 39994 | B107: ='Nominal RFR'!B125 -> 2009-06-25 | C107: 2009 | D107: 6 | E107: ='Nominal RFR'!H125 -> 0.0571697733 | F107: 89 | G107: 110 | H107: =IF(B107=_xlfn.MAXIFS(B:B,C:C,C107,D:D,D107),VLOOKUP(EOMONTH('RBA Interpolation'!B107,0),'RBA Adjustments'!B:J,5,FALSE)/100,"") ->  | J107: =(1+(E107+IF(I107="",INDEX(I:I,F107)+(INDEX(I:I,G107)-INDEX(I:I,F107))*(ROW(B107)-F107)/(G107-F107),I107))/2)^2-1 -> 0.1027050297 | K107: =IF(B107=_xlfn.MAXIFS(B:B,C:C,C107,D:D,D107),VLOOKUP(EOMONTH('RBA Interpolation'!B107,0),'RBA Adjustments'!B:J,9,FALSE)/100,"") ->  | M107: =(1+(E107+IF(L107="",INDEX(L:L,F107)+(INDEX(L:L,G107)-INDEX(L:L,F107))*(ROW(B107)-F107)/(G107-F107),L107))/2)^2-1 -> 0.08509673 | N107: 0.09683559649 | O107: 0.03966582319
A108: 39994 | B108: ='Nominal RFR'!B126 -> 2009-06-26 | C108: 2009 | D108: 6 | E108: ='Nominal RFR'!H126 -> 0.05635944584 | F108: 89 | G108: 110 | H108: =IF(B108=_xlfn.MAXIFS(B:B,C:C,C108,D:D,D108),VLOOKUP(EOMONTH('RBA Interpolation'!B108,0),'RBA Adjustments'!B:J,5,FALSE)/100,"") ->  | J108: =(1+(E108+IF(I108="",INDEX(I:I,F108)+(INDEX(I:I,G108)-INDEX(I:I,F108))*(ROW(B108)-F108)/(G108-F108),I108))/2)^2-1 -> 0.1016219813 | K108: =IF(B108=_xlfn.MAXIFS(B:B,C:C,C108,D:D,D108),VLOOKUP(EOMONTH('RBA Interpolation'!B108,0),'RBA Adjustments'!B:J,9,FALSE)/100,"") ->  | M108: =(1+(E108+IF(L108="",INDEX(L:L,F108)+(INDEX(L:L,G108)-INDEX(L:L,F108))*(ROW(B108)-F108)/(G108-F108),L108))/2)^2-1 -> 0.08406886248 | N108: 0.09577094169 | O108: 0.03941149585
A109: 39994 | B109: ='Nominal RFR'!B127 -> 2009-06-29 | C109: 2009 | D109: 6 | E109: ='Nominal RFR'!H127 -> 0.05513035264 | F109: 89 | G109: 110 | H109: =IF(B109=_xlfn.MAXIFS(B:B,C:C,C109,D:D,D109),VLOOKUP(EOMONTH('RBA Interpolation'!B109,0),'RBA Adjustments'!B:J,5,FALSE)/100,"") ->  | J109: =(1+(E109+IF(I109="",INDEX(I:I,F109)+(INDEX(I:I,G109)-INDEX(I:I,F109))*(ROW(B109)-F109)/(G109-F109),I109))/2)^2-1 -> 0.1001001959 | K109: =IF(B109=_xlfn.MAXIFS(B:B,C:C,C109,D:D,D109),VLOOKUP(EOMONTH('RBA Interpolation'!B109,0),'RBA Adjustments'!B:J,9,FALSE)/100,"") ->  | M109: =(1+(E109+IF(L109="",INDEX(L:L,F109)+(INDEX(L:L,G109)-INDEX(L:L,F109))*(ROW(B109)-F109)/(G109-F109),L109))/2)^2-1 -> 0.08260571936 | N109: 0.09426870375 | O109: 0.03913835111
A110: 39994 | B110: ='Nominal RFR'!B128 -> 2009-06-30 | C110: 2009 | D110: 6 | E110: ='Nominal RFR'!H128 -> 0.05543299748 | F110: 89 | G110: 110 | H110: =IF(B110=_xlfn.MAXIFS(B:B,C:C,C110,D:D,D110),VLOOKUP(EOMONTH('RBA Interpolation'!B110,0),'RBA Adjustments'!B:J,5,FALSE)/100,"") -> 0.09779456738 | I110: 0.04236156989 | J110: =(1+(E110+IF(I110="",INDEX(I:I,F110)+(INDEX(I:I,G110)-INDEX(I:I,F110))*(ROW(B110)-F110)/(G110-F110),I110))/2)^2-1 -> 0.1001855117 | K110: =IF(B110=_xlfn.MAXIFS(B:B,C:C,C110,D:D,D110),VLOOKUP(EOMONTH('RBA Interpolation'!B110,0),'RBA Adjustments'!B:J,9,FALSE)/100,"") -> 0.08109281124 | L110: 0.02565981376 | M110: =(1+(E110+IF(L110="",INDEX(L:L,F110)+(INDEX(L:L,G110)-INDEX(L:L,F110))*(ROW(B110)-F110)/(G110-F110),L110))/2)^2-1 -> 0.08273682225 | N110: 0.0943692819 | O110: 0.03893628442
A111: 40025 | B111: ='Nominal RFR'!B129 -> 2009-07-01 | C111: 2009 | D111: 7 | E111: ='Nominal RFR'!H129 -> 0.0552720403 | F111: 110 | G111: 133 | H111: =IF(B111=_xlfn.MAXIFS(B:B,C:C,C111,D:D,D111),VLOOKUP(EOMONTH('RBA Interpolation'!B111,0),'RBA Adjustments'!B:J,5,FALSE)/100,"") ->  | J111: =(1+(E111+IF(I111="",INDEX(I:I,F111)+(INDEX(I:I,G111)-INDEX(I:I,F111))*(ROW(B111)-F111)/(G111-F111),I111))/2)^2-1 -> 0.09955933892 | K111: =IF(B111=_xlfn.MAXIFS(B:B,C:C,C111,D:D,D111),VLOOKUP(EOMONTH('RBA Interpolation'!B111,0),'RBA Adjustments'!B:J,9,FALSE)/100,"") ->  | M111: =(1+(E111+IF(L111="",INDEX(L:L,F111)+(INDEX(L:L,G111)-INDEX(L:L,F111))*(ROW(B111)-F111)/(G111-F111),L111))/2)^2-1 -> 0.08238011193 | N111: 0.09383292992 | O111: 0.03856088962
A112: 40025 | B112: ='Nominal RFR'!B130 -> 2009-07-02 | C112: 2009 | D112: 7 | E112: ='Nominal RFR'!H130 -> 0.05448828715 | F112: 110 | G112: 133 | H112: =IF(B112=_xlfn.MAXIFS(B:B,C:C,C112,D:D,D112),VLOOKUP(EOMONTH('RBA Interpolation'!B112,0),'RBA Adjustments'!B:J,5,FALSE)/100,"") ->  | J112: =(1+(E112+IF(I112="",INDEX(I:I,F112)+(INDEX(I:I,G112)-INDEX(I:I,F112))*(ROW(B112)-F112)/(G112-F112),I112))/2)^2-1 -> 0.09828056418 | K112: =IF(B112=_xlfn.MAXIFS(B:B,C:C,C112,D:D,D112),VLOOKUP(EOMONTH('RBA Interpolation'!B112,0),'RBA Adjustments'!B:J,9,FALSE)/100,"") ->  | M112: =(1+(E112+IF(L112="",INDEX(L:L,F112)+(INDEX(L:L,G112)-INDEX(L:L,F112))*(ROW(B112)-F112)/(G112-F112),L112))/2)^2-1 -> 0.08137572275 | N112: 0.09264561703 | O112: 0.03815732988
A113: 40025 | B113: ='Nominal RFR'!B131 -> 2009-07-03 | C113: 2009 | D113: 7 | E113: ='Nominal RFR'!H131 -> 0.05460478589 | F113: 110 | G113: 133 | H113: =IF(B113=_xlfn.MAXIFS(B:B,C:C,C113,D:D,D113),VLOOKUP(EOMONTH('RBA Interpolation'!B113,0),'RBA Adjustments'!B:J,5,FALSE)/100,"") ->  | J113: =(1+(E113+IF(I113="",INDEX(I:I,F113)+(INDEX(I:I,G113)-INDEX(I:I,F113))*(ROW(B113)-F113)/(G113-F113),I113))/2)^2-1 -> 0.0979456409 | K113: =IF(B113=_xlfn.MAXIFS(B:B,C:C,C113,D:D,D113),VLOOKUP(EOMONTH('RBA Interpolation'!B113,0),'RBA Adjustments'!B:J,9,FALSE)/100,"") ->  | M113: =(1+(E113+IF(L113="",INDEX(L:L,F113)+(INDEX(L:L,G113)-INDEX(L:L,F113))*(ROW(B113)-F113)/(G113-F113),L113))/2)^2-1 -> 0.08130773264 | N113: 0.09239967148 | O113: 0.03779488559
A114: 40025 | B114: ='Nominal RFR'!B132 -> 2009-07-06 | C114: 2009 | D114: 7 | E114: ='Nominal RFR'!H132 -> 0.05471309824 | F114: 110 | G114: 133 | H114: =IF(B114=_xlfn.MAXIFS(B:B,C:C,C114,D:D,D114),VLOOKUP(EOMONTH('RBA Interpolation'!B114,0),'RBA Adjustments'!B:J,5,FALSE)/100,"") ->  | J114: =(1+(E114+IF(I114="",INDEX(I:I,F114)+(INDEX(I:I,G114)-INDEX(I:I,F114))*(ROW(B114)-F114)/(G114-F114),I114))/2)^2-1 -> 0.09760219208 | K114: =IF(B114=_xlfn.MAXIFS(B:B,C:C,C114,D:D,D114),VLOOKUP(EOMONTH('RBA Interpolation'!B114,0),'RBA Adjustments'!B:J,9,FALSE)/100,"") ->  | M114: =(1+(E114+IF(L114="",INDEX(L:L,F114)+(INDEX(L:L,G114)-INDEX(L:L,F114))*(ROW(B114)-F114)/(G114-F114),L114))/2)^2-1 -> 0.08123123225 | N114: 0.09214520547 | O114: 0.03743210723
A115: 40025 | B115: ='Nominal RFR'!B133 -> 2009-07-07 | C115: 2009 | D115: 7 | E115: ='Nominal RFR'!H133 -> 0.05495151134 | F115: 110 | G115: 133 | H115: =IF(B115=_xlfn.MAXIFS(B:B,C:C,C115,D:D,D115),VLOOKUP(EOMONTH('RBA Interpolation'!B115,0),'RBA Adjustments'!B:J,5,FALSE)/100,"") ->  | J115: =(1+(E115+IF(I115="",INDEX(I:I,F115)+(INDEX(I:I,G115)-INDEX(I:I,F115))*(ROW(B115)-F115)/(G115-F115),I115))/2)^2-1 -> 0.09739508192 | K115: =IF(B115=_xlfn.MAXIFS(B:B,C:C,C115,D:D,D115),VLOOKUP(EOMONTH('RBA Interpolation'!B115,0),'RBA Adjustments'!B:J,9,FALSE)/100,"") ->  | M115: =(1+(E115+IF(L115="",INDEX(L:L,F115)+(INDEX(L:L,G115)-INDEX(L:L,F115))*(ROW(B115)-F115)/(G115-F115),L115))/2)^2-1 -> 0.08129001573 | N115: 0.09202672652 | O115: 0.03707521518
A116: 40025 | B116: ='Nominal RFR'!B134 -> 2009-07-08 | C116: 2009 | D116: 7 | E116: ='Nominal RFR'!H134 -> 0.05340415617 | F116: 110 | G116: 133 | H116: =IF(B116=_xlfn.MAXIFS(B:B,C:C,C116,D:D,D116),VLOOKUP(EOMONTH('RBA Interpolation'!B116,0),'RBA Adjustments'!B:J,5,FALSE)/100,"") ->  | J116: =(1+(E116+IF(I116="",INDEX(I:I,F116)+(INDEX(I:I,G116)-INDEX(I:I,F116))*(ROW(B116)-F116)/(G116-F116),I116))/2)^2-1 -> 0.09531825447 | K116: =IF(B116=_xlfn.MAXIFS(B:B,C:C,C116,D:D,D116),VLOOKUP(EOMONTH('RBA Interpolation'!B116,0),'RBA Adjustments'!B:J,9,FALSE)/100,"") ->  | M116: =(1+(E116+IF(L116="",INDEX(L:L,F116)+(INDEX(L:L,G116)-INDEX(L:L,F116))*(ROW(B116)-F116)/(G116-F116),L116))/2)^2-1 -> 0.07949261473 | N116: 0.09004304122 | O116: 0.03663888505
A117: 40025 | B117: ='Nominal RFR'!B135 -> 2009-07-09 | C117: 2009 | D117: 7 | E117: ='Nominal RFR'!H135 -> 0.05247141058 | F117: 110 | G117: 133 | H117: =IF(B117=_xlfn.MAXIFS(B:B,C:C,C117,D:D,D117),VLOOKUP(EOMONTH('RBA Interpolation'!B117,0),'RBA Adjustments'!B:J,5,FALSE)/100,"") ->  | J117: =(1+(E117+IF(I117="",INDEX(I:I,F117)+(INDEX(I:I,G117)-INDEX(I:I,F117))*(ROW(B117)-F117)/(G117-F117),I117))/2)^2-1 -> 0.09388611372 | K117: =IF(B117=_xlfn.MAXIFS(B:B,C:C,C117,D:D,D117),VLOOKUP(EOMONTH('RBA Interpolation'!B117,0),'RBA Adjustments'!B:J,9,FALSE)/100,"") ->  | M117: =(1+(E117+IF(L117="",INDEX(L:L,F117)+(INDEX(L:L,G117)-INDEX(L:L,F117))*(ROW(B117)-F117)/(G117-F117),L117))/2)^2-1 -> 0.07833484285 | N117: 0.08870235676 | O117: 0.03623094618
A118: 40025 | B118: ='Nominal RFR'!B136 -> 2009-07-10 | C118: 2009 | D118: 7 | E118: ='Nominal RFR'!H136 -> 0.05317418136 | F118: 110 | G118: 133 | H118: =IF(B118=_xlfn.MAXIFS(B:B,C:C,C118,D:D,D118),VLOOKUP(EOMONTH('RBA Interpolation'!B118,0),'RBA Adjustments'!B:J,5,FALSE)/100,"") ->  | J118: =(1+(E118+IF(I118="",INDEX(I:I,F118)+(INDEX(I:I,G118)-INDEX(I:I,F118))*(ROW(B118)-F118)/(G118-F118),I118))/2)^2-1 -> 0.09416502958 | K118: =IF(B118=_xlfn.MAXIFS(B:B,C:C,C118,D:D,D118),VLOOKUP(EOMONTH('RBA Interpolation'!B118,0),'RBA Adjustments'!B:J,9,FALSE)/100,"") ->  | M118: =(1+(E118+IF(L118="",INDEX(L:L,F118)+(INDEX(L:L,G118)-INDEX(L:L,F118))*(ROW(B118)-F118)/(G118-F118),L118))/2)^2-1 -> 0.07887581707 | N118: 0.08906862541 | O118: 0.03589444405
A119: 40025 | B119: ='Nominal RFR'!B137 -> 2009-07-13 | C119: 2009 | D119: 7 | E119: ='Nominal RFR'!H137 -> 0.05256738035 | F119: 110 | G119: 133 | H119: =IF(B119=_xlfn.MAXIFS(B:B,C:C,C119,D:D,D119),VLOOKUP(EOMONTH('RBA Interpolation'!B119,0),'RBA Adjustments'!B:J,5,FALSE)/100,"") ->  | J119: =(1+(E119+IF(I119="",INDEX(I:I,F119)+(INDEX(I:I,G119)-INDEX(I:I,F119))*(ROW(B119)-F119)/(G119-F119),I119))/2)^2-1 -> 0.09307439235 | K119: =IF(B119=_xlfn.MAXIFS(B:B,C:C,C119,D:D,D119),VLOOKUP(EOMONTH('RBA Interpolation'!B119,0),'RBA Adjustments'!B:J,9,FALSE)/100,"") ->  | M119: =(1+(E119+IF(L119="",INDEX(L:L,F119)+(INDEX(L:L,G119)-INDEX(L:L,F119))*(ROW(B119)-F119)/(G119-F119),L119))/2)^2-1 -> 0.0780567762 | N119: 0.0880685203 | O119: 0.03550113995
A120: 40025 | B120: ='Nominal RFR'!B138 -> 2009-07-14 | C120: 2009 | D120: 7 | E120: ='Nominal RFR'!H138 -> 0.05310478589 | F120: 110 | G120: 133 | H120: =IF(B120=_xlfn.MAXIFS(B:B,C:C,C120,D:D,D120),VLOOKUP(EOMONTH('RBA Interpolation'!B120,0),'RBA Adjustments'!B:J,5,FALSE)/100,"") ->  | J120: =(1+(E120+IF(I120="",INDEX(I:I,F120)+(INDEX(I:I,G120)-INDEX(I:I,F120))*(ROW(B120)-F120)/(G120-F120),I120))/2)^2-1 -> 0.09318029982 | K120: =IF(B120=_xlfn.MAXIFS(B:B,C:C,C120,D:D,D120),VLOOKUP(EOMONTH('RBA Interpolation'!B120,0),'RBA Adjustments'!B:J,9,FALSE)/100,"") ->  | M120: =(1+(E120+IF(L120="",INDEX(L:L,F120)+(INDEX(L:L,G120)-INDEX(L:L,F120))*(ROW(B120)-F120)/(G120-F120),L120))/2)^2-1 -> 0.07842594652 | N120: 0.08826218205 | O120: 0.03515739616
A121: 40025 | B121: ='Nominal RFR'!B139 -> 2009-07-15 | C121: 2009 | D121: 7 | E121: ='Nominal RFR'!H139 -> 0.05480730479 | F121: 110 | G121: 133 | H121: =IF(B121=_xlfn.MAXIFS(B:B,C:C,C121,D:D,D121),VLOOKUP(EOMONTH('RBA Interpolation'!B121,0),'RBA Adjustments'!B:J,5,FALSE)/100,"") ->  | J121: =(1+(E121+IF(I121="",INDEX(I:I,F121)+(INDEX(I:I,G121)-INDEX(I:I,F121))*(ROW(B121)-F121)/(G121-F121),I121))/2)^2-1 -> 0.09450479812 | K121: =IF(B121=_xlfn.MAXIFS(B:B,C:C,C121,D:D,D121),VLOOKUP(EOMONTH('RBA Interpolation'!B121,0),'RBA Adjustments'!B:J,9,FALSE)/100,"") ->  | M121: =(1+(E121+IF(L121="",INDEX(L:L,F121)+(INDEX(L:L,G121)-INDEX(L:L,F121))*(ROW(B121)-F121)/(G121-F121),L121))/2)^2-1 -> 0.08000566516 | N121: 0.0896717538 | O121: 0.03486444902
A122: 40025 | B122: ='Nominal RFR'!B140 -> 2009-07-16 | C122: 2009 | D122: 7 | E122: ='Nominal RFR'!H140 -> 0.05505982368 | F122: 110 | G122: 133 | H122: =IF(B122=_xlfn.MAXIFS(B:B,C:C,C122,D:D,D122),VLOOKUP(EOMONTH('RBA Interpolation'!B122,0),'RBA Adjustments'!B:J,5,FALSE)/100,"") ->  | J122: =(1+(E122+IF(I122="",INDEX(I:I,F122)+(INDEX(I:I,G122)-INDEX(I:I,F122))*(ROW(B122)-F122)/(G122-F122),I122))/2)^2-1 -> 0.09431273635 | K122: =IF(B122=_xlfn.MAXIFS(B:B,C:C,C122,D:D,D122),VLOOKUP(EOMONTH('RBA Interpolation'!B122,0),'RBA Adjustments'!B:J,9,FALSE)/100,"") ->  | M122: =(1+(E122+IF(L122="",INDEX(L:L,F122)+(INDEX(L:L,G122)-INDEX(L:L,F122))*(ROW(B122)-F122)/(G122-F122),L122))/2)^2-1 -> 0.08007907497 | N122: 0.08956818255 | O122: 0.03450835888
A123: 40025 | B123: ='Nominal RFR'!B141 -> 2009-07-17 | C123: 2009 | D123: 7 | E123: ='Nominal RFR'!H141 -> 0.05481234257 | F123: 110 | G123: 133 | H123: =IF(B123=_xlfn.MAXIFS(B:B,C:C,C123,D:D,D123),VLOOKUP(EOMONTH('RBA Interpolation'!B123,0),'RBA Adjustments'!B:J,5,FALSE)/100,"") ->  | J123: =(1+(E123+IF(I123="",INDEX(I:I,F123)+(INDEX(I:I,G123)-INDEX(I:I,F123))*(ROW(B123)-F123)/(G123-F123),I123))/2)^2-1 -> 0.0935977528 | K123: =IF(B123=_xlfn.MAXIFS(B:B,C:C,C123,D:D,D123),VLOOKUP(EOMONTH('RBA Interpolation'!B123,0),'RBA Adjustments'!B:J,9,FALSE)/100,"") ->  | M123: =(1+(E123+IF(L123="",INDEX(L:L,F123)+(INDEX(L:L,G123)-INDEX(L:L,F123))*(ROW(B123)-F123)/(G123-F123),L123))/2)^2-1 -> 0.07963289786 | N123: 0.08894280115 | O123: 0.03413045858
A124: 40025 | B124: ='Nominal RFR'!B142 -> 2009-07-20 | C124: 2009 | D124: 7 | E124: ='Nominal RFR'!H142 -> 0.05653589421 | F124: 110 | G124: 133 | H124: =IF(B124=_xlfn.MAXIFS(B:B,C:C,C124,D:D,D124),VLOOKUP(EOMONTH('RBA Interpolation'!B124,0),'RBA Adjustments'!B:J,5,FALSE)/100,"") ->  | J124: =(1+(E124+IF(I124="",INDEX(I:I,F124)+(INDEX(I:I,G124)-INDEX(I:I,F124))*(ROW(B124)-F124)/(G124-F124),I124))/2)^2-1 -> 0.09494451237 | K124: =IF(B124=_xlfn.MAXIFS(B:B,C:C,C124,D:D,D124),VLOOKUP(EOMONTH('RBA Interpolation'!B124,0),'RBA Adjustments'!B:J,9,FALSE)/100,"") ->  | M124: =(1+(E124+IF(L124="",INDEX(L:L,F124)+(INDEX(L:L,G124)-INDEX(L:L,F124))*(ROW(B124)-F124)/(G124-F124),L124))/2)^2-1 -> 0.08123537017 | N124: 0.0903747983 | O124: 0.0338389041
A125: 40025 | B125: ='Nominal RFR'!B143 -> 2009-07-21 | C125: 2009 | D125: 7 | E125: ='Nominal RFR'!H143 -> 0.05548853904 | F125: 110 | G125: 133 | H125: =IF(B125=_xlfn.MAXIFS(B:B,C:C,C125,D:D,D125),VLOOKUP(EOMONTH('RBA Interpolation'!B125,0),'RBA Adjustments'!B:J,5,FALSE)/100,"") ->  | J125: =(1+(E125+IF(I125="",INDEX(I:I,F125)+(INDEX(I:I,G125)-INDEX(I:I,F125))*(ROW(B125)-F125)/(G125-F125),I125))/2)^2-1 -> 0.09339277079 | K125: =IF(B125=_xlfn.MAXIFS(B:B,C:C,C125,D:D,D125),VLOOKUP(EOMONTH('RBA Interpolation'!B125,0),'RBA Adjustments'!B:J,9,FALSE)/100,"") ->  | M125: =(1+(E125+IF(L125="",INDEX(L:L,F125)+(INDEX(L:L,G125)-INDEX(L:L,F125))*(ROW(B125)-F125)/(G125-F125),L125))/2)^2-1 -> 0.07995755715 | N125: 0.08891436624 | O125: 0.0334258272
A126: 40025 | B126: ='Nominal RFR'!B144 -> 2009-07-22 | C126: 2009 | D126: 7 | E126: ='Nominal RFR'!H144 -> 0.05595869018 | F126: 110 | G126: 133 | H126: =IF(B126=_xlfn.MAXIFS(B:B,C:C,C126,D:D,D126),VLOOKUP(EOMONTH('RBA Interpolation'!B126,0),'RBA Adjustments'!B:J,5,FALSE)/100,"") ->  | J126: =(1+(E126+IF(I126="",INDEX(I:I,F126)+(INDEX(I:I,G126)-INDEX(I:I,F126))*(ROW(B126)-F126)/(G126-F126),I126))/2)^2-1 -> 0.09342836655 | K126: =IF(B126=_xlfn.MAXIFS(B:B,C:C,C126,D:D,D126),VLOOKUP(EOMONTH('RBA Interpolation'!B126,0),'RBA Adjustments'!B:J,9,FALSE)/100,"") ->  | M126: =(1+(E126+IF(L126="",INDEX(L:L,F126)+(INDEX(L:L,G126)-INDEX(L:L,F126))*(ROW(B126)-F126)/(G126-F126),L126))/2)^2-1 -> 0.08025715047 | N126: 0.08903796119 | O126: 0.03307927101
A127: 40025 | B127: ='Nominal RFR'!B145 -> 2009-07-23 | C127: 2009 | D127: 7 | E127: ='Nominal RFR'!H145 -> 0.05616108312 | F127: 110 | G127: 133 | H127: =IF(B127=_xlfn.MAXIFS(B:B,C:C,C127,D:D,D127),VLOOKUP(EOMONTH('RBA Interpolation'!B127,0),'RBA Adjustments'!B:J,5,FALSE)/100,"") ->  | J127: =(1+(E127+IF(I127="",INDEX(I:I,F127)+(INDEX(I:I,G127)-INDEX(I:I,F127))*(ROW(B127)-F127)/(G127-F127),I127))/2)^2-1 -> 0.09318398921 | K127: =IF(B127=_xlfn.MAXIFS(B:B,C:C,C127,D:D,D127),VLOOKUP(EOMONTH('RBA Interpolation'!B127,0),'RBA Adjustments'!B:J,9,FALSE)/100,"") ->  | M127: =(1+(E127+IF(L127="",INDEX(L:L,F127)+(INDEX(L:L,G127)-INDEX(L:L,F127))*(ROW(B127)-F127)/(G127-F127),L127))/2)^2-1 -> 0.08027846907 | N127: 0.08888214916 | O127: 0.03272106604
A128: 40025 | B128: ='Nominal RFR'!B146 -> 2009-07-24 | C128: 2009 | D128: 7 | E128: ='Nominal RFR'!H146 -> 0.05727997481 | F128: 110 | G128: 133 | H128: =IF(B128=_xlfn.MAXIFS(B:B,C:C,C128,D:D,D128),VLOOKUP(EOMONTH('RBA Interpolation'!B128,0),'RBA Adjustments'!B:J,5,FALSE)/100,"") ->  | J128: =(1+(E128+IF(I128="",INDEX(I:I,F128)+(INDEX(I:I,G128)-INDEX(I:I,F128))*(ROW(B128)-F128)/(G128-F128),I128))/2)^2-1 -> 0.09389799136 | K128: =IF(B128=_xlfn.MAXIFS(B:B,C:C,C128,D:D,D128),VLOOKUP(EOMONTH('RBA Interpolation'!B128,0),'RBA Adjustments'!B:J,9,FALSE)/100,"") ->  | M128: =(1+(E128+IF(L128="",INDEX(L:L,F128)+(INDEX(L:L,G128)-INDEX(L:L,F128))*(ROW(B128)-F128)/(G128-F128),L128))/2)^2-1 -> 0.08125258349 | N128: 0.08968285541 | O128: 0.0324028806
A129: 40025 | B129: ='Nominal RFR'!B147 -> 2009-07-27 | C129: 2009 | D129: 7 | E129: ='Nominal RFR'!H147 -> 0.05753753149 | F129: 110 | G129: 133 | H129: =IF(B129=_xlfn.MAXIFS(B:B,C:C,C129,D:D,D129),VLOOKUP(EOMONTH('RBA Interpolation'!B129,0),'RBA Adjustments'!B:J,5,FALSE)/100,"") ->  | J129: =(1+(E129+IF(I129="",INDEX(I:I,F129)+(INDEX(I:I,G129)-INDEX(I:I,F129))*(ROW(B129)-F129)/(G129-F129),I129))/2)^2-1 -> 0.09371125138 | K129: =IF(B129=_xlfn.MAXIFS(B:B,C:C,C129,D:D,D129),VLOOKUP(EOMONTH('RBA Interpolation'!B129,0),'RBA Adjustments'!B:J,9,FALSE)/100,"") ->  | M129: =(1+(E129+IF(L129="",INDEX(L:L,F129)+(INDEX(L:L,G129)-INDEX(L:L,F129))*(ROW(B129)-F129)/(G129-F129),L129))/2)^2-1 -> 0.08133127431 | N129: 0.08958459235 | O129: 0.03204706087
A130: 40025 | B130: ='Nominal RFR'!B148 -> 2009-07-28 | C130: 2009 | D130: 7 | E130: ='Nominal RFR'!H148 -> 0.05777304786 | F130: 110 | G130: 133 | H130: =IF(B130=_xlfn.MAXIFS(B:B,C:C,C130,D:D,D130),VLOOKUP(EOMONTH('RBA Interpolation'!B130,0),'RBA Adjustments'!B:J,5,FALSE)/100,"") ->  | J130: =(1+(E130+IF(I130="",INDEX(I:I,F130)+(INDEX(I:I,G130)-INDEX(I:I,F130))*(ROW(B130)-F130)/(G130-F130),I130))/2)^2-1 -> 0.09350147953 | K130: =IF(B130=_xlfn.MAXIFS(B:B,C:C,C130,D:D,D130),VLOOKUP(EOMONTH('RBA Interpolation'!B130,0),'RBA Adjustments'!B:J,9,FALSE)/100,"") ->  | M130: =(1+(E130+IF(L130="",INDEX(L:L,F130)+(INDEX(L:L,G130)-INDEX(L:L,F130))*(ROW(B130)-F130)/(G130-F130),L130))/2)^2-1 -> 0.08138704821 | N130: 0.08946333575 | O130: 0.03169028789
A131: 40025 | B131: ='Nominal RFR'!B149 -> 2009-07-29 | C131: 2009 | D131: 7 | E131: ='Nominal RFR'!H149 -> 0.05625831234 | F131: 110 | G131: 133 | H131: =IF(B131=_xlfn.MAXIFS(B:B,C:C,C131,D:D,D131),VLOOKUP(EOMONTH('RBA Interpolation'!B131,0),'RBA Adjustments'!B:J,5,FALSE)/100,"") ->  | J131: =(1+(E131+IF(I131="",INDEX(I:I,F131)+(INDEX(I:I,G131)-INDEX(I:I,F131))*(ROW(B131)-F131)/(G131-F131),I131))/2)^2-1 -> 0.09146241992 | K131: =IF(B131=_xlfn.MAXIFS(B:B,C:C,C131,D:D,D131),VLOOKUP(EOMONTH('RBA Interpolation'!B131,0),'RBA Adjustments'!B:J,9,FALSE)/100,"") ->  | M131: =(1+(E131+IF(L131="",INDEX(L:L,F131)+(INDEX(L:L,G131)-INDEX(L:L,F131))*(ROW(B131)-F131)/(G131-F131),L131))/2)^2-1 -> 0.07962345969 | N131: 0.08751609984 | O131: 0.0312577875
A132: 40025 | B132: ='Nominal RFR'!B150 -> 2009-07-30 | C132: 2009 | D132: 7 | E132: ='Nominal RFR'!H150 -> 0.05671057935 | F132: 110 | G132: 133 | H132: =IF(B132=_xlfn.MAXIFS(B:B,C:C,C132,D:D,D132),VLOOKUP(EOMONTH('RBA Interpolation'!B132,0),'RBA Adjustments'!B:J,5,FALSE)/100,"") ->  | J132: =(1+(E132+IF(I132="",INDEX(I:I,F132)+(INDEX(I:I,G132)-INDEX(I:I,F132))*(ROW(B132)-F132)/(G132-F132),I132))/2)^2-1 -> 0.09147929991 | K132: =IF(B132=_xlfn.MAXIFS(B:B,C:C,C132,D:D,D132),VLOOKUP(EOMONTH('RBA Interpolation'!B132,0),'RBA Adjustments'!B:J,9,FALSE)/100,"") ->  | M132: =(1+(E132+IF(L132="",INDEX(L:L,F132)+(INDEX(L:L,G132)-INDEX(L:L,F132))*(ROW(B132)-F132)/(G132-F132),L132))/2)^2-1 -> 0.07990442168 | N132: 0.08762100717 | O132: 0.03091042782
A133: 40025 | B133: ='Nominal RFR'!B151 -> 2009-07-31 | C133: 2009 | D133: 7 | E133: ='Nominal RFR'!H151 -> 0.05626284635 | F133: 110 | G133: 133 | H133: =IF(B133=_xlfn.MAXIFS(B:B,C:C,C133,D:D,D133),VLOOKUP(EOMONTH('RBA Interpolation'!B133,0),'RBA Adjustments'!B:J,5,FALSE)/100,"") -> 0.08859389091 | I133: 0.03233104456 | J133: =(1+(E133+IF(I133="",INDEX(I:I,F133)+(INDEX(I:I,G133)-INDEX(I:I,F133))*(ROW(B133)-F133)/(G133-F133),I133))/2)^2-1 -> 0.09055611029 | K133: =IF(B133=_xlfn.MAXIFS(B:B,C:C,C133,D:D,D133),VLOOKUP(EOMONTH('RBA Interpolation'!B133,0),'RBA Adjustments'!B:J,9,FALSE)/100,"") -> 0.07773938211 | L133: 0.02147653577 | M133: =(1+(E133+IF(L133="",INDEX(L:L,F133)+(INDEX(L:L,G133)-INDEX(L:L,F133))*(ROW(B133)-F133)/(G133-F133),L133))/2)^2-1 -> 0.079250235 | N133: 0.08678748519 | O133: 0.03052463884
A134: 40056 | B134: ='Nominal RFR'!B152 -> 2009-08-03 | C134: 2009 | D134: 8 | E134: ='Nominal RFR'!H152 -> 0.05646964736 | F134: =MATCH(IF(D134=1,_xlfn.MAXIFS(B:B,C:C,C134-1,D:D,12),_xlfn.MAXIFS(B:B,C:C,C134,D:D,D134-1)),B:B,0) -> 133 | G134: =MATCH(_xlfn.MAXIFS(B:B,C:C,C134,D:D,D134),B:B,0) -> 154 | H134: =IF(B134=_xlfn.MAXIFS(B:B,C:C,C134,D:D,D134),VLOOKUP(EOMONTH('RBA Interpolation'!B134,0),'RBA Adjustments'!B:J,5,FALSE)/100,"") ->  | I134: =IF(H134="","",H134-E134) ->  | J134: =(1+(E134+IF(I134="",INDEX(I:I,F134)+(INDEX(I:I,G134)-INDEX(I:I,F134))*(ROW(B134)-F134)/(G134-F134),I134))/2)^2-1 -> 0.09082552673 | K134: =IF(B134=_xlfn.MAXIFS(B:B,C:C,C134,D:D,D134),VLOOKUP(EOMONTH('RBA Interpolation'!B134,0),'RBA Adjustments'!B:J,9,FALSE)/100,"") ->  | M134: =(1+(E134+IF(L134="",INDEX(L:L,F134)+(INDEX(L:L,G134)-INDEX(L:L,F134))*(ROW(B134)-F134)/(G134-F134),L134))/2)^2-1 -> 0.07957839897 | N134: 0.08707648415 | O134: 0.03060683679
A135: =EOMONTH(B135,0) -> 40056 | B135: ='Nominal RFR'!B153 -> 2009-08-04 | C135: =YEAR(B135) -> 2009 | D135: 8 | E135: ='Nominal RFR'!H153 -> 0.05666826196 | F135: 133 | G135: 154 | H135: =IF(B135=_xlfn.MAXIFS(B:B,C:C,C135,D:D,D135),VLOOKUP(EOMONTH('RBA Interpolation'!B135,0),'RBA Adjustments'!B:J,5,FALSE)/100,"") ->  | J135: =(1+(E135+IF(I135="",INDEX(I:I,F135)+(INDEX(I:I,G135)-INDEX(I:I,F135))*(ROW(B135)-F135)/(G135-F135),I135))/2)^2-1 -> 0.09108642533 | K135: =IF(B135=_xlfn.MAXIFS(B:B,C:C,C135,D:D,D135),VLOOKUP(EOMONTH('RBA Interpolation'!B135,0),'RBA Adjustments'!B:J,9,FALSE)/100,"") ->  | L135: =IF(K135="","",K135-E135) ->  | M135: =(1+(E135+IF(L135="",INDEX(L:L,F135)+(INDEX(L:L,G135)-INDEX(L:L,F135))*(ROW(B135)-F135)/(G135-F135),L135))/2)^2-1 -> 0.07989810566 | N135: =2/3*J135+1/3*M135 -> 0.08735698544 | O135: =N135-E135 -> 0.03068872347
A136: 40056 | B136: ='Nominal RFR'!B154 -> 2009-08-05 | C136: 2009 | D136: 8 | E136: ='Nominal RFR'!H154 -> 0.05640214106 | F136: 133 | G136: 154 | H136: =IF(B136=_xlfn.MAXIFS(B:B,C:C,C136,D:D,D136),VLOOKUP(EOMONTH('RBA Interpolation'!B136,0),'RBA Adjustments'!B:J,5,FALSE)/100,"") ->  | J136: =(1+(E136+IF(I136="",INDEX(I:I,F136)+(INDEX(I:I,G136)-INDEX(I:I,F136))*(ROW(B136)-F136)/(G136-F136),I136))/2)^2-1 -> 0.09086191121 | K136: =IF(B136=_xlfn.MAXIFS(B:B,C:C,C136,D:D,D136),VLOOKUP(EOMONTH('RBA Interpolation'!B136,0),'RBA Adjustments'!B:J,9,FALSE)/100,"") ->  | M136: =(1+(E136+IF(L136="",INDEX(L:L,F136)+(INDEX(L:L,G136)-INDEX(L:L,F136))*(ROW(B136)-F136)/(G136-F136),L136))/2)^2-1 -> 0.07973489765 | N136: 0.08715290669 | O136: 0.03075076563
A137: 40056 | B137: ='Nominal RFR'!B155 -> 2009-08-06 | C137: 2009 | D137: 8 | E137: ='Nominal RFR'!H155 -> 0.05705390428 | F137: 133 | G137: 154 | H137: =IF(B137=_xlfn.MAXIFS(B:B,C:C,C137,D:D,D137),VLOOKUP(EOMONTH('RBA Interpolation'!B137,0),'RBA Adjustments'!B:J,5,FALSE)/100,"") ->  | J137: =(1+(E137+IF(I137="",INDEX(I:I,F137)+(INDEX(I:I,G137)-INDEX(I:I,F137))*(ROW(B137)-F137)/(G137-F137),I137))/2)^2-1 -> 0.09159621014 | K137: =IF(B137=_xlfn.MAXIFS(B:B,C:C,C137,D:D,D137),VLOOKUP(EOMONTH('RBA Interpolation'!B137,0),'RBA Adjustments'!B:J,9,FALSE)/100,"") ->  | M137: =(1+(E137+IF(L137="",INDEX(L:L,F137)+(INDEX(L:L,G137)-INDEX(L:L,F137))*(ROW(B137)-F137)/(G137-F137),L137))/2)^2-1 -> 0.0805256166 | N137: 0.0879060123 | O137: 0.03085210802
A138: 40056 | B138: ='Nominal RFR'!B156 -> 2009-08-07 | C138: 2009 | D138: 8 | E138: ='Nominal RFR'!H156 -> 0.05677392947 | F138: 133 | G138: 154 | H138: =IF(B138=_xlfn.MAXIFS(B:B,C:C,C138,D:D,D138),VLOOKUP(EOMONTH('RBA Interpolation'!B138,0),'RBA Adjustments'!B:J,5,FALSE)/100,"") ->  | J138: =(1+(E138+IF(I138="",INDEX(I:I,F138)+(INDEX(I:I,G138)-INDEX(I:I,F138))*(ROW(B138)-F138)/(G138-F138),I138))/2)^2-1 -> 0.09135717063 | K138: =IF(B138=_xlfn.MAXIFS(B:B,C:C,C138,D:D,D138),VLOOKUP(EOMONTH('RBA Interpolation'!B138,0),'RBA Adjustments'!B:J,9,FALSE)/100,"") ->  | M138: =(1+(E138+IF(L138="",INDEX(L:L,F138)+(INDEX(L:L,G138)-INDEX(L:L,F138))*(ROW(B138)-F138)/(G138-F138),L138))/2)^2-1 -> 0.08034796141 | N138: 0.08768743422 | O138: 0.03091350475
A139: 40056 | B139: ='Nominal RFR'!B157 -> 2009-08-10 | C139: 2009 | D139: 8 | E139: ='Nominal RFR'!H157 -> 0.05749231738 | F139: 133 | G139: 154 | H139: =IF(B139=_xlfn.MAXIFS(B:B,C:C,C139,D:D,D139),VLOOKUP(EOMONTH('RBA Interpolation'!B139,0),'RBA Adjustments'!B:J,5,FALSE)/100,"") ->  | J139: =(1+(E139+IF(I139="",INDEX(I:I,F139)+(INDEX(I:I,G139)-INDEX(I:I,F139))*(ROW(B139)-F139)/(G139-F139),I139))/2)^2-1 -> 0.09216126223 | K139: =IF(B139=_xlfn.MAXIFS(B:B,C:C,C139,D:D,D139),VLOOKUP(EOMONTH('RBA Interpolation'!B139,0),'RBA Adjustments'!B:J,9,FALSE)/100,"") ->  | M139: =(1+(E139+IF(L139="",INDEX(L:L,F139)+(INDEX(L:L,G139)-INDEX(L:L,F139))*(ROW(B139)-F139)/(G139-F139),L139))/2)^2-1 -> 0.08120818079 | N139: 0.08851023509 | O139: 0.03101791771
A140: 40056 | B140: ='Nominal RFR'!B158 -> 2009-08-11 | C140: 2009 | D140: 8 | E140: ='Nominal RFR'!H158 -> 0.0574627204 | F140: 133 | G140: 154 | H140: =IF(B140=_xlfn.MAXIFS(B:B,C:C,C140,D:D,D140),VLOOKUP(EOMONTH('RBA Interpolation'!B140,0),'RBA Adjustments'!B:J,5,FALSE)/100,"") ->  | J140: =(1+(E140+IF(I140="",INDEX(I:I,F140)+(INDEX(I:I,G140)-INDEX(I:I,F140))*(ROW(B140)-F140)/(G140-F140),I140))/2)^2-1 -> 0.09218380904 | K140: =IF(B140=_xlfn.MAXIFS(B:B,C:C,C140,D:D,D140),VLOOKUP(EOMONTH('RBA Interpolation'!B140,0),'RBA Adjustments'!B:J,9,FALSE)/100,"") ->  | M140: =(1+(E140+IF(L140="",INDEX(L:L,F140)+(INDEX(L:L,G140)-INDEX(L:L,F140))*(ROW(B140)-F140)/(G140-F140),L140))/2)^2-1 -> 0.08129080955 | N140: 0.08855280921 | O140: 0.03109008881
A141: 40056 | B141: ='Nominal RFR'!B159 -> 2009-08-12 | C141: 2009 | D141: 8 | E141: ='Nominal RFR'!H159 -> 0.05583891688 | F141: 133 | G141: 154 | H141: =IF(B141=_xlfn.MAXIFS(B:B,C:C,C141,D:D,D141),VLOOKUP(EOMONTH('RBA Interpolation'!B141,0),'RBA Adjustments'!B:J,5,FALSE)/100,"") ->  | J141: =(1+(E141+IF(I141="",INDEX(I:I,F141)+(INDEX(I:I,G141)-INDEX(I:I,F141))*(ROW(B141)-F141)/(G141-F141),I141))/2)^2-1 -> 0.09054090728 | K141: =IF(B141=_xlfn.MAXIFS(B:B,C:C,C141,D:D,D141),VLOOKUP(EOMONTH('RBA Interpolation'!B141,0),'RBA Adjustments'!B:J,9,FALSE)/100,"") ->  | M141: =(1+(E141+IF(L141="",INDEX(L:L,F141)+(INDEX(L:L,G141)-INDEX(L:L,F141))*(ROW(B141)-F141)/(G141-F141),L141))/2)^2-1 -> 0.07971627568 | N141: 0.08693269675 | O141: 0.03109377987
A142: 40056 | B142: ='Nominal RFR'!B160 -> 2009-08-13 | C142: 2009 | D142: 8 | E142: ='Nominal RFR'!H160 -> 0.05719017632 | F142: 133 | G142: 154 | H142: =IF(B142=_xlfn.MAXIFS(B:B,C:C,C142,D:D,D142),VLOOKUP(EOMONTH('RBA Interpolation'!B142,0),'RBA Adjustments'!B:J,5,FALSE)/100,"") ->  | J142: =(1+(E142+IF(I142="",INDEX(I:I,F142)+(INDEX(I:I,G142)-INDEX(I:I,F142))*(ROW(B142)-F142)/(G142-F142),I142))/2)^2-1 -> 0.09200594304 | K142: =IF(B142=_xlfn.MAXIFS(B:B,C:C,C142,D:D,D142),VLOOKUP(EOMONTH('RBA Interpolation'!B142,0),'RBA Adjustments'!B:J,9,FALSE)/100,"") ->  | M142: =(1+(E142+IF(L142="",INDEX(L:L,F142)+(INDEX(L:L,G142)-INDEX(L:L,F142))*(ROW(B142)-F142)/(G142-F142),L142))/2)^2-1 -> 0.08123421854 | N142: 0.08841536821 | O142: 0.03122519188
A143: 40056 | B143: ='Nominal RFR'!B161 -> 2009-08-14 | C143: 2009 | D143: 8 | E143: ='Nominal RFR'!H161 -> 0.05632229219 | F143: 133 | G143: 154 | H143: =IF(B143=_xlfn.MAXIFS(B:B,C:C,C143,D:D,D143),VLOOKUP(EOMONTH('RBA Interpolation'!B143,0),'RBA Adjustments'!B:J,5,FALSE)/100,"") ->  | J143: =(1+(E143+IF(I143="",INDEX(I:I,F143)+(INDEX(I:I,G143)-INDEX(I:I,F143))*(ROW(B143)-F143)/(G143-F143),I143))/2)^2-1 -> 0.09115265245 | K143: =IF(B143=_xlfn.MAXIFS(B:B,C:C,C143,D:D,D143),VLOOKUP(EOMONTH('RBA Interpolation'!B143,0),'RBA Adjustments'!B:J,9,FALSE)/100,"") ->  | M143: =(1+(E143+IF(L143="",INDEX(L:L,F143)+(INDEX(L:L,G143)-INDEX(L:L,F143))*(ROW(B143)-F143)/(G143-F143),L143))/2)^2-1 -> 0.08044531946 | N143: 0.08758354145 | O143: 0.03126124926
A144: 40056 | B144: ='Nominal RFR'!B162 -> 2009-08-17 | C144: 2009 | D144: 8 | E144: ='Nominal RFR'!H162 -> 0.05480617128 | F144: 133 | G144: 154 | H144: =IF(B144=_xlfn.MAXIFS(B:B,C:C,C144,D:D,D144),VLOOKUP(EOMONTH('RBA Interpolation'!B144,0),'RBA Adjustments'!B:J,5,FALSE)/100,"") ->  | J144: =(1+(E144+IF(I144="",INDEX(I:I,F144)+(INDEX(I:I,G144)-INDEX(I:I,F144))*(ROW(B144)-F144)/(G144-F144),I144))/2)^2-1 -> 0.08962292833 | K144: =IF(B144=_xlfn.MAXIFS(B:B,C:C,C144,D:D,D144),VLOOKUP(EOMONTH('RBA Interpolation'!B144,0),'RBA Adjustments'!B:J,9,FALSE)/100,"") ->  | M144: =(1+(E144+IF(L144="",INDEX(L:L,F144)+(INDEX(L:L,G144)-INDEX(L:L,F144))*(ROW(B144)-F144)/(G144-F144),L144))/2)^2-1 -> 0.07898325299 | N144: 0.08607636988 | O144: 0.0312701986
